Workbook

Sheet Master Sheet
A1: Condition | B1: Movie | C1: Cell ID | D1: Generation | E1: R.P | F1: G.P | G1: B.P | H1: Parent MkP | I1: Parent MkP.2 | J1: Parent ErP | K1: Parent ErP.2 | L1: Parent MEP | M1: Parent MEP.2 | N1: Generations Since Blue | O1: Parent Type | P1: First Frame | Q1: Last Frame | R1: # of Time Frames | S1: 1 | T1: 2 | U1: 3 | V1: 4 | W1: 5 | X1: 2Hr Conversion | Y1: 2Hr Conversion.1 | Z1: 30Min Conversion | AA1: 30Min Conversion.1 | AB1: 30Min Conversion.2 | AC1: 10Min Conversion | AD1: 10Min Conversion.1 | AE1: Sum of Conversions | AF1: Sum of Conversions.1 | AG1: Sum of Conversions.2 | AH1: Sum of Conversions.3 | AI1: Sum of Conversions.4 | AJ1: Sum of Conversions.5 | AK1: Sum of Conversions.6 | AL1: Hours | AM1: First Time | AN1: Last Time | AO1: Total Time | AP1: 1st X | AQ1: 1st Y | AR1: Last X | AS1: Last Y | AT1: Diffusion Pixel Distance | AU1: Diffusion Micron Distance | AV1: Total Pixel Distance | AW1: Total Micron Distance | AX1: Directionality | AY1: Avg Velocity | AZ1: 1 Peak Velocity | BA1: 1 Peak Frame | BB1: 1 Peak Time | BC1: 3 Peak Velocity | BD1: 3 Peak Frame 1 | BE1: 3 Peak Time 1 | BF1: 3 Peak Frame 2 | BG1: 3 Peak Time 2 | BH1: 3 Peak Frame 3 | BI1: 3 Peak Time 3 | BJ1: R.D1 | BK1: G.D1 | BL1: B.D1 | BM1: Daughter 1 MkP | BN1: Daughter 1 MkP.2 | BO1: Daughter 1 ErP | BP1: Daughter 1 ErP.2 | BQ1: Daughter 1 MEP | BR1: Daughter 1 MEP.2 | BS1: Daughter 1 Type | BT1: R.D2 | BU1: G.D2 | BV1: B.D2 | BW1: Daughter 2 MkP | BX1: Daughter 2 MkP.2 | BY1: Daughter 2 ErP | BZ1: Daughter 2 ErP.2 | CA1: Daughter 2 MEP | CB1: Daughter 2 MEP.2 | CC1: Daughter 2 Type | CD1: MEP Expansion | CE1: MEP Expansion.2 | CF1: MEP Maintenance+E | CG1: MEP Maintenance+E.1 | CH1: MEP Maintenance+E.2 | CI1: MEP Maintenance+E.3 | CJ1: MEP Maintenance+Mk | CK1: MEP Maintenance+Mk.1 | CL1: MEP Maintenance+Mk.2 | CM1: MEP Maintenance+Mk.3 | CN1: MEP Maintenance | CO1: MEP Exhaustion | CP1: MEP Exhaustion.1 | CQ1: MEP Exhaustion.2 | CR1: MEP Exhaustion.3 | CS1: ErP Expansion | CT1: ErP Expansion.2 | CU1: MkP Expansion | CV1: Division Outcome | CW1: Division Outcome.6
A2: Cntrl MkP | B2: 11082018_sp6_MkP | C2: Sheet1 | D2: 1 | E2: 0 | F2: 1 | G2: 0 | H2: =IF(AND(E2=0,F2=1,G2=0),"MkP",) -> MkP | I2: =IF(H2=0, "", H2) -> MkP | J2: =IF(AND(E2=1,F2=0,G2=0),"ErP",) -> 0 | K2: =IF(J2=0, "", J2) ->  | L2: =IF(AND(E2=0,F2=0,G2=1),"MEP",) -> 0 | M2: =IF(L2=0, "", L2) ->  | O2: =CONCATENATE(I2,K2,M2) -> MkP | P2: 1 | Q2: 7 | R2: =Q2-P2+1 -> 7 | S2: =Q2-P2+1 -> 7 | T2: =Q2-17 -> -10 | U2: =17-P2+1 -> 17 | V2: =Q2-17 -> -10 | W2: =17-P2+1 -> 17 | X2: =2*S2 -> 14 | Y2: =2*U2 -> 34 | AC2: =0.1667*S2 -> 1.1669 | AD2: =0.1667*V2 -> -1.667 | AE2: =IF(Q2<18,X2,0) -> 14 | AF2: =IF(AND(P2<18,Q2>17),Y2,0) -> 0 | AG2: =IF(AND(P2<18,Q2>17),Z2,0) -> 0 | AH2: =IF(AND(P2>18,Q2<17),AA2,0) -> 0 | AI2: =IF(AND(P2<18,Q2>17),AB2,0) -> 0 | AJ2: =IF(P2>17,AC2,0) -> 0 | AK2: =IF(AND(P2<18,Q2>17),AD2,0) -> 0 | AL2: =SUM(AE2:AK2) -> 14 | AM2: 24 | AN2: 36 | AO2: 12 | AP2: 692.0522388 | AQ2: 455.2574627 | AR2: 758.0776699 | AS2: 389.192233 | AT2: 93.4022062 | AU2: =AT2*11.2 -> 1046.104709 | AV2: 115.7818721 | AW2: =AV2*11.2 -> 1296.756967 | AX2: =AW2/AU2 -> 1.239605324 | AY2: =AW2/AL2 -> 92.62549767 | AZ2: 69.20177615 | BA2: 3 | BB2: 2 | BC2: 42.87764395 | BD2: 3 | BE2: 2 | BF2: 6 | BG2: 2 | BH2: 2 | BI2: 2 | BJ2: 0 | BK2: 1 | BL2: 0 | BM2: =IF(AND(BJ2=0,BK2=1,BL2=0),"MkP",) -> MkP | BN2: =IF(BM2=0,"",BM2) -> MkP | BO2: =IF(AND(BJ2=1,BK2=0,BL2=0),"ErP",) -> 0 | BP2: =IF(BO2=0,"",BO2) ->  | BQ2: =IF(AND(BJ2=0,BK2=0,BL2=1),"MEP",) -> 0 | BR2: =IF(BQ2=0,"",BQ2) ->  | BS2: =CONCATENATE(BN2,BP2,BR2) -> MkP | BT2: 0 | BU2: 1 | BV2: 0 | BW2: =IF(AND(BT2=0,BU2=1,BV2=0),"MkP",) -> MkP | BX2: =IF(BW2=0,"",BW2) -> MkP | BY2: =IF(AND(BT2=1,BU2=0,BV2=0),"ErP",) -> 0 | BZ2: =IF(BY2=0,"",BY2) ->  | CA2: =IF(AND(BT2=0,BU2=0,BV2=1),"MEP",) -> 0 | CB2: =IF(CA2=0,"",CA2) ->  | CC2: =CONCATENATE(BX2,BZ2,CB2) -> MkP | CD2: =COUNTIFS(BS2,"MEP",CC2,"MEP") -> 0 | CE2: =IF(CD2=1, "MEP Expansion", "") ->  | CF2: =COUNTIFS(BS2,"MEP",CC2,"ErP") -> 0 | CG2: =COUNTIFS(BS2,"ErP",CC2,"MEP") -> 0 | CH2: =SUM(CF2:CG2) -> 0 | CI2: =IF(CH2=1, "MEP Maintenance+E", "") ->  | CJ2: =COUNTIFS(BS2,"MEP",CC2,"MkP") -> 0 | CK2: =COUNTIFS(BS2,"MkP",CC2,"MEP") -> 0 | CL2: =SUM(CJ2:CK2) -> 0 | CM2: =IF(CL2=1, "MEP Maintenance+Mk", "") ->  | CN2: =COUNTIFS(BS2,"MkP",CC2,"ErP") -> 0 | CO2: =COUNTIFS(BS2,"ErP",CC2,"MkP") -> 0 | CP2: =SUM(CN2:CO2) -> 0 | CQ2: =IF(CP2=1, "MEP Exhaustion", "") ->  | CR2: =COUNTIFS(BS2,"ErP",CC2,"ErP") -> 0 | CS2: =IF(CR2=1, "ErP Expansion", "") ->  | CT2: =COUNTIFS(BS2,"MkP",CC2,"MkP") -> 1 | CU2: =IF(CT2=1, "MkP Expansion", "") -> MkP Expansion | CV2: =CONCATENATE(CE2,CI2,CM2,CQ2,CS2,CU2) -> MkP Expansion
A3: Cntrl MkP | B3: 11082018_sp6_MkP | C3: Sheet2 | D3: 2 | E3: 0 | F3: 1 | G3: 0 | H3: =IF(AND(E3=0,F3=1,G3=0),"MkP",) -> MkP | I3: MkP | J3: =IF(AND(E3=1,F3=0,G3=0),"ErP",) -> 0 | K3: =IF(J3=0, "", J3) ->  | L3: =IF(AND(E3=0,F3=0,G3=1),"MEP",) -> 0 | M3: =IF(L3=0, "", L3) ->  | O3: =CONCATENATE(I3,K3,M3) -> MkP | P3: 8 | Q3: 16 | R3: 9 | S3: 9 | T3: -1 | U3: 10 | V3: -1 | W3: 10 | X3: 18 | Y3: 20 | AC3: 1.5003 | AD3: -0.1667 | AE3: 18 | AF3: 0 | AG3: 0 | AH3: 0 | AI3: 0 | AJ3: 0 | AK3: 0 | AL3: 18 | AM3: 38 | AN3: 54 | AO3: 16 | AP3: 758.058642 | AQ3: 389.4351852 | AR3: 704.2785714 | AS3: 412.9142857 | AT3: 58.68188945 | AU3: =AT3*11.2 -> 657.2371619 | AV3: 192.9710414 | AW3: =AV3*11.2 -> 2161.275664 | AX3: =AW3/AU3 -> 3.288425836 | AY3: =AW3/AL3 -> 120.0708702 | AZ3: 91.41226522 | BA3: 11 | BB3: 2 | BC3: 62.95041642 | BD3: 11 | BE3: 2 | BF3: 16 | BG3: 2 | BH3: 10 | BI3: 2 | BJ3: 0 | BK3: 1 | BL3: 0 | BM3: =IF(AND(BJ3=0,BK3=1,BL3=0),"MkP",) -> MkP | BN3: =IF(BM3=0,"",BM3) -> MkP | BO3: =IF(AND(BJ3=1,BK3=0,BL3=0),"ErP",) -> 0 | BP3: =IF(BO3=0,"",BO3) ->  | BQ3: =IF(AND(BJ3=0,BK3=0,BL3=1),"MEP",) -> 0 | BR3: =IF(BQ3=0,"",BQ3) ->  | BS3: =CONCATENATE(BN3,BP3,BR3) -> MkP | BT3: 0 | BU3: 1 | BV3: 0 | BW3: =IF(AND(BT3=0,BU3=1,BV3=0),"MkP",) -> MkP | BX3: =IF(BW3=0,"",BW3) -> MkP | BY3: =IF(AND(BT3=1,BU3=0,BV3=0),"ErP",) -> 0 | BZ3: =IF(BY3=0,"",BY3) ->  | CA3: =IF(AND(BT3=0,BU3=0,BV3=1),"MEP",) -> 0 | CB3: =IF(CA3=0,"",CA3) ->  | CC3: =CONCATENATE(BX3,BZ3,CB3) -> MkP | CD3: =COUNTIFS(BS3,"MEP",CC3,"MEP") -> 0 | CF3: =COUNTIFS(BS3,"MEP",CC3,"ErP") -> 0 | CG3: =COUNTIFS(BS3,"ErP",CC3,"MEP") -> 0 | CH3: =SUM(CF3:CG3) -> 0 | CI3: =IF(CH3=1, "MEP Maintenance+E", "") ->  | CJ3: =COUNTIFS(BS3,"MEP",CC3,"MkP") -> 0 | CK3: =COUNTIFS(BS3,"MkP",CC3,"MEP") -> 0 | CL3: =SUM(CJ3:CK3) -> 0 | CM3: =IF(CL3=1, "MEP Maintenance+Mk", "") ->  | CN3: =COUNTIFS(BS3,"MkP",CC3,"ErP") -> 0 | CO3: =COUNTIFS(BS3,"ErP",CC3,"MkP") -> 0 | CP3: =SUM(CN3:CO3) -> 0 | CQ3: =IF(CP3=1, "MEP Exhaustion", "") ->  | CR3: =COUNTIFS(BS3,"ErP",CC3,"ErP") -> 0 | CS3: =IF(CR3=1, "ErP Expansion", "") ->  | CT3: =COUNTIFS(BS3,"MkP",CC3,"MkP") -> 1 | CU3: =IF(CT3=1, "MkP Expansion", "") -> MkP Expansion | CV3: =CONCATENATE(CE3,CI3,CM3,CQ3,CS3,CU3) -> MkP Expansion
A4: Cntrl MkP | B4: 11082018_sp6_MkP | C4: Sheet3 | D4: 3 | E4: 0 | F4: 1 | G4: 0 | H4: MkP | I4: MkP | J4: 0 | L4: 0 | O4: MkP | P4: 17 | Q4: 379 | R4: 363 | S4: 363 | T4: 362 | U4: 1 | V4: 362 | W4: 1 | X4: 726 | Y4: 2 | AC4: 60.5121 | AD4: 60.3454 | AE4: 0 | AF4: 2 | AG4: 0 | AH4: 0 | AI4: 0 | AJ4: 0 | AK4: 60.3454 | AL4: 62.3454 | AM4: 56 | AN4: 150.2019 | AO4: 94.2019 | AP4: 700.7741935 | AQ4: 409.1572581 | AR4: 544.6235521 | AS4: 471.2374517 | AT4: 168.0386065 | AU4: 1882.032392 | AV4: 1051.703871 | AW4: 11779.08335 | AX4: 6.258703834 | AY4: 188.9326775 | AZ4: 116.5308588 | BA4: 18 | BB4: 2 | BC4: 71.023357 | BD4: 18 | BE4: 2 | BF4: 236 | BG4: 0.1667 | BH4: 60 | BI4: 0.1667 | BJ4: 0 | BK4: 0 | BL4: 0 | BM4: 0 | BO4: 0 | BQ4: 0 | BT4: 0 | BU4: 0 | BV4: 0 | BW4: 0 | BY4: 0 | CA4: 0 | CD4: 0 | CF4: 0 | CG4: 0 | CH4: 0 | CJ4: 0 | CK4: 0 | CL4: 0 | CN4: 0 | CO4: 0 | CP4: 0 | CR4: 0 | CT4: 0
A5: Cntrl MkP | B5: 11082018_sp6_MkP | C5: Sheet4 | D5: 3 | E5: 0 | F5: 1 | G5: 0 | H5: MkP | I5: MkP | J5: 0 | L5: 0 | O5: MkP | P5: 17 | Q5: 379 | R5: 363 | S5: 363 | T5: 362 | U5: 1 | V5: 362 | W5: 1 | X5: 726 | Y5: 2 | AC5: 60.5121 | AD5: 60.3454 | AE5: 0 | AF5: 2 | AG5: 0 | AH5: 0 | AI5: 0 | AJ5: 0 | AK5: 60.3454 | AL5: 62.3454 | AM5: 56 | AN5: 150.2019 | AO5: 94.2019 | AP5: 727.6162791 | AQ5: 431.5930233 | AR5: 656.1842576 | AS5: 521.3953488 | AT5: 114.7475114 | AU5: 1285.172128 | AV5: 1485.363338 | AW5: 16636.06939 | AX5: 12.94462355 | AY5: 266.8371587 | AZ5: 153.1023372 | BA5: 18 | BB5: 2 | BC5: 80.47024136 | BD5: 18 | BE5: 2 | BF5: 377 | BG5: 0.1667 | BH5: 20 | BI5: 0.1667 | BJ5: 0 | BK5: 1 | BL5: 0 | BM5: MkP | BN5: MkP | BO5: 0 | BQ5: 0 | BS5: MkP | BT5: 0 | BU5: 1 | BV5: 0 | BW5: MkP | BX5: MkP | BY5: 0 | CA5: 0 | CC5: MkP | CD5: 0 | CF5: 0 | CG5: 0 | CH5: 0 | CJ5: 0 | CK5: 0 | CL5: 0 | CN5: 0 | CO5: 0 | CP5: 0 | CR5: 0 | CT5: 1 | CU5: MkP Expansion | CV5: MkP Expansion
A6: Cntrl MkP | B6: 11082018_sp6_MkP | C6: Sheet5 | D6: 4 | E6: 0 | F6: 1 | G6: 0 | H6: MkP | I6: MkP | J6: 0 | L6: 0 | O6: MkP | P6: 109 | Q6: 379 | R6: 271 | S6: 271 | T6: 362 | U6: -91 | V6: 362 | W6: -91 | X6: 542 | Y6: -182 | AC6: 45.1757 | AD6: 60.3454 | AE6: 0 | AF6: 0 | AG6: 0 | AH6: 0 | AI6: 0 | AJ6: 45.1757 | AK6: 0 | AL6: 45.1757 | AM6: 77.6696 | AN6: 150.2019 | AO6: 72.5323 | AP6: 607.9190476 | AQ6: 533.0047619 | AR6: 563.6086957 | AS6: 542.915601 | AT6: 45.4051982 | AU6: 508.5382198 | AV6: 416.1356924 | AW6: 4660.719755 | AX6: 9.164935049 | AY6: 103.1687335 | AZ6: 53.60556302 | BA6: 236 | BB6: 0.1667 | BC6: 23.13845337 | BD6: 236 | BE6: 0.1667 | BF6: 269 | BG6: 0.1667 | BH6: 350 | BI6: 0.1667 | BJ6: 0 | BK6: 1 | BL6: 0 | BM6: MkP | BN6: MkP | BO6: 0 | BQ6: 0 | BS6: MkP | BT6: 0 | BU6: 1 | BV6: 0 | BW6: MkP | BX6: MkP | BY6: 0 | CA6: 0 | CC6: MkP | CD6: 0 | CF6: 0 | CG6: 0 | CH6: 0 | CJ6: 0 | CK6: 0 | CL6: 0 | CN6: 0 | CO6: 0 | CP6: 0 | CR6: 0 | CT6: 1 | CU6: MkP Expansion | CV6: MkP Expansion
A7: Cntrl MkP | B7: 11082018_sp6_MkP | C7: Sheet6 | D7: 4 | E7: 0 | F7: 1 | G7: 0 | H7: MkP | I7: MkP | J7: 0 | L7: 0 | O7: MkP | P7: 109 | Q7: 379 | R7: 271 | S7: 271 | T7: 362 | U7: -91 | V7: 362 | W7: -91 | X7: 542 | Y7: -182 | AC7: 45.1757 | AD7: 60.3454 | AE7: 0 | AF7: 0 | AG7: 0 | AH7: 0 | AI7: 0 | AJ7: 45.1757 | AK7: 0 | AL7: 45.1757 | AM7: 77.6696 | AN7: 150.2019 | AO7: 72.5323 | AP7: 595.1478261 | AQ7: 530.0608696 | AR7: 548.5280528 | AS7: 526.2376238 | AT7: 46.77628105 | AU7: 523.8943478 | AV7: 1903.423842 | AW7: 21318.34703 | AX7: 40.69207296 | AY7: 471.8985434 | AZ7: 59.74790921 | BA7: 331 | BB7: 0.1667 | BC7: 53.00187409 | BD7: 331 | BE7: 0.1667 | BF7: 236 | BG7: 0.1667 | BH7: 334 | BI7: 0.1667 | BJ7: 0 | BK7: 0 | BL7: 0 | BM7: 0 | BO7: 0 | BQ7: 0 | BT7: 0 | BU7: 0 | BV7: 0 | BW7: 0 | BY7: 0 | CA7: 0 | CD7: 0 | CF7: 0 | CG7: 0 | CH7: 0 | CJ7: 0 | CK7: 0 | CL7: 0 | CN7: 0 | CO7: 0 | CP7: 0 | CR7: 0 | CT7: 0
A8: Cntrl MkP | B8: 11082018_sp6_MkP | C8: Sheet7 | D8: 2 | E8: 0 | F8: 1 | G8: 0 | H8: MkP | I8: MkP | J8: 0 | L8: 0 | O8: MkP | P8: 8 | Q8: 379 | R8: 372 | S8: 372 | T8: 362 | U8: 10 | V8: 362 | W8: 10 | X8: 744 | Y8: 20 | AC8: 62.0124 | AD8: 60.3454 | AE8: 0 | AF8: 20 | AG8: 0 | AH8: 0 | AI8: 0 | AJ8: 0 | AK8: 60.3454 | AL8: 80.3454 | AM8: 38 | AN8: 150.2019 | AO8: 112.2019 | AP8: 766.5103734 | AQ8: 403.4564315 | AR8: 613.2124224 | AS8: 519.5559006 | AT8: 192.3001522 | AU8: 2153.761704 | AV8: 978.572328 | AW8: 10960.01007 | AX8: 5.08877563 | AY8: 136.4111707 | AZ8: 91.32587751 | BA8: 10 | BB8: 2 | BC8: 68.34340328 | BD8: 10 | BE8: 2 | BF8: 11 | BG8: 2 | BH8: 350 | BI8: 0.1667 | BJ8: 0 | BK8: 1 | BL8: 0 | BM8: MkP | BN8: MkP | BO8: 0 | BQ8: 0 | BS8: MkP | BT8: 0 | BU8: 1 | BV8: 0 | BW8: MkP | BX8: MkP | BY8: 0 | CA8: 0 | CC8: MkP | CD8: 0 | CF8: 0 | CG8: 0 | CH8: 0 | CJ8: 0 | CK8: 0 | CL8: 0 | CN8: 0 | CO8: 0 | CP8: 0 | CR8: 0 | CT8: 1 | CU8: MkP Expansion | CV8: MkP Expansion
A9: Cntrl MkP | B9: 11082018_sp6_MkP | C9: Sheet8 | D9: 3 | E9: 0 | F9: 1 | G9: 0 | H9: MkP | I9: MkP | J9: 0 | L9: 0 | O9: MkP | P9: 16 | Q9: 379 | R9: 364 | S9: 364 | T9: 362 | U9: 2 | V9: 362 | W9: 2 | X9: 728 | Y9: 4 | AC9: 60.6788 | AD9: 60.3454 | AE9: 0 | AF9: 4 | AG9: 0 | AH9: 0 | AI9: 0 | AJ9: 0 | AK9: 60.3454 | AL9: 64.3454 | AM9: 54 | AN9: 150.2019 | AO9: 96.2019 | AP9: 885.045283 | AQ9: 426.4792453 | AR9: 706.4611504 | AS9: 519.9828456 | AT9: 201.5817842 | AU9: 2257.715983 | AV9: 769.3869803 | AW9: 8617.134179 | AX9: 3.816748539 | AY9: 133.9199722 | AZ9: 154.611396 | BA9: 18 | BB9: 2 | BC9: 79.14185403 | BD9: 18 | BE9: 2 | BF9: 236 | BG9: 0.1667 | BH9: 34 | BI9: 0.1667 | BJ9: 0 | BK9: 0 | BL9: 0 | BM9: 0 | BO9: 0 | BQ9: 0 | BT9: 0 | BU9: 0 | BV9: 0 | BW9: 0 | BY9: 0 | CA9: 0 | CD9: 0 | CF9: 0 | CG9: 0 | CH9: 0 | CJ9: 0 | CK9: 0 | CL9: 0 | CN9: 0 | CO9: 0 | CP9: 0 | CR9: 0 | CT9: 0
A10: Cntrl MkP | B10: 11082018_sp6_MkP | C10: Sheet9 | D10: 3 | E10: 0 | F10: 1 | G10: 0 | H10: MkP | I10: MkP | J10: 0 | L10: 0 | O10: MkP | P10: 16 | Q10: 105 | R10: 90 | S10: 90 | T10: 88 | U10: 2 | V10: 88 | W10: 2 | X10: 180 | Y10: 4 | AC10: 15.003 | AD10: 14.6696 | AE10: 0 | AF10: 4 | AG10: 0 | AH10: 0 | AI10: 0 | AJ10: 0 | AK10: 14.6696 | AL10: 18.6696 | AM10: 54 | AN10: 77.0028 | AO10: 23.0028 | AP10: 874.3311037 | AQ10: 415.7056856 | AR10: 767.5290023 | AS10: 531.1693735 | AT10: 157.2849392 | AU10: 1761.591319 | AV10: 406.3580843 | AW10: 4551.210544 | AX10: 2.583579117 | AY10: 243.7765428 | AZ10: 119.8310836 | BA10: 18 | BB10: 2 | BC10: 57.91398085 | BD10: 18 | BE10: 2 | BF10: 17 | BG10: 2 | BH10: 42 | BI10: 0.1667 | BJ10: 0 | BK10: 1 | BL10: 0 | BM10: MkP | BN10: MkP | BO10: 0 | BQ10: 0 | BS10: MkP | BT10: 0 | BU10: 1 | BV10: 0 | BW10: MkP | BX10: MkP | BY10: 0 | CA10: 0 | CC10: MkP | CD10: 0 | CF10: 0 | CG10: 0 | CH10: 0 | CJ10: 0 | CK10: 0 | CL10: 0 | CN10: 0 | CO10: 0 | CP10: 0 | CR10: 0 | CT10: 1 | CU10: MkP Expansion | CV10: MkP Expansion
A11: Cntrl MkP | B11: 11082018_sp6_MkP | C11: Sheet10 | D11: 4 | E11: 0 | F11: 1 | G11: 0 | H11: MkP | I11: MkP | J11: 0 | L11: 0 | O11: MkP | P11: 106 | Q11: 379 | R11: 274 | S11: 274 | T11: 362 | U11: -88 | V11: 362 | W11: -88 | X11: 548 | Y11: -176 | AC11: 45.6758 | AD11: 60.3454 | AE11: 0 | AF11: 0 | AG11: 0 | AH11: 0 | AI11: 0 | AJ11: 45.6758 | AK11: 0 | AL11: 45.6758 | AM11: 77.1695 | AN11: 150.2019 | AO11: 73.0324 | AP11: 765.8825758 | AQ11: 534.3371212 | AR11: 692.361465 | AS11: 541.160828 | AT11: 73.83709573 | AU11: 826.9754722 | AV11: 636.1026375 | AW11: 7124.34954 | AX11: 8.614946609 | AY11: 155.9764589 | AZ11: 61.97797177 | BA11: 236 | BB11: 0.1667 | BC11: 39.62841317 | BD11: 236 | BE11: 0.1667 | BF11: 148 | BG11: 0.1667 | BH11: 145 | BI11: 0.1667 | BJ11: 0 | BK11: 0 | BL11: 0 | BM11: 0 | BO11: 0 | BQ11: 0 | BT11: 0 | BU11: 0 | BV11: 0 | BW11: 0 | BY11: 0 | CA11: 0 | CD11: 0 | CF11: 0 | CG11: 0 | CH11: 0 | CJ11: 0 | CK11: 0 | CL11: 0 | CN11: 0 | CO11: 0 | CP11: 0 | CR11: 0 | CT11: 0
A12: Cntrl MkP | B12: 11082018_sp6_MkP | C12: Sheet11 | D12: 4 | E12: 0 | F12: 1 | G12: 0 | H12: MkP | I12: MkP | J12: 0 | L12: 0 | O12: MkP | P12: 106 | Q12: 379 | R12: 274 | S12: 274 | T12: 362 | U12: -88 | V12: 362 | W12: -88 | X12: 548 | Y12: -176 | AC12: 45.6758 | AD12: 60.3454 | AE12: 0 | AF12: 0 | AG12: 0 | AH12: 0 | AI12: 0 | AJ12: 45.6758 | AK12: 0 | AL12: 45.6758 | AM12: 77.1695 | AN12: 150.2019 | AO12: 73.0324 | AP12: 769.780303 | AQ12: 521.9924242 | AR12: 662.5598756 | AS12: 547.0746501 | AT12: 110.115113 | AU12: 1233.289266 | AV12: 516.7870314 | AW12: 5788.014752 | AX12: 4.693152623 | AY12: 126.7195047 | AZ12: 57.55530925 | BA12: 236 | BB12: 0.1667 | BC12: 43.63657233 | BD12: 236 | BE12: 0.1667 | BF12: 129 | BG12: 0.1667 | BH12: 134 | BI12: 0.1667 | BJ12: 0 | BK12: 0 | BL12: 0 | BM12: 0 | BO12: 0 | BQ12: 0 | BT12: 0 | BU12: 0 | BV12: 0 | BW12: 0 | BY12: 0 | CA12: 0 | CD12: 0 | CF12: 0 | CG12: 0 | CH12: 0 | CJ12: 0 | CK12: 0 | CL12: 0 | CN12: 0 | CO12: 0 | CP12: 0 | CR12: 0 | CT12: 0
A13: Cntrl MkP | B13: 11082018_sp7_MkP | C13: Sheet1 | D13: 1 | E13: 0 | F13: 1 | G13: 0 | H13: MkP | I13: MkP | J13: 0 | L13: 0 | O13: MkP | P13: 1 | Q13: 6 | R13: 6 | S13: 6 | T13: -11 | U13: 17 | V13: -11 | W13: 17 | X13: 12 | Y13: 34 | AC13: 1.0002 | AD13: -1.8337 | AE13: 12 | AF13: 0 | AG13: 0 | AH13: 0 | AI13: 0 | AJ13: 0 | AK13: 0 | AL13: 12 | AM13: 24 | AN13: 34 | AO13: 10 | AP13: 665.1824324 | AQ13: 470.777027 | AR13: 676.0142857 | AS13: 456.3166667 | AT13: 18.06740345 | AU13: 202.3549186 | AV13: 16.02958734 | AW13: 179.5313782 | AX13: 0.8872103503 | AY13: 14.96094818 | AZ13: 15.42273042 | BA13: 5 | BB13: 2 | BC13: 7.444632103 | BD13: 5 | BE13: 2 | BF13: 4 | BG13: 2 | BH13: 3 | BI13: 2 | BJ13: 0 | BK13: 1 | BL13: 0 | BM13: MkP | BN13: MkP | BO13: 0 | BQ13: 0 | BS13: MkP | BT13: 0 | BU13: 1 | BV13: 0 | BW13: MkP | BX13: MkP | BY13: 0 | CA13: 0 | CC13: MkP | CD13: 0 | CF13: 0 | CG13: 0 | CH13: 0 | CJ13: 0 | CK13: 0 | CL13: 0 | CN13: 0 | CO13: 0 | CP13: 0 | CR13: 0 | CT13: 1 | CU13: MkP Expansion | CV13: MkP Expansion
A14: Cntrl MkP | B14: 11082018_sp7_MkP | C14: Sheet2 | D14: 2 | E14: 0 | F14: 1 | G14: 0 | H14: MkP | I14: MkP | J14: 0 | L14: 0 | O14: MkP | P14: 7 | Q14: 17 | R14: 11 | S14: 11 | T14: 0 | U14: 11 | V14: 0 | W14: 11 | X14: 22 | Y14: 22 | AC14: 1.8337 | AD14: 0 | AE14: 22 | AF14: 0 | AG14: 0 | AH14: 0 | AI14: 0 | AJ14: 0 | AK14: 0 | AL14: 22 | AM14: 36 | AN14: 56 | AO14: 20 | AP14: 679.215 | AQ14: 460.33 | AR14: 675.3672457 | AS14: 456.4516129 | AT14: 5.463249944 | AU14: 61.18839937 | AV14: 17.46884223 | AW14: 195.651033 | AX14: 3.197518403 | AY14: 8.893228774 | AZ14: 8.299302866 | BA14: 8 | BB14: 2 | BC14: 5.410467336 | BD14: 8 | BE14: 2 | BF14: 14 | BG14: 2 | BH14: 9 | BI14: 2 | BJ14: 0 | BK14: 1 | BL14: 0 | BM14: MkP | BN14: MkP | BO14: 0 | BQ14: 0 | BS14: MkP | BT14: 0 | BU14: 1 | BV14: 0 | BW14: MkP | BX14: MkP | BY14: 0 | CA14: 0 | CC14: MkP | CD14: 0 | CF14: 0 | CG14: 0 | CH14: 0 | CJ14: 0 | CK14: 0 | CL14: 0 | CN14: 0 | CO14: 0 | CP14: 0 | CR14: 0 | CT14: 1 | CU14: MkP Expansion | CV14: MkP Expansion
A15: Cntrl MkP | B15: 11082018_sp7_MkP | C15: Sheet3 | D15: 3 | E15: 0 | F15: 1 | G15: 0 | H15: MkP | I15: MkP | J15: 0 | L15: 0 | O15: MkP | P15: 18 | Q15: 379 | R15: 362 | S15: 362 | T15: 362 | U15: 0 | V15: 362 | W15: 0 | X15: 724 | Y15: 0 | AC15: 60.3454 | AD15: 60.3454 | AE15: 0 | AF15: 0 | AG15: 0 | AH15: 0 | AI15: 0 | AJ15: 60.3454 | AK15: 0 | AL15: 60.3454 | AM15: 58 | AN15: 150.2019 | AO15: 92.2019 | AP15: 679.4981273 | AQ15: 455.8464419 | AR15: 743.06639 | AS15: 350.4771784 | AT15: 123.0593585 | AU15: 1378.264815 | AV15: 1067.852783 | AW15: 11959.95117 | AX15: 8.67754225 | AY15: 198.1915965 | AZ15: 51.10180254 | BA15: 236 | BB15: 0.1667 | BC15: 30.92087447 | BD15: 236 | BE15: 0.1667 | BF15: 264 | BG15: 0.1667 | BH15: 257 | BI15: 0.1667 | BJ15: 0 | BK15: 0 | BL15: 0 | BM15: 0 | BO15: 0 | BQ15: 0 | BT15: 0 | BU15: 0 | BV15: 0 | BW15: 0 | BY15: 0 | CA15: 0 | CD15: 0 | CF15: 0 | CG15: 0 | CH15: 0 | CJ15: 0 | CK15: 0 | CL15: 0 | CN15: 0 | CO15: 0 | CP15: 0 | CR15: 0 | CT15: 0
A16: Cntrl MkP | B16: 11082018_sp7_MkP | C16: Sheet4 | D16: 3 | E16: 0 | F16: 1 | G16: 0 | H16: MkP | I16: MkP | J16: 0 | L16: 0 | O16: MkP | P16: 18 | Q16: 379 | R16: 362 | S16: 362 | T16: 362 | U16: 0 | V16: 362 | W16: 0 | X16: 724 | Y16: 0 | AC16: 60.3454 | AD16: 60.3454 | AE16: 0 | AF16: 0 | AG16: 0 | AH16: 0 | AI16: 0 | AJ16: 60.3454 | AK16: 0 | AL16: 60.3454 | AM16: 58 | AN16: 150.2019 | AO16: 92.2019 | AP16: 661.9241877 | AQ16: 464.1516245 | AR16: 551.1768293 | AS16: 460.0213415 | AT16: 110.8243504 | AU16: 1241.232725 | AV16: 774.8773144 | AW16: 8678.625921 | AX16: 6.991940955 | AY16: 143.8158654 | AZ16: 59.01390306 | BA16: 236 | BB16: 0.1667 | BC16: 28.45535663 | BD16: 236 | BE16: 0.1667 | BF16: 261 | BG16: 0.1667 | BH16: 208 | BI16: 0.1667 | BJ16: 0 | BK16: 0 | BL16: 0 | BM16: 0 | BO16: 0 | BQ16: 0 | BT16: 0 | BU16: 0 | BV16: 0 | BW16: 0 | BY16: 0 | CA16: 0 | CD16: 0 | CF16: 0 | CG16: 0 | CH16: 0 | CJ16: 0 | CK16: 0 | CL16: 0 | CN16: 0 | CO16: 0 | CP16: 0 | CR16: 0 | CT16: 0
A17: Cntrl MkP | B17: 11082018_sp7_MkP | C17: Sheet5 | D17: 2 | E17: 0 | F17: 1 | G17: 0 | H17: MkP | I17: MkP | J17: 0 | L17: 0 | O17: MkP | P17: 7 | Q17: 16 | R17: 10 | S17: 10 | T17: -1 | U17: 11 | V17: -1 | W17: 11 | X17: 20 | Y17: 22 | AC17: 1.667 | AD17: -0.1667 | AE17: 20 | AF17: 0 | AG17: 0 | AH17: 0 | AI17: 0 | AJ17: 0 | AK17: 0 | AL17: 20 | AM17: 36 | AN17: 54 | AO17: 18 | AP17: 668.5342466 | AQ17: 469.010274 | AR17: 650.4860051 | AS17: 453.692112 | AT17: 23.67245463 | AU17: 265.1314919 | AV17: 18.54167077 | AW17: 207.6667126 | AX17: 0.7832593223 | AY17: 10.38333563 | AZ17: 6.136053464 | BA17: 10 | BB17: 2 | BC17: 5.472622624 | BD17: 10 | BE17: 2 | BF17: 9 | BG17: 2 | BH17: 14 | BI17: 2 | BJ17: 0 | BK17: 1 | BL17: 0 | BM17: MkP | BN17: MkP | BO17: 0 | BQ17: 0 | BS17: MkP | BT17: 0 | BU17: 1 | BV17: 0 | BW17: MkP | BX17: MkP | BY17: 0 | CA17: 0 | CC17: MkP | CD17: 0 | CF17: 0 | CG17: 0 | CH17: 0 | CJ17: 0 | CK17: 0 | CL17: 0 | CN17: 0 | CO17: 0 | CP17: 0 | CR17: 0 | CT17: 1 | CU17: MkP Expansion | CV17: MkP Expansion
A18: Cntrl MkP | B18: 11082018_sp7_MkP | C18: Sheet6 | D18: 3 | E18: 0 | F18: 1 | G18: 0 | H18: MkP | I18: MkP | J18: 0 | L18: 0 | O18: MkP | P18: 17 | Q18: 379 | R18: 363 | S18: 363 | T18: 362 | U18: 1 | V18: 362 | W18: 1 | X18: 726 | Y18: 2 | AC18: 60.5121 | AD18: 60.3454 | AE18: 0 | AF18: 2 | AG18: 0 | AH18: 0 | AI18: 0 | AJ18: 0 | AK18: 60.3454 | AL18: 62.3454 | AM18: 56 | AN18: 150.2019 | AO18: 94.2019 | AP18: 656.6541096 | AQ18: 454.9623288 | AR18: 635.4213483 | AS18: 477.7949438 | AT18: 31.17945576 | AU18: 349.2099045 | AV18: 683.852748 | AW18: 7659.150777 | AX18: 21.93279938 | AY18: 122.8502949 | AZ18: 54.70551872 | BA18: 236 | BB18: 0.1667 | BC18: 30.278233 | BD18: 236 | BE18: 0.1667 | BF18: 78 | BG18: 0.1667 | BH18: 125 | BI18: 0.1667 | BJ18: 0 | BK18: 0 | BL18: 0 | BM18: 0 | BO18: 0 | BQ18: 0 | BT18: 0 | BU18: 0 | BV18: 0 | BW18: 0 | BY18: 0 | CA18: 0 | CD18: 0 | CF18: 0 | CG18: 0 | CH18: 0 | CJ18: 0 | CK18: 0 | CL18: 0 | CN18: 0 | CO18: 0 | CP18: 0 | CR18: 0 | CT18: 0
A19: Cntrl MkP | B19: 11082018_sp7_MkP | C19: Sheet7 | D19: 3 | E19: 0 | F19: 1 | G19: 0 | H19: MkP | I19: MkP | J19: 0 | L19: 0 | O19: MkP | P19: 17 | Q19: 379 | R19: 363 | S19: 363 | T19: 362 | U19: 1 | V19: 362 | W19: 1 | X19: 726 | Y19: 2 | AC19: 60.5121 | AD19: 60.3454 | AE19: 0 | AF19: 2 | AG19: 0 | AH19: 0 | AI19: 0 | AJ19: 0 | AK19: 60.3454 | AL19: 62.3454 | AM19: 56 | AN19: 150.2019 | AO19: 94.2019 | AP19: 637.2970297 | AQ19: 448.990099 | AR19: 582.8535354 | AS19: 448.969697 | AT19: 54.44349817 | AU19: 609.7671795 | AV19: 581.1280479 | AW19: 6508.634137 | AX19: 10.67396599 | AY19: 104.3963811 | AZ19: 54.12470463 | BA19: 236 | BB19: 0.1667 | BC19: 27.01682789 | BD19: 236 | BE19: 0.1667 | BF19: 121 | BG19: 0.1667 | BH19: 113 | BI19: 0.1667 | BJ19: 0 | BK19: 0 | BL19: 0 | BM19: 0 | BO19: 0 | BQ19: 0 | BT19: 0 | BU19: 0 | BV19: 0 | BW19: 0 | BY19: 0 | CA19: 0 | CD19: 0 | CF19: 0 | CG19: 0 | CH19: 0 | CJ19: 0 | CK19: 0 | CL19: 0 | CN19: 0 | CO19: 0 | CP19: 0 | CR19: 0 | CT19: 0
A20: Cntrl MkP | B20: 11082018_sp10_MkP | C20: Sheet1 | D20: 1 | E20: 0 | F20: 1 | G20: 0 | H20: MkP | I20: MkP | J20: 0 | L20: 0 | O20: MkP | P20: 1 | Q20: 10 | R20: 10 | S20: 10 | T20: -7 | U20: 17 | V20: -7 | W20: 17 | X20: 20 | Y20: 34 | AC20: 1.667 | AD20: -1.1669 | AE20: 20 | AF20: 0 | AG20: 0 | AH20: 0 | AI20: 0 | AJ20: 0 | AK20: 0 | AL20: 20 | AM20: 24 | AN20: 42 | AO20: 18 | AP20: 644.1262136 | AQ20: 422.7087379 | AR20: 640.6563147 | AS20: 500.0020704 | AT20: 77.37117972 | AU20: 866.5572129 | AV20: 74.71172228 | AW20: 836.7712895 | AX20: 0.9656272859 | AY20: 41.83856448 | AZ20: 53.56458157 | BA20: 9 | BB20: 2 | BC20: 30.47505789 | BD20: 9 | BE20: 2 | BF20: 6 | BG20: 2 | BH20: 10 | BI20: 2 | BJ20: 0 | BK20: 1 | BL20: 0 | BM20: MkP | BN20: MkP | BO20: 0 | BQ20: 0 | BS20: MkP | BT20: 0 | BU20: 1 | BV20: 0 | BW20: MkP | BX20: MkP | BY20: 0 | CA20: 0 | CC20: MkP | CD20: 0 | CF20: 0 | CG20: 0 | CH20: 0 | CJ20: 0 | CK20: 0 | CL20: 0 | CN20: 0 | CO20: 0 | CP20: 0 | CR20: 0 | CT20: 1 | CU20: MkP Expansion | CV20: MkP Expansion
A21: Cntrl MkP | B21: 11082018_sp10_MkP | C21: Sheet2 | D21: 2 | E21: 0 | F21: 1 | G21: 0 | H21: MkP | I21: MkP | J21: 0 | L21: 0 | O21: MkP | P21: 11 | Q21: 77 | R21: 67 | S21: 67 | T21: 60 | U21: 7 | V21: 60 | W21: 7 | X21: 134 | Y21: 14 | AC21: 11.1689 | AD21: 10.002 | AE21: 0 | AF21: 14 | AG21: 0 | AH21: 0 | AI21: 0 | AJ21: 0 | AK21: 10.002 | AL21: 24.002 | AM21: 44 | AN21: 72.3352 | AO21: 28.3352 | AP21: 665.4956012 | AQ21: 416.6715543 | AR21: 585.3208333 | AS21: 475.775 | AT21: 99.60527445 | AU21: 1115.579074 | AV21: 394.3280109 | AW21: 4416.473722 | AX21: 3.958906926 | AY21: 184.0044047 | AZ21: 205.236132 | BA21: 18 | BB21: 2 | BC21: 95.75747937 | BD21: 18 | BE21: 2 | BF21: 15 | BG21: 2 | BH21: 16 | BI21: 2 | BJ21: 0 | BK21: 1 | BL21: 0 | BM21: MkP | BN21: MkP | BO21: 0 | BQ21: 0 | BS21: MkP | BT21: 0 | BU21: 1 | BV21: 0 | BW21: MkP | BX21: MkP | BY21: 0 | CA21: 0 | CC21: MkP | CD21: 0 | CF21: 0 | CG21: 0 | CH21: 0 | CJ21: 0 | CK21: 0 | CL21: 0 | CN21: 0 | CO21: 0 | CP21: 0 | CR21: 0 | CT21: 1 | CU21: MkP Expansion | CV21: MkP Expansion
A22: Cntrl MkP | B22: 11082018_sp10_MkP | C22: Sheet3 | D22: 3 | E22: 0 | F22: 1 | G22: 0 | H22: MkP | I22: MkP | J22: 0 | L22: 0 | O22: MkP | P22: 78 | Q22: 379 | R22: 302 | S22: 302 | T22: 362 | U22: -60 | V22: 362 | W22: -60 | X22: 604 | Y22: -120 | AC22: 50.3434 | AD22: 60.3454 | AE22: 0 | AF22: 0 | AG22: 0 | AH22: 0 | AI22: 0 | AJ22: 50.3434 | AK22: 0 | AL22: 50.3434 | AM22: 72.5019 | AN22: 150.2019 | AO22: 77.7 | AP22: 582.0507812 | AQ22: 471.6992188 | AR22: 561.2479339 | AS22: 378.5694966 | AT22: 95.42485841 | AU22: 1068.758414 | AV22: 1805.967675 | AW22: 20226.83796 | AX22: 18.92554733 | AY22: 401.7773523 | AZ22: 74.46560118 | BA22: 236 | BB22: 0.1666666667 | BC22: 58.10611025 | BD22: 236 | BE22: 0.1666666667 | BF22: 214 | BG22: 0.1666666667 | BH22: 221 | BI22: 0.1666666667 | BJ22: 0 | BK22: 0 | BL22: 0 | BM22: 0 | BO22: 0 | BQ22: 0 | BT22: 0 | BU22: 0 | BV22: 0 | BW22: 0 | BY22: 0 | CA22: 0 | CD22: 0 | CF22: 0 | CG22: 0 | CH22: 0 | CJ22: 0 | CK22: 0 | CL22: 0 | CN22: 0 | CO22: 0 | CP22: 0 | CR22: 0 | CT22: 0
A23: Cntrl MkP | B23: 11082018_sp10_MkP | C23: Sheet4 | D23: 3 | E23: 0 | F23: 1 | G23: 0 | H23: MkP | I23: MkP | J23: 0 | L23: 0 | O23: MkP | P23: 78 | Q23: 191 | R23: 114 | S23: 114 | T23: 174 | U23: -60 | V23: 174 | W23: -60 | X23: 228 | Y23: -120 | AC23: 19.0038 | AD23: 29.0058 | AE23: 0 | AF23: 0 | AG23: 0 | AH23: 0 | AI23: 0 | AJ23: 19.0038 | AK23: 0 | AL23: 19.0038 | AM23: 72.5019 | AN23: 94.771 | AO23: 22.2691 | AP23: 590.785124 | AQ23: 483.2479339 | AR23: 585.1133455 | AS23: 476.9890311 | AT23: 8.446474713 | AU23: 94.60051678 | AV23: 446.4543586 | AW23: 5000.288816 | AX23: 52.8568869 | AY23: 263.1204715 | AZ23: 34.40663444 | BA23: 102 | BB23: 0.1666666667 | BC23: 33.00636777 | BD23: 102 | BE23: 0.1666666667 | BF23: 101 | BG23: 0.1666666667 | BH23: 100 | BI23: 0.1666666667 | BJ23: 0 | BK23: 1 | BL23: 0 | BM23: MkP | BN23: MkP | BO23: 0 | BQ23: 0 | BS23: MkP | BT23: 0 | BU23: 1 | BV23: 0 | BW23: MkP | BX23: MkP | BY23: 0 | CA23: 0 | CC23: MkP | CD23: 0 | CF23: 0 | CG23: 0 | CH23: 0 | CJ23: 0 | CK23: 0 | CL23: 0 | CN23: 0 | CO23: 0 | CP23: 0 | CR23: 0 | CT23: 1 | CU23: MkP Expansion | CV23: MkP Expansion
A24: Cntrl MkP | B24: 11082018_sp10_MkP | C24: Sheet5 | D24: 4 | E24: 0 | F24: 1 | G24: 0 | H24: MkP | I24: MkP | J24: 0 | L24: 0 | O24: MkP | P24: 192 | Q24: 379 | R24: 188 | S24: 188 | T24: 362 | U24: -174 | V24: 362 | W24: -174 | X24: 376 | Y24: -348 | AC24: 31.3396 | AD24: 60.3454 | AE24: 0 | AF24: 0 | AG24: 0 | AH24: 0 | AI24: 0 | AJ24: 31.3396 | AK24: 0 | AL24: 31.3396 | AM24: 95.0593 | AN24: 150.2019 | AO24: 55.1426 | AP24: 579.867036 | AQ24: 473.0138504 | AR24: 538.4571805 | AS24: 482.0671937 | AT24: 42.38796005 | AU24: 474.7451526 | AV24: 361.5925632 | AW24: 4049.836708 | AX24: 8.530548833 | AY24: 129.2242628 | AZ24: 66.1818184 | BA24: 236 | BB24: 0.1666666667 | BC24: 29.72216042 | BD24: 236 | BE24: 0.1666666667 | BF24: 243 | BG24: 0.1666666667 | BH24: 242 | BI24: 0.1666666667 | BJ24: 0 | BK24: 0 | BL24: 0 | BM24: 0 | BO24: 0 | BQ24: 0 | BT24: 0 | BU24: 0 | BV24: 0 | BW24: 0 | BY24: 0 | CA24: 0 | CD24: 0 | CF24: 0 | CG24: 0 | CH24: 0 | CJ24: 0 | CK24: 0 | CL24: 0 | CN24: 0 | CO24: 0 | CP24: 0 | CR24: 0 | CT24: 0
A25: Cntrl MkP | B25: 11082018_sp10_MkP | C25: Sheet6 | D25: 4 | E25: 0 | F25: 1 | G25: 0 | H25: MkP | I25: MkP | J25: 0 | L25: 0 | O25: MkP | P25: 192 | Q25: 379 | R25: 188 | S25: 188 | T25: 362 | U25: -174 | V25: 362 | W25: -174 | X25: 376 | Y25: -348 | AC25: 31.3396 | AD25: 60.3454 | AE25: 0 | AF25: 0 | AG25: 0 | AH25: 0 | AI25: 0 | AJ25: 31.3396 | AK25: 0 | AL25: 31.3396 | AM25: 95.0593 | AN25: 150.2019 | AO25: 55.1426 | AP25: 591.6490683 | AQ25: 484.6055901 | AR25: 552.0182421 | AS25: 510.8988391 | AT25: 47.55982898 | AU25: 532.6700845 | AV25: 501.2479168 | AW25: 5613.976668 | AX25: 10.53931285 | AY25: 179.1336414 | AZ25: 62.51802621 | BA25: 236 | BB25: 0.1666666667 | BC25: 29.60949787 | BD25: 236 | BE25: 0.1666666667 | BF25: 319 | BG25: 0.1666666667 | BH25: 219 | BI25: 0.1666666667 | BJ25: 0 | BK25: 0 | BL25: 0 | BM25: 0 | BO25: 0 | BQ25: 0 | BT25: 0 | BU25: 0 | BV25: 0 | BW25: 0 | BY25: 0 | CA25: 0 | CD25: 0 | CF25: 0 | CG25: 0 | CH25: 0 | CJ25: 0 | CK25: 0 | CL25: 0 | CN25: 0 | CO25: 0 | CP25: 0 | CR25: 0 | CT25: 0
A26: Cntrl MkP | B26: 11082018_sp10_MkP | C26: Sheet7 | D26: 2 | E26: 0 | F26: 1 | G26: 0 | H26: MkP | I26: MkP | J26: 0 | L26: 0 | O26: MkP | P26: 11 | Q26: 60 | R26: 50 | S26: 50 | T26: 43 | U26: 7 | V26: 43 | W26: 7 | X26: 100 | Y26: 14 | AC26: 8.335 | AD26: 7.1681 | AE26: 0 | AF26: 14 | AG26: 0 | AH26: 0 | AI26: 0 | AJ26: 0 | AK26: 7.1681 | AL26: 21.1681 | AM26: 44 | AN26: 69.5013 | AO26: 25.5013 | AP26: 649.7108014 | AQ26: 501.4878049 | AR26: 634.4345992 | AS26: 555.1793249 | AT26: 55.82241196 | AU26: 625.2110139 | AV26: 387.4732676 | AW26: 4339.700598 | AX26: 6.94117746 | AY26: 205.0113424 | AZ26: 59.90123724 | BA26: 13 | BB26: 2 | BC26: 45.38560507 | BD26: 13 | BE26: 2 | BF26: 34 | BG26: 0.1666666667 | BH26: 30 | BI26: 0.1666666667 | BJ26: 0 | BK26: 1 | BL26: 0 | BM26: MkP | BN26: MkP | BO26: 0 | BQ26: 0 | BS26: MkP | BT26: 0 | BU26: 1 | BV26: 0 | BW26: MkP | BX26: MkP | BY26: 0 | CA26: 0 | CC26: MkP | CD26: 0 | CF26: 0 | CG26: 0 | CH26: 0 | CJ26: 0 | CK26: 0 | CL26: 0 | CN26: 0 | CO26: 0 | CP26: 0 | CR26: 0 | CT26: 1 | CU26: MkP Expansion | CV26: MkP Expansion
A27: Cntrl MkP | B27: 11082018_sp10_MkP | C27: Sheet8 | D27: 3 | E27: 0 | F27: 1 | G27: 0 | H27: MkP | I27: MkP | J27: 0 | L27: 0 | O27: MkP | P27: 61 | Q27: 243 | R27: 183 | S27: 183 | T27: 226 | U27: -43 | V27: 226 | W27: -43 | X27: 366 | Y27: -86 | AC27: 30.5061 | AD27: 37.6742 | AE27: 0 | AF27: 0 | AG27: 0 | AH27: 0 | AI27: 0 | AJ27: 30.5061 | AK27: 0 | AL27: 30.5061 | AM27: 69.668 | AN27: 109.7626 | AO27: 40.0946 | AP27: 631.6611296 | AQ27: 546.9501661 | AR27: 595.9385749 | AS27: 556.8918919 | AT27: 37.08016749 | AU27: 415.2978758 | AV27: 730.2370474 | AW27: 8178.654931 | AX27: 19.6934668 | AY27: 268.0990009 | AZ27: 54.31166445 | BA27: 236 | BB27: 0.1666666667 | BC27: 44.10414372 | BD27: 236 | BE27: 0.1666666667 | BF27: 213 | BG27: 0.1666666667 | BH27: 112 | BI27: 0.1666666667 | BJ27: 0 | BK27: 1 | BL27: 0 | BM27: MkP | BN27: MkP | BO27: 0 | BQ27: 0 | BS27: MkP | BT27: 0 | BU27: 1 | BV27: 0 | BW27: MkP | BX27: MkP | BY27: 0 | CA27: 0 | CC27: MkP | CD27: 0 | CF27: 0 | CG27: 0 | CH27: 0 | CJ27: 0 | CK27: 0 | CL27: 0 | CN27: 0 | CO27: 0 | CP27: 0 | CR27: 0 | CT27: 1 | CU27: MkP Expansion | CV27: MkP Expansion
A28: Cntrl MkP | B28: 11082018_sp10_MkP | C28: Sheet9 | D28: 4 | E28: 0 | F28: 1 | G28: 0 | H28: MkP | I28: MkP | J28: 0 | L28: 0 | O28: MkP | P28: 244 | Q28: 379 | R28: 136 | S28: 136 | T28: 362 | U28: -226 | V28: 362 | W28: -226 | X28: 272 | Y28: -452 | AC28: 22.6712 | AD28: 60.3454 | AE28: 0 | AF28: 0 | AG28: 0 | AH28: 0 | AI28: 0 | AJ28: 22.6712 | AK28: 0 | AL28: 22.6712 | AM28: 110.0509 | AN28: 150.2019 | AO28: 40.151 | AP28: 596.3196721 | AQ28: 562.1721311 | AR28: 598.275 | AS28: 563.3305556 | AT28: 2.272719557 | AU28: 25.45445904 | AV28: 273.9205511 | AW28: 3067.910173 | AX28: 120.5254517 | AY28: 135.3219138 | AZ28: 10.60162312 | BA28: 282 | BB28: 0.1666666667 | BC28: 10.57943735 | BD28: 282 | BE28: 0.1666666667 | BF28: 287 | BG28: 0.1666666667 | BH28: 274 | BI28: 0.1666666667 | BJ28: 0 | BK28: 0 | BL28: 0 | BM28: 0 | BO28: 0 | BQ28: 0 | BT28: 0 | BU28: 0 | BV28: 0 | BW28: 0 | BY28: 0 | CA28: 0 | CD28: 0 | CF28: 0 | CG28: 0 | CH28: 0 | CJ28: 0 | CK28: 0 | CL28: 0 | CN28: 0 | CO28: 0 | CP28: 0 | CR28: 0 | CT28: 0
A29: Cntrl MkP | B29: 11082018_sp10_MkP | C29: Sheet10 | D29: 4 | E29: 0 | F29: 1 | G29: 0 | H29: MkP | I29: MkP | J29: 0 | L29: 0 | O29: MkP | P29: 244 | Q29: 379 | R29: 136 | S29: 136 | T29: 362 | U29: -226 | V29: 362 | W29: -226 | X29: 272 | Y29: -452 | AC29: 22.6712 | AD29: 60.3454 | AE29: 0 | AF29: 0 | AG29: 0 | AH29: 0 | AI29: 0 | AJ29: 22.6712 | AK29: 0 | AL29: 22.6712 | AM29: 110.0509 | AN29: 150.2019 | AO29: 40.151 | AP29: 592.1518987 | AQ29: 549.6582278 | AR29: 585.3443114 | AS29: 549.6976048 | AT29: 6.807701239 | AU29: 76.24625388 | AV29: 400.0340148 | AW29: 4480.380965 | AX29: 58.76198157 | AY29: 197.6243412 | AZ29: 30.59185253 | BA29: 247 | BB29: 0.1666666667 | BC29: 24.50800466 | BD29: 247 | BE29: 0.1666666667 | BF29: 248 | BG29: 0.1666666667 | BH29: 322 | BI29: 0.1666666667 | BJ29: 0 | BK29: 0 | BL29: 0 | BM29: 0 | BO29: 0 | BQ29: 0 | BT29: 0 | BU29: 0 | BV29: 0 | BW29: 0 | BY29: 0 | CA29: 0 | CD29: 0 | CF29: 0 | CG29: 0 | CH29: 0 | CJ29: 0 | CK29: 0 | CL29: 0 | CN29: 0 | CO29: 0 | CP29: 0 | CR29: 0 | CT29: 0
A30: Cntrl MkP | B30: 11082018_sp10_MkP | C30: Sheet11 | D30: 3 | E30: 0 | F30: 1 | G30: 0 | H30: MkP | I30: MkP | J30: 0 | L30: 0 | O30: MkP | P30: 61 | Q30: 178 | R30: 118 | S30: 118 | T30: 161 | U30: -43 | V30: 161 | W30: -43 | X30: 236 | Y30: -86 | AC30: 19.6706 | AD30: 26.8387 | AE30: 0 | AF30: 0 | AG30: 0 | AH30: 0 | AI30: 0 | AJ30: 19.6706 | AK30: 0 | AL30: 19.6706 | AM30: 69.668 | AN30: 91.0231 | AO30: 21.3551 | AP30: 634.8401826 | AQ30: 561.1415525 | AR30: 635.3092551 | AS30: 554.2121896 | AT30: 6.945221312 | AU30: 77.7864787 | AV30: 528.6721619 | AW30: 5921.128213 | AX30: 76.12027582 | AY30: 301.0141131 | AZ30: 42.4674181 | BA30: 141 | BB30: 0.1666666667 | BC30: 35.85032491 | BD30: 141 | BE30: 0.1666666667 | BF30: 102 | BG30: 0.1666666667 | BH30: 123 | BI30: 0.1666666667 | BJ30: 0 | BK30: 1 | BL30: 0 | BM30: MkP | BN30: MkP | BO30: 0 | BQ30: 0 | BS30: MkP | BT30: 0 | BU30: 1 | BV30: 0 | BW30: MkP | BX30: MkP | BY30: 0 | CA30: 0 | CC30: MkP | CD30: 0 | CF30: 0 | CG30: 0 | CH30: 0 | CJ30: 0 | CK30: 0 | CL30: 0 | CN30: 0 | CO30: 0 | CP30: 0 | CR30: 0 | CT30: 1 | CU30: MkP Expansion | CV30: MkP Expansion
A31: Cntrl MkP | B31: 11082018_sp10_MkP | C31: Sheet12 | D31: 4 | E31: 0 | F31: 1 | G31: 0 | H31: MkP | I31: MkP | J31: 0 | L31: 0 | O31: MkP | P31: 179 | Q31: 319 | R31: 141 | S31: 141 | T31: 302 | U31: -161 | V31: 302 | W31: -161 | X31: 282 | Y31: -322 | AC31: 23.5047 | AD31: 50.3434 | AE31: 0 | AF31: 0 | AG31: 0 | AH31: 0 | AI31: 0 | AJ31: 23.5047 | AK31: 0 | AL31: 23.5047 | AM31: 91.3114 | AN31: 131.6734 | AO31: 40.362 | AP31: 638.3016529 | AQ31: 558.6818182 | AR31: 572.5798923 | AS31: 577.7486535 | AT31: 68.43167415 | AU31: 766.4347505 | AV31: 390.052102 | AW31: 4368.583542 | AX31: 5.699876656 | AY31: 185.86 | AZ31: 68.54501155 | BA31: 236 | BB31: 0.1666666667 | BC31: 37.89948236 | BD31: 236 | BE31: 0.1666666667 | BF31: 227 | BG31: 0.1666666667 | BH31: 222 | BI31: 0.1666666667 | BJ31: 0 | BK31: 1 | BL31: 0 | BM31: MkP | BN31: MkP | BO31: 0 | BQ31: 0 | BS31: MkP | BT31: 0 | BU31: 1 | BV31: 0 | BW31: MkP | BX31: MkP | BY31: 0 | CA31: 0 | CC31: MkP | CD31: 0 | CF31: 0 | CG31: 0 | CH31: 0 | CJ31: 0 | CK31: 0 | CL31: 0 | CN31: 0 | CO31: 0 | CP31: 0 | CR31: 0 | CT31: 1 | CU31: MkP Expansion | CV31: MkP Expansion
A32: Cntrl MkP | B32: 11082018_sp10_MkP | C32: Sheet13 | D32: 5 | E32: 0 | F32: 1 | G32: 0 | H32: MkP | I32: MkP | J32: 0 | L32: 0 | O32: MkP | P32: 320 | Q32: 379 | R32: 60 | S32: 60 | T32: 362 | U32: -302 | V32: 362 | W32: -302 | X32: 120 | Y32: -604 | AC32: 10.002 | AD32: 60.3454 | AE32: 0 | AF32: 0 | AG32: 0 | AH32: 0 | AI32: 0 | AJ32: 10.002 | AK32: 0 | AL32: 10.002 | AM32: 131.9617 | AN32: 150.2019 | AO32: 18.2402 | AP32: 582.0293255 | AQ32: 572.7595308 | AR32: 579.2091346 | AS32: 568.3822115 | AT32: 5.207148984 | AU32: 58.32006863 | AV32: 126.4905126 | AW32: 1416.693741 | AX32: 24.29170223 | AY32: 141.6410459 | AZ32: 11.27165832 | BA32: 356 | BB32: 0.1666666667 | BC32: 9.814158975 | BD32: 356 | BE32: 0.1666666667 | BF32: 321 | BG32: 0.1666666667 | BH32: 322 | BI32: 0.1666666667 | BJ32: 0 | BK32: 0 | BL32: 0 | BM32: 0 | BO32: 0 | BQ32: 0 | BT32: 0 | BU32: 0 | BV32: 0 | BW32: 0 | BY32: 0 | CA32: 0 | CD32: 0 | CF32: 0 | CG32: 0 | CH32: 0 | CJ32: 0 | CK32: 0 | CL32: 0 | CN32: 0 | CO32: 0 | CP32: 0 | CR32: 0 | CT32: 0
A33: Cntrl MkP | B33: 11082018_sp10_MkP | C33: Sheet14 | D33: 5 | E33: 0 | F33: 1 | G33: 0 | H33: MkP | I33: MkP | J33: 0 | L33: 0 | O33: MkP | P33: 320 | Q33: 379 | R33: 60 | S33: 60 | T33: 362 | U33: -302 | V33: 362 | W33: -302 | X33: 120 | Y33: -604 | AC33: 10.002 | AD33: 60.3454 | AE33: 0 | AF33: 0 | AG33: 0 | AH33: 0 | AI33: 0 | AJ33: 10.002 | AK33: 0 | AL33: 10.002 | AM33: 131.9617 | AN33: 150.2019 | AO33: 18.2402 | AP33: 567.746594 | AQ33: 579.7356948 | AR33: 571.7729885 | AS33: 583.6494253 | AT33: 5.615081373 | AU33: 62.88891137 | AV33: 86.54394139 | AW33: 969.2921436 | AX33: 15.41276709 | AY33: 96.90983239 | AZ33: 5.992710822 | BA33: 321 | BB33: 0.1666666667 | BC33: 5.904333596 | BD33: 321 | BE33: 0.1666666667 | BF33: 342 | BG33: 0.1666666667 | BH33: 340 | BI33: 0.1666666667 | BJ33: 0 | BK33: 0 | BL33: 0 | BM33: 0 | BO33: 0 | BQ33: 0 | BT33: 0 | BU33: 0 | BV33: 0 | BW33: 0 | BY33: 0 | CA33: 0 | CD33: 0 | CF33: 0 | CG33: 0 | CH33: 0 | CJ33: 0 | CK33: 0 | CL33: 0 | CN33: 0 | CO33: 0 | CP33: 0 | CR33: 0 | CT33: 0
A34: Cntrl MkP | B34: 11082018_sp10_MkP | C34: Sheet15 | D34: 4 | E34: 0 | F34: 1 | G34: 0 | H34: MkP | I34: MkP | J34: 0 | L34: 0 | O34: MkP | P34: 179 | Q34: 302 | R34: 124 | S34: 124 | T34: 285 | U34: -161 | V34: 285 | W34: -161 | X34: 248 | Y34: -322 | AC34: 20.6708 | AD34: 47.5095 | AE34: =IF(Q34<18,X34,0) -> 0 | AF34: =IF(AND(P34<18,Q34>17),Y34,0) -> 0 | AG34: =IF(AND(P34<18,Q34>17),Z34,0) -> 0 | AH34: =IF(AND(P34>18,Q34<17),AA34,0) -> 0 | AI34: =IF(AND(P34<18,Q34>17),AB34,0) -> 0 | AJ34: =IF(P34>17,AC34,0) -> 20.6708 | AK34: =IF(AND(P34<18,Q34>17),AD34,0) -> 0 | AL34: 20.6708 | AM34: 91.3114 | AN34: 126.7723 | AO34: 35.4609 | AP34: 630.3495575 | AQ34: 548.4557522 | AR34: 576.8940397 | AS34: 538.4812362 | AT34: 54.37815142 | AU34: 609.0352959 | AV34: 383.1723969 | AW34: 4291.530845 | AX34: 7.046440287 | AY34: 207.6131957 | AZ34: 73.72455296 | BA34: 236 | BB34: 0.1666666667 | BC34: 37.35790617 | BD34: 236 | BE34: 0.1666666667 | BF34: 217 | BG34: 0.1666666667 | BH34: 222 | BI34: 0.1666666667 | BJ34: 0 | BK34: 1 | BL34: 0 | BM34: MkP | BN34: MkP | BO34: 0 | BQ34: 0 | BS34: MkP | BT34: 0 | BU34: 1 | BV34: 0 | BW34: MkP | BX34: MkP | BY34: 0 | CA34: 0 | CC34: MkP | CD34: 0 | CF34: 0 | CG34: 0 | CH34: 0 | CJ34: 0 | CK34: 0 | CL34: 0 | CN34: 0 | CO34: 0 | CP34: 0 | CR34: 0 | CT34: 1 | CU34: MkP Expansion | CV34: MkP Expansion
A35: Cntrl MkP | B35: 11082018_sp10_MkP | C35: Sheet16 | D35: 5 | E35: 0 | F35: 1 | G35: 0 | H35: MkP | I35: MkP | J35: 0 | L35: 0 | O35: MkP | P35: 303 | Q35: 379 | R35: 77 | S35: 77 | T35: 362 | U35: -285 | V35: 362 | W35: -285 | X35: 154 | Y35: -570 | AC35: 12.8359 | AD35: 60.3454 | AE35: 0 | AF35: 0 | AG35: 0 | AH35: 0 | AI35: 0 | AJ35: 12.8359 | AK35: 0 | AL35: 12.8359 | AM35: 127.0606 | AN35: 150.2019 | AO35: 23.1413 | AP35: 582.1020408 | AQ35: 533.3843537 | AR35: 580.0497076 | AS35: 532.8274854 | AT35: 2.126540381 | AU35: 23.81725227 | AV35: 114.983728 | AW35: 1287.817753 | AX35: 54.0707945 | AY35: 100.3293694 | AZ35: 17.28015192 | BA35: 321 | BB35: 0.1666666667 | BC35: 12.17613816 | BD35: 321 | BE35: 0.1666666667 | BF35: 322 | BG35: 0.1666666667 | BH35: 356 | BI35: 0.1666666667 | BJ35: 0 | BK35: 0 | BL35: 0 | BM35: 0 | BO35: 0 | BQ35: 0 | BT35: 0 | BU35: 0 | BV35: 0 | BW35: 0 | BY35: 0 | CA35: 0 | CD35: 0 | CF35: 0 | CG35: 0 | CH35: 0 | CJ35: 0 | CK35: 0 | CL35: 0 | CN35: 0 | CO35: 0 | CP35: 0 | CR35: 0 | CT35: 0
A36: Cntrl MkP | B36: 11082018_sp10_MkP | C36: Sheet17 | D36: 5 | E36: 0 | F36: 1 | G36: 0 | H36: MkP | I36: MkP | J36: 0 | L36: 0 | O36: MkP | P36: 303 | Q36: 379 | R36: 77 | S36: 77 | T36: 362 | U36: -285 | V36: 362 | W36: -285 | X36: 154 | Y36: -570 | AC36: 12.8359 | AD36: 60.3454 | AE36: 0 | AF36: 0 | AG36: 0 | AH36: 0 | AI36: 0 | AJ36: 12.8359 | AK36: 0 | AL36: 12.8359 | AM36: 127.0606 | AN36: 150.2019 | AO36: 23.1413 | AP36: 576.2710843 | AQ36: 544.6777108 | AR36: 565.9559902 | AS36: 546.7090465 | AT36: 10.51320555 | AU36: 117.7479022 | AV36: 129.8683838 | AW36: 1454.525899 | AX36: 12.35288164 | AY36: 113.317017 | AZ36: 8.793804952 | BA36: 355 | BB36: 0.1666666667 | BC36: 7.739162643 | BD36: 355 | BE36: 0.1666666667 | BF36: 356 | BG36: 0.1666666667 | BH36: 372 | BI36: 0.1666666667 | BJ36: 0 | BK36: 0 | BL36: 0 | BM36: 0 | BO36: 0 | BQ36: 0 | BT36: 0 | BU36: 0 | BV36: 0 | BW36: 0 | BY36: 0 | CA36: 0 | CD36: 0 | CF36: 0 | CG36: 0 | CH36: 0 | CJ36: 0 | CK36: 0 | CL36: 0 | CN36: 0 | CO36: 0 | CP36: 0 | CR36: 0 | CT36: 0
A37: Cntrl MkP | B37: 11082018_sp11_MkP | C37: Sheet1 | D37: 1 | E37: 0 | F37: 1 | G37: 0 | H37: MkP | I37: MkP | J37: 0 | L37: 0 | O37: MkP | P37: 1 | Q37: 17 | R37: 17 | S37: 17 | T37: 0 | U37: 17 | V37: 0 | W37: 17 | X37: 34 | Y37: 34 | AC37: 2.8339 | AD37: 0 | AE37: 34 | AF37: 0 | AG37: 0 | AH37: 0 | AI37: 0 | AJ37: 0 | AK37: 0 | AL37: 34 | AM37: 24 | AN37: 56 | AO37: 32 | AP37: 666.2512077 | AQ37: 452.1449275 | AR37: 649.9730821 | AS37: 234.0874832 | AT37: 218.6641864 | AU37: 2449.038888 | AV37: 410.9729824 | AW37: 4602.897403 | AX37: 1.879470933 | AY37: 135.3793354 | AZ37: 206.1458424 | BA37: 13 | BB37: 2 | BC37: 135.7233806 | BD37: 13 | BE37: 2 | BF37: 12 | BG37: 2 | BH37: 8 | BI37: 2 | BJ37: 0 | BK37: 1 | BL37: 0 | BM37: MkP | BN37: MkP | BO37: 0 | BQ37: 0 | BS37: MkP | BT37: 0 | BU37: 1 | BV37: 0 | BW37: MkP | BX37: MkP | BY37: 0 | CA37: 0 | CC37: MkP | CD37: 0 | CF37: 0 | CG37: 0 | CH37: 0 | CJ37: 0 | CK37: 0 | CL37: 0 | CN37: 0 | CO37: 0 | CP37: 0 | CR37: 0 | CT37: 1 | CU37: MkP Expansion | CV37: MkP Expansion
A38: Cntrl MkP | B38: 11082018_sp11_MkP | C38: Sheet2 | D38: 2 | E38: 0 | F38: 1 | G38: 0 | H38: MkP | I38: MkP | J38: 0 | L38: 0 | O38: MkP | P38: 18 | Q38: 379 | R38: 362 | S38: 362 | T38: 362 | U38: 0 | V38: 362 | W38: 0 | X38: 724 | Y38: 0 | AC38: 60.3454 | AD38: 60.3454 | AE38: 0 | AF38: 0 | AG38: 0 | AH38: 0 | AI38: 0 | AJ38: 60.3454 | AK38: 0 | AL38: 60.3454 | AM38: 58 | AN38: 150.2019 | AO38: 92.2019 | AP38: 655.8022814 | AQ38: 503.1958175 | AR38: 650.8728606 | AS38: 504.3765281 | AT38: 5.068852567 | AU38: 56.77114875 | AV38: 1176.188554 | AW38: 13173.31181 | AX38: 232.0423683 | AY38: 218.298525 | AZ38: 54.49353454 | BA38: 236 | BB38: 0.1667 | BC38: 38.85919627 | BD38: 236 | BE38: 0.1667 | BF38: 48 | BG38: 0.1667 | BH38: 355 | BI38: 0.1667 | BJ38: 0 | BK38: 0 | BL38: 0 | BM38: 0 | BO38: 0 | BQ38: 0 | BT38: 0 | BU38: 0 | BV38: 0 | BW38: 0 | BY38: 0 | CA38: 0 | CD38: 0 | CF38: 0 | CG38: 0 | CH38: 0 | CJ38: 0 | CK38: 0 | CL38: 0 | CN38: 0 | CO38: 0 | CP38: 0 | CR38: 0 | CT38: 0
A39: Cntrl MkP | B39: 11082018_sp11_MkP | C39: Sheet3 | D39: 2 | E39: 0 | F39: 1 | G39: 0 | H39: MkP | I39: MkP | J39: 0 | L39: 0 | O39: MkP | P39: 18 | Q39: 126 | R39: 109 | S39: 109 | T39: 109 | U39: 0 | V39: 109 | W39: 0 | X39: 218 | Y39: 0 | AC39: 18.1703 | AD39: 18.1703 | AE39: 0 | AF39: 0 | AG39: 0 | AH39: 0 | AI39: 0 | AJ39: 18.1703 | AK39: 0 | AL39: 18.1703 | AM39: 58 | AN39: 80.5035 | AO39: 22.5035 | AP39: 674.5229885 | AQ39: 499.7126437 | AR39: 730.2251462 | AS39: 534.9532164 | AT39: 65.91379473 | AU39: 738.234501 | AV39: 290.6891219 | AW39: 3255.718165 | AX39: 4.410140898 | AY39: 179.1780083 | AZ39: 34.18893759 | BA39: 41 | BB39: 0.1667 | BC39: 22.20466543 | BD39: 41 | BE39: 0.1667 | BF39: 38 | BG39: 0.1667 | BH39: 42 | BI39: 0.1667 | BJ39: 0 | BK39: 1 | BL39: 0 | BM39: MkP | BN39: MkP | BO39: 0 | BQ39: 0 | BS39: MkP | BT39: 0 | BU39: 1 | BV39: 0 | BW39: MkP | BX39: MkP | BY39: 0 | CA39: 0 | CC39: MkP | CD39: 0 | CF39: 0 | CG39: 0 | CH39: 0 | CJ39: 0 | CK39: 0 | CL39: 0 | CN39: 0 | CO39: 0 | CP39: 0 | CR39: 0 | CT39: 1 | CU39: MkP Expansion | CV39: MkP Expansion
A40: Cntrl MkP | B40: 11082018_sp11_MkP | C40: Sheet4 | D40: 3 | E40: 0 | F40: 1 | G40: 0 | H40: MkP | I40: MkP | J40: 0 | L40: 0 | O40: MkP | P40: 127 | Q40: 379 | R40: 253 | S40: 253 | T40: 362 | U40: -109 | V40: 362 | W40: -109 | X40: 506 | Y40: -218 | AC40: 42.1751 | AD40: 60.3454 | AE40: 0 | AF40: 0 | AG40: 0 | AH40: 0 | AI40: 0 | AJ40: 42.1751 | AK40: 0 | AL40: 42.1751 | AM40: 80.6702 | AN40: 150.2019 | AO40: 69.5317 | AP40: 731.3283582 | AQ40: 534.1691542 | AR40: 667.2345972 | AS40: 537.4218009 | AT40: 64.17624106 | AU40: 718.7738999 | AV40: 484.9183505 | AW40: 5431.085526 | AX40: 7.556041652 | AY40: 128.7746923 | AZ40: 54.22937636 | BA40: 236 | BB40: 0.1667 | BC40: 30.6070133 | BD40: 236 | BE40: 0.1667 | BF40: 364 | BG40: 0.1667 | BH40: 365 | BI40: 0.1667 | BJ40: 0 | BK40: 0 | BL40: 0 | BM40: 0 | BO40: 0 | BQ40: 0 | BT40: 0 | BU40: 0 | BV40: 0 | BW40: 0 | BY40: 0 | CA40: 0 | CD40: 0 | CF40: 0 | CG40: 0 | CH40: 0 | CJ40: 0 | CK40: 0 | CL40: 0 | CN40: 0 | CO40: 0 | CP40: 0 | CR40: 0 | CT40: 0
A41: Cntrl MkP | B41: 11082018_sp11_MkP | C41: Sheet5 | D41: 3 | E41: 0 | F41: 1 | G41: 0 | H41: MkP | I41: MkP | J41: 0 | L41: 0 | O41: MkP | P41: 127 | Q41: 379 | R41: 253 | S41: 253 | T41: 362 | U41: -109 | V41: 362 | W41: -109 | X41: 506 | Y41: -218 | AC41: 42.1751 | AD41: 60.3454 | AE41: 0 | AF41: 0 | AG41: 0 | AH41: 0 | AI41: 0 | AJ41: 42.1751 | AK41: 0 | AL41: 42.1751 | AM41: 80.6702 | AN41: 150.2019 | AO41: 69.5317 | AP41: 721.0985011 | AQ41: 522.3104925 | AR41: 668.9432892 | AS41: 514.1928166 | AT41: 52.78316762 | AU41: 591.1714774 | AV41: 788.4749471 | AW41: 8830.919407 | AX41: 14.93799979 | AY41: 209.3870413 | AZ41: 53.89627348 | BA41: 236 | BB41: 0.1667 | BC41: 34.03948233 | BD41: 236 | BE41: 0.1667 | BF41: 301 | BG41: 0.1667 | BH41: 302 | BI41: 0.1667 | BJ41: 0 | BK41: 0 | BL41: 0 | BM41: 0 | BO41: 0 | BQ41: 0 | BT41: 0 | BU41: 0 | BV41: 0 | BW41: 0 | BY41: 0 | CA41: 0 | CD41: 0 | CF41: 0 | CG41: 0 | CH41: 0 | CJ41: 0 | CK41: 0 | CL41: 0 | CN41: 0 | CO41: 0 | CP41: 0 | CR41: 0 | CT41: 0
A42: Cntrl MkP | B42: 11082018_sp12_MkP | C42: Sheet1 | D42: 1 | E42: 0 | F42: 1 | G42: 0 | H42: MkP | I42: MkP | J42: 0 | L42: 0 | O42: MkP | P42: 1 | Q42: 8 | R42: 8 | S42: 8 | T42: -9 | U42: 17 | V42: -9 | W42: 17 | X42: 16 | Y42: 34 | AC42: 1.3336 | AD42: -1.5003 | AE42: 16 | AF42: 0 | AG42: 0 | AH42: 0 | AI42: 0 | AJ42: 0 | AK42: 0 | AL42: 16 | AM42: 24 | AN42: 38 | AO42: 14 | AP42: 670.264574 | AQ42: 491.206278 | AR42: 652.0634328 | AS42: 488.7873134 | AT42: 18.36117995 | AU42: 205.6452154 | AV42: 80.10499323 | AW42: 897.1759242 | AX42: 4.362736679 | AY42: 56.07349526 | AZ42: 34.00049969 | BA42: 4 | BB42: 2 | BC42: 30.46527897 | BD42: 4 | BE42: 2 | BF42: 6 | BG42: 2 | BH42: 3 | BI42: 2 | BJ42: 0 | BK42: 1 | BL42: 0 | BM42: MkP | BN42: MkP | BO42: 0 | BQ42: 0 | BS42: MkP | BT42: 0 | BU42: 1 | BV42: 0 | BW42: MkP | BX42: MkP | BY42: 0 | CA42: 0 | CC42: MkP | CD42: 0 | CF42: 0 | CG42: 0 | CH42: 0 | CJ42: 0 | CK42: 0 | CL42: 0 | CN42: 0 | CO42: 0 | CP42: 0 | CR42: 0 | CT42: 1 | CU42: MkP Expansion | CV42: MkP Expansion
A43: Cntrl MkP | B43: 11082018_sp12_MkP | C43: Sheet2 | D43: 2 | E43: 0 | F43: 1 | G43: 0 | H43: MkP | I43: MkP | J43: 0 | L43: 0 | O43: MkP | P43: 9 | Q43: 16 | R43: 8 | S43: 8 | T43: -1 | U43: 9 | V43: -1 | W43: 9 | X43: 16 | Y43: 18 | AC43: 1.3336 | AD43: -0.1667 | AE43: 16 | AF43: 0 | AG43: 0 | AH43: 0 | AI43: 0 | AJ43: 0 | AK43: 0 | AL43: 16 | AM43: 40 | AN43: 54 | AO43: 14 | AP43: 669.5131086 | AQ43: 467.9775281 | AR43: 668.9351351 | AS43: 491.1756757 | AT43: 23.20534647 | AU43: 259.8998805 | AV43: 40.39153707 | AW43: 452.3852152 | AX43: 1.740613402 | AY43: 28.27407595 | AZ43: 33.4453659 | BA43: 12 | BB43: 2 | BC43: 17.34823035 | BD43: 12 | BE43: 2 | BF43: 15 | BG43: 2 | BH43: 10 | BI43: 2 | BJ43: 0 | BK43: 1 | BL43: 0 | BM43: MkP | BN43: MkP | BO43: 0 | BQ43: 0 | BS43: MkP | BT43: 0 | BU43: 1 | BV43: 0 | BW43: MkP | BX43: MkP | BY43: 0 | CA43: 0 | CC43: MkP | CD43: 0 | CF43: 0 | CG43: 0 | CH43: 0 | CJ43: 0 | CK43: 0 | CL43: 0 | CN43: 0 | CO43: 0 | CP43: 0 | CR43: 0 | CT43: 1 | CU43: MkP Expansion | CV43: MkP Expansion
A44: Cntrl MkP | B44: 11082018_sp12_MkP | C44: Sheet3 | D44: 3 | E44: 0 | F44: 1 | G44: 0 | H44: MkP | I44: MkP | J44: 0 | L44: 0 | O44: MkP | P44: 17 | Q44: 379 | R44: 363 | S44: 363 | T44: 362 | U44: 1 | V44: 362 | W44: 1 | X44: 726 | Y44: 2 | AC44: 60.5121 | AD44: 60.3454 | AE44: 0 | AF44: 2 | AG44: 0 | AH44: 0 | AI44: 0 | AJ44: 0 | AK44: 60.3454 | AL44: 62.3454 | AM44: 56 | AN44: 150.2019 | AO44: 94.2019 | AP44: 654.264574 | AQ44: 487.6816143 | AR44: 644.7857143 | AS44: 346.4120083 | AT44: 141.5872536 | AU44: 1585.77724 | AV44: 1544.227576 | AW44: 17295.34885 | AX44: 10.90654375 | AY44: 277.4117873 | AZ44: 92.13181474 | BA44: 85 | BB44: 0.1667 | BC44: 84.04464686 | BD44: 85 | BE44: 0.1667 | BF44: 69 | BG44: 0.1667 | BH44: 68 | BI44: 0.1667 | BJ44: 0 | BK44: 0 | BL44: 0 | BM44: 0 | BO44: 0 | BQ44: 0 | BT44: 0 | BU44: 0 | BV44: 0 | BW44: 0 | BY44: 0 | CA44: 0 | CD44: 0 | CF44: 0 | CG44: 0 | CH44: 0 | CJ44: 0 | CK44: 0 | CL44: 0 | CN44: 0 | CO44: 0 | CP44: 0 | CR44: 0 | CT44: 0
A45: Cntrl MkP | B45: 11082018_sp12_MkP | C45: Sheet4 | D45: 3 | E45: 0 | F45: 1 | G45: 0 | H45: MkP | I45: MkP | J45: 0 | L45: 0 | O45: MkP | P45: 17 | Q45: 104 | R45: 88 | S45: 88 | T45: 87 | U45: 1 | V45: 87 | W45: 1 | X45: 176 | Y45: 2 | AC45: 14.6696 | AD45: 14.5029 | AE45: 0 | AF45: 2 | AG45: 0 | AH45: 0 | AI45: 0 | AJ45: 0 | AK45: 14.5029 | AL45: 16.5029 | AM45: 56 | AN45: 76.8361 | AO45: 20.8361 | AP45: 670.597561 | AQ45: 488.0203252 | AR45: 707.4601227 | AS45: 541.7423313 | AT45: 65.15291547 | AU45: 729.7126533 | AV45: 280.1765519 | AW45: 3137.977381 | AX45: 4.300291857 | AY45: 190.1470275 | AZ45: 69.36522372 | BA45: 18 | BB45: 2 | BC45: 44.2106175 | BD45: 18 | BE45: 2 | BF45: 19 | BG45: 0.1667 | BH45: 24 | BI45: 0.1667 | BJ45: 0 | BK45: 1 | BL45: 0 | BM45: MkP | BN45: MkP | BO45: 0 | BQ45: 0 | BS45: MkP | BT45: 0 | BU45: 1 | BV45: 0 | BW45: MkP | BX45: MkP | BY45: 0 | CA45: 0 | CC45: MkP | CD45: 0 | CF45: 0 | CG45: 0 | CH45: 0 | CJ45: 0 | CK45: 0 | CL45: 0 | CN45: 0 | CO45: 0 | CP45: 0 | CR45: 0 | CT45: 1 | CU45: MkP Expansion | CV45: MkP Expansion
A46: Cntrl MkP | B46: 11082018_sp12_MkP | C46: Sheet5 | D46: 4 | E46: 0 | F46: 1 | G46: 0 | H46: MkP | I46: MkP | J46: 0 | L46: 0 | O46: MkP | P46: 105 | Q46: 379 | R46: 275 | S46: 275 | T46: 362 | U46: -87 | V46: 362 | W46: -87 | X46: 550 | Y46: -174 | AC46: 45.8425 | AD46: 60.3454 | AE46: 0 | AF46: 0 | AG46: 0 | AH46: 0 | AI46: 0 | AJ46: 45.8425 | AK46: 0 | AL46: 45.8425 | AM46: 77.0028 | AN46: 150.2019 | AO46: 73.1991 | AP46: 699.9541985 | AQ46: 540.7671756 | AR46: 692.8154312 | AS46: 530.3192133 | AT46: 12.6539288 | AU46: 141.7240026 | AV46: 735.1900042 | AW46: 8234.128047 | AX46: 58.09974245 | AY46: 179.6177793 | AZ46: 81.44817279 | BA46: 336 | BB46: 0.1667 | BC46: 74.54046555 | BD46: 336 | BE46: 0.1667 | BF46: 353 | BG46: 0.1667 | BH46: 352 | BI46: 0.1667 | BJ46: 0 | BK46: 0 | BL46: 0 | BM46: 0 | BO46: 0 | BQ46: 0 | BT46: 0 | BU46: 0 | BV46: 0 | BW46: 0 | BY46: 0 | CA46: 0 | CD46: 0 | CF46: 0 | CG46: 0 | CH46: 0 | CJ46: 0 | CK46: 0 | CL46: 0 | CN46: 0 | CO46: 0 | CP46: 0 | CR46: 0 | CT46: 0
A47: Cntrl MkP | B47: 11082018_sp12_MkP | C47: Sheet6 | D47: 4 | E47: 0 | F47: 1 | G47: 0 | H47: MkP | I47: MkP | J47: 0 | L47: 0 | O47: MkP | P47: 105 | Q47: 379 | R47: 275 | S47: 275 | T47: 362 | U47: -87 | V47: 362 | W47: -87 | X47: 550 | Y47: -174 | AC47: 45.8425 | AD47: 60.3454 | AE47: 0 | AF47: 0 | AG47: 0 | AH47: 0 | AI47: 0 | AJ47: 45.8425 | AK47: 0 | AL47: 45.8425 | AM47: 77.0028 | AN47: 150.2019 | AO47: 73.1991 | AP47: 715.0671937 | AQ47: 541.8181818 | AR47: 660.9656805 | AS47: 451.835503 | AT47: 104.9945533 | AU47: 1175.938997 | AV47: 1205.302244 | AW47: 13499.38513 | AX47: 11.47966448 | AY47: 294.4731446 | AZ47: 46.35624946 | BA47: 148 | BB47: 0.1667 | BC47: 37.39697572 | BD47: 148 | BE47: 0.1667 | BF47: 144 | BG47: 0.1667 | BH47: 292 | BI47: 0.1667 | BJ47: 0 | BK47: 0 | BL47: 0 | BM47: 0 | BO47: 0 | BQ47: 0 | BT47: 0 | BU47: 0 | BV47: 0 | BW47: 0 | BY47: 0 | CA47: 0 | CD47: 0 | CF47: 0 | CG47: 0 | CH47: 0 | CJ47: 0 | CK47: 0 | CL47: 0 | CN47: 0 | CO47: 0 | CP47: 0 | CR47: 0 | CT47: 0
A48: Cntrl MkP | B48: 11082018_sp12_MkP | C48: Sheet7 | D48: 2 | E48: 0 | F48: 1 | G48: 0 | H48: MkP | I48: MkP | J48: 0 | L48: 0 | O48: MkP | P48: 9 | Q48: 15 | R48: 7 | S48: 7 | T48: -2 | U48: 9 | V48: -2 | W48: 9 | X48: 14 | Y48: 18 | AC48: 1.1669 | AD48: -0.3334 | AE48: 14 | AF48: 0 | AG48: 0 | AH48: 0 | AI48: 0 | AJ48: 0 | AK48: 0 | AL48: 14 | AM48: 40 | AN48: 52 | AO48: 12 | AP48: 653.9169329 | AQ48: 486.7507987 | AR48: 663.2729358 | AS48: 443.7614679 | AT48: 43.99565155 | AU48: 492.7512973 | AV48: 73.20955881 | AW48: 819.9470587 | AX48: 1.664018062 | AY48: 58.56764705 | AZ48: 51.49158711 | BA48: 11 | BB48: 2 | BC48: 34.11000952 | BD48: 11 | BE48: 2 | BF48: 13 | BG48: 2 | BH48: 10 | BI48: 2 | BJ48: 0 | BK48: 1 | BL48: 0 | BM48: MkP | BN48: MkP | BO48: 0 | BQ48: 0 | BS48: MkP | BT48: 0 | BU48: 1 | BV48: 0 | BW48: MkP | BX48: MkP | BY48: 0 | CA48: 0 | CC48: MkP | CD48: 0 | CF48: 0 | CG48: 0 | CH48: 0 | CJ48: 0 | CK48: 0 | CL48: 0 | CN48: 0 | CO48: 0 | CP48: 0 | CR48: 0 | CT48: 1 | CU48: MkP Expansion | CV48: MkP Expansion
A49: Cntrl MkP | B49: 11082018_sp12_MkP | C49: Sheet8 | D49: 3 | E49: 0 | F49: 1 | G49: 0 | H49: MkP | I49: MkP | J49: 0 | L49: 0 | O49: MkP | P49: 16 | Q49: 379 | R49: 364 | S49: 364 | T49: 362 | U49: 2 | V49: 362 | W49: 2 | X49: 728 | Y49: 4 | AC49: 60.6788 | AD49: 60.3454 | AE49: 0 | AF49: 4 | AG49: 0 | AH49: 0 | AI49: 0 | AJ49: 0 | AK49: 60.3454 | AL49: 64.3454 | AM49: 54 | AN49: 150.2019 | AO49: 96.2019 | AP49: 665.3985765 | AQ49: 445.2633452 | AR49: 652.5225102 | AS49: 480.4297408 | AT49: 37.44954555 | AU49: 419.4349102 | AV49: 1437.810158 | AW49: 16103.47377 | AX49: 38.3932605 | AY49: 250.2661226 | AZ49: 32.50270825 | BA49: 291 | BB49: 0.1667 | BC49: 31.35604203 | BD49: 291 | BE49: 0.1667 | BF49: 349 | BG49: 0.1667 | BH49: 348 | BI49: 0.1667 | BJ49: 0 | BK49: 0 | BL49: 0 | BM49: 0 | BO49: 0 | BQ49: 0 | BT49: 0 | BU49: 0 | BV49: 0 | BW49: 0 | BY49: 0 | CA49: 0 | CD49: 0 | CF49: 0 | CG49: 0 | CH49: 0 | CJ49: 0 | CK49: 0 | CL49: 0 | CN49: 0 | CO49: 0 | CP49: 0 | CR49: 0 | CT49: 0
A50: Cntrl MkP | B50: 11082018_sp12_MkP | C50: Sheet9 | D50: 3 | E50: 0 | F50: 1 | G50: 0 | H50: MkP | I50: MkP | J50: 0 | L50: 0 | O50: MkP | P50: 16 | Q50: 379 | R50: 364 | S50: 364 | T50: 362 | U50: 2 | V50: 362 | W50: 2 | X50: 728 | Y50: 4 | AC50: 60.6788 | AD50: 60.3454 | AE50: 0 | AF50: 4 | AG50: 0 | AH50: 0 | AI50: 0 | AJ50: 0 | AK50: 60.3454 | AL50: 64.3454 | AM50: 54 | AN50: 150.2019 | AO50: 96.2019 | AP50: 660.6701389 | AQ50: 433.6388889 | AR50: 237.2567568 | AS50: 130.4459459 | AT50: 520.7733219 | AU50: 5832.661205 | AV50: 1527.975056 | AW50: 17113.32063 | AX50: 2.934050175 | AY50: 265.9602805 | AZ50: 82.53541963 | BA50: 50 | BB50: 0.1667 | BC50: 76.43319794 | BD50: 50 | BE50: 0.1667 | BF50: 56 | BG50: 0.1667 | BH50: 49 | BI50: 0.1667 | BJ50: 0 | BK50: 0 | BL50: 0 | BM50: 0 | BO50: 0 | BQ50: 0 | BT50: 0 | BU50: 0 | BV50: 0 | BW50: 0 | BY50: 0 | CA50: 0 | CD50: 0 | CF50: 0 | CG50: 0 | CH50: 0 | CJ50: 0 | CK50: 0 | CL50: 0 | CN50: 0 | CO50: 0 | CP50: 0 | CR50: 0 | CT50: 0
A51: Cntrl MkP | B51: 11082018_sp14_MkP | C51: Sheet1 | D51: 1 | E51: 0 | F51: 1 | G51: 0 | H51: MkP | I51: MkP | J51: 0 | L51: 0 | O51: MkP | P51: 1 | Q51: 16 | R51: 16 | S51: 16 | T51: -1 | U51: 17 | V51: -1 | W51: 17 | X51: 32 | Y51: 34 | AC51: 2.6672 | AD51: -0.1667 | AE51: 32 | AF51: 0 | AG51: 0 | AH51: 0 | AI51: 0 | AJ51: 0 | AK51: 0 | AL51: 32 | AM51: 24 | AN51: 54 | AO51: 30 | AP51: 683.2193309 | AQ51: 445.4126394 | AR51: 685.8436945 | AS51: 498.6394316 | AT51: 53.29145047 | AU51: 596.8642453 | AV51: 145.5736139 | AW51: 1630.424476 | AX51: 2.731650436 | AY51: 50.95076487 | AZ51: 62.97762577 | BA51: 5 | BB51: 2 | BC51: 41.58335243 | BD51: 5 | BE51: 2 | BF51: 7 | BG51: 2 | BH51: 6 | BI51: 2 | BJ51: 0 | BK51: 1 | BL51: 0 | BM51: MkP | BN51: MkP | BO51: 0 | BQ51: 0 | BS51: MkP | BT51: 0 | BU51: 1 | BV51: 0 | BW51: MkP | BX51: MkP | BY51: 0 | CA51: 0 | CC51: MkP | CD51: 0 | CF51: 0 | CG51: 0 | CH51: 0 | CJ51: 0 | CK51: 0 | CL51: 0 | CN51: 0 | CO51: 0 | CP51: 0 | CR51: 0 | CT51: 1 | CU51: MkP Expansion | CV51: MkP Expansion
A52: Cntrl MkP | B52: 11082018_sp14_MkP | C52: Sheet2 | D52: 2 | E52: 0 | F52: 1 | G52: 0 | H52: MkP | I52: MkP | J52: 0 | L52: 0 | O52: MkP | P52: 17 | Q52: 379 | R52: 363 | S52: 363 | T52: 362 | U52: 1 | V52: 362 | W52: 1 | X52: 726 | Y52: 2 | AC52: 60.5121 | AD52: 60.3454 | AE52: 0 | AF52: 2 | AG52: 0 | AH52: 0 | AI52: 0 | AJ52: 0 | AK52: 60.3454 | AL52: 62.3454 | AM52: 56 | AN52: 150.2019 | AO52: 94.2019 | AP52: 684.2205128 | AQ52: 505.6461538 | AR52: 592.2287645 | AS52: 511.5164093 | AT52: 92.17885691 | AU52: 1032.403197 | AV52: 1127.958567 | AW52: 12633.13595 | AX52: 12.23663002 | AY52: 202.6314043 | AZ52: 85.99587391 | BA52: 233 | BB52: 0.1667 | BC52: 84.15655727 | BD52: 233 | BE52: 0.1667 | BF52: 235 | BG52: 0.1667 | BH52: 247 | BI52: 0.1667 | BJ52: 0 | BK52: 0 | BL52: 0 | BM52: 0 | BO52: 0 | BQ52: 0 | BT52: 0 | BU52: 0 | BV52: 0 | BW52: 0 | BY52: 0 | CA52: 0 | CD52: 0 | CF52: 0 | CG52: 0 | CH52: 0 | CJ52: 0 | CK52: 0 | CL52: 0 | CN52: 0 | CO52: 0 | CP52: 0 | CR52: 0 | CT52: 0
A53: Cntrl MkP | B53: 11082018_sp14_MkP | C53: Sheet3 | D53: 2 | E53: 0 | F53: 1 | G53: 0 | H53: MkP | I53: MkP | J53: 0 | L53: 0 | O53: MkP | P53: 17 | Q53: 81 | R53: 65 | S53: 65 | T53: 64 | U53: 1 | V53: 64 | W53: 1 | X53: 130 | Y53: 2 | AC53: 10.8355 | AD53: 10.6688 | AE53: 0 | AF53: 2 | AG53: 0 | AH53: 0 | AI53: 0 | AJ53: 0 | AK53: 10.6688 | AL53: 12.6688 | AM53: 56 | AN53: 73.002 | AO53: 17.002 | AP53: 691.7993197 | AQ53: 492.3401361 | AR53: 706.2827715 | AS53: 510.6292135 | AT53: 23.32939625 | AU53: 261.289238 | AV53: 205.3850866 | AW53: 2300.31297 | AX53: 8.803703464 | AY53: 181.5730748 | AZ53: 29.72528554 | BA53: 30 | BB53: 0.1667 | BC53: 21.96972851 | BD53: 30 | BE53: 0.1667 | BF53: 59 | BG53: 0.1667 | BH53: 56 | BI53: 0.1667 | BJ53: 0 | BK53: 1 | BL53: 0 | BM53: MkP | BN53: MkP | BO53: 0 | BQ53: 0 | BS53: MkP | BT53: 0 | BU53: 1 | BV53: 0 | BW53: MkP | BX53: MkP | BY53: 0 | CA53: 0 | CC53: MkP | CD53: 0 | CF53: 0 | CG53: 0 | CH53: 0 | CJ53: 0 | CK53: 0 | CL53: 0 | CN53: 0 | CO53: 0 | CP53: 0 | CR53: 0 | CT53: 1 | CU53: MkP Expansion | CV53: MkP Expansion
A54: Cntrl MkP | B54: 11082018_sp14_MkP | C54: Sheet4 | D54: 3 | E54: 0 | F54: 1 | G54: 0 | H54: MkP | I54: MkP | J54: 0 | L54: 0 | O54: MkP | P54: 82 | Q54: 379 | R54: 298 | S54: 298 | T54: 362 | U54: -64 | V54: 362 | W54: -64 | X54: 596 | Y54: -128 | AC54: 49.6766 | AD54: 60.3454 | AE54: 0 | AF54: 0 | AG54: 0 | AH54: 0 | AI54: 0 | AJ54: 49.6766 | AK54: 0 | AL54: 49.6766 | AM54: 73.1687 | AN54: 150.2019 | AO54: 77.0332 | AP54: 703.8428571 | AQ54: 502.1942857 | AR54: 670.6101695 | AS54: 485.3891243 | AT54: 37.24009907 | AU54: 417.0891096 | AV54: 1127.031904 | AW54: 12622.75732 | AX54: 30.26393409 | AY54: 254.0986566 | AZ54: 38.87179164 | BA54: 218 | BB54: 0.1667 | BC54: 36.57420859 | BD54: 218 | BE54: 0.1667 | BF54: 340 | BG54: 0.1667 | BH54: 261 | BI54: 0.1667 | BJ54: 0 | BK54: 0 | BL54: 0 | BM54: 0 | BO54: 0 | BQ54: 0 | BT54: 0 | BU54: 0 | BV54: 0 | BW54: 0 | BY54: 0 | CA54: 0 | CD54: 0 | CF54: 0 | CG54: 0 | CH54: 0 | CJ54: 0 | CK54: 0 | CL54: 0 | CN54: 0 | CO54: 0 | CP54: 0 | CR54: 0 | CT54: 0
A55: Cntrl MkP | B55: 11082018_sp14_MkP | C55: Sheet5 | D55: 3 | E55: 0 | F55: 1 | G55: 0 | H55: MkP | I55: MkP | J55: 0 | L55: 0 | O55: MkP | P55: 82 | Q55: 379 | R55: 298 | S55: 298 | T55: 362 | U55: -64 | V55: 362 | W55: -64 | X55: 596 | Y55: -128 | AC55: 49.6766 | AD55: 60.3454 | AE55: 0 | AF55: 0 | AG55: 0 | AH55: 0 | AI55: 0 | AJ55: 49.6766 | AK55: 0 | AL55: 49.6766 | AM55: 73.1687 | AN55: 150.2019 | AO55: 77.0332 | AP55: 707.1147541 | AQ55: 516.852459 | AR55: 700.3290387 | AS55: 502.9058474 | AT55: 15.50980046 | AU55: 173.7097652 | AV55: 1246.501609 | AW55: 13960.81802 | AX55: 80.36864253 | AY55: 281.034089 | AZ55: 51.02795562 | BA55: 126 | BB55: 0.1667 | BC55: 41.32490311 | BD55: 126 | BE55: 0.1667 | BF55: 156 | BG55: 0.1667 | BH55: 147 | BI55: 0.1667 | BJ55: 0 | BK55: 0 | BL55: 0 | BM55: 0 | BO55: 0 | BQ55: 0 | BT55: 0 | BU55: 0 | BV55: 0 | BW55: 0 | BY55: 0 | CA55: 0 | CD55: 0 | CF55: 0 | CG55: 0 | CH55: 0 | CJ55: 0 | CK55: 0 | CL55: 0 | CN55: 0 | CO55: 0 | CP55: 0 | CR55: 0 | CT55: 0
A56: Cntrl MkP | B56: 11082018_sp17_MkP | C56: Sheet1 | D56: 1 | E56: 0 | F56: 1 | G56: 0 | H56: MkP | I56: MkP | J56: 0 | L56: 0 | O56: MkP | P56: 1 | Q56: 12 | R56: 12 | S56: 12 | T56: -5 | U56: 17 | V56: -5 | W56: 17 | X56: 24 | Y56: 34 | AC56: 2.0004 | AD56: -0.8335 | AE56: 24 | AF56: 0 | AG56: 0 | AH56: 0 | AI56: 0 | AJ56: 0 | AK56: 0 | AL56: 24 | AM56: 24 | AN56: 46 | AO56: 22 | AP56: 652.9652174 | AQ56: 505.3086957 | AR56: 680.3457944 | AS56: 609.1277259 | AT56: 107.3689295 | AU56: 1202.532011 | AV56: 446.8693234 | AW56: 5004.936423 | AX56: 4.161998498 | AY56: 208.5390176 | AZ56: 178.4337657 | BA56: 12 | BB56: 2 | BC56: 122.9359398 | BD56: 12 | BE56: 2 | BF56: 10 | BG56: 2 | BH56: 11 | BI56: 2 | BJ56: 0 | BK56: 1 | BL56: 0 | BM56: MkP | BN56: MkP | BO56: 0 | BQ56: 0 | BS56: MkP | BT56: 0 | BU56: 1 | BV56: 0 | BW56: MkP | BX56: MkP | BY56: 0 | CA56: 0 | CC56: MkP | CD56: 0 | CF56: 0 | CG56: 0 | CH56: 0 | CJ56: 0 | CK56: 0 | CL56: 0 | CN56: 0 | CO56: 0 | CP56: 0 | CR56: 0 | CT56: 1 | CU56: MkP Expansion | CV56: MkP Expansion
A57: Cntrl MkP | B57: 11082018_sp17_MkP | C57: Sheet2 | D57: 2 | E57: 0 | F57: 1 | G57: 0 | H57: MkP | I57: MkP | J57: 0 | L57: 0 | O57: MkP | P57: 13 | Q57: 76 | R57: 64 | S57: 64 | T57: 59 | U57: 5 | V57: 59 | W57: 5 | X57: 128 | Y57: 10 | AC57: 10.6688 | AD57: 9.8353 | AE57: 0 | AF57: 10 | AG57: 0 | AH57: 0 | AI57: 0 | AJ57: 0 | AK57: 9.8353 | AL57: 19.8353 | AM57: 48 | AN57: 72.1685 | AO57: 24.1685 | AP57: 666.6621622 | AQ57: 601.3648649 | AR57: 883.8694779 | AS57: 602.7630522 | AT57: 217.2118158 | AU57: 2432.772337 | AV57: 596.8268123 | AW57: 6684.460298 | AX57: 2.747671944 | AY57: 336.998195 | AZ57: 97.68772562 | BA57: 18 | BB57: 2 | BC57: 73.49072044 | BD57: 18 | BE57: 2 | BF57: 17 | BG57: 2 | BH57: 15 | BI57: 2 | BJ57: 0 | BK57: 1 | BL57: 0 | BM57: MkP | BN57: MkP | BO57: 0 | BQ57: 0 | BS57: MkP | BT57: 0 | BU57: 1 | BV57: 0 | BW57: MkP | BX57: MkP | BY57: 0 | CA57: 0 | CC57: MkP | CD57: 0 | CF57: 0 | CG57: 0 | CH57: 0 | CJ57: 0 | CK57: 0 | CL57: 0 | CN57: 0 | CO57: 0 | CP57: 0 | CR57: 0 | CT57: 1 | CU57: MkP Expansion | CV57: MkP Expansion
A58: Cntrl MkP | B58: 11082018_sp17_MkP | C58: Sheet3 | D58: 3 | E58: 0 | F58: 1 | G58: 0 | H58: MkP | I58: MkP | J58: 0 | L58: 0 | O58: MkP | P58: 77 | Q58: 379 | R58: 303 | S58: 303 | T58: 362 | U58: -59 | V58: 362 | W58: -59 | X58: 606 | Y58: -118 | AC58: 50.5101 | AD58: 60.3454 | AE58: 0 | AF58: 0 | AG58: 0 | AH58: 0 | AI58: 0 | AJ58: 50.5101 | AK58: 0 | AL58: 50.5101 | AM58: 72.3352 | AN58: 150.2019 | AO58: 77.8667 | AP58: 885.0932476 | AQ58: 608.1061093 | AR58: 865.1486486 | AS58: 588.3918919 | AT58: 28.04349115 | AU58: 314.0871009 | AV58: 1098.920979 | AW58: 12307.91496 | AX58: 39.18631147 | AY58: 243.6723539 | AZ58: 65.77028468 | BA58: 122 | BB58: 0.1667 | BC58: 60.72281207 | BD58: 122 | BE58: 0.1667 | BF58: 116 | BG58: 0.1667 | BH58: 111 | BI58: 0.1667 | BJ58: 0 | BK58: 0 | BL58: 0 | BM58: 0 | BO58: 0 | BQ58: 0 | BT58: 0 | BU58: 0 | BV58: 0 | BW58: 0 | BY58: 0 | CA58: 0 | CD58: 0 | CF58: 0 | CG58: 0 | CH58: 0 | CJ58: 0 | CK58: 0 | CL58: 0 | CN58: 0 | CO58: 0 | CP58: 0 | CR58: 0 | CT58: 0
A59: Cntrl MkP | B59: 11082018_sp17_MkP | C59: Sheet4 | D59: 3 | E59: 0 | F59: 1 | G59: 0 | H59: MkP | I59: MkP | J59: 0 | L59: 0 | O59: MkP | P59: 77 | Q59: 379 | R59: 303 | S59: 303 | T59: 362 | U59: -59 | V59: 362 | W59: -59 | X59: 606 | Y59: -118 | AC59: 50.5101 | AD59: 60.3454 | AE59: 0 | AF59: 0 | AG59: 0 | AH59: 0 | AI59: 0 | AJ59: 50.5101 | AK59: 0 | AL59: 50.5101 | AM59: 72.3352 | AN59: 150.2019 | AO59: 77.8667 | AP59: 882.6464646 | AQ59: 592.3265993 | AR59: 859.4943567 | AS59: 491.9232506 | AT59: 103.0381121 | AU59: 1154.026856 | AV59: 1164.557073 | AW59: 13043.03922 | AX59: 11.3021973 | AY59: 258.226359 | AZ59: 81.30060038 | BA59: 126 | BB59: 0.1667 | BC59: 71.43274247 | BD59: 126 | BE59: 0.1667 | BF59: 129 | BG59: 0.1667 | BH59: 130 | BI59: 0.1667 | BJ59: 0 | BK59: 0 | BL59: 0 | BM59: 0 | BO59: 0 | BQ59: 0 | BT59: 0 | BU59: 0 | BV59: 0 | BW59: 0 | BY59: 0 | CA59: 0 | CD59: 0 | CF59: 0 | CG59: 0 | CH59: 0 | CJ59: 0 | CK59: 0 | CL59: 0 | CN59: 0 | CO59: 0 | CP59: 0 | CR59: 0 | CT59: 0
A60: Cntrl MkP | B60: 11082018_sp17_MkP | C60: Sheet5 | D60: 2 | E60: 0 | F60: 1 | G60: 0 | H60: MkP | I60: MkP | J60: 0 | L60: 0 | O60: MkP | P60: 13 | Q60: 66 | R60: 54 | S60: 54 | T60: 49 | U60: 5 | V60: 49 | W60: 5 | X60: 108 | Y60: 10 | AC60: 9.0018 | AD60: 8.1683 | AE60: 0 | AF60: 10 | AG60: 0 | AH60: 0 | AI60: 0 | AJ60: 0 | AK60: 8.1683 | AL60: 18.1683 | AM60: 48 | AN60: 70.5015 | AO60: 22.5015 | AP60: 673.1486486 | AQ60: 605.2567568 | AR60: 789.694382 | AS60: 479.1707865 | AT60: 171.6990968 | AU60: 1923.029885 | AV60: 449.8382965 | AW60: 5038.188921 | AX60: 2.619922322 | AY60: 277.3065681 | AZ60: 164.4505622 | BA60: 18 | BB60: 2 | BC60: 112.0216794 | BD60: 18 | BE60: 2 | BF60: 15 | BG60: 2 | BH60: 14 | BI60: 2 | BJ60: 0 | BK60: 1 | BL60: 0 | BM60: MkP | BN60: MkP | BO60: 0 | BQ60: 0 | BS60: MkP | BT60: 0 | BU60: 1 | BV60: 0 | BW60: MkP | BX60: MkP | BY60: 0 | CA60: 0 | CC60: MkP | CD60: 0 | CF60: 0 | CG60: 0 | CH60: 0 | CJ60: 0 | CK60: 0 | CL60: 0 | CN60: 0 | CO60: 0 | CP60: 0 | CR60: 0 | CT60: 1 | CU60: MkP Expansion | CV60: MkP Expansion
A61: Cntrl MkP | B61: 11082018_sp17_MkP | C61: Sheet6 | D61: 3 | E61: 0 | F61: 1 | G61: 0 | H61: MkP | I61: MkP | J61: 0 | L61: 0 | O61: MkP | P61: 67 | Q61: 180 | R61: 114 | S61: 114 | T61: 163 | U61: -49 | V61: 163 | W61: -49 | X61: 228 | Y61: -98 | AC61: 19.0038 | AD61: 27.1721 | AE61: 0 | AF61: 0 | AG61: 0 | AH61: 0 | AI61: 0 | AJ61: 19.0038 | AK61: 0 | AL61: 19.0038 | AM61: 70.6682 | AN61: 91.5997 | AO61: 20.9315 | AP61: 795.5907336 | AQ61: 477.1467181 | AR61: 792.5263158 | AS61: 472.5107212 | AT61: 5.557258651 | AU61: 62.24129689 | AV61: 492.359255 | AW61: 5514.423656 | AX61: 88.5975057 | AY61: 290.174789 | AZ61: 94.02849892 | BA61: 146 | BB61: 0.1667 | BC61: 75.27332452 | BD61: 146 | BE61: 0.1667 | BF61: 144 | BG61: 0.1667 | BH61: 131 | BI61: 0.1667 | BJ61: 0 | BK61: 1 | BL61: 0 | BM61: MkP | BN61: MkP | BO61: 0 | BQ61: 0 | BS61: MkP | BT61: 0 | BU61: 1 | BV61: 0 | BW61: MkP | BX61: MkP | BY61: 0 | CA61: 0 | CC61: MkP | CD61: 0 | CF61: 0 | CG61: 0 | CH61: 0 | CJ61: 0 | CK61: 0 | CL61: 0 | CN61: 0 | CO61: 0 | CP61: 0 | CR61: 0 | CT61: 1 | CU61: MkP Expansion | CV61: MkP Expansion
A62: Cntrl MkP | B62: 11082018_sp17_MkP | C62: Sheet7 | D62: 4 | E62: 0 | F62: 1 | G62: 0 | H62: MkP | I62: MkP | J62: 0 | L62: 0 | O62: MkP | P62: 181 | Q62: 379 | R62: 199 | S62: 199 | T62: 362 | U62: -163 | V62: 362 | W62: -163 | X62: 398 | Y62: -326 | AC62: 33.1733 | AD62: 60.3454 | AE62: 0 | AF62: 0 | AG62: 0 | AH62: 0 | AI62: 0 | AJ62: 33.1733 | AK62: 0 | AL62: 33.1733 | AM62: 91.888 | AN62: 150.2019 | AO62: 58.3139 | AP62: 788.1528239 | AQ62: 465.7807309 | AR62: 780.3807531 | AS62: 469.1631799 | AT62: 8.47620467 | AU62: 94.93349231 | AV62: 374.3858225 | AW62: 4193.121212 | AX62: 44.16903993 | AY62: 126.4004851 | AZ62: 24.84496397 | BA62: 207 | BB62: 0.1667 | BC62: 22.34947154 | BD62: 207 | BE62: 0.1667 | BF62: 236 | BG62: 0.1667 | BH62: 201 | BI62: 0.1667 | BJ62: 0 | BK62: 0 | BL62: 0 | BM62: 0 | BO62: 0 | BQ62: 0 | BT62: 0 | BU62: 0 | BV62: 0 | BW62: 0 | BY62: 0 | CA62: 0 | CD62: 0 | CF62: 0 | CG62: 0 | CH62: 0 | CJ62: 0 | CK62: 0 | CL62: 0 | CN62: 0 | CO62: 0 | CP62: 0 | CR62: 0 | CT62: 0
A63: Cntrl MkP | B63: 11082018_sp17_MkP | C63: Sheet8 | D63: 4 | E63: 0 | F63: 1 | G63: 0 | H63: MkP | I63: MkP | J63: 0 | L63: 0 | O63: MkP | P63: 181 | Q63: 379 | R63: 199 | S63: 199 | T63: 362 | U63: -163 | V63: 362 | W63: -163 | X63: 398 | Y63: -326 | AC63: 33.1733 | AD63: 60.3454 | AE63: 0 | AF63: 0 | AG63: 0 | AH63: 0 | AI63: 0 | AJ63: 33.1733 | AK63: 0 | AL63: 33.1733 | AM63: 91.888 | AN63: 150.2019 | AO63: 58.3139 | AP63: 797.6441281 | AQ63: 478.9964413 | AR63: 674.5839112 | AS63: 613.185853 | AT63: 182.073104 | AU63: 2039.218765 | AV63: 997.7577864 | AW63: 11174.88721 | AX63: 5.479984493 | AY63: 336.8638998 | AZ63: 61.74013151 | BA63: 243 | BB63: 0.1667 | BC63: 58.64731178 | BD63: 243 | BE63: 0.1667 | BF63: 224 | BG63: 0.1667 | BH63: 255 | BI63: 0.1667 | BJ63: 0 | BK63: 0 | BL63: 0 | BM63: 0 | BO63: 0 | BQ63: 0 | BT63: 0 | BU63: 0 | BV63: 0 | BW63: 0 | BY63: 0 | CA63: 0 | CD63: 0 | CF63: 0 | CG63: 0 | CH63: 0 | CJ63: 0 | CK63: 0 | CL63: 0 | CN63: 0 | CO63: 0 | CP63: 0 | CR63: 0 | CT63: 0
A64: Cntrl MkP | B64: 11082018_sp17_MkP | C64: Sheet9 | D64: 3 | E64: 0 | F64: 1 | G64: 0 | H64: MkP | I64: MkP | J64: 0 | L64: 0 | O64: MkP | P64: 67 | Q64: 162 | R64: 96 | S64: 96 | T64: 145 | U64: -49 | V64: 145 | W64: -49 | X64: 192 | Y64: -98 | AC64: 16.0032 | AD64: 24.1715 | AE64: 0 | AF64: 0 | AG64: 0 | AH64: 0 | AI64: 0 | AJ64: 16.0032 | AK64: 0 | AL64: 16.0032 | AM64: 70.6682 | AN64: 86.5047 | AO64: 15.8365 | AP64: 782.9393939 | AQ64: 483.2765152 | AR64: 850.3854749 | AS64: 726.8659218 | AT64: 252.7543726 | AU64: 2830.848973 | AV64: 616.6235612 | AW64: 6906.183886 | AX64: 2.439615801 | AY64: 431.5501828 | AZ64: 76.36528074 | BA64: 103 | BB64: 0.1667 | BC64: 68.24102144 | BD64: 103 | BE64: 0.1667 | BF64: 106 | BG64: 0.1667 | BH64: 105 | BI64: 0.1667 | BJ64: 0 | BK64: 1 | BL64: 0 | BM64: MkP | BN64: MkP | BO64: 0 | BQ64: 0 | BS64: MkP | BT64: 0 | BU64: 1 | BV64: 0 | BW64: MkP | BX64: MkP | BY64: 0 | CA64: 0 | CC64: MkP | CD64: 0 | CF64: 0 | CG64: 0 | CH64: 0 | CJ64: 0 | CK64: 0 | CL64: 0 | CN64: 0 | CO64: 0 | CP64: 0 | CR64: 0 | CT64: 1 | CU64: MkP Expansion | CV64: MkP Expansion
A65: Cntrl MkP | B65: 11082018_sp17_MkP | C65: Sheet10 | D65: 4 | E65: 0 | F65: 1 | G65: 0 | H65: MkP | I65: MkP | J65: 0 | L65: 0 | O65: MkP | P65: 163 | Q65: 379 | R65: 217 | S65: 217 | T65: 362 | U65: -145 | V65: 362 | W65: -145 | X65: 434 | Y65: -290 | AC65: 36.1739 | AD65: 60.3454 | AE65: 0 | AF65: 0 | AG65: 0 | AH65: 0 | AI65: 0 | AJ65: 36.1739 | AK65: 0 | AL65: 36.1739 | AM65: 86.6714 | AN65: 150.2019 | AO65: 63.5305 | AP65: 842.9352941 | AQ65: 729.2941176 | AR65: 881.679219 | AS65: 737.0627615 | AT65: 39.51510522 | AU65: 442.5691784 | AV65: 711.9505502 | AW65: 7973.846162 | AX65: 18.0171746 | AY65: 220.4309229 | AZ65: 45.67322916 | BA65: 259 | BB65: 0.1667 | BC65: 44.63438873 | BD65: 259 | BE65: 0.1667 | BF65: 260 | BG65: 0.1667 | BH65: 248 | BI65: 0.1667 | BJ65: 0 | BK65: 0 | BL65: 0 | BM65: 0 | BO65: 0 | BQ65: 0 | BT65: 0 | BU65: 0 | BV65: 0 | BW65: 0 | BY65: 0 | CA65: 0 | CD65: 0 | CF65: 0 | CG65: 0 | CH65: 0 | CJ65: 0 | CK65: 0 | CL65: 0 | CN65: 0 | CO65: 0 | CP65: 0 | CR65: 0 | CT65: 0
A66: Cntrl MkP | B66: 11082018_sp17_MkP | C66: Sheet11 | D66: 4 | E66: 0 | F66: 1 | G66: 0 | H66: MkP | I66: =IF(H66=0, "", H66) -> MkP | J66: 0 | L66: 0 | O66: MkP | P66: 163 | Q66: 379 | R66: =Q66-P66+1 -> 217 | S66: =Q66-P66+1 -> 217 | T66: =Q66-17 -> 362 | U66: =17-P66+1 -> -145 | V66: =Q66-17 -> 362 | W66: =17-P66+1 -> -145 | X66: =2*S66 -> 434 | Y66: =2*U66 -> -290 | AC66: =0.1667*S66 -> 36.1739 | AD66: =0.1667*V66 -> 60.3454 | AE66: =IF(Q66<18,X66,0) -> 0 | AF66: =IF(AND(P66<18,Q66>17),Y66,0) -> 0 | AG66: =IF(AND(P66<18,Q66>17),Z66,0) -> 0 | AH66: =IF(AND(P66>18,Q66<17),AA66,0) -> 0 | AI66: =IF(AND(P66<18,Q66>17),AB66,0) -> 0 | AJ66: =IF(P66>17,AC66,0) -> 36.1739 | AK66: =IF(AND(P66<18,Q66>17),AD66,0) -> 0 | AL66: =SUM(AE66:AK66) -> 36.1739 | AM66: 86.6714 | AN66: 150.2019 | AO66: 63.5305 | AP66: 855.084507 | AQ66: 726.1830986 | AR66: 845.7548161 | AS66: 714.0122592 | AT66: 15.33533386 | AU66: 171.7557392 | AV66: 303.3110781 | AW66: 3397.084075 | AX66: 19.77857678 | AY66: 93.90980997 | AZ66: 21.05711572 | BA66: 236 | BB66: 0.1667 | BC66: 11.81736992 | BD66: 236 | BE66: 0.1667 | BF66: 281 | BG66: 0.1667 | BH66: 305 | BI66: 0.1667 | BJ66: 0 | BK66: 0 | BL66: 0 | BM66: 0 | BO66: 0 | BQ66: 0 | BT66: 0 | BU66: 0 | BV66: 0 | BW66: 0 | BY66: 0 | CA66: 0 | CD66: 0 | CE66: =IF(CD66=1, "MEP Expansion", "") ->  | CF66: 0 | CG66: 0 | CH66: 0 | CJ66: 0 | CK66: 0 | CL66: 0 | CN66: 0 | CO66: 0 | CP66: 0 | CR66: 0 | CT66: 0
A67: Cntrl MkP | B67: 11082018_sp21_MkP | C67: Sheet1 | D67: 1 | E67: 0 | F67: 1 | G67: 0 | H67: =IF(AND(E67=0,F67=1,G67=0),"MkP",) -> MkP | I67: MkP | J67: =IF(AND(E67=1,F67=0,G67=0),"ErP",) -> 0 | K67: =IF(J67=0, "", J67) ->  | L67: =IF(AND(E67=0,F67=0,G67=1),"MEP",) -> 0 | M67: =IF(L67=0, "", L67) ->  | O67: =CONCATENATE(I67,K67,M67) -> MkP | P67: 1 | Q67: 7 | R67: 7 | S67: 7 | T67: -10 | U67: 17 | V67: -10 | W67: 17 | X67: 14 | Y67: 34 | AC67: 1.1669 | AD67: -1.667 | AE67: 14 | AF67: 0 | AG67: 0 | AH67: 0 | AI67: 0 | AJ67: 0 | AK67: 0 | AL67: 14 | AM67: 24 | AN67: 36 | AO67: 12 | AP67: 695.8344156 | AQ67: 483.0194805 | AR67: 667.8173516 | AS67: 523.4657534 | AT67: 49.20220388 | AU67: =AT67*11.2 -> 551.0646834 | AV67: 59.94632026 | AW67: =AV67*11.2 -> 671.3987869 | AX67: =AW67/AU67 -> 1.218366568 | AY67: =AW67/AL67 -> 47.95705621 | AZ67: 31.12607329 | BA67: 3 | BB67: 2 | BC67: 23.80623983 | BD67: 3 | BE67: 2 | BF67: 2 | BG67: 2 | BH67: 4 | BI67: 2 | BJ67: 0 | BK67: 1 | BL67: 0 | BM67: =IF(AND(BJ67=0,BK67=1,BL67=0),"MkP",) -> MkP | BN67: =IF(BM67=0,"",BM67) -> MkP | BO67: =IF(AND(BJ67=1,BK67=0,BL67=0),"ErP",) -> 0 | BP67: =IF(BO67=0,"",BO67) ->  | BQ67: =IF(AND(BJ67=0,BK67=0,BL67=1),"MEP",) -> 0 | BR67: =IF(BQ67=0,"",BQ67) ->  | BS67: =CONCATENATE(BN67,BP67,BR67) -> MkP | BT67: 0 | BU67: 1 | BV67: 0 | BW67: =IF(AND(BT67=0,BU67=1,BV67=0),"MkP",) -> MkP | BX67: =IF(BW67=0,"",BW67) -> MkP | BY67: =IF(AND(BT67=1,BU67=0,BV67=0),"ErP",) -> 0 | BZ67: =IF(BY67=0,"",BY67) ->  | CA67: =IF(AND(BT67=0,BU67=0,BV67=1),"MEP",) -> 0 | CB67: =IF(CA67=0,"",CA67) ->  | CC67: =CONCATENATE(BX67,BZ67,CB67) -> MkP | CD67: =COUNTIFS(BS67,"MEP",CC67,"MEP") -> 0 | CF67: =COUNTIFS(BS67,"MEP",CC67,"ErP") -> 0 | CG67: =COUNTIFS(BS67,"ErP",CC67,"MEP") -> 0 | CH67: =SUM(CF67:CG67) -> 0 | CI67: =IF(CH67=1, "MEP Maintenance+E", "") ->  | CJ67: =COUNTIFS(BS67,"MEP",CC67,"MkP") -> 0 | CK67: =COUNTIFS(BS67,"MkP",CC67,"MEP") -> 0 | CL67: =SUM(CJ67:CK67) -> 0 | CM67: =IF(CL67=1, "MEP Maintenance+Mk", "") ->  | CN67: =COUNTIFS(BS67,"MkP",CC67,"ErP") -> 0 | CO67: =COUNTIFS(BS67,"ErP",CC67,"MkP") -> 0 | CP67: =SUM(CN67:CO67) -> 0 | CQ67: =IF(CP67=1, "MEP Exhaustion", "") ->  | CR67: =COUNTIFS(BS67,"ErP",CC67,"ErP") -> 0 | CS67: =IF(CR67=1, "ErP Expansion", "") ->  | CT67: =COUNTIFS(BS67,"MkP",CC67,"MkP") -> 1 | CU67: =IF(CT67=1, "MkP Expansion", "") -> MkP Expansion | CV67: =CONCATENATE(CE67,CI67,CM67,CQ67,CS67,CU67) -> MkP Expansion
A68: Cntrl MkP | B68: 11082018_sp21_MkP | C68: Sheet2 | D68: 2 | E68: 0 | F68: 1 | G68: 0 | H68: MkP | I68: MkP | J68: 0 | L68: 0 | O68: MkP | P68: 8 | Q68: 16 | R68: 9 | S68: 9 | T68: -1 | U68: 10 | V68: -1 | W68: 10 | X68: 18 | Y68: 20 | AC68: 1.5003 | AD68: -0.1667 | AE68: 18 | AF68: 0 | AG68: 0 | AH68: 0 | AI68: 0 | AJ68: 0 | AK68: 0 | AL68: 18 | AM68: 38 | AN68: 54 | AO68: 16 | AP68: 671.2191781 | AQ68: 515.0239726 | AR68: 647.3581781 | AS68: 526.9026915 | AT68: 26.65429206 | AU68: 298.5280711 | AV68: 101.8904514 | AW68: 1141.173055 | AX68: 3.822665826 | AY68: 63.39850308 | AZ68: 36.43937516 | BA68: 11 | BB68: 2 | BC68: 32.32946602 | BD68: 11 | BE68: 2 | BF68: 14 | BG68: 2 | BH68: 13 | BI68: 2 | BJ68: 0 | BK68: 1 | BL68: 0 | BM68: MkP | BN68: MkP | BO68: 0 | BQ68: 0 | BS68: MkP | BT68: 0 | BU68: 1 | BV68: 0 | BW68: MkP | BX68: MkP | BY68: 0 | CA68: 0 | CC68: MkP | CD68: 0 | CF68: 0 | CG68: 0 | CH68: 0 | CJ68: 0 | CK68: 0 | CL68: 0 | CN68: 0 | CO68: 0 | CP68: 0 | CR68: 0 | CT68: 1 | CU68: MkP Expansion | CV68: MkP Expansion
A69: Cntrl MkP | B69: 11082018_sp21_MkP | C69: Sheet3 | D69: 3 | E69: 0 | F69: 1 | G69: 0 | H69: MkP | I69: MkP | J69: 0 | L69: 0 | O69: MkP | P69: 17 | Q69: 379 | R69: 363 | S69: 363 | T69: 362 | U69: 1 | V69: 362 | W69: 1 | X69: 726 | Y69: 2 | AC69: 60.5121 | AD69: 60.3454 | AE69: 0 | AF69: 2 | AG69: 0 | AH69: 0 | AI69: 0 | AJ69: 0 | AK69: 60.3454 | AL69: 62.3454 | AM69: 56 | AN69: 150.2019 | AO69: 94.2019 | AP69: 647.7210145 | AQ69: 515.3115942 | AR69: 651.7433628 | AS69: 504.9787611 | AT69: 11.08813451 | AU69: 124.1871065 | AV69: 1214.495154 | AW69: 13602.34572 | AX69: 109.5310625 | AY69: 218.1772147 | AZ69: 62.43275374 | BA69: 342 | BB69: 0.1667 | BC69: 49.06569638 | BD69: 342 | BE69: 0.1667 | BF69: 307 | BG69: 0.1667 | BH69: 319 | BI69: 0.1667 | BJ69: 0 | BK69: 0 | BL69: 0 | BM69: 0 | BO69: 0 | BQ69: 0 | BT69: 0 | BU69: 0 | BV69: 0 | BW69: 0 | BY69: 0 | CA69: 0 | CD69: 0 | CF69: 0 | CG69: 0 | CH69: 0 | CJ69: 0 | CK69: 0 | CL69: 0 | CN69: 0 | CO69: 0 | CP69: 0 | CR69: 0 | CT69: 0
A70: Cntrl MkP | B70: 11082018_sp21_MkP | C70: Sheet4 | D70: 3 | E70: 0 | F70: 1 | G70: 0 | H70: MkP | I70: MkP | J70: 0 | L70: 0 | O70: MkP | P70: 17 | Q70: 379 | R70: 363 | S70: 363 | T70: 362 | U70: 1 | V70: 362 | W70: 1 | X70: 726 | Y70: 2 | AC70: 60.5121 | AD70: 60.3454 | AE70: 0 | AF70: 2 | AG70: 0 | AH70: 0 | AI70: 0 | AJ70: 0 | AK70: 60.3454 | AL70: 62.3454 | AM70: 56 | AN70: 150.2019 | AO70: 94.2019 | AP70: 648.0509091 | AQ70: 529.4218182 | AR70: 656.1842576 | AS70: 521.3953488 | AT70: 11.42696671 | AU70: 127.9820271 | AV70: 1485.363338 | AW70: 16636.06939 | AX70: 129.9875441 | AY70: 266.8371587 | AZ70: 44.55065883 | BA70: 377 | BB70: 0.1667 | BC70: 36.26553683 | BD70: 377 | BE70: 0.1667 | BF70: 334 | BG70: 0.1667 | BH70: 280 | BI70: 0.1667 | BJ70: 0 | BK70: 0 | BL70: 0 | BM70: 0 | BO70: 0 | BQ70: 0 | BT70: 0 | BU70: 0 | BV70: 0 | BW70: 0 | BY70: 0 | CA70: 0 | CD70: 0 | CF70: 0 | CG70: 0 | CH70: 0 | CJ70: 0 | CK70: 0 | CL70: 0 | CN70: 0 | CO70: 0 | CP70: 0 | CR70: 0 | CT70: 0
A71: Cntrl MkP | B71: 11082018_sp21_MkP | C71: Sheet5 | D71: 2 | E71: 0 | F71: 1 | G71: 0 | H71: MkP | I71: MkP | J71: 0 | L71: 0 | O71: MkP | P71: 8 | Q71: 15 | R71: 8 | S71: 8 | T71: -2 | U71: 10 | V71: -2 | W71: 10 | X71: 16 | Y71: 20 | AC71: 1.3336 | AD71: -0.3334 | AE71: 16 | AF71: 0 | AG71: 0 | AH71: 0 | AI71: 0 | AJ71: 0 | AK71: 0 | AL71: 16 | AM71: 38 | AN71: 52 | AO71: 14 | AP71: 660.260274 | AQ71: 524.5445205 | AR71: 667.4003759 | AS71: 514.1842105 | AT71: 12.58241153 | AU71: 140.9230091 | AV71: 61.53271071 | AW71: 689.1663599 | AX71: 4.890374995 | AY71: 43.07289749 | AZ71: 26.15481915 | BA71: 11 | BB71: 2 | BC71: 18.01596641 | BD71: 11 | BE71: 2 | BF71: 15 | BG71: 2 | BH71: 14 | BI71: 2 | BJ71: 0 | BK71: 1 | BL71: 0 | BM71: MkP | BN71: MkP | BO71: 0 | BQ71: 0 | BS71: MkP | BT71: 0 | BU71: 1 | BV71: 0 | BW71: MkP | BX71: MkP | BY71: 0 | CA71: 0 | CC71: MkP | CD71: 0 | CF71: 0 | CG71: 0 | CH71: 0 | CJ71: 0 | CK71: 0 | CL71: 0 | CN71: 0 | CO71: 0 | CP71: 0 | CR71: 0 | CT71: 1 | CU71: MkP Expansion | CV71: MkP Expansion
A72: Cntrl MkP | B72: 11082018_sp21_MkP | C72: Sheet6 | D72: 3 | E72: 0 | F72: 1 | G72: 0 | H72: MkP | I72: MkP | J72: 0 | L72: 0 | O72: MkP | P72: 16 | Q72: 379 | R72: 364 | S72: 364 | T72: 362 | U72: 2 | V72: 362 | W72: 2 | X72: 728 | Y72: 4 | AC72: 60.6788 | AD72: 60.3454 | AE72: 0 | AF72: 4 | AG72: 0 | AH72: 0 | AI72: 0 | AJ72: 0 | AK72: 60.3454 | AL72: 64.3454 | AM72: 54 | AN72: 150.2019 | AO72: 96.2019 | AP72: 675.986755 | AQ72: 518.9139073 | AR72: 579.75 | AS72: 520.4766949 | AT72: 96.24944318 | AU72: 1077.993764 | AV72: 1903.423842 | AW72: 21318.34703 | AX72: 19.77594653 | AY72: 331.3111275 | AZ72: 59.74790921 | BA72: 331 | BB72: 0.1667 | BC72: 47.86005656 | BD72: 331 | BE72: 0.1667 | BF72: 21 | BG72: 0.1667 | BH72: 334 | BI72: 0.1667 | BJ72: 0 | BK72: 0 | BL72: 0 | BM72: 0 | BO72: 0 | BQ72: 0 | BT72: 0 | BU72: 0 | BV72: 0 | BW72: 0 | BY72: 0 | CA72: 0 | CD72: 0 | CF72: 0 | CG72: 0 | CH72: 0 | CJ72: 0 | CK72: 0 | CL72: 0 | CN72: 0 | CO72: 0 | CP72: 0 | CR72: 0 | CT72: 0
A73: Cntrl MkP | B73: 11082018_sp21_MkP | C73: Sheet7 | D73: 3 | E73: 0 | F73: 1 | G73: 0 | H73: MkP | I73: MkP | J73: 0 | L73: 0 | O73: MkP | P73: 16 | Q73: 379 | R73: =Q73-P73+1 -> 364 | S73: =Q73-P73+1 -> 364 | T73: =Q73-17 -> 362 | U73: =17-P73+1 -> 2 | V73: =Q73-17 -> 362 | W73: =17-P73+1 -> 2 | X73: =2*S73 -> 728 | Y73: =2*U73 -> 4 | AC73: 60.6788 | AD73: 60.3454 | AE73: 0 | AF73: 4 | AG73: 0 | AH73: 0 | AI73: 0 | AJ73: 0 | AK73: 60.3454 | AL73: =SUM(AE73:AK73) -> 64.3454 | AM73: 54 | AN73: 150.2019 | AO73: 96.2019 | AP73: 661.6370968 | AQ73: 512.8172043 | AR73: 613.2124224 | AS73: 519.5559006 | AT73: 48.89129902 | AU73: 547.5825491 | AV73: 978.572328 | AW73: 10960.01007 | AX73: 20.01526545 | AY73: 170.3309028 | AZ73: 47.51491654 | BA73: 350 | BB73: 0.1667 | BC73: 34.75517204 | BD73: 350 | BE73: 0.1667 | BF73: 349 | BG73: 0.1667 | BH73: 369 | BI73: 0.1667 | BJ73: 0 | BK73: 0 | BL73: 0 | BM73: 0 | BO73: 0 | BQ73: 0 | BT73: 0 | BU73: 0 | BV73: 0 | BW73: 0 | BY73: 0 | CA73: 0 | CD73: 0 | CF73: 0 | CG73: 0 | CH73: 0 | CJ73: 0 | CK73: 0 | CL73: 0 | CN73: 0 | CO73: 0 | CP73: 0 | CR73: 0 | CT73: 0
A74: Cntrl ErP | B74: 11262018_sp39_ErP | C74: Sheet1 | D74: 1 | E74: 1 | F74: 0 | G74: 0 | H74: =IF(AND(E74=0,F74=1,G74=0),"MkP",) -> 0 | I74: =IF(H74=0, "", H74) ->  | J74: =IF(AND(E74=1,F74=0,G74=0),"ErP",) -> ErP | K74: =IF(J74=0, "", J74) -> ErP | L74: =IF(AND(E74=0,F74=0,G74=1),"MEP",) -> 0 | M74: =IF(L74=0, "", L74) ->  | O74: =CONCATENATE(I74,K74,M74) -> ErP | P74: 1 | Q74: 8 | R74: =Q74-P74+1 -> 8 | S74: =Q74-P74+1 -> 8 | T74: =Q74-20 -> -12 | U74: =20-P74+1 -> 20 | V74: =Q74-20 -> -12 | W74: =20-P74+1 -> 20 | X74: =2*S74 -> 16 | Y74: =2*U74 -> 40 | AC74: =0.1667*S74 -> 1.3336 | AD74: =0.1667*V74 -> -2.0004 | AE74: =IF(Q74<21,X74,0) -> 16 | AF74: =IF(AND(P74<21,Q74>20),Y74,0) -> 0 | AG74: =IF(AND(P74<21,Q74>20),Z74,0) -> 0 | AH74: =IF(AND(P74>21,Q74<20),AA74,0) -> 0 | AI74: =IF(AND(P74<21,Q74>20),AB74,0) -> 0 | AJ74: =IF(P74>20,AC74,0) -> 0 | AK74: =IF(AND(P74<21,Q74>20),AD74,0) -> 0 | AL74: =SUM(AE74:AK74) -> 16 | AM74: 24 | AN74: 38 | AO74: 14 | AP74: 643.503876 | AQ74: 505.4186047 | AR74: 640.5931034 | AS74: 512.9287356 | AT74: 8.05448099 | AU74: =AT74*11.2 -> 90.21018709 | AV74: 19.65812357 | AW74: =AV74*11.2 -> 220.170984 | AX74: =AW74/AU74 -> 2.440644356 | AY74: =AW74/AL74 -> 13.7606865 | AZ74: 10.05959148 | BA74: 4 | BB74: 2 | BC74: 7.79538729 | BD74: 4 | BE74: 2 | BF74: 2 | BG74: 2 | BH74: 5 | BI74: 2 | BJ74: 1 | BK74: 0 | BL74: 0 | BM74: =IF(AND(BJ74=0,BK74=1,BL74=0),"MkP",) -> 0 | BN74: =IF(BM74=0,"",BM74) ->  | BO74: =IF(AND(BJ74=1,BK74=0,BL74=0),"ErP",) -> ErP | BP74: =IF(BO74=0,"",BO74) -> ErP | BQ74: =IF(AND(BJ74=0,BK74=0,BL74=1),"MEP",) -> 0 | BR74: =IF(BQ74=0,"",BQ74) ->  | BS74: =CONCATENATE(BN74,BP74,BR74) -> ErP | BT74: 1 | BU74: 0 | BV74: 0 | BW74: =IF(AND(BT74=0,BU74=1,BV74=0),"MkP",) -> 0 | BX74: =IF(BW74=0,"",BW74) ->  | BY74: =IF(AND(BT74=1,BU74=0,BV74=0),"ErP",) -> ErP | BZ74: =IF(BY74=0,"",BY74) -> ErP | CA74: =IF(AND(BT74=0,BU74=0,BV74=1),"MEP",) -> 0 | CB74: =IF(CA74=0,"",CA74) ->  | CC74: =CONCATENATE(BX74,BZ74,CB74) -> ErP | CD74: =COUNTIFS(BS74,"MEP",CC74,"MEP") -> 0 | CE74: =IF(CD74=1, "MEP Expansion", "") ->  | CF74: =COUNTIFS(BS74,"MEP",CC74,"ErP") -> 0 | CG74: =COUNTIFS(BS74,"ErP",CC74,"MEP") -> 0 | CH74: =SUM(CF74:CG74) -> 0 | CI74: =IF(CH74=1, "MEP Maintenance+E", "") ->  | CJ74: =COUNTIFS(BS74,"MEP",CC74,"MkP") -> 0 | CK74: =COUNTIFS(BS74,"MkP",CC74,"MEP") -> 0 | CL74: =SUM(CJ74:CK74) -> 0 | CM74: =IF(CL74=1, "MEP Maintenance+Mk", "") ->  | CN74: =COUNTIFS(BS74,"MkP",CC74,"ErP") -> 0 | CO74: =COUNTIFS(BS74,"ErP",CC74,"MkP") -> 0 | CP74: =SUM(CN74:CO74) -> 0 | CQ74: =IF(CP74=1, "MEP Exhaustion", "") ->  | CR74: =COUNTIFS(BS74,"ErP",CC74,"ErP") -> 1 | CS74: =IF(CR74=1, "ErP Expansion", "") -> ErP Expansion | CT74: =COUNTIFS(BS74,"MkP",CC74,"MkP") -> 0 | CU74: =IF(CT74=1, "MkP Expansion", "") ->  | CV74: =CONCATENATE(CE74,CI74,CM74,CQ74,CS74,CU74) -> ErP Expansion
A75: Cntrl ErP | B75: 11262018_sp39_ErP | C75: Sheet2 | D75: 2 | E75: 1 | F75: 0 | G75: 0 | H75: 0 | J75: ErP | K75: ErP | L75: 0 | O75: ErP | P75: 9 | Q75: 17 | R75: 9 | S75: 9 | T75: -3 | U75: 12 | V75: -3 | W75: 12 | X75: 18 | Y75: 24 | AC75: 1.5003 | AD75: -0.5001 | AE75: 18 | AF75: 0 | AG75: 0 | AH75: 0 | AI75: 0 | AJ75: 0 | AK75: 0 | AL75: 18 | AM75: 40 | AN75: 56 | AO75: 16 | AP75: 642.7736842 | AQ75: 516.4631579 | AR75: 643.4256055 | AS75: 513.9550173 | AT75: 2.591480398 | AU75: 29.02458046 | AV75: 80.11065559 | AW75: 897.2393426 | AX75: 30.91308569 | AY75: 49.84663015 | AZ75: 39.47926626 | BA75: 15 | BB75: 2 | BC75: 29.10970014 | BD75: 15 | BE75: 2 | BF75: 16 | BG75: 2 | BH75: 14 | BI75: 2 | BJ75: 1 | BK75: 0 | BL75: 0 | BM75: 0 | BO75: ErP | BP75: ErP | BQ75: 0 | BS75: ErP | BT75: 1 | BU75: 0 | BV75: 0 | BW75: 0 | BY75: ErP | BZ75: ErP | CA75: 0 | CC75: ErP | CD75: 0 | CF75: 0 | CG75: 0 | CH75: 0 | CJ75: 0 | CK75: 0 | CL75: 0 | CN75: 0 | CO75: 0 | CP75: 0 | CR75: 1 | CS75: ErP Expansion | CT75: 0 | CV75: ErP Expansion
A76: Cntrl ErP | B76: 11262018_sp39_ErP | C76: Sheet3 | D76: 3 | E76: 1 | F76: 0 | G76: 0 | H76: 0 | J76: ErP | K76: ErP | L76: 0 | O76: ErP | P76: 18 | Q76: 81 | R76: 64 | S76: 64 | T76: 61 | U76: 3 | V76: 61 | W76: 3 | X76: 128 | Y76: 6 | AC76: 10.6688 | AD76: 10.1687 | AE76: 0 | AF76: 6 | AG76: 0 | AH76: 0 | AI76: 0 | AJ76: 0 | AK76: 10.1687 | AL76: 16.1687 | AM76: 58 | AN76: 73.002 | AO76: 15.002 | AP76: 669.3071672 | AQ76: 531.774744 | AR76: 880.3024283 | AS76: 567.9602649 | AT76: 214.0756691 | AU76: 2397.647494 | AV76: 262.9928668 | AW76: 2945.520108 | AX76: 1.228504238 | AY76: 182.1742075 | AZ76: 160.3536685 | BA76: 20 | BB76: 2 | BC76: 91.54052588 | BD76: 20 | BE76: 2 | BF76: 19 | BG76: 2 | BH76: 21 | BI76: 1 | BJ76: 1 | BK76: 0 | BL76: 0 | BM76: 0 | BO76: ErP | BP76: ErP | BQ76: 0 | BS76: ErP | BT76: 1 | BU76: 0 | BV76: 0 | BW76: 0 | BY76: ErP | BZ76: ErP | CA76: 0 | CC76: ErP | CD76: 0 | CF76: 0 | CG76: 0 | CH76: 0 | CJ76: 0 | CK76: 0 | CL76: 0 | CN76: 0 | CO76: 0 | CP76: 0 | CR76: 1 | CS76: ErP Expansion | CT76: 0 | CV76: ErP Expansion
A77: Cntrl ErP | B77: 11262018_sp39_ErP | C77: Sheet4 | D77: 4 | E77: 1 | F77: 0 | G77: 0 | H77: 0 | J77: ErP | K77: ErP | L77: 0 | O77: ErP | P77: 82 | Q77: 162 | R77: 81 | S77: 81 | T77: 142 | U77: -61 | V77: 142 | W77: -61 | X77: 162 | Y77: -122 | AC77: 13.5027 | AD77: 23.6714 | AE77: 0 | AF77: 0 | AG77: 0 | AH77: 0 | AI77: 0 | AJ77: 13.5027 | AK77: 0 | AL77: 13.5027 | AM77: 73.1687 | AN77: 86.5047 | AO77: 13.336 | AP77: 878.9967213 | AQ77: 568.1540984 | AR77: 888.5738499 | AS77: 645.4818402 | AT77: 77.91855394 | AU77: 872.6878042 | AV77: 170.046676 | AW77: 1904.522771 | AX77: 2.182364371 | AY77: 141.0475513 | AZ77: 27.00087239 | BA77: 139 | BB77: 0.1667 | BC77: 22.62751218 | BD77: 139 | BE77: 0.1667 | BF77: 160 | BG77: 0.1667 | BH77: 134 | BI77: 0.1667 | BJ77: 1 | BK77: 0 | BL77: 0 | BM77: 0 | BO77: ErP | BP77: ErP | BQ77: 0 | BS77: ErP | BT77: 1 | BU77: 0 | BV77: 0 | BW77: 0 | BY77: ErP | BZ77: ErP | CA77: 0 | CC77: ErP | CD77: 0 | CF77: 0 | CG77: 0 | CH77: 0 | CJ77: 0 | CK77: 0 | CL77: 0 | CN77: 0 | CO77: 0 | CP77: 0 | CR77: 1 | CS77: ErP Expansion | CT77: 0 | CV77: ErP Expansion
A78: Cntrl ErP | B78: 11262018_sp39_ErP | C78: Sheet5 | D78: 5 | E78: 1 | F78: 0 | G78: 0 | H78: 0 | J78: ErP | K78: ErP | L78: 0 | O78: ErP | P78: 163 | Q78: 246 | R78: 84 | S78: 84 | T78: 226 | U78: -142 | V78: 226 | W78: -142 | X78: 168 | Y78: -284 | AC78: 14.0028 | AD78: 37.6742 | AE78: 0 | AF78: 0 | AG78: 0 | AH78: 0 | AI78: 0 | AJ78: 14.0028 | AK78: 0 | AL78: 14.0028 | AM78: 86.6714 | AN78: 110.6275 | AO78: 23.9561 | AP78: 887.2842809 | AQ78: 638.6020067 | AR78: 921.2895238 | AS78: 507.4152381 | AT78: 135.5224144 | AU78: 1517.851041 | AV78: 233.2599251 | AW78: 2612.511161 | AX78: 1.721190743 | AY78: 186.570626 | AZ78: 41.76296435 | BA78: 230 | BB78: 0.2883 | BC78: 26.96353367 | BD78: 230 | BE78: 0.2883 | BF78: 223 | BG78: 0.2883 | BH78: 185 | BI78: 0.2883 | BJ78: 1 | BK78: 0 | BL78: 0 | BM78: 0 | BO78: ErP | BP78: ErP | BQ78: 0 | BS78: ErP | BT78: 1 | BU78: 0 | BV78: 0 | BW78: 0 | BY78: ErP | BZ78: ErP | CA78: 0 | CC78: ErP | CD78: 0 | CF78: 0 | CG78: 0 | CH78: 0 | CJ78: 0 | CK78: 0 | CL78: 0 | CN78: 0 | CO78: 0 | CP78: 0 | CR78: 1 | CS78: ErP Expansion | CT78: 0 | CV78: ErP Expansion
A79: Cntrl ErP | B79: 11262018_sp39_ErP | C79: Sheet6 | D79: 6 | E79: 1 | F79: 0 | G79: 0 | H79: 0 | J79: ErP | K79: ErP | L79: 0 | O79: ErP | P79: 247 | Q79: 329 | R79: 83 | S79: 83 | T79: 309 | U79: -226 | V79: 309 | W79: -226 | X79: 166 | Y79: -452 | AC79: 13.8361 | AD79: 51.5103 | AE79: 0 | AF79: 0 | AG79: 0 | AH79: 0 | AI79: 0 | AJ79: 13.8361 | AK79: 0 | AL79: 13.8361 | AM79: 110.9158 | AN79: 134.5564 | AO79: 23.6406 | AP79: 929.7575 | AQ79: 507.9675 | AR79: 947.7636816 | AS79: 484.6044776 | AT79: 29.49666745 | AU79: 330.3626754 | AV79: 162.8928205 | AW79: 1824.39959 | AX79: 5.522414381 | AY79: 131.8579361 | AZ79: 20.1017035 | BA79: 314 | BB79: 0.2883 | BC79: 18.03626887 | BD79: 314 | BE79: 0.2883 | BF79: 300 | BG79: 0.2883 | BH79: 301 | BI79: 0.2883 | BJ79: 1 | BK79: 0 | BL79: 0 | BM79: 0 | BO79: ErP | BP79: ErP | BQ79: 0 | BS79: ErP | BT79: 1 | BU79: 0 | BV79: 0 | BW79: 0 | BY79: ErP | BZ79: ErP | CA79: 0 | CC79: ErP | CD79: 0 | CF79: 0 | CG79: 0 | CH79: 0 | CJ79: 0 | CK79: 0 | CL79: 0 | CN79: 0 | CO79: 0 | CP79: 0 | CR79: 1 | CS79: ErP Expansion | CT79: 0 | CV79: ErP Expansion
A80: Cntrl ErP | B80: 11262018_sp39_ErP | C80: Sheet7 | D80: 7 | E80: 1 | F80: 0 | G80: 0 | H80: 0 | J80: ErP | K80: ErP | L80: 0 | O80: ErP | P80: 330 | Q80: 415 | R80: 86 | S80: 86 | T80: 395 | U80: -309 | V80: 395 | W80: -309 | X80: 172 | Y80: -618 | AC80: 14.3362 | AD80: 65.8465 | AE80: 0 | AF80: 0 | AG80: 0 | AH80: 0 | AI80: 0 | AJ80: 14.3362 | AK80: 0 | AL80: 14.3362 | AM80: 134.8447 | AN80: 161.5995 | AO80: 26.7548 | AP80: 939.8606061 | AQ80: 477.3727273 | AR80: 932.1459459 | AS80: 453.2567568 | AT80: 25.31987391 | AU80: 283.5825877 | AV80: 121.4367582 | AW80: 1360.091692 | AX80: 4.796104382 | AY80: 94.8711438 | AZ80: 8.608699347 | BA80: 404 | BB80: 0.3166 | BC80: 7.450147321 | BD80: 404 | BE80: 0.3166 | BF80: 415 | BG80: 0.3166 | BH80: 359 | BI80: 0.3166 | BJ80: 1 | BK80: 0 | BL80: 0 | BM80: 0 | BO80: ErP | BP80: ErP | BQ80: 0 | BS80: ErP | BT80: 1 | BU80: 0 | BV80: 0 | BW80: 0 | BY80: ErP | BZ80: ErP | CA80: 0 | CC80: ErP | CD80: 0 | CF80: 0 | CG80: 0 | CH80: 0 | CJ80: 0 | CK80: 0 | CL80: 0 | CN80: 0 | CO80: 0 | CP80: 0 | CR80: 1 | CS80: ErP Expansion | CT80: 0 | CV80: ErP Expansion
A81: Cntrl ErP | B81: 11262018_sp39_ErP | C81: Sheet8 | D81: 8 | E81: 1 | F81: 0 | G81: 0 | H81: 0 | J81: ErP | K81: ErP | L81: 0 | O81: ErP | P81: 416 | Q81: 479 | R81: 64 | S81: 64 | T81: 459 | U81: -395 | V81: 459 | W81: -395 | X81: 128 | Y81: -790 | AC81: 10.6688 | AD81: 76.5153 | AE81: 0 | AF81: 0 | AG81: 0 | AH81: 0 | AI81: 0 | AJ81: 10.6688 | AK81: 0 | AL81: 10.6688 | AM81: 161.9161 | AN81: 181.8619 | AO81: 19.9458 | AP81: 932.1469816 | AQ81: 446.7060367 | AR81: 858.9002732 | AS81: 452.6270492 | AT81: 73.48563588 | AU81: 823.0391218 | AV81: 403.6621305 | AW81: 4521.015861 | AX81: 5.493075288 | AY81: 423.7604849 | AZ81: 64.96913565 | BA81: 460 | BB81: 0.3166 | BC81: 56.35599874 | BD81: 460 | BE81: 0.3166 | BF81: 462 | BG81: 0.3166 | BH81: 461 | BI81: 0.3166 | BJ81: 0 | BK81: 0 | BL81: 0 | BM81: 0 | BO81: 0 | BQ81: 0 | BT81: 0 | BU81: 0 | BV81: 0 | BW81: 0 | BY81: 0 | CA81: 0 | CD81: 0 | CF81: 0 | CG81: 0 | CH81: 0 | CJ81: 0 | CK81: 0 | CL81: 0 | CN81: 0 | CO81: 0 | CP81: 0 | CR81: 0 | CT81: 0
A82: Cntrl ErP | B82: 11262018_sp39_ErP | C82: Sheet9 | D82: 8 | E82: 1 | F82: 0 | G82: 0 | H82: 0 | J82: ErP | K82: ErP | L82: 0 | O82: ErP | P82: 416 | Q82: 428 | R82: 13 | S82: 13 | T82: 408 | U82: -395 | V82: 408 | W82: -395 | X82: 26 | Y82: -790 | AC82: 2.1671 | AD82: 68.0136 | AE82: 0 | AF82: 0 | AG82: 0 | AH82: 0 | AI82: 0 | AJ82: 2.1671 | AK82: 0 | AL82: 2.1671 | AM82: 161.9161 | AN82: 165.7153 | AO82: 3.7992 | AP82: 942.1706161 | AQ82: 464.1800948 | AR82: 918.7868339 | AS82: 454.7607106 | AT82: 25.20964244 | AU82: 282.3479953 | AV82: 83.36083033 | AW82: 933.6412996 | AX82: 3.306704191 | AY82: 430.825204 | AZ82: 41.36346345 | BA82: 417 | BB82: 0.3166 | BC82: 25.0889676 | BD82: 417 | BE82: 0.3166 | BF82: 428 | BG82: 0.3166 | BH82: 422 | BI82: 0.3166 | BJ82: 0 | BK82: 0 | BL82: 0 | BM82: 0 | BO82: 0 | BQ82: 0 | BT82: 0 | BU82: 0 | BV82: 0 | BW82: 0 | BY82: 0 | CA82: 0 | CD82: 0 | CF82: 0 | CG82: 0 | CH82: 0 | CJ82: 0 | CK82: 0 | CL82: 0 | CN82: 0 | CO82: 0 | CP82: 0 | CR82: 0 | CT82: 0
A83: Cntrl ErP | B83: 11262018_sp39_ErP | C83: Sheet10 | D83: 7 | E83: 1 | F83: 0 | G83: 0 | H83: 0 | J83: ErP | K83: ErP | L83: 0 | O83: ErP | P83: 330 | Q83: 428 | R83: 99 | S83: 99 | T83: 408 | U83: -309 | V83: 408 | W83: -309 | X83: 198 | Y83: -618 | AC83: 16.5033 | AD83: 68.0136 | AE83: 0 | AF83: 0 | AG83: 0 | AH83: 0 | AI83: 0 | AJ83: 16.5033 | AK83: 0 | AL83: 16.5033 | AM83: 134.8447 | AN83: 165.7153 | AO83: 30.8706 | AP83: 951.3862275 | AQ83: 488.5628743 | AR83: 1000.345477 | AS83: 537.5753769 | AT83: 69.27650077 | AU83: 775.8968087 | AV83: 286.008798 | AW83: 3203.298537 | AX83: 4.128511036 | AY83: 194.1004852 | AZ83: 72.12076106 | BA83: 417 | BB83: 0.3166 | BC83: 36.21404004 | BD83: 417 | BE83: 0.3166 | BF83: 420 | BG83: 0.3166 | BH83: 425 | BI83: 0.3166 | BJ83: 0 | BK83: 0 | BL83: 0 | BM83: 0 | BO83: 0 | BQ83: 0 | BT83: 0 | BU83: 0 | BV83: 0 | BW83: 0 | BY83: 0 | CA83: 0 | CD83: 0 | CF83: 0 | CG83: 0 | CH83: 0 | CJ83: 0 | CK83: 0 | CL83: 0 | CN83: 0 | CO83: 0 | CP83: 0 | CR83: 0 | CT83: 0
A84: Cntrl ErP | B84: 11262018_sp39_ErP | C84: Sheet11 | D84: 6 | E84: 1 | F84: 0 | G84: 0 | H84: 0 | J84: ErP | K84: ErP | L84: 0 | O84: ErP | P84: 247 | Q84: 320 | R84: 74 | S84: 74 | T84: 300 | U84: -226 | V84: 300 | W84: -226 | X84: 148 | Y84: -452 | AC84: 12.3358 | AD84: 50.01 | AE84: 0 | AF84: 0 | AG84: 0 | AH84: 0 | AI84: 0 | AJ84: 12.3358 | AK84: 0 | AL84: 12.3358 | AM84: 110.9158 | AN84: 131.9617 | AO84: 21.0459 | AP84: 910.4478022 | AQ84: 513.6923077 | AR84: 922.0788863 | AS84: 488.6844548 | AT84: 27.58033405 | AU84: 308.8997413 | AV84: 136.5958701 | AW84: 1529.873745 | AX84: 4.952654667 | AY84: 124.0190134 | AZ84: 19.06423064 | BA84: 314 | BB84: 0.2883 | BC84: 17.02060167 | BD84: 314 | BE84: 0.2883 | BF84: 300 | BG84: 0.2883 | BH84: 301 | BI84: 0.2883 | BJ84: 1 | BK84: 0 | BL84: 0 | BM84: 0 | BO84: ErP | BP84: ErP | BQ84: 0 | BS84: ErP | BT84: 1 | BU84: 0 | BV84: 0 | BW84: 0 | BY84: ErP | BZ84: ErP | CA84: 0 | CC84: ErP | CD84: 0 | CF84: 0 | CG84: 0 | CH84: 0 | CJ84: 0 | CK84: 0 | CL84: 0 | CN84: 0 | CO84: 0 | CP84: 0 | CR84: 1 | CS84: ErP Expansion | CT84: 0 | CV84: ErP Expansion
A85: Cntrl ErP | B85: 11262018_sp39_ErP | C85: Sheet12 | D85: 7 | E85: 1 | F85: 0 | G85: 0 | H85: 0 | J85: ErP | K85: ErP | L85: 0 | O85: ErP | P85: 321 | Q85: 388 | R85: 68 | S85: 68 | T85: 368 | U85: -300 | V85: 368 | W85: -300 | X85: 136 | Y85: -600 | AC85: 11.3356 | AD85: 61.3456 | AE85: 0 | AF85: 0 | AG85: 0 | AH85: 0 | AI85: 0 | AJ85: 11.3356 | AK85: 0 | AL85: 11.3356 | AM85: 132.25 | AN85: 153.0513 | AO85: 20.8013 | AP85: 929.59 | AQ85: 491.705 | AR85: 903.4623377 | AS85: 464.3220779 | AT85: 37.84810644 | AU85: 423.8987921 | AV85: 93.75954631 | AW85: 1050.106919 | AX85: 2.477258577 | AY85: 92.63796523 | AZ85: 8.300165642 | BA85: 381 | BB85: 0.3166 | BC85: 7.672210953 | BD85: 381 | BE85: 0.3166 | BF85: 356 | BG85: 0.3166 | BH85: 382 | BI85: 0.3166 | BJ85: 1 | BK85: 0 | BL85: 0 | BM85: 0 | BO85: ErP | BP85: ErP | BQ85: 0 | BS85: ErP | BT85: 1 | BU85: 0 | BV85: 0 | BW85: 0 | BY85: ErP | BZ85: ErP | CA85: 0 | CC85: ErP | CD85: 0 | CF85: 0 | CG85: 0 | CH85: 0 | CJ85: 0 | CK85: 0 | CL85: 0 | CN85: 0 | CO85: 0 | CP85: 0 | CR85: 1 | CS85: ErP Expansion | CT85: 0 | CV85: ErP Expansion
A86: Cntrl ErP | B86: 11262018_sp39_ErP | C86: Sheet13 | D86: 8 | E86: 1 | F86: 0 | G86: 0 | H86: 0 | J86: ErP | K86: ErP | L86: 0 | O86: ErP | P86: 389 | Q86: 479 | R86: 91 | S86: 91 | T86: 459 | U86: -368 | V86: 459 | W86: -368 | X86: 182 | Y86: -736 | AC86: 15.1697 | AD86: 76.5153 | AE86: 0 | AF86: 0 | AG86: 0 | AH86: 0 | AI86: 0 | AJ86: 15.1697 | AK86: 0 | AL86: 15.1697 | AM86: 153.3679 | AN86: 181.8619 | AO86: 28.494 | AP86: 905.3704735 | AQ86: 469.1671309 | AR86: 847.5595745 | AS86: 480.6191489 | AT86: 58.93427498 | AU86: 660.0638798 | AV86: 418.1344239 | AW86: 4683.105547 | AX86: 7.094927765 | AY86: 308.714447 | AZ86: 26.42353071 | BA86: 446 | BB86: 0.3166 | BC86: 24.5402598 | BD86: 446 | BE86: 0.3166 | BF86: 431 | BG86: 0.3166 | BH86: 458 | BI86: 0.3166 | BJ86: 0 | BK86: 0 | BL86: 0 | BM86: 0 | BO86: 0 | BQ86: 0 | BT86: 0 | BU86: 0 | BV86: 0 | BW86: 0 | BY86: 0 | CA86: 0 | CD86: 0 | CF86: 0 | CG86: 0 | CH86: 0 | CJ86: 0 | CK86: 0 | CL86: 0 | CN86: 0 | CO86: 0 | CP86: 0 | CR86: 0 | CT86: 0
A87: Cntrl ErP | B87: 11262018_sp39_ErP | C87: Sheet14 | D87: 8 | E87: 1 | F87: 0 | G87: 0 | H87: 0 | J87: ErP | K87: ErP | L87: 0 | O87: ErP | P87: 389 | Q87: 425 | R87: 37 | S87: 37 | T87: 405 | U87: -368 | V87: 405 | W87: -368 | X87: 74 | Y87: -736 | AC87: 6.1679 | AD87: 67.5135 | AE87: 0 | AF87: 0 | AG87: 0 | AH87: 0 | AI87: 0 | AJ87: 6.1679 | AK87: 0 | AL87: 6.1679 | AM87: 153.3679 | AN87: 164.7655 | AO87: 11.3976 | AP87: 918.0726392 | AQ87: 451.7772397 | AR87: 929.0400943 | AS87: 444.2688679 | AT87: 13.2913776 | AU87: 148.8634291 | AV87: 87.53020232 | AW87: 980.338266 | AX87: 6.585487595 | AY87: 158.9419845 | AZ87: 19.52088361 | BA87: 421 | BB87: 0.3166 | BC87: 15.29744995 | BD87: 421 | BE87: 0.3166 | BF87: 424 | BG87: 0.3166 | BH87: 417 | BI87: 0.3166 | BJ87: 0 | BK87: 0 | BL87: 0 | BM87: 0 | BO87: 0 | BQ87: 0 | BT87: 0 | BU87: 0 | BV87: 0 | BW87: 0 | BY87: 0 | CA87: 0 | CD87: 0 | CF87: 0 | CG87: 0 | CH87: 0 | CJ87: 0 | CK87: 0 | CL87: 0 | CN87: 0 | CO87: 0 | CP87: 0 | CR87: 0 | CT87: 0
A88: Cntrl ErP | B88: 11262018_sp39_ErP | C88: Sheet15 | D88: 7 | E88: 1 | F88: 0 | G88: 0 | H88: 0 | J88: ErP | K88: ErP | L88: 0 | O88: ErP | P88: 321 | Q88: 396 | R88: 76 | S88: 76 | T88: 376 | U88: -300 | V88: 376 | W88: -300 | X88: 152 | Y88: -600 | AC88: 12.6692 | AD88: 62.6792 | AE88: 0 | AF88: 0 | AG88: 0 | AH88: 0 | AI88: 0 | AJ88: 12.6692 | AK88: 0 | AL88: 12.6692 | AM88: 132.25 | AN88: 155.5841 | AO88: 23.3341 | AP88: 910.5112219 | AQ88: 490.7680798 | AR88: 887.5333333 | AS88: 483.7615385 | AT88: 24.02238511 | AU88: 269.0507133 | AV88: 79.19417408 | AW88: 886.9747497 | AX88: 3.296682394 | AY88: 70.01032028 | AZ88: 7.585848073 | BA88: 396 | BB88: 0.3166 | BC88: 6.525073314 | BD88: 396 | BE88: 0.3166 | BF88: 395 | BG88: 0.3166 | BH88: 341 | BI88: 0.2883 | BJ88: 1 | BK88: 0 | BL88: 0 | BM88: 0 | BO88: ErP | BP88: ErP | BQ88: 0 | BS88: ErP | BT88: 1 | BU88: 0 | BV88: 0 | BW88: 0 | BY88: ErP | BZ88: ErP | CA88: 0 | CC88: ErP | CD88: 0 | CF88: 0 | CG88: 0 | CH88: 0 | CJ88: 0 | CK88: 0 | CL88: 0 | CN88: 0 | CO88: 0 | CP88: 0 | CR88: 1 | CS88: ErP Expansion | CT88: 0 | CV88: ErP Expansion
A89: Cntrl ErP | B89: 11262018_sp39_ErP | C89: Sheet16 | D89: 8 | E89: 1 | F89: 0 | G89: 0 | H89: 0 | J89: ErP | K89: ErP | L89: 0 | O89: ErP | P89: 397 | Q89: 433 | R89: 37 | S89: 37 | T89: 413 | U89: -376 | V89: 413 | W89: -376 | X89: 74 | Y89: -752 | AC89: 6.1679 | AD89: 68.8471 | AE89: 0 | AF89: 0 | AG89: 0 | AH89: 0 | AI89: 0 | AJ89: 6.1679 | AK89: 0 | AL89: 6.1679 | AM89: 155.9007 | AN89: 167.2983 | AO89: 11.3976 | AP89: 884.8539326 | AQ89: 491.258427 | AR89: 1000.158358 | AS89: 536.9296188 | AT89: 124.0200316 | AU89: 1389.024353 | AV89: 200.2846827 | AW89: 2243.188446 | AX89: 1.614938169 | AY89: 363.6875511 | AZ89: 73.03978263 | BA89: 417 | BB89: 0.3166 | BC89: 39.24174379 | BD89: 417 | BE89: 0.3166 | BF89: 431 | BG89: 0.3166 | BH89: 426 | BI89: 0.3166 | BJ89: 0 | BK89: 0 | BL89: 0 | BM89: 0 | BO89: 0 | BQ89: 0 | BT89: 0 | BU89: 0 | BV89: 0 | BW89: 0 | BY89: 0 | CA89: 0 | CD89: 0 | CF89: 0 | CG89: 0 | CH89: 0 | CJ89: 0 | CK89: 0 | CL89: 0 | CN89: 0 | CO89: 0 | CP89: 0 | CR89: 0 | CT89: 0
A90: Cntrl ErP | B90: 11262018_sp39_ErP | C90: Sheet17 | D90: 8 | E90: 1 | F90: 0 | G90: 0 | H90: 0 | J90: ErP | K90: ErP | L90: 0 | O90: ErP | P90: 397 | Q90: 427 | R90: 31 | S90: 31 | T90: 407 | U90: -376 | V90: 407 | W90: -376 | X90: 62 | Y90: -752 | AC90: 5.1677 | AD90: 67.8469 | AE90: 0 | AF90: 0 | AG90: 0 | AH90: 0 | AI90: 0 | AJ90: 5.1677 | AK90: 0 | AL90: 5.1677 | AM90: 155.9007 | AN90: 165.3987 | AO90: 9.498 | AP90: 886.7700831 | AQ90: 472.1828255 | AR90: 883.7414449 | AS90: 480.3307985 | AT90: 8.692647093 | AU90: 97.35764744 | AV90: 82.46977044 | AW90: 923.6614289 | AX90: 9.487302263 | AY90: 178.7374323 | AZ90: 17.94231677 | BA90: 417 | BB90: 0.3166 | BC90: 14.32754522 | BD90: 417 | BE90: 0.3166 | BF90: 423 | BG90: 0.3166 | BH90: 411 | BI90: 0.3166 | BJ90: 0 | BK90: 0 | BL90: 0 | BM90: 0 | BO90: 0 | BQ90: 0 | BT90: 0 | BU90: 0 | BV90: 0 | BW90: 0 | BY90: 0 | CA90: 0 | CD90: 0 | CF90: 0 | CG90: 0 | CH90: 0 | CJ90: 0 | CK90: 0 | CL90: 0 | CN90: 0 | CO90: 0 | CP90: 0 | CR90: 0 | CT90: 0
A91: Cntrl ErP | B91: 11262018_sp39_ErP | C91: Sheet18 | D91: 5 | E91: 1 | F91: 0 | G91: 0 | H91: 0 | J91: ErP | K91: ErP | L91: 0 | O91: ErP | P91: 163 | Q91: 240 | R91: 78 | S91: 78 | T91: 220 | U91: -142 | V91: 220 | W91: -142 | X91: 156 | Y91: -284 | AC91: 13.0026 | AD91: 36.674 | AE91: 0 | AF91: 0 | AG91: 0 | AH91: 0 | AI91: 0 | AJ91: 13.0026 | AK91: 0 | AL91: 13.0026 | AM91: 86.6714 | AN91: 108.8977 | AO91: 22.2263 | AP91: 895.0320285 | AQ91: 654.3629893 | AR91: 939.5659574 | AS91: 521.5851064 | AT91: 140.0472671 | AU91: 1568.529392 | AV91: 233.0119293 | AW91: 2609.733608 | AX91: 1.663809185 | AY91: 200.7085974 | AZ91: 55.41999335 | BA91: 230 | BB91: 0.2883 | BC91: 31.58721453 | BD91: 230 | BE91: 0.2883 | BF91: 223 | BG91: 0.2883 | BH91: 232 | BI91: 0.2883 | BJ91: 1 | BK91: 0 | BL91: 0 | BM91: 0 | BO91: ErP | BP91: ErP | BQ91: 0 | BS91: ErP | BT91: 1 | BU91: 0 | BV91: 0 | BW91: 0 | BY91: ErP | BZ91: ErP | CA91: 0 | CC91: ErP | CD91: 0 | CF91: 0 | CG91: 0 | CH91: 0 | CJ91: 0 | CK91: 0 | CL91: 0 | CN91: 0 | CO91: 0 | CP91: 0 | CR91: 1 | CS91: ErP Expansion | CT91: 0 | CV91: ErP Expansion
A92: Cntrl ErP | B92: 11262018_sp39_ErP | C92: Sheet19 | D92: 6 | E92: 1 | F92: 0 | G92: 0 | H92: 0 | J92: ErP | K92: ErP | L92: 0 | O92: ErP | P92: 241 | Q92: 302 | R92: 62 | S92: 62 | T92: 282 | U92: -220 | V92: 282 | W92: -220 | X92: 124 | Y92: -440 | AC92: 10.3354 | AD92: 47.0094 | AE92: 0 | AF92: 0 | AG92: 0 | AH92: 0 | AI92: 0 | AJ92: 10.3354 | AK92: 0 | AL92: 10.3354 | AM92: 109.186 | AN92: 126.7723 | AO92: 17.5863 | AP92: 946.875 | AQ92: 524.7454545 | AR92: 946.6143959 | AS92: 514.3598972 | AT92: 10.38882652 | AU92: 116.354857 | AV92: 101.9906677 | AW92: 1142.295478 | AX92: 9.81734246 | AY92: 110.5226192 | AZ92: 19.45574895 | BA92: 300 | BB92: 0.2883 | BC92: 13.9760432 | BD92: 300 | BE92: 0.2883 | BF92: 301 | BG92: 0.2883 | BH92: 298 | BI92: 0.2883 | BJ92: 1 | BK92: 0 | BL92: 0 | BM92: 0 | BO92: ErP | BP92: ErP | BQ92: 0 | BS92: ErP | BT92: 1 | BU92: 0 | BV92: 0 | BW92: 0 | BY92: ErP | BZ92: ErP | CA92: 0 | CC92: ErP | CD92: 0 | CF92: 0 | CG92: 0 | CH92: 0 | CJ92: 0 | CK92: 0 | CL92: 0 | CN92: 0 | CO92: 0 | CP92: 0 | CR92: 1 | CS92: ErP Expansion | CT92: 0 | CV92: ErP Expansion
A93: Cntrl ErP | B93: 11262018_sp39_ErP | C93: Sheet20 | D93: 7 | E93: 1 | F93: 0 | G93: 0 | H93: 0 | J93: ErP | K93: ErP | L93: 0 | O93: ErP | P93: 303 | Q93: 369 | R93: 67 | S93: 67 | T93: 349 | U93: -282 | V93: 349 | W93: -282 | X93: 134 | Y93: -564 | AC93: 11.1689 | AD93: 58.1783 | AE93: 0 | AF93: 0 | AG93: 0 | AH93: 0 | AI93: 0 | AJ93: 11.1689 | AK93: 0 | AL93: 11.1689 | AM93: 127.0606 | AN93: 147.0359 | AO93: 19.9753 | AP93: 952.6753927 | AQ93: 516.2486911 | AR93: 966.2179487 | AS93: 488.0333333 | AT93: 31.29708035 | AU93: 350.5272999 | AV93: 113.7088864 | AW93: 1273.539527 | AX93: 3.633210673 | AY93: 114.0255108 | AZ93: 20.79260977 | BA93: 314 | BB93: 0.2883 | BC93: 12.66219756 | BD93: 314 | BE93: 0.2883 | BF93: 304 | BG93: 0.2883 | BH93: 363 | BI93: 0.3166 | BJ93: 1 | BK93: 0 | BL93: 0 | BM93: 0 | BO93: ErP | BP93: ErP | BQ93: 0 | BS93: ErP | BT93: 1 | BU93: 0 | BV93: 0 | BW93: 0 | BY93: ErP | BZ93: ErP | CA93: 0 | CC93: ErP | CD93: 0 | CF93: 0 | CG93: 0 | CH93: 0 | CJ93: 0 | CK93: 0 | CL93: 0 | CN93: 0 | CO93: 0 | CP93: 0 | CR93: 1 | CS93: ErP Expansion | CT93: 0 | CV93: ErP Expansion
A94: Cntrl ErP | B94: 11262018_sp39_ErP | C94: Sheet21 | D94: 8 | E94: 1 | F94: 0 | G94: 0 | H94: 0 | J94: ErP | K94: ErP | L94: 0 | O94: ErP | P94: 370 | Q94: 479 | R94: 110 | S94: 110 | T94: 459 | U94: -349 | V94: 459 | W94: -349 | X94: 220 | Y94: -698 | AC94: 18.337 | AD94: 76.5153 | AE94: 0 | AF94: 0 | AG94: 0 | AH94: 0 | AI94: 0 | AJ94: 18.337 | AK94: 0 | AL94: 18.337 | AM94: 147.3525 | AN94: 181.8619 | AO94: 34.5094 | AP94: 959.612069 | AQ94: 487.1695402 | AR94: 836.7107438 | AS94: 408.892562 | AT94: 145.712117 | AU94: 1631.975711 | AV94: 590.4961618 | AW94: 6613.557012 | AX94: 4.052484953 | AY94: 360.6673399 | AZ94: 49.83708706 | BA94: 452 | BB94: 0.3166 | BC94: 48.72356352 | BD94: 452 | BE94: 0.3166 | BF94: 454 | BG94: 0.3166 | BH94: 453 | BI94: 0.3166 | BJ94: 0 | BK94: 0 | BL94: 0 | BM94: 0 | BO94: 0 | BQ94: 0 | BT94: 0 | BU94: 0 | BV94: 0 | BW94: 0 | BY94: 0 | CA94: 0 | CD94: 0 | CF94: 0 | CG94: 0 | CH94: 0 | CJ94: 0 | CK94: 0 | CL94: 0 | CN94: 0 | CO94: 0 | CP94: 0 | CR94: 0 | CT94: 0
A95: Cntrl ErP | B95: 11262018_sp39_ErP | C95: Sheet22 | D95: 8 | E95: 1 | F95: 0 | G95: 0 | H95: 0 | J95: ErP | K95: ErP | L95: 0 | O95: ErP | P95: 370 | Q95: 435 | R95: 66 | S95: 66 | T95: 415 | U95: -349 | V95: 415 | W95: -349 | X95: 132 | Y95: -698 | AC95: 11.0022 | AD95: 69.1805 | AE95: 0 | AF95: 0 | AG95: 0 | AH95: 0 | AI95: 0 | AJ95: 11.0022 | AK95: 0 | AL95: 11.0022 | AM95: 147.3525 | AN95: 167.9315 | AO95: 20.579 | AP95: 976.8545994 | AQ95: 494.1097923 | AR95: 1005.67616 | AS95: 538.5453586 | AT95: 52.96415706 | AU95: 593.198559 | AV95: 263.286187 | AW95: 2948.805295 | AX95: 4.971025721 | AY95: 268.0196047 | AZ95: 70.05113746 | BA95: 417 | BB95: 0.3166 | BC95: 38.11240471 | BD95: 417 | BE95: 0.3166 | BF95: 422 | BG95: 0.3166 | BH95: 432 | BI95: 0.3166 | BJ95: 0 | BK95: 0 | BL95: 0 | BM95: 0 | BO95: 0 | BQ95: 0 | BT95: 0 | BU95: 0 | BV95: 0 | BW95: 0 | BY95: 0 | CA95: 0 | CD95: 0 | CF95: 0 | CG95: 0 | CH95: 0 | CJ95: 0 | CK95: 0 | CL95: 0 | CN95: 0 | CO95: 0 | CP95: 0 | CR95: 0 | CT95: 0
A96: Cntrl ErP | B96: 11262018_sp39_ErP | C96: Sheet23 | D96: 7 | E96: 1 | F96: 0 | G96: 0 | H96: 0 | J96: ErP | K96: ErP | L96: 0 | O96: ErP | P96: 303 | Q96: 380 | R96: 78 | S96: 78 | T96: 360 | U96: -282 | V96: 360 | W96: -282 | X96: 156 | Y96: -564 | AC96: 13.0026 | AD96: 60.012 | AE96: 0 | AF96: 0 | AG96: 0 | AH96: 0 | AI96: 0 | AJ96: 13.0026 | AK96: 0 | AL96: 13.0026 | AM96: 127.0606 | AN96: 150.5185 | AO96: 23.4579 | AP96: 936.0166667 | AQ96: 511.8333333 | AR96: 947.8803191 | AS96: 493.037234 | AT96: 22.22700157 | AU96: 248.9424176 | AV96: 187.9336772 | AW96: 2104.857185 | AX96: 8.45519701 | AY96: 161.8797152 | AZ96: 20.42385607 | BA96: 314 | BB96: 0.2883 | BC96: 14.23369823 | BD96: 314 | BE96: 0.2883 | BF96: 371 | BG96: 0.3166 | BH96: 370 | BI96: 0.3166 | BJ96: 1 | BK96: 0 | BL96: 0 | BM96: 0 | BO96: ErP | BP96: ErP | BQ96: 0 | BS96: ErP | BT96: 1 | BU96: 0 | BV96: 0 | BW96: 0 | BY96: ErP | BZ96: ErP | CA96: 0 | CC96: ErP | CD96: 0 | CF96: 0 | CG96: 0 | CH96: 0 | CJ96: 0 | CK96: 0 | CL96: 0 | CN96: 0 | CO96: 0 | CP96: 0 | CR96: 1 | CS96: ErP Expansion | CT96: 0 | CV96: ErP Expansion
A97: Cntrl ErP | B97: 11262018_sp39_ErP | C97: Sheet24 | D97: 8 | E97: 1 | F97: 0 | G97: 0 | H97: 0 | J97: ErP | K97: ErP | L97: 0 | O97: ErP | P97: 381 | Q97: 443 | R97: 63 | S97: 63 | T97: 423 | U97: -360 | V97: 423 | W97: -360 | X97: 126 | Y97: -720 | AC97: 10.5021 | AD97: 70.5141 | AE97: 0 | AF97: 0 | AG97: 0 | AH97: 0 | AI97: 0 | AJ97: 10.5021 | AK97: 0 | AL97: 10.5021 | AM97: 150.8351 | AN97: 170.4643 | AO97: 19.6292 | AP97: 951.648415 | AQ97: 490.6253602 | AR97: 957.9142631 | AS97: 527.4554675 | AT97: 37.35930479 | AU97: 418.4242137 | AV97: 285.4418776 | AW97: 3196.949029 | AX97: 7.640449392 | AY97: 304.410454 | AZ97: 42.62718595 | BA97: 417 | BB97: 0.3166 | BC97: 33.28419431 | BD97: 417 | BE97: 0.3166 | BF97: 440 | BG97: 0.3166 | BH97: 443 | BI97: 0.3166 | BJ97: 0 | BK97: 0 | BL97: 0 | BM97: 0 | BO97: 0 | BQ97: 0 | BT97: 0 | BU97: 0 | BV97: 0 | BW97: 0 | BY97: 0 | CA97: 0 | CD97: 0 | CF97: 0 | CG97: 0 | CH97: 0 | CJ97: 0 | CK97: 0 | CL97: 0 | CN97: 0 | CO97: 0 | CP97: 0 | CR97: 0 | CT97: 0
A98: Cntrl ErP | B98: 11262018_sp39_ErP | C98: Sheet25 | D98: 8 | E98: 1 | F98: 0 | G98: 0 | H98: 0 | J98: ErP | K98: ErP | L98: 0 | O98: ErP | P98: 381 | Q98: 434 | R98: 54 | S98: 54 | T98: 414 | U98: -360 | V98: 414 | W98: -360 | X98: 108 | Y98: -720 | AC98: 9.0018 | AD98: 69.0138 | AE98: 0 | AF98: 0 | AG98: 0 | AH98: 0 | AI98: 0 | AJ98: 9.0018 | AK98: 0 | AL98: 9.0018 | AM98: 150.8351 | AN98: 167.6149 | AO98: 16.7798 | AP98: 942.1969697 | AQ98: 506.0727273 | AR98: 984.4101382 | AS98: 502.1382488 | AT98: 42.39612859 | AU98: 474.8366402 | AV98: 246.5911412 | AW98: 2761.820782 | AX98: 5.816359876 | AY98: 306.8076142 | AZ98: 28.80375031 | BA98: 417 | BB98: 0.3166 | BC98: 24.84354002 | BD98: 417 | BE98: 0.3166 | BF98: 432 | BG98: 0.3166 | BH98: 428 | BI98: 0.3166 | BJ98: 0 | BK98: 0 | BL98: 0 | BM98: 0 | BO98: 0 | BQ98: 0 | BT98: 0 | BU98: 0 | BV98: 0 | BW98: 0 | BY98: 0 | CA98: 0 | CD98: 0 | CF98: 0 | CG98: 0 | CH98: 0 | CJ98: 0 | CK98: 0 | CL98: 0 | CN98: 0 | CO98: 0 | CP98: 0 | CR98: 0 | CT98: 0
A99: Cntrl ErP | B99: 11262018_sp39_ErP | C99: Sheet26 | D99: 6 | E99: 1 | F99: 0 | G99: 0 | H99: 0 | J99: ErP | K99: ErP | L99: 0 | O99: ErP | P99: 241 | Q99: 319 | R99: 79 | S99: 79 | T99: 299 | U99: -220 | V99: 299 | W99: -220 | X99: 158 | Y99: -440 | AC99: 13.1693 | AD99: 49.8433 | AE99: 0 | AF99: 0 | AG99: 0 | AH99: 0 | AI99: 0 | AJ99: 13.1693 | AK99: 0 | AL99: 13.1693 | AM99: 109.186 | AN99: 131.6734 | AO99: 22.4874 | AP99: 925.5640449 | AQ99: 521.6966292 | AR99: 908.420082 | AS99: 532.8790984 | AT99: 20.46858771 | AU99: 229.2481823 | AV99: 145.6934961 | AW99: 1631.767157 | AX99: 7.117906629 | AY99: 123.9069014 | AZ99: 20.08371277 | BA99: 314 | BB99: 0.2883 | BC99: 16.63737154 | BD99: 314 | BE99: 0.2883 | BF99: 300 | BG99: 0.2883 | BH99: 301 | BI99: 0.2883 | BJ99: 1 | BK99: 0 | BL99: 0 | BM99: 0 | BO99: ErP | BP99: ErP | BQ99: 0 | BS99: ErP | BT99: 1 | BU99: 0 | BV99: 0 | BW99: 0 | BY99: ErP | BZ99: ErP | CA99: 0 | CC99: ErP | CD99: 0 | CF99: 0 | CG99: 0 | CH99: 0 | CJ99: 0 | CK99: 0 | CL99: 0 | CN99: 0 | CO99: 0 | CP99: 0 | CR99: 1 | CS99: ErP Expansion | CT99: 0 | CV99: ErP Expansion
A100: Cntrl ErP | B100: 11262018_sp39_ErP | C100: Sheet27 | D100: 7 | E100: 1 | F100: 0 | G100: 0 | H100: 0 | J100: ErP | K100: ErP | L100: 0 | O100: ErP | P100: 320 | Q100: 401 | R100: 82 | S100: 82 | T100: 381 | U100: -299 | V100: 381 | W100: -299 | X100: 164 | Y100: -598 | AC100: 13.6694 | AD100: 63.5127 | AE100: 0 | AF100: 0 | AG100: 0 | AH100: 0 | AI100: 0 | AJ100: 13.6694 | AK100: 0 | AL100: 13.6694 | AM100: 131.9617 | AN100: 157.1671 | AO100: 25.2054 | AP100: 901.198324 | AQ100: 525.5893855 | AR100: 905.1811224 | AS100: 530.3341837 | AT100: 6.194819872 | AU100: 69.38198257 | AV100: 78.06371286 | AW100: 874.3135841 | AX100: 12.60145 | AY100: 63.96137241 | AZ100: 4.96711213 | BA100: 327 | BB100: 0.2883 | BC100: 4.710197426 | BD100: 327 | BE100: 0.2883 | BF100: 326 | BG100: 0.2883 | BH100: 355 | BI100: 0.3166 | BJ100: 1 | BK100: 0 | BL100: 0 | BM100: 0 | BO100: ErP | BP100: ErP | BQ100: 0 | BS100: ErP | BT100: 1 | BU100: 0 | BV100: 0 | BW100: 0 | BY100: ErP | BZ100: ErP | CA100: 0 | CC100: ErP | CD100: 0 | CF100: 0 | CG100: 0 | CH100: 0 | CJ100: 0 | CK100: 0 | CL100: 0 | CN100: 0 | CO100: 0 | CP100: 0 | CR100: 1 | CS100: ErP Expansion | CT100: 0 | CV100: ErP Expansion
A101: Cntrl ErP | B101: 11262018_sp39_ErP | C101: Sheet28 | D101: 8 | E101: 1 | F101: 0 | G101: 0 | H101: 0 | J101: ErP | K101: ErP | L101: 0 | O101: ErP | P101: 402 | Q101: 441 | R101: 40 | S101: 40 | T101: 421 | U101: -381 | V101: 421 | W101: -381 | X101: 80 | Y101: -762 | AC101: 6.668 | AD101: 70.1807 | AE101: 0 | AF101: 0 | AG101: 0 | AH101: 0 | AI101: 0 | AJ101: 6.668 | AK101: 0 | AL101: 6.668 | AM101: 157.4837 | AN101: 169.8311 | AO101: 12.3474 | AP101: 907.2666667 | AQ101: 521.3093333 | AR101: 909.7202017 | AS101: 461.7230825 | AT101: 59.63674309 | AU101: 667.9315226 | AV101: 243.4175119 | AW101: 2726.276133 | AX101: 4.081670112 | AY101: 408.859648 | AZ101: 32.55295351 | BA101: 438 | BB101: 0.3166 | BC101: 30.10625326 | BD101: 438 | BE101: 0.3166 | BF101: 433 | BG101: 0.3166 | BH101: 441 | BI101: 0.3166 | BJ101: 0 | BK101: 0 | BL101: 0 | BM101: 0 | BO101: 0 | BQ101: 0 | BT101: 0 | BU101: 0 | BV101: 0 | BW101: 0 | BY101: 0 | CA101: 0 | CD101: 0 | CF101: 0 | CG101: 0 | CH101: 0 | CJ101: 0 | CK101: 0 | CL101: 0 | CN101: 0 | CO101: 0 | CP101: 0 | CR101: 0 | CT101: 0
A102: Cntrl ErP | B102: 11262018_sp39_ErP | C102: Sheet29 | D102: 8 | E102: 1 | F102: 0 | G102: 0 | H102: 0 | J102: ErP | K102: ErP | L102: 0 | O102: ErP | P102: 402 | Q102: 430 | R102: 29 | S102: 29 | T102: 410 | U102: -381 | V102: 410 | W102: -381 | X102: 58 | Y102: -762 | AC102: 4.8343 | AD102: 68.347 | AE102: 0 | AF102: 0 | AG102: 0 | AH102: 0 | AI102: 0 | AJ102: 4.8343 | AK102: 0 | AL102: 4.8343 | AM102: 157.4837 | AN102: 166.3485 | AO102: 8.8648 | AP102: 908.4326019 | AQ102: 539.7899687 | AR102: 882.9034091 | AS102: 482.8996212 | AT102: 62.35584428 | AU102: 698.385456 | AV102: 157.4807391 | AW102: 1763.784278 | AX102: 2.525516909 | AY102: 364.8479155 | AZ102: 88.18300288 | BA102: 417 | BB102: 0.3166 | BC102: 44.07643515 | BD102: 417 | BE102: 0.3166 | BF102: 419 | BG102: 0.3166 | BH102: 418 | BI102: 0.3166 | BJ102: 0 | BK102: 0 | BL102: 0 | BM102: 0 | BO102: 0 | BQ102: 0 | BT102: 0 | BU102: 0 | BV102: 0 | BW102: 0 | BY102: 0 | CA102: 0 | CD102: 0 | CF102: 0 | CG102: 0 | CH102: 0 | CJ102: 0 | CK102: 0 | CL102: 0 | CN102: 0 | CO102: 0 | CP102: 0 | CR102: 0 | CT102: 0
A103: Cntrl ErP | B103: 11262018_sp39_ErP | C103: Sheet30 | D103: 7 | E103: 1 | F103: 0 | G103: 0 | H103: 0 | J103: ErP | K103: ErP | L103: 0 | O103: ErP | P103: 320 | Q103: 399 | R103: 80 | S103: 80 | T103: 379 | U103: -299 | V103: 379 | W103: -299 | X103: 160 | Y103: -598 | AC103: 13.336 | AD103: 63.1793 | AE103: 0 | AF103: 0 | AG103: 0 | AH103: 0 | AI103: 0 | AJ103: 13.336 | AK103: 0 | AL103: 13.336 | AM103: 131.9617 | AN103: 156.5339 | AO103: 24.5722 | AP103: 917.7953368 | AQ103: 533.0984456 | AR103: 919.2167102 | AS103: 531.4177546 | AT103: 2.201141671 | AU103: 24.65278671 | AV103: 82.13596705 | AW103: 919.922831 | AX103: 37.31516609 | AY103: 68.98041624 | AZ103: 7.847397722 | BA103: 326 | BB103: 0.2883 | BC103: 6.010217491 | BD103: 326 | BE103: 0.2883 | BF103: 356 | BG103: 0.3166 | BH103: 357 | BI103: 0.3166 | BJ103: 1 | BK103: 0 | BL103: 0 | BM103: 0 | BO103: ErP | BP103: ErP | BQ103: 0 | BS103: ErP | BT103: 1 | BU103: 0 | BV103: 0 | BW103: 0 | BY103: ErP | BZ103: ErP | CA103: 0 | CC103: ErP | CD103: 0 | CF103: 0 | CG103: 0 | CH103: 0 | CJ103: 0 | CK103: 0 | CL103: 0 | CN103: 0 | CO103: 0 | CP103: 0 | CR103: 1 | CS103: ErP Expansion | CT103: 0 | CV103: ErP Expansion
A104: Cntrl ErP | B104: 11262018_sp39_ErP | C104: Sheet31 | D104: 8 | E104: 1 | F104: 0 | G104: 0 | H104: 0 | J104: ErP | K104: ErP | L104: 0 | O104: ErP | P104: 400 | Q104: 432 | R104: 33 | S104: 33 | T104: 412 | U104: -379 | V104: 412 | W104: -379 | X104: 66 | Y104: -758 | AC104: 5.5011 | AD104: 68.6804 | AE104: 0 | AF104: 0 | AG104: 0 | AH104: 0 | AI104: 0 | AJ104: 5.5011 | AK104: 0 | AL104: 5.5011 | AM104: 156.8505 | AN104: 166.9817 | AO104: 10.1312 | AP104: 920.0787589 | AQ104: 542.0119332 | AR104: 1009.452214 | AS104: 539.6993007 | AT104: 89.4033714 | AU104: 1001.31776 | AV104: 121.6509151 | AW104: 1362.490249 | AX104: 1.360697177 | AY104: 247.6759646 | AZ104: 24.36639234 | BA104: 426 | BB104: 0.3166 | BC104: 21.79052938 | BD104: 426 | BE104: 0.3166 | BF104: 417 | BG104: 0.3166 | BH104: 431 | BI104: 0.3166 | BJ104: 0 | BK104: 0 | BL104: 0 | BM104: 0 | BO104: 0 | BQ104: 0 | BT104: 0 | BU104: 0 | BV104: 0 | BW104: 0 | BY104: 0 | CA104: 0 | CD104: 0 | CF104: 0 | CG104: 0 | CH104: 0 | CJ104: 0 | CK104: 0 | CL104: 0 | CN104: 0 | CO104: 0 | CP104: 0 | CR104: 0 | CT104: 0
A105: Cntrl ErP | B105: 11262018_sp39_ErP | C105: Sheet32 | D105: 8 | E105: 1 | F105: 0 | G105: 0 | H105: 0 | J105: ErP | K105: ErP | L105: 0 | O105: ErP | P105: 400 | Q105: 430 | R105: 31 | S105: 31 | T105: 410 | U105: -379 | V105: 410 | W105: -379 | X105: 62 | Y105: -758 | AC105: 5.1677 | AD105: 68.347 | AE105: 0 | AF105: 0 | AG105: 0 | AH105: 0 | AI105: 0 | AJ105: 5.1677 | AK105: 0 | AL105: 5.1677 | AM105: 156.8505 | AN105: 166.3485 | AO105: 9.498 | AP105: 924.4257908 | AQ105: 520.7615572 | AR105: 891.0658683 | AS105: 520.3712575 | AT105: 33.3622056 | AU105: 373.6567027 | AV105: 112.5740484 | AW105: 1260.829342 | AX105: 3.374298743 | AY105: 243.9826891 | AZ105: 21.99086629 | BA105: 417 | BB105: 0.3166 | BC105: 17.47395617 | BD105: 417 | BE105: 0.3166 | BF105: 421 | BG105: 0.3166 | BH105: 426 | BI105: 0.3166 | BJ105: 0 | BK105: 0 | BL105: 0 | BM105: 0 | BO105: 0 | BQ105: 0 | BT105: 0 | BU105: 0 | BV105: 0 | BW105: 0 | BY105: 0 | CA105: 0 | CD105: 0 | CF105: 0 | CG105: 0 | CH105: 0 | CJ105: 0 | CK105: 0 | CL105: 0 | CN105: 0 | CO105: 0 | CP105: 0 | CR105: 0 | CT105: 0
A106: Cntrl ErP | B106: 11262018_sp39_ErP | C106: Sheet33 | D106: 4 | E106: 1 | F106: 0 | G106: 0 | H106: 0 | J106: ErP | K106: ErP | L106: 0 | O106: ErP | P106: 82 | Q106: 160 | R106: 79 | S106: 79 | T106: 140 | U106: -61 | V106: 140 | W106: -61 | X106: 158 | Y106: -122 | AC106: 13.1693 | AD106: 23.338 | AE106: 0 | AF106: 0 | AG106: 0 | AH106: 0 | AI106: 0 | AJ106: 13.1693 | AK106: 0 | AL106: 13.1693 | AM106: 73.1687 | AN106: 86.1713 | AO106: 13.0026 | AP106: 891.0348259 | AQ106: 581.1393035 | AR106: 898.075718 | AS106: 664.613577 | AT106: 83.77069001 | AU106: 938.2317282 | AV106: 168.7877675 | AW106: 1890.422996 | AX106: 2.014878562 | AY106: 143.5477205 | AZ106: 26.18591141 | BA106: 139 | BB106: 0.1667 | BC106: 22.01398994 | BD106: 139 | BE106: 0.1667 | BF106: 160 | BG106: 0.1667 | BH106: 120 | BI106: 0.1667 | BJ106: 1 | BK106: 0 | BL106: 0 | BM106: 0 | BO106: ErP | BP106: ErP | BQ106: 0 | BS106: ErP | BT106: 1 | BU106: 0 | BV106: 0 | BW106: 0 | BY106: ErP | BZ106: ErP | CA106: 0 | CC106: ErP | CD106: 0 | CF106: 0 | CG106: 0 | CH106: 0 | CJ106: 0 | CK106: 0 | CL106: 0 | CN106: 0 | CO106: 0 | CP106: 0 | CR106: 1 | CS106: ErP Expansion | CT106: 0 | CV106: ErP Expansion
A107: Cntrl ErP | B107: 11262018_sp39_ErP | C107: Sheet34 | D107: 5 | E107: 1 | F107: 0 | G107: 0 | H107: 0 | J107: ErP | K107: ErP | L107: 0 | O107: ErP | P107: 161 | Q107: 236 | R107: 76 | S107: 76 | T107: 216 | U107: -140 | V107: 216 | W107: -140 | X107: 152 | Y107: -280 | AC107: 12.6692 | AD107: 36.0072 | AE107: 0 | AF107: 0 | AG107: 0 | AH107: 0 | AI107: 0 | AJ107: 12.6692 | AK107: 0 | AL107: 12.6692 | AM107: 86.338 | AN107: 107.7445 | AO107: 21.4065 | AP107: 904.2779923 | AQ107: 668.6486486 | AR107: 956.0640777 | AS107: 562.7339806 | AT107: 117.8970549 | AU107: 1320.447015 | AV107: 198.8492352 | AW107: 2227.111435 | AX107: 1.686634458 | AY107: 175.7894291 | AZ107: 43.63667782 | BA107: 230 | BB107: 0.2883 | BC107: 27.8452002 | BD107: 230 | BE107: 0.2883 | BF107: 223 | BG107: 0.2883 | BH107: 232 | BI107: 0.2883 | BJ107: 1 | BK107: 0 | BL107: 0 | BM107: 0 | BO107: ErP | BP107: ErP | BQ107: 0 | BS107: ErP | BT107: 1 | BU107: 0 | BV107: 0 | BW107: 0 | BY107: ErP | BZ107: ErP | CA107: 0 | CC107: ErP | CD107: 0 | CF107: 0 | CG107: 0 | CH107: 0 | CJ107: 0 | CK107: 0 | CL107: 0 | CN107: 0 | CO107: 0 | CP107: 0 | CR107: 1 | CS107: ErP Expansion | CT107: 0 | CV107: ErP Expansion
A108: Cntrl ErP | B108: 11262018_sp39_ErP | C108: Sheet35 | D108: 6 | E108: 1 | F108: 0 | G108: 0 | H108: 0 | J108: ErP | K108: ErP | L108: 0 | O108: ErP | P108: 237 | Q108: 308 | R108: 72 | S108: 72 | T108: 288 | U108: -216 | V108: 288 | W108: -216 | X108: 144 | Y108: -432 | AC108: 12.0024 | AD108: 48.0096 | AE108: 0 | AF108: 0 | AG108: 0 | AH108: 0 | AI108: 0 | AJ108: 12.0024 | AK108: 0 | AL108: 12.0024 | AM108: 108.0328 | AN108: 128.5021 | AO108: 20.4693 | AP108: 956.6398601 | AQ108: 561.4895105 | AR108: 961.4130879 | AS108: 551.0633947 | AT108: 11.46680402 | AU108: 128.428205 | AV108: 96.99150574 | AW108: 1086.304864 | AX108: 8.458460229 | AY108: 90.50730389 | AZ108: 16.38825812 | BA108: 300 | BB108: 0.2883 | BC108: 12.28439893 | BD108: 300 | BE108: 0.2883 | BF108: 301 | BG108: 0.2883 | BH108: 242 | BI108: 0.2883 | BJ108: 1 | BK108: 0 | BL108: 0 | BM108: 0 | BO108: ErP | BP108: ErP | BQ108: 0 | BS108: ErP | BT108: 1 | BU108: 0 | BV108: 0 | BW108: 0 | BY108: ErP | BZ108: ErP | CA108: 0 | CC108: ErP | CD108: 0 | CF108: 0 | CG108: 0 | CH108: 0 | CJ108: 0 | CK108: 0 | CL108: 0 | CN108: 0 | CO108: 0 | CP108: 0 | CR108: 1 | CS108: ErP Expansion | CT108: 0 | CV108: ErP Expansion
A109: Cntrl ErP | B109: 11262018_sp39_ErP | C109: Sheet36 | D109: 7 | E109: 1 | F109: 0 | G109: 0 | H109: 0 | J109: ErP | K109: ErP | L109: 0 | O109: ErP | P109: 309 | Q109: 377 | R109: 69 | S109: 69 | T109: 357 | U109: -288 | V109: 357 | W109: -288 | X109: 138 | Y109: -576 | AC109: 11.5023 | AD109: 59.5119 | AE109: 0 | AF109: 0 | AG109: 0 | AH109: 0 | AI109: 0 | AJ109: 11.5023 | AK109: 0 | AL109: 11.5023 | AM109: 128.7904 | AN109: 149.5687 | AO109: 20.7783 | AP109: 970.9813333 | AQ109: 545.7626667 | AR109: 987.2085561 | AS109: 531.1336898 | AT109: 21.84787686 | AU109: 244.6962208 | AV109: 82.92608156 | AW109: 928.7721135 | AX109: 3.795612823 | AY109: 80.74664315 | AZ109: 19.85245859 | BA109: 314 | BB109: 0.2883 | BC109: 10.01411607 | BD109: 314 | BE109: 0.2883 | BF109: 371 | BG109: 0.3166 | BH109: 327 | BI109: 0.2883 | BJ109: 1 | BK109: 0 | BL109: 0 | BM109: 0 | BO109: ErP | BP109: ErP | BQ109: 0 | BS109: ErP | BT109: 1 | BU109: 0 | BV109: 0 | BW109: 0 | BY109: ErP | BZ109: ErP | CA109: 0 | CC109: ErP | CD109: 0 | CF109: 0 | CG109: 0 | CH109: 0 | CJ109: 0 | CK109: 0 | CL109: 0 | CN109: 0 | CO109: 0 | CP109: 0 | CR109: 1 | CS109: ErP Expansion | CT109: 0 | CV109: ErP Expansion
A110: Cntrl ErP | B110: 11262018_sp39_ErP | C110: Sheet37 | D110: 8 | E110: 1 | F110: 0 | G110: 0 | H110: 0 | J110: ErP | K110: ErP | L110: 0 | O110: ErP | P110: 378 | Q110: 479 | R110: 102 | S110: 102 | T110: 459 | U110: -357 | V110: 459 | W110: -357 | X110: 204 | Y110: -714 | AC110: 17.0034 | AD110: 76.5153 | AE110: 0 | AF110: 0 | AG110: 0 | AH110: 0 | AI110: 0 | AJ110: 17.0034 | AK110: 0 | AL110: 17.0034 | AM110: 149.8853 | AN110: 181.8619 | AO110: 31.9766 | AP110: 994.6958904 | AQ110: 540.8958904 | AR110: 992.0142857 | AS110: 497.2952381 | AT110: 43.68303888 | AU110: 489.2500355 | AV110: 459.5124939 | AW110: 5146.539932 | AX110: 10.51924284 | AY110: 302.6771076 | AZ110: 60.97464818 | BA110: 479 | BB110: 0.3166 | BC110: 49.51521682 | BD110: 479 | BE110: 0.3166 | BF110: 461 | BG110: 0.3166 | BH110: 463 | BI110: 0.3166 | BJ110: 0 | BK110: 0 | BL110: 0 | BM110: 0 | BO110: 0 | BQ110: 0 | BT110: 0 | BU110: 0 | BV110: 0 | BW110: 0 | BY110: 0 | CA110: 0 | CD110: 0 | CF110: 0 | CG110: 0 | CH110: 0 | CJ110: 0 | CK110: 0 | CL110: 0 | CN110: 0 | CO110: 0 | CP110: 0 | CR110: 0 | CT110: 0
A111: Cntrl ErP | B111: 11262018_sp39_ErP | C111: Sheet38 | D111: 8 | E111: 1 | F111: 0 | G111: 0 | H111: 0 | J111: ErP | K111: ErP | L111: 0 | O111: ErP | P111: 378 | Q111: 436 | R111: 59 | S111: 59 | T111: 416 | U111: -357 | V111: 416 | W111: -357 | X111: 118 | Y111: -714 | AC111: 9.8353 | AD111: 69.3472 | AE111: 0 | AF111: 0 | AG111: 0 | AH111: 0 | AI111: 0 | AJ111: 9.8353 | AK111: 0 | AL111: 9.8353 | AM111: 149.8853 | AN111: 168.2481 | AO111: 18.3628 | AP111: 983.5027322 | AQ111: 525.0491803 | AR111: 1003.181525 | AS111: 539.9097744 | AT111: 24.65952455 | AU111: 276.186675 | AV111: 262.1933087 | AW111: 2936.565057 | AX111: 10.63253706 | AY111: 298.5740198 | AZ111: 33.95769814 | BA111: 436 | BB111: 0.3166 | BC111: 29.35081207 | BD111: 436 | BE111: 0.3166 | BF111: 431 | BG111: 0.3166 | BH111: 417 | BI111: 0.3166 | BJ111: 0 | BK111: 0 | BL111: 0 | BM111: 0 | BO111: 0 | BQ111: 0 | BT111: 0 | BU111: 0 | BV111: 0 | BW111: 0 | BY111: 0 | CA111: 0 | CD111: 0 | CF111: 0 | CG111: 0 | CH111: 0 | CJ111: 0 | CK111: 0 | CL111: 0 | CN111: 0 | CO111: 0 | CP111: 0 | CR111: 0 | CT111: 0
A112: Cntrl ErP | B112: 11262018_sp39_ErP | C112: Sheet39 | D112: 7 | E112: 1 | F112: 0 | G112: 0 | H112: 0 | J112: ErP | K112: ErP | L112: 0 | O112: ErP | P112: 309 | Q112: 401 | R112: 93 | S112: 93 | T112: 381 | U112: -288 | V112: 381 | W112: -288 | X112: 186 | Y112: -576 | AC112: 15.5031 | AD112: 63.5127 | AE112: 0 | AF112: 0 | AG112: 0 | AH112: 0 | AI112: 0 | AJ112: 15.5031 | AK112: 0 | AL112: 15.5031 | AM112: 128.7904 | AN112: 157.1671 | AO112: 28.3767 | AP112: 953.1848101 | AQ112: 554.0708861 | AR112: 984.78125 | AS112: 540.328125 | AT112: 34.4557469 | AU112: 385.9043653 | AV112: 136.8200183 | AW112: 1532.384205 | AX112: 3.970891087 | AY112: 98.84372833 | AZ112: 19.9184874 | BA112: 314 | BB112: 0.2883 | BC112: 11.59400779 | BD112: 314 | BE112: 0.2883 | BF112: 400 | BG112: 0.3166 | BH112: 338 | BI112: 0.2883 | BJ112: 1 | BK112: 0 | BL112: 0 | BM112: 0 | BO112: ErP | BP112: ErP | BQ112: 0 | BS112: ErP | BT112: 1 | BU112: 0 | BV112: 0 | BW112: 0 | BY112: ErP | BZ112: ErP | CA112: 0 | CC112: ErP | CD112: 0 | CF112: 0 | CG112: 0 | CH112: 0 | CJ112: 0 | CK112: 0 | CL112: 0 | CN112: 0 | CO112: 0 | CP112: 0 | CR112: 1 | CS112: ErP Expansion | CT112: 0 | CV112: ErP Expansion
A113: Cntrl ErP | B113: 11262018_sp39_ErP | C113: Sheet40 | D113: 8 | E113: 1 | F113: 0 | G113: 0 | H113: 0 | J113: ErP | K113: ErP | L113: 0 | O113: ErP | P113: 402 | Q113: 430 | R113: 29 | S113: 29 | T113: 410 | U113: -381 | V113: 410 | W113: -381 | X113: 58 | Y113: -762 | AC113: 4.8343 | AD113: 68.347 | AE113: 0 | AF113: 0 | AG113: 0 | AH113: 0 | AI113: 0 | AJ113: 4.8343 | AK113: 0 | AL113: 4.8343 | AM113: 157.4837 | AN113: 166.3485 | AO113: 8.8648 | AP113: 967.6813472 | AQ113: 528.373057 | AR113: 1005.778338 | AS113: 533.2997481 | AT113: 38.41422863 | AU113: 430.2393607 | AV113: 121.5323679 | AW113: 1361.162521 | AX113: 3.163733133 | AY113: 281.5635191 | AZ113: 23.78818351 | BA113: 429 | BB113: 0.3166 | BC113: 18.38182961 | BD113: 429 | BE113: 0.3166 | BF113: 424 | BG113: 0.3166 | BH113: 422 | BI113: 0.3166 | BJ113: 0 | BK113: 0 | BL113: 0 | BM113: 0 | BO113: 0 | BQ113: 0 | BT113: 0 | BU113: 0 | BV113: 0 | BW113: 0 | BY113: 0 | CA113: 0 | CD113: 0 | CF113: 0 | CG113: 0 | CH113: 0 | CJ113: 0 | CK113: 0 | CL113: 0 | CN113: 0 | CO113: 0 | CP113: 0 | CR113: 0 | CT113: 0
A114: Cntrl ErP | B114: 11262018_sp39_ErP | C114: Sheet41 | D114: 8 | E114: 1 | F114: 0 | G114: 0 | H114: 0 | J114: ErP | K114: ErP | L114: 0 | O114: ErP | P114: 402 | Q114: 427 | R114: 26 | S114: 26 | T114: 407 | U114: -381 | V114: 407 | W114: -381 | X114: 52 | Y114: -762 | AC114: 4.3342 | AD114: 67.8469 | AE114: 0 | AF114: 0 | AG114: 0 | AH114: 0 | AI114: 0 | AJ114: 4.3342 | AK114: 0 | AL114: 4.3342 | AM114: 157.4837 | AN114: 165.3987 | AO114: 7.915 | AP114: 984.5555556 | AQ114: 544.1702128 | AR114: 1004.31681 | AS114: 544.2068966 | AT114: 19.76128884 | AU114: 221.326435 | AV114: 97.87011943 | AW114: 1096.145338 | AX114: 4.952618234 | AY114: 252.9060352 | AZ114: 22.93372746 | BA114: 427 | BB114: 0.3166 | BC114: 18.47946312 | BD114: 427 | BE114: 0.3166 | BF114: 421 | BG114: 0.3166 | BH114: 417 | BI114: 0.3166 | BJ114: 0 | BK114: 0 | BL114: 0 | BM114: 0 | BO114: 0 | BQ114: 0 | BT114: 0 | BU114: 0 | BV114: 0 | BW114: 0 | BY114: 0 | CA114: 0 | CD114: 0 | CF114: 0 | CG114: 0 | CH114: 0 | CJ114: 0 | CK114: 0 | CL114: 0 | CN114: 0 | CO114: 0 | CP114: 0 | CR114: 0 | CT114: 0
A115: Cntrl ErP | B115: 11262018_sp39_ErP | C115: Sheet42 | D115: 6 | E115: 1 | F115: 0 | G115: 0 | H115: 0 | J115: ErP | K115: ErP | L115: 0 | O115: ErP | P115: 237 | Q115: 297 | R115: 61 | S115: 61 | T115: 277 | U115: -216 | V115: 277 | W115: -216 | X115: 122 | Y115: -432 | AC115: 10.1687 | AD115: 46.1759 | AE115: 0 | AF115: 0 | AG115: 0 | AH115: 0 | AI115: 0 | AJ115: 10.1687 | AK115: 0 | AL115: 10.1687 | AM115: 108.0328 | AN115: 125.3308 | AO115: 17.298 | AP115: 950.8394161 | AQ115: 545.0656934 | AR115: 951.7229167 | AS115: 533.1020833 | AT115: 11.99618856 | AU115: 134.3573118 | AV115: 59.51375778 | AW115: 666.5540871 | AX115: 4.961055547 | AY115: 65.54958718 | AZ115: 3.989018721 | BA115: 242 | BB115: 0.2883 | BC115: 3.659264653 | BD115: 242 | BE115: 0.2883 | BF115: 259 | BG115: 0.2883 | BH115: 296 | BI115: 0.2883 | BJ115: 1 | BK115: 0 | BL115: 0 | BM115: 0 | BO115: ErP | BP115: ErP | BQ115: 0 | BS115: ErP | BT115: 1 | BU115: 0 | BV115: 0 | BW115: 0 | BY115: ErP | BZ115: ErP | CA115: 0 | CC115: ErP | CD115: 0 | CF115: 0 | CG115: 0 | CH115: 0 | CJ115: 0 | CK115: 0 | CL115: 0 | CN115: 0 | CO115: 0 | CP115: 0 | CR115: 1 | CS115: ErP Expansion | CT115: 0 | CV115: ErP Expansion
A116: Cntrl ErP | B116: 11262018_sp39_ErP | C116: Sheet43 | D116: 7 | E116: 1 | F116: 0 | G116: 0 | H116: 0 | J116: ErP | K116: ErP | L116: 0 | O116: ErP | P116: 298 | Q116: 363 | R116: 66 | S116: 66 | T116: 343 | U116: -277 | V116: 343 | W116: -277 | X116: 132 | Y116: -554 | AC116: 11.0022 | AD116: 57.1781 | AE116: 0 | AF116: 0 | AG116: 0 | AH116: 0 | AI116: 0 | AJ116: 11.0022 | AK116: 0 | AL116: 11.0022 | AM116: 125.6191 | AN116: 145.1363 | AO116: 19.5172 | AP116: 946.9333333 | AQ116: 521.4282051 | AR116: 964.4218009 | AS116: 528.4597156 | AT116: 18.84910182 | AU116: 211.1099404 | AV116: 144.3518638 | AW116: 1616.740875 | AX116: 7.658288717 | AY116: 146.9470538 | AZ116: 20.91457805 | BA116: 314 | BB116: 0.2883 | BC116: 17.39387102 | BD116: 314 | BE116: 0.2883 | BF116: 300 | BG116: 0.2883 | BH116: 301 | BI116: 0.2883 | BJ116: 1 | BK116: 0 | BL116: 0 | BM116: 0 | BO116: ErP | BP116: ErP | BQ116: 0 | BS116: ErP | BT116: 1 | BU116: 0 | BV116: 0 | BW116: 0 | BY116: ErP | BZ116: ErP | CA116: 0 | CC116: ErP | CD116: 0 | CF116: 0 | CG116: 0 | CH116: 0 | CJ116: 0 | CK116: 0 | CL116: 0 | CN116: 0 | CO116: 0 | CP116: 0 | CR116: 1 | CS116: ErP Expansion | CT116: 0 | CV116: ErP Expansion
A117: Cntrl ErP | B117: 11262018_sp39_ErP | C117: Sheet44 | D117: 8 | E117: 1 | F117: 0 | G117: 0 | H117: 0 | J117: ErP | K117: ErP | L117: 0 | O117: ErP | P117: 364 | Q117: 479 | R117: 116 | S117: 116 | T117: 459 | U117: -343 | V117: 459 | W117: -343 | X117: 232 | Y117: -686 | AC117: 19.3372 | AD117: 76.5153 | AE117: 0 | AF117: 0 | AG117: 0 | AH117: 0 | AI117: 0 | AJ117: 19.3372 | AK117: 0 | AL117: 19.3372 | AM117: 145.4529 | AN117: 181.8619 | AO117: 36.409 | AP117: 955.2918919 | AQ117: 520.472973 | AR117: 974.610984 | AS117: 464.4462243 | AT117: 59.26401852 | AU117: 663.7570074 | AV117: 564.8492356 | AW117: 6326.311438 | AX117: 9.531065386 | AY117: 327.1575739 | AZ117: 51.45428951 | BA117: 454 | BB117: 0.3166 | BC117: 51.34239731 | BD117: 454 | BE117: 0.3166 | BF117: 460 | BG117: 0.3166 | BH117: 455 | BI117: 0.3166 | BJ117: 0 | BK117: 0 | BL117: 0 | BM117: 0 | BO117: 0 | BQ117: 0 | BT117: 0 | BU117: 0 | BV117: 0 | BW117: 0 | BY117: 0 | CA117: 0 | CD117: 0 | CF117: 0 | CG117: 0 | CH117: 0 | CJ117: 0 | CK117: 0 | CL117: 0 | CN117: 0 | CO117: 0 | CP117: 0 | CR117: 0 | CT117: 0
A118: Cntrl ErP | B118: 11262018_sp39_ErP | C118: Sheet45 | D118: 8 | E118: 1 | F118: 0 | G118: 0 | H118: 0 | J118: ErP | K118: ErP | L118: 0 | O118: ErP | P118: 364 | Q118: 437 | R118: 74 | S118: 74 | T118: 417 | U118: -343 | V118: 417 | W118: -343 | X118: 148 | Y118: -686 | AC118: 12.3358 | AD118: 69.5139 | AE118: 0 | AF118: 0 | AG118: 0 | AH118: 0 | AI118: 0 | AJ118: 12.3358 | AK118: 0 | AL118: 12.3358 | AM118: 145.4529 | AN118: 168.5647 | AO118: 23.1118 | AP118: 971.6071429 | AQ118: 529.3736264 | AR118: 995.7225705 | AS118: 530.7100313 | AT118: 24.15242908 | AU118: 270.5072056 | AV118: 335.863092 | AW118: 3761.66663 | AX118: 13.90597571 | AY118: 304.9390093 | AZ118: 35.24551606 | BA118: 425 | BB118: 0.3166 | BC118: 31.11689033 | BD118: 425 | BE118: 0.3166 | BF118: 433 | BG118: 0.3166 | BH118: 427 | BI118: 0.3166 | BJ118: 0 | BK118: 0 | BL118: 0 | BM118: 0 | BO118: 0 | BQ118: 0 | BT118: 0 | BU118: 0 | BV118: 0 | BW118: 0 | BY118: 0 | CA118: 0 | CD118: 0 | CF118: 0 | CG118: 0 | CH118: 0 | CJ118: 0 | CK118: 0 | CL118: 0 | CN118: 0 | CO118: 0 | CP118: 0 | CR118: 0 | CT118: 0
A119: Cntrl ErP | B119: 11262018_sp39_ErP | C119: Sheet46 | D119: 7 | E119: 1 | F119: 0 | G119: 0 | H119: 0 | J119: ErP | K119: ErP | L119: 0 | O119: ErP | P119: 298 | Q119: 364 | R119: 67 | S119: 67 | T119: 344 | U119: -277 | V119: 344 | W119: -277 | X119: 134 | Y119: -554 | AC119: 11.1689 | AD119: 57.3448 | AE119: 0 | AF119: 0 | AG119: 0 | AH119: 0 | AI119: 0 | AJ119: 11.1689 | AK119: 0 | AL119: 11.1689 | AM119: 125.6191 | AN119: 145.4529 | AO119: 19.8338 | AP119: 957.0717703 | AQ119: 537.562201 | AR119: 972.4878641 | AS119: 507.7402913 | AT119: 33.57085409 | AU119: 375.9935658 | AV119: 124.0503718 | AW119: 1389.364164 | AX119: 3.69518069 | AY119: 124.3957922 | AZ119: 21.71053115 | BA119: 314 | BB119: 0.2883 | BC119: 18.56632551 | BD119: 314 | BE119: 0.2883 | BF119: 300 | BG119: 0.2883 | BH119: 301 | BI119: 0.2883 | BJ119: 1 | BK119: 0 | BL119: 0 | BM119: 0 | BO119: ErP | BP119: ErP | BQ119: 0 | BS119: ErP | BT119: 1 | BU119: 0 | BV119: 0 | BW119: 0 | BY119: ErP | BZ119: ErP | CA119: 0 | CC119: ErP | CD119: 0 | CF119: 0 | CG119: 0 | CH119: 0 | CJ119: 0 | CK119: 0 | CL119: 0 | CN119: 0 | CO119: 0 | CP119: 0 | CR119: 1 | CS119: ErP Expansion | CT119: 0 | CV119: ErP Expansion
A120: Cntrl ErP | B120: 11262018_sp39_ErP | C120: Sheet47 | D120: 8 | E120: 1 | F120: 0 | G120: 0 | H120: 0 | J120: ErP | K120: ErP | L120: 0 | O120: ErP | P120: 365 | Q120: 430 | R120: 66 | S120: 66 | T120: 410 | U120: -344 | V120: 410 | W120: -344 | X120: 132 | Y120: -688 | AC120: 11.0022 | AD120: 68.347 | AE120: 0 | AF120: 0 | AG120: 0 | AH120: 0 | AI120: 0 | AJ120: 11.0022 | AK120: 0 | AL120: 11.0022 | AM120: 145.7695 | AN120: 166.3485 | AO120: 20.579 | AP120: 980.5134328 | AQ120: 502.1522388 | AR120: 904.959596 | AS120: 491.2424242 | AT120: 76.33745031 | AU120: 854.9794435 | AV120: 257.3364177 | AW120: 2882.167879 | AX120: 3.371037632 | AY120: 261.9628691 | AZ120: 90.37843354 | BA120: 417 | BB120: 0.3166 | BC120: 42.94593385 | BD120: 417 | BE120: 0.3166 | BF120: 423 | BG120: 0.3166 | BH120: 425 | BI120: 0.3166 | BJ120: 0 | BK120: 0 | BL120: 0 | BM120: 0 | BO120: 0 | BQ120: 0 | BT120: 0 | BU120: 0 | BV120: 0 | BW120: 0 | BY120: 0 | CA120: 0 | CD120: 0 | CF120: 0 | CG120: 0 | CH120: 0 | CJ120: 0 | CK120: 0 | CL120: 0 | CN120: 0 | CO120: 0 | CP120: 0 | CR120: 0 | CT120: 0
A121: Cntrl ErP | B121: 11262018_sp39_ErP | C121: Sheet48 | D121: 8 | E121: 1 | F121: 0 | G121: 0 | H121: 0 | J121: ErP | K121: ErP | L121: 0 | O121: ErP | P121: 365 | Q121: 429 | R121: 65 | S121: 65 | T121: 409 | U121: -344 | V121: 409 | W121: -344 | X121: 130 | Y121: -688 | AC121: 10.8355 | AD121: 68.1803 | AE121: 0 | AF121: 0 | AG121: 0 | AH121: 0 | AI121: 0 | AJ121: 10.8355 | AK121: 0 | AL121: 10.8355 | AM121: 145.7695 | AN121: 166.0319 | AO121: 20.2624 | AP121: 969.8333333 | AQ121: 513.1160714 | AR121: 915.3736702 | AS121: 452.043883 | AT121: 81.8270561 | AU121: 916.4630283 | AV121: 231.3992565 | AW121: 2591.671673 | AX121: 2.827906411 | AY121: 239.1833947 | AZ121: 78.7739449 | BA121: 417 | BB121: 0.3166 | BC121: 42.41655765 | BD121: 417 | BE121: 0.3166 | BF121: 429 | BG121: 0.3166 | BH121: 420 | BI121: 0.3166 | BJ121: 0 | BK121: 0 | BL121: 0 | BM121: 0 | BO121: 0 | BQ121: 0 | BT121: 0 | BU121: 0 | BV121: 0 | BW121: 0 | BY121: 0 | CA121: 0 | CD121: 0 | CF121: 0 | CG121: 0 | CH121: 0 | CJ121: 0 | CK121: 0 | CL121: 0 | CN121: 0 | CO121: 0 | CP121: 0 | CR121: 0 | CT121: 0
A122: Cntrl ErP | B122: 11262018_sp39_ErP | C122: Sheet49 | D122: 5 | E122: 1 | F122: 0 | G122: 0 | H122: 0 | J122: ErP | K122: ErP | L122: 0 | O122: ErP | P122: 161 | Q122: 236 | R122: 76 | S122: 76 | T122: 216 | U122: -140 | V122: 216 | W122: -140 | X122: 152 | Y122: -280 | AC122: 12.6692 | AD122: 36.0072 | AE122: 0 | AF122: 0 | AG122: 0 | AH122: 0 | AI122: 0 | AJ122: 12.6692 | AK122: 0 | AL122: 12.6692 | AM122: 86.338 | AN122: 107.7445 | AO122: 21.4065 | AP122: 889.6076389 | AQ122: 661.1493056 | AR122: 932.9442897 | AS122: 552.8732591 | AT122: 116.626616 | AU122: 1306.218099 | AV122: 234.5310837 | AW122: 2626.748137 | AX122: 2.010956776 | AY122: 207.3333863 | AZ122: 55.28991382 | BA122: 230 | BB122: 0.2883 | BC122: 32.63457182 | BD122: 230 | BE122: 0.2883 | BF122: 224 | BG122: 0.2883 | BH122: 232 | BI122: 0.2883 | BJ122: 1 | BK122: 0 | BL122: 0 | BM122: 0 | BO122: ErP | BP122: ErP | BQ122: 0 | BS122: ErP | BT122: 1 | BU122: 0 | BV122: 0 | BW122: 0 | BY122: ErP | BZ122: ErP | CA122: 0 | CC122: ErP | CD122: 0 | CF122: 0 | CG122: 0 | CH122: 0 | CJ122: 0 | CK122: 0 | CL122: 0 | CN122: 0 | CO122: 0 | CP122: 0 | CR122: 1 | CS122: ErP Expansion | CT122: 0 | CV122: ErP Expansion
A123: Cntrl ErP | B123: 11262018_sp39_ErP | C123: Sheet50 | D123: 6 | E123: 1 | F123: 0 | G123: 0 | H123: 0 | J123: ErP | K123: ErP | L123: 0 | O123: ErP | P123: 237 | Q123: 297 | R123: 61 | S123: 61 | T123: 277 | U123: -216 | V123: 277 | W123: -216 | X123: 122 | Y123: -432 | AC123: 10.1687 | AD123: 46.1759 | AE123: 0 | AF123: 0 | AG123: 0 | AH123: 0 | AI123: 0 | AJ123: 10.1687 | AK123: 0 | AL123: 10.1687 | AM123: 108.0328 | AN123: 125.3308 | AO123: 17.298 | AP123: 929.4040632 | AQ123: 541.7426637 | AR123: 929.5367521 | AS123: 526.4102564 | AT123: 15.33298139 | AU123: 171.7293916 | AV123: 78.2361724 | AW123: 876.2451309 | AX123: 5.102476185 | AY123: 86.1708115 | AZ123: 6.351816917 | BA123: 296 | BB123: 0.2883 | BC123: 5.915785603 | BD123: 296 | BE123: 0.2883 | BF123: 245 | BG123: 0.2883 | BH123: 241 | BI123: 0.2883 | BJ123: 1 | BK123: 0 | BL123: 0 | BM123: 0 | BO123: ErP | BP123: ErP | BQ123: 0 | BS123: ErP | BT123: 1 | BU123: 0 | BV123: 0 | BW123: 0 | BY123: ErP | BZ123: ErP | CA123: 0 | CC123: ErP | CD123: 0 | CF123: 0 | CG123: 0 | CH123: 0 | CJ123: 0 | CK123: 0 | CL123: 0 | CN123: 0 | CO123: 0 | CP123: 0 | CR123: 1 | CS123: ErP Expansion | CT123: 0 | CV123: ErP Expansion
A124: Cntrl ErP | B124: 11262018_sp39_ErP | C124: Sheet51 | D124: 7 | E124: 1 | F124: 0 | G124: 0 | H124: 0 | J124: ErP | K124: ErP | L124: 0 | O124: ErP | P124: 298 | Q124: 354 | R124: 57 | S124: 57 | T124: 334 | U124: -277 | V124: 334 | W124: -277 | X124: 114 | Y124: -554 | AC124: 9.5019 | AD124: 55.6778 | AE124: 0 | AF124: 0 | AG124: 0 | AH124: 0 | AI124: 0 | AJ124: 9.5019 | AK124: 0 | AL124: 9.5019 | AM124: 125.6191 | AN124: 142.2869 | AO124: 16.6678 | AP124: 913.7581864 | AQ124: 533.3476071 | AR124: 917.5730337 | AS124: 513.7280899 | AT124: 19.98695859 | AU124: 223.8539362 | AV124: 109.5940401 | AW124: 1227.453249 | AX124: 5.483277486 | AY124: 129.1797692 | AZ124: 18.89182674 | BA124: 314 | BB124: 0.2883 | BC124: 16.68471954 | BD124: 314 | BE124: 0.2883 | BF124: 300 | BG124: 0.2883 | BH124: 301 | BI124: 0.2883 | BJ124: 1 | BK124: 0 | BL124: 0 | BM124: 0 | BO124: ErP | BP124: ErP | BQ124: 0 | BS124: ErP | BT124: 1 | BU124: 0 | BV124: 0 | BW124: 0 | BY124: ErP | BZ124: ErP | CA124: 0 | CC124: ErP | CD124: 0 | CF124: 0 | CG124: 0 | CH124: 0 | CJ124: 0 | CK124: 0 | CL124: 0 | CN124: 0 | CO124: 0 | CP124: 0 | CR124: 1 | CS124: ErP Expansion | CT124: 0 | CV124: ErP Expansion
A125: Cntrl ErP | B125: 11262018_sp39_ErP | C125: Sheet52 | D125: 8 | E125: 1 | F125: 0 | G125: 0 | H125: 0 | J125: ErP | K125: ErP | L125: 0 | O125: ErP | P125: 355 | Q125: 443 | R125: 89 | S125: 89 | T125: 423 | U125: -334 | V125: 423 | W125: -334 | X125: 178 | Y125: -668 | AC125: 14.8363 | AD125: 70.5141 | AE125: 0 | AF125: 0 | AG125: 0 | AH125: 0 | AI125: 0 | AJ125: 14.8363 | AK125: 0 | AL125: 14.8363 | AM125: 142.6035 | AN125: 170.4643 | AO125: 27.8608 | AP125: 912.1977011 | AQ125: 516.8666667 | AR125: 917.9776675 | AS125: 475.189909 | AT125: 42.07564782 | AU125: 471.2472556 | AV125: 295.1874433 | AW125: 3306.099365 | AX125: 7.015636326 | AY125: 222.8385355 | AZ125: 51.79362612 | BA125: 443 | BB125: 0.3166 | BC125: 34.88342154 | BD125: 443 | BE125: 0.3166 | BF125: 417 | BG125: 0.3166 | BH125: 439 | BI125: 0.3166 | BJ125: 0 | BK125: 0 | BL125: 0 | BM125: 0 | BO125: 0 | BQ125: 0 | BT125: 0 | BU125: 0 | BV125: 0 | BW125: 0 | BY125: 0 | CA125: 0 | CD125: 0 | CF125: 0 | CG125: 0 | CH125: 0 | CJ125: 0 | CK125: 0 | CL125: 0 | CN125: 0 | CO125: 0 | CP125: 0 | CR125: 0 | CT125: 0
A126: Cntrl ErP | B126: 11262018_sp39_ErP | C126: Sheet53 | D126: 8 | E126: 1 | F126: 0 | G126: 0 | H126: 0 | J126: ErP | K126: ErP | L126: 0 | O126: ErP | P126: 355 | Q126: 438 | R126: 84 | S126: 84 | T126: 418 | U126: -334 | V126: 418 | W126: -334 | X126: 168 | Y126: -668 | AC126: 14.0028 | AD126: 69.6806 | AE126: 0 | AF126: 0 | AG126: 0 | AH126: 0 | AI126: 0 | AJ126: 14.0028 | AK126: 0 | AL126: 14.0028 | AM126: 142.6035 | AN126: 168.8813 | AO126: 26.2778 | AP126: 921.4857955 | AQ126: 496.3352273 | AR126: 991.1915734 | AS126: 534.961817 | AT126: 79.69259007 | AU126: 892.5570088 | AV126: 332.890702 | AW126: 3728.375862 | AX126: 4.177185127 | AY126: 266.2593097 | AZ126: 41.76369668 | BA126: 417 | BB126: 0.3166 | BC126: 34.17009568 | BD126: 417 | BE126: 0.3166 | BF126: 434 | BG126: 0.3166 | BH126: 438 | BI126: 0.3166 | BJ126: 0 | BK126: 0 | BL126: 0 | BM126: 0 | BO126: 0 | BQ126: 0 | BT126: 0 | BU126: 0 | BV126: 0 | BW126: 0 | BY126: 0 | CA126: 0 | CD126: 0 | CF126: 0 | CG126: 0 | CH126: 0 | CJ126: 0 | CK126: 0 | CL126: 0 | CN126: 0 | CO126: 0 | CP126: 0 | CR126: 0 | CT126: 0
A127: Cntrl ErP | B127: 11262018_sp39_ErP | C127: Sheet54 | D127: 7 | E127: 1 | F127: 0 | G127: 0 | H127: 0 | J127: ErP | K127: ErP | L127: 0 | O127: ErP | P127: 298 | Q127: 355 | R127: 58 | S127: 58 | T127: 335 | U127: -277 | V127: 335 | W127: -277 | X127: 116 | Y127: -554 | AC127: 9.6686 | AD127: 55.8445 | AE127: 0 | AF127: 0 | AG127: 0 | AH127: 0 | AI127: 0 | AJ127: 9.6686 | AK127: 0 | AL127: 9.6686 | AM127: 125.6191 | AN127: 142.6035 | AO127: 16.9844 | AP127: 924.5084337 | AQ127: 517.5638554 | AR127: 936.8845209 | AS127: 487.2162162 | AT127: 32.77417792 | AU127: 367.0707927 | AV127: 145.6165625 | AW127: 1630.9055 | AX127: 4.443027156 | AY127: 168.680626 | AZ127: 21.80264001 | BA127: 300 | BB127: 0.2883 | BC127: 18.77400514 | BD127: 300 | BE127: 0.2883 | BF127: 314 | BG127: 0.2883 | BH127: 301 | BI127: 0.2883 | BJ127: 1 | BK127: 0 | BL127: 0 | BM127: 0 | BO127: ErP | BP127: ErP | BQ127: 0 | BS127: ErP | BT127: 1 | BU127: 0 | BV127: 0 | BW127: 0 | BY127: ErP | BZ127: ErP | CA127: 0 | CC127: ErP | CD127: 0 | CF127: 0 | CG127: 0 | CH127: 0 | CJ127: 0 | CK127: 0 | CL127: 0 | CN127: 0 | CO127: 0 | CP127: 0 | CR127: 1 | CS127: ErP Expansion | CT127: 0 | CV127: ErP Expansion
A128: Cntrl ErP | B128: 11262018_sp39_ErP | C128: Sheet55 | D128: 8 | E128: 1 | F128: 0 | G128: 0 | H128: 0 | J128: ErP | K128: ErP | L128: 0 | O128: ErP | P128: 356 | Q128: 439 | R128: 84 | S128: 84 | T128: 419 | U128: -335 | V128: 419 | W128: -335 | X128: 168 | Y128: -670 | AC128: 14.0028 | AD128: 69.8473 | AE128: 0 | AF128: 0 | AG128: 0 | AH128: 0 | AI128: 0 | AJ128: 14.0028 | AK128: 0 | AL128: 14.0028 | AM128: 142.9201 | AN128: 169.1979 | AO128: 26.2778 | AP128: 939.2305699 | AQ128: 493.4507772 | AR128: 985.439464 | AS128: 532.9089649 | AT128: 60.76356194 | AU128: 680.5518938 | AV128: 396.7929054 | AW128: 4444.08054 | AX128: 6.530112664 | AY128: 317.3708501 | AZ128: 64.90074738 | BA128: 417 | BB128: 0.3166 | BC128: 45.29528473 | BD128: 417 | BE128: 0.3166 | BF128: 439 | BG128: 0.3166 | BH128: 437 | BI128: 0.3166 | BJ128: 0 | BK128: 0 | BL128: 0 | BM128: 0 | BO128: 0 | BQ128: 0 | BT128: 0 | BU128: 0 | BV128: 0 | BW128: 0 | BY128: 0 | CA128: 0 | CD128: 0 | CF128: 0 | CG128: 0 | CH128: 0 | CJ128: 0 | CK128: 0 | CL128: 0 | CN128: 0 | CO128: 0 | CP128: 0 | CR128: 0 | CT128: 0
A129: Cntrl ErP | B129: 11262018_sp39_ErP | C129: Sheet56 | D129: 8 | E129: 1 | F129: 0 | G129: 0 | H129: 0 | J129: ErP | K129: ErP | L129: 0 | O129: ErP | P129: 356 | Q129: 428 | R129: 73 | S129: 73 | T129: 408 | U129: -335 | V129: 408 | W129: -335 | X129: 146 | Y129: -670 | AC129: 12.1691 | AD129: 68.0136 | AE129: 0 | AF129: 0 | AG129: 0 | AH129: 0 | AI129: 0 | AJ129: 12.1691 | AK129: 0 | AL129: 12.1691 | AM129: 142.9201 | AN129: 165.7153 | AO129: 22.7952 | AP129: 920.3958869 | AQ129: 484.470437 | AR129: 885.3803132 | AS129: 482.7718121 | AT129: 35.0567501 | AU129: 392.6356011 | AV129: 210.0531834 | AW129: 2352.595654 | AX129: 5.991804225 | AY129: 193.3253613 | AZ129: 52.41929687 | BA129: 417 | BB129: 0.3166 | BC129: 32.51405909 | BD129: 417 | BE129: 0.3166 | BF129: 420 | BG129: 0.3166 | BH129: 426 | BI129: 0.3166 | BJ129: 0 | BK129: 0 | BL129: 0 | BM129: 0 | BO129: 0 | BQ129: 0 | BT129: 0 | BU129: 0 | BV129: 0 | BW129: 0 | BY129: 0 | CA129: 0 | CD129: 0 | CF129: 0 | CG129: 0 | CH129: 0 | CJ129: 0 | CK129: 0 | CL129: 0 | CN129: 0 | CO129: 0 | CP129: 0 | CR129: 0 | CT129: 0
A130: Cntrl ErP | B130: 11262018_sp39_ErP | C130: Sheet57 | D130: 6 | E130: 1 | F130: 0 | G130: 0 | H130: 0 | J130: ErP | K130: ErP | L130: 0 | O130: ErP | P130: 237 | Q130: 294 | R130: 58 | S130: 58 | T130: 274 | U130: -216 | V130: 274 | W130: -216 | X130: 116 | Y130: -432 | AC130: 9.6686 | AD130: 45.6758 | AE130: 0 | AF130: 0 | AG130: 0 | AH130: 0 | AI130: 0 | AJ130: 9.6686 | AK130: 0 | AL130: 9.6686 | AM130: 108.0328 | AN130: 124.4659 | AO130: 16.4331 | AP130: 936.4826667 | AQ130: 559.3466667 | AR130: 940.3942953 | AS130: 550.352349 | AT130: 9.808087938 | AU130: 109.8505849 | AV130: 55.06289349 | AW130: 616.7044071 | AX130: 5.614029344 | AY130: 63.78425078 | AZ130: 4.706804352 | BA130: 245 | BB130: 0.2883 | BC130: 4.228606105 | BD130: 245 | BE130: 0.2883 | BF130: 240 | BG130: 0.2883 | BH130: 239 | BI130: 0.2883 | BJ130: 1 | BK130: 0 | BL130: 0 | BM130: 0 | BO130: ErP | BP130: ErP | BQ130: 0 | BS130: ErP | BT130: 1 | BU130: 0 | BV130: 0 | BW130: 0 | BY130: ErP | BZ130: ErP | CA130: 0 | CC130: ErP | CD130: 0 | CF130: 0 | CG130: 0 | CH130: 0 | CJ130: 0 | CK130: 0 | CL130: 0 | CN130: 0 | CO130: 0 | CP130: 0 | CR130: 1 | CS130: ErP Expansion | CT130: 0 | CV130: ErP Expansion
A131: Cntrl ErP | B131: 11262018_sp39_ErP | C131: Sheet58 | D131: 7 | E131: 1 | F131: 0 | G131: 0 | H131: 0 | J131: ErP | K131: ErP | L131: 0 | O131: ErP | P131: 295 | Q131: 358 | R131: 64 | S131: 64 | T131: 338 | U131: -274 | V131: 338 | W131: -274 | X131: 128 | Y131: -548 | AC131: 10.6688 | AD131: 56.3446 | AE131: 0 | AF131: 0 | AG131: 0 | AH131: 0 | AI131: 0 | AJ131: 10.6688 | AK131: 0 | AL131: 10.6688 | AM131: 124.7542 | AN131: 143.5533 | AO131: 18.7991 | AP131: 927.7609428 | AQ131: 548.7373737 | AR131: 937.9535963 | AS131: 516.187935 | AT131: 34.10800706 | AU131: 382.0096791 | AV131: 148.3895879 | AW131: 1661.963384 | AX131: 4.350579253 | AY131: 155.7779117 | AZ131: 21.27343959 | BA131: 314 | BB131: 0.2883 | BC131: 15.2888221 | BD131: 314 | BE131: 0.2883 | BF131: 301 | BG131: 0.2883 | BH131: 298 | BI131: 0.2883 | BJ131: 1 | BK131: 0 | BL131: 0 | BM131: 0 | BO131: ErP | BP131: ErP | BQ131: 0 | BS131: ErP | BT131: 1 | BU131: 0 | BV131: 0 | BW131: 0 | BY131: ErP | BZ131: ErP | CA131: 0 | CC131: ErP | CD131: 0 | CF131: 0 | CG131: 0 | CH131: 0 | CJ131: 0 | CK131: 0 | CL131: 0 | CN131: 0 | CO131: 0 | CP131: 0 | CR131: 1 | CS131: ErP Expansion | CT131: 0 | CV131: ErP Expansion
A132: Cntrl ErP | B132: 11262018_sp39_ErP | C132: Sheet59 | D132: 8 | E132: 1 | F132: 0 | G132: 0 | H132: 0 | J132: ErP | K132: ErP | L132: 0 | O132: ErP | P132: 359 | Q132: 437 | R132: 79 | S132: 79 | T132: 417 | U132: -338 | V132: 417 | W132: -338 | X132: 158 | Y132: -676 | AC132: 13.1693 | AD132: 69.5139 | AE132: 0 | AF132: 0 | AG132: 0 | AH132: 0 | AI132: 0 | AJ132: 13.1693 | AK132: 0 | AL132: 13.1693 | AM132: 143.8699 | AN132: 168.5647 | AO132: 24.6948 | AP132: 951.0882353 | AQ132: 515.0508021 | AR132: 894.8952312 | AS132: 491.2283237 | AT132: 61.03412313 | AU132: 683.5821791 | AV132: 285.6339912 | AW132: 3199.100701 | AX132: 4.679906527 | AY132: 242.9210893 | AZ132: 33.58478022 | BA132: 417 | BB132: 0.3166 | BC132: 26.12851569 | BD132: 417 | BE132: 0.3166 | BF132: 430 | BG132: 0.3166 | BH132: 423 | BI132: 0.3166 | BJ132: 0 | BK132: 0 | BL132: 0 | BM132: 0 | BO132: 0 | BQ132: 0 | BT132: 0 | BU132: 0 | BV132: 0 | BW132: 0 | BY132: 0 | CA132: 0 | CD132: 0 | CF132: 0 | CG132: 0 | CH132: 0 | CJ132: 0 | CK132: 0 | CL132: 0 | CN132: 0 | CO132: 0 | CP132: 0 | CR132: 0 | CT132: 0
A133: Cntrl ErP | B133: 11262018_sp39_ErP | C133: Sheet60 | D133: 8 | E133: 1 | F133: 0 | G133: 0 | H133: 0 | J133: ErP | K133: ErP | L133: 0 | O133: ErP | P133: 359 | Q133: 427 | R133: 69 | S133: 69 | T133: 407 | U133: -338 | V133: 407 | W133: -338 | X133: 138 | Y133: -676 | AC133: 11.5023 | AD133: 67.8469 | AE133: 0 | AF133: 0 | AG133: 0 | AH133: 0 | AI133: 0 | AJ133: 11.5023 | AK133: 0 | AL133: 11.5023 | AM133: 143.8699 | AN133: 165.3987 | AO133: 21.5288 | AP133: 929.9796438 | AQ133: 515.648855 | AR133: 915.496633 | AS133: 455.9427609 | AT133: 61.43757209 | AU133: 688.1008074 | AV133: 192.2542073 | AW133: 2153.247122 | AX133: 3.129261147 | AY133: 187.2014399 | AZ133: 34.60582419 | BA133: 417 | BB133: 0.3166 | BC133: 27.2999357 | BD133: 417 | BE133: 0.3166 | BF133: 418 | BG133: 0.3166 | BH133: 426 | BI133: 0.3166 | BJ133: 0 | BK133: 0 | BL133: 0 | BM133: 0 | BO133: 0 | BQ133: 0 | BT133: 0 | BU133: 0 | BV133: 0 | BW133: 0 | BY133: 0 | CA133: 0 | CD133: 0 | CF133: 0 | CG133: 0 | CH133: 0 | CJ133: 0 | CK133: 0 | CL133: 0 | CN133: 0 | CO133: 0 | CP133: 0 | CR133: 0 | CT133: 0
A134: Cntrl ErP | B134: 11262018_sp39_ErP | C134: Sheet61 | D134: 7 | E134: 1 | F134: 0 | G134: 0 | H134: 0 | J134: ErP | K134: ErP | L134: 0 | O134: ErP | P134: 295 | Q134: 354 | R134: 60 | S134: 60 | T134: 334 | U134: -274 | V134: 334 | W134: -274 | X134: 120 | Y134: -548 | AC134: 10.002 | AD134: 55.6778 | AE134: 0 | AF134: 0 | AG134: 0 | AH134: 0 | AI134: 0 | AJ134: 10.002 | AK134: 0 | AL134: 10.002 | AM134: 124.7542 | AN134: 142.2869 | AO134: 17.5327 | AP134: 946.1615599 | AQ134: 549.545961 | AR134: 948.6636771 | AS134: 540.0313901 | AT134: 9.838071432 | AU134: 110.1864 | AV134: 106.853864 | AW134: 1196.763277 | AX134: 10.86126125 | AY134: 119.6523972 | AZ134: 21.02383117 | BA134: 314 | BB134: 0.2883 | BC134: 17.27460497 | BD134: 314 | BE134: 0.2883 | BF134: 300 | BG134: 0.2883 | BH134: 301 | BI134: 0.2883 | BJ134: 1 | BK134: 0 | BL134: 0 | BM134: 0 | BO134: ErP | BP134: ErP | BQ134: 0 | BS134: ErP | BT134: 1 | BU134: 0 | BV134: 0 | BW134: 0 | BY134: ErP | BZ134: ErP | CA134: 0 | CC134: ErP | CD134: 0 | CF134: 0 | CG134: 0 | CH134: 0 | CJ134: 0 | CK134: 0 | CL134: 0 | CN134: 0 | CO134: 0 | CP134: 0 | CR134: 1 | CS134: ErP Expansion | CT134: 0 | CV134: ErP Expansion
A135: Cntrl ErP | B135: 11262018_sp39_ErP | C135: Sheet62 | D135: 8 | E135: 1 | F135: 0 | G135: 0 | H135: 0 | J135: ErP | K135: ErP | L135: 0 | O135: ErP | P135: 355 | Q135: 430 | R135: 76 | S135: 76 | T135: 410 | U135: -334 | V135: 410 | W135: -334 | X135: 152 | Y135: -668 | AC135: 12.6692 | AD135: 68.347 | AE135: 0 | AF135: 0 | AG135: 0 | AH135: 0 | AI135: 0 | AJ135: 12.6692 | AK135: 0 | AL135: 12.6692 | AM135: 142.6035 | AN135: 166.3485 | AO135: 23.745 | AP135: 947.4105793 | AQ135: 525.1914358 | AR135: 913.247191 | AS135: 454.8603531 | AT135: 78.18950241 | AU135: 875.722427 | AV135: 239.3050196 | AW135: 2680.21622 | AX135: 3.060577344 | AY135: 211.5537066 | AZ135: 37.84768011 | BA135: 417 | BB135: 0.3166 | BC135: 29.7433565 | BD135: 417 | BE135: 0.3166 | BF135: 430 | BG135: 0.3166 | BH135: 420 | BI135: 0.3166 | BJ135: 0 | BK135: 0 | BL135: 0 | BM135: 0 | BO135: 0 | BQ135: 0 | BT135: 0 | BU135: 0 | BV135: 0 | BW135: 0 | BY135: 0 | CA135: 0 | CD135: 0 | CF135: 0 | CG135: 0 | CH135: 0 | CJ135: 0 | CK135: 0 | CL135: 0 | CN135: 0 | CO135: 0 | CP135: 0 | CR135: 0 | CT135: 0
A136: Cntrl ErP | B136: 11262018_sp39_ErP | C136: Sheet63 | D136: 8 | E136: 1 | F136: 0 | G136: 0 | H136: 0 | J136: ErP | K136: ErP | L136: 0 | O136: ErP | P136: 355 | Q136: 426 | R136: 72 | S136: 72 | T136: 406 | U136: -334 | V136: 406 | W136: -334 | X136: 144 | Y136: -668 | AC136: 12.0024 | AD136: 67.6802 | AE136: 0 | AF136: 0 | AG136: 0 | AH136: 0 | AI136: 0 | AJ136: 12.0024 | AK136: 0 | AL136: 12.0024 | AM136: 142.6035 | AN136: 165.0821 | AO136: 22.4786 | AP136: 954.9835681 | AQ136: 543.9882629 | AR136: 1005.462312 | AS136: 545.5678392 | AT136: 50.50345142 | AU136: 565.6386558 | AV136: 173.723838 | AW136: 1945.706985 | AX136: 3.439840904 | AY136: 162.1098268 | AZ136: 21.82946068 | BA136: 418 | BB136: 0.3166 | BC136: 20.07159453 | BD136: 418 | BE136: 0.3166 | BF136: 417 | BG136: 0.3166 | BH136: 425 | BI136: 0.3166 | BJ136: 0 | BK136: 0 | BL136: 0 | BM136: 0 | BO136: 0 | BQ136: 0 | BT136: 0 | BU136: 0 | BV136: 0 | BW136: 0 | BY136: 0 | CA136: 0 | CD136: 0 | CF136: 0 | CG136: 0 | CH136: 0 | CJ136: 0 | CK136: 0 | CL136: 0 | CN136: 0 | CO136: 0 | CP136: 0 | CR136: 0 | CT136: 0
A137: Cntrl ErP | B137: 11262018_sp39_ErP | C137: Sheet64 | D137: 3 | E137: 1 | F137: 0 | G137: 0 | H137: 0 | J137: ErP | K137: ErP | L137: 0 | O137: ErP | P137: 18 | Q137: 77 | R137: 60 | S137: 60 | T137: 57 | U137: 3 | V137: 57 | W137: 3 | X137: 120 | Y137: 6 | AC137: 10.002 | AD137: 9.5019 | AE137: 0 | AF137: 6 | AG137: 0 | AH137: 0 | AI137: 0 | AJ137: 0 | AK137: 9.5019 | AL137: 15.5019 | AM137: 58 | AN137: 72.3352 | AO137: 14.3352 | AP137: 644.8324022 | AQ137: 518.2458101 | AR137: 636.7286822 | AS137: 526.9793282 | AT137: 11.91405126 | AU137: 133.4373741 | AV137: 93.54604654 | AW137: 1047.715721 | AX137: 7.851741149 | AY137: 67.58627789 | AZ137: 15.31523649 | BA137: 19 | BB137: 2 | BC137: 13.05453775 | BD137: 19 | BE137: 2 | BF137: 20 | BG137: 2 | BH137: 38 | BI137: 0.1667 | BJ137: 1 | BK137: 0 | BL137: 0 | BM137: 0 | BO137: ErP | BP137: ErP | BQ137: 0 | BS137: ErP | BT137: 1 | BU137: 0 | BV137: 0 | BW137: 0 | BY137: ErP | BZ137: ErP | CA137: 0 | CC137: ErP | CD137: 0 | CF137: 0 | CG137: 0 | CH137: 0 | CJ137: 0 | CK137: 0 | CL137: 0 | CN137: 0 | CO137: 0 | CP137: 0 | CR137: 1 | CS137: ErP Expansion | CT137: 0 | CV137: ErP Expansion
A138: Cntrl ErP | B138: 11262018_sp39_ErP | C138: Sheet65 | D138: 4 | E138: 1 | F138: 0 | G138: 0 | H138: =IF(AND(E138=0,F138=1,G138=0),"MkP",) -> 0 | I138: =IF(H138=0, "", H138) ->  | J138: =IF(AND(E138=1,F138=0,G138=0),"ErP",) -> ErP | K138: =IF(J138=0, "", J138) -> ErP | L138: =IF(AND(E138=0,F138=0,G138=1),"MEP",) -> 0 | M138: =IF(L138=0, "", L138) ->  | O138: =CONCATENATE(I138,K138,M138) -> ErP | P138: 78 | Q138: 151 | R138: =Q138-P138+1 -> 74 | S138: =Q138-P138+1 -> 74 | T138: =Q138-20 -> 131 | U138: =20-P138+1 -> -57 | V138: =Q138-20 -> 131 | W138: =20-P138+1 -> -57 | X138: =2*S138 -> 148 | Y138: =2*U138 -> -114 | AC138: =0.1667*S138 -> 12.3358 | AD138: =0.1667*V138 -> 21.8377 | AE138: =IF(Q138<21,X138,0) -> 0 | AF138: =IF(AND(P138<21,Q138>20),Y138,0) -> 0 | AG138: =IF(AND(P138<21,Q138>20),Z138,0) -> 0 | AH138: =IF(AND(P138>21,Q138<20),AA138,0) -> 0 | AI138: =IF(AND(P138<21,Q138>20),AB138,0) -> 0 | AJ138: =IF(P138>20,AC138,0) -> 12.3358 | AK138: =IF(AND(P138<21,Q138>20),AD138,0) -> 0 | AL138: =SUM(AE138:AK138) -> 12.3358 | AM138: 72.5019 | AN138: 84.671 | AO138: 12.1691 | AP138: 641.0497512 | AQ138: 536.2139303 | AR138: 674.8044077 | AS138: 591.2479339 | AT138: 64.56096637 | AU138: =AT138*11.2 -> 723.0828233 | AV138: 107.4557796 | AW138: =AV138*11.2 -> 1203.504732 | AX138: =AW138/AU138 -> 1.664407856 | AY138: =AW138/AL138 -> 97.56195236 | AZ138: 26.65469692 | BA138: 139 | BB138: 0.1667 | BC138: 18.59786721 | BD138: 139 | BE138: 0.1667 | BF138: 133 | BG138: 0.1667 | BH138: 120 | BI138: 0.1667 | BJ138: 1 | BK138: 0 | BL138: 0 | BM138: =IF(AND(BJ138=0,BK138=1,BL138=0),"MkP",) -> 0 | BN138: =IF(BM138=0,"",BM138) ->  | BO138: =IF(AND(BJ138=1,BK138=0,BL138=0),"ErP",) -> ErP | BP138: =IF(BO138=0,"",BO138) -> ErP | BQ138: =IF(AND(BJ138=0,BK138=0,BL138=1),"MEP",) -> 0 | BR138: =IF(BQ138=0,"",BQ138) ->  | BS138: =CONCATENATE(BN138,BP138,BR138) -> ErP | BT138: 1 | BU138: 0 | BV138: 0 | BW138: =IF(AND(BT138=0,BU138=1,BV138=0),"MkP",) -> 0 | BX138: =IF(BW138=0,"",BW138) ->  | BY138: =IF(AND(BT138=1,BU138=0,BV138=0),"ErP",) -> ErP | BZ138: =IF(BY138=0,"",BY138) -> ErP | CA138: =IF(AND(BT138=0,BU138=0,BV138=1),"MEP",) -> 0 | CB138: =IF(CA138=0,"",CA138) ->  | CC138: =CONCATENATE(BX138,BZ138,CB138) -> ErP | CD138: =COUNTIFS(BS138,"MEP",CC138,"MEP") -> 0 | CE138: =IF(CD138=1, "MEP Expansion", "") ->  | CF138: =COUNTIFS(BS138,"MEP",CC138,"ErP") -> 0 | CG138: =COUNTIFS(BS138,"ErP",CC138,"MEP") -> 0 | CH138: =SUM(CF138:CG138) -> 0 | CI138: =IF(CH138=1, "MEP Maintenance+E", "") ->  | CJ138: =COUNTIFS(BS138,"MEP",CC138,"MkP") -> 0 | CK138: =COUNTIFS(BS138,"MkP",CC138,"MEP") -> 0 | CL138: =SUM(CJ138:CK138) -> 0 | CM138: =IF(CL138=1, "MEP Maintenance+Mk", "") ->  | CN138: =COUNTIFS(BS138,"MkP",CC138,"ErP") -> 0 | CO138: =COUNTIFS(BS138,"ErP",CC138,"MkP") -> 0 | CP138: =SUM(CN138:CO138) -> 0 | CQ138: =IF(CP138=1, "MEP Exhaustion", "") ->  | CR138: =COUNTIFS(BS138,"ErP",CC138,"ErP") -> 1 | CS138: =IF(CR138=1, "ErP Expansion", "") -> ErP Expansion | CT138: =COUNTIFS(BS138,"MkP",CC138,"MkP") -> 0 | CU138: =IF(CT138=1, "MkP Expansion", "") ->  | CV138: =CONCATENATE(CE138,CI138,CM138,CQ138,CS138,CU138) -> ErP Expansion
A139: Cntrl ErP | B139: 11262018_sp39_ErP | C139: Sheet66 | D139: 5 | E139: 1 | F139: 0 | G139: 0 | H139: 0 | J139: ErP | K139: ErP | L139: 0 | O139: ErP | P139: 152 | Q139: 227 | R139: 76 | S139: 76 | T139: 207 | U139: -131 | V139: 207 | W139: -131 | X139: 152 | Y139: -262 | AC139: 12.6692 | AD139: 34.5069 | AE139: 0 | AF139: 0 | AG139: 0 | AH139: 0 | AI139: 0 | AJ139: 12.6692 | AK139: 0 | AL139: 12.6692 | AM139: 84.8377 | AN139: 105.1498 | AO139: 20.3121 | AP139: 667.109589 | AQ139: 582.1267123 | AR139: 715.7078189 | AS139: 526.1728395 | AT139: 74.11223807 | AU139: 830.0570664 | AV139: 167.523615 | AW139: 1876.264489 | AX139: 2.260404211 | AY139: 148.0965245 | AZ139: 25.44233931 | BA139: 160 | BB139: 0.1667 | BC139: 22.02916215 | BD139: 160 | BE139: 0.1667 | BF139: 223 | BG139: 0.2883 | BH139: 185 | BI139: 0.2883 | BJ139: 1 | BK139: 0 | BL139: 0 | BM139: 0 | BO139: ErP | BP139: ErP | BQ139: 0 | BS139: ErP | BT139: 1 | BU139: 0 | BV139: 0 | BW139: 0 | BY139: ErP | BZ139: ErP | CA139: 0 | CC139: ErP | CD139: 0 | CF139: 0 | CG139: 0 | CH139: 0 | CJ139: 0 | CK139: 0 | CL139: 0 | CN139: 0 | CO139: 0 | CP139: 0 | CR139: 1 | CS139: ErP Expansion | CT139: 0 | CV139: ErP Expansion
A140: Cntrl ErP | B140: 11262018_sp39_ErP | C140: Sheet67 | D140: 6 | E140: 1 | F140: 0 | G140: 0 | H140: 0 | J140: ErP | K140: ErP | L140: 0 | O140: ErP | P140: 228 | Q140: 288 | R140: 61 | S140: 61 | T140: 268 | U140: -207 | V140: 268 | W140: -207 | X140: 122 | Y140: -414 | AC140: 10.1687 | AD140: 44.6756 | AE140: 0 | AF140: 0 | AG140: 0 | AH140: 0 | AI140: 0 | AJ140: 10.1687 | AK140: 0 | AL140: 10.1687 | AM140: 105.4381 | AN140: 122.7361 | AO140: 17.298 | AP140: 715.9452055 | AQ140: 532.7842466 | AR140: 744.271028 | AS140: 475.6485981 | AT140: 63.77173784 | AU140: 714.2434638 | AV140: 111.3553 | AW140: 1247.179361 | AX140: 1.746154391 | AY140: 122.64885 | AZ140: 44.86688448 | BA140: 230 | BB140: 0.2883 | BC140: 26.68360246 | BD140: 230 | BE140: 0.2883 | BF140: 232 | BG140: 0.2883 | BH140: 233 | BI140: 0.2883 | BJ140: 1 | BK140: 0 | BL140: 0 | BM140: 0 | BO140: ErP | BP140: ErP | BQ140: 0 | BS140: ErP | BT140: 1 | BU140: 0 | BV140: 0 | BW140: 0 | BY140: ErP | BZ140: ErP | CA140: 0 | CC140: ErP | CD140: 0 | CF140: 0 | CG140: 0 | CH140: 0 | CJ140: 0 | CK140: 0 | CL140: 0 | CN140: 0 | CO140: 0 | CP140: 0 | CR140: 1 | CS140: ErP Expansion | CT140: 0 | CV140: ErP Expansion
A141: Cntrl ErP | B141: 11262018_sp39_ErP | C141: Sheet68 | D141: 7 | E141: 1 | F141: 0 | G141: 0 | H141: 0 | J141: ErP | K141: ErP | L141: 0 | O141: ErP | P141: 289 | Q141: 309 | R141: 21 | S141: 21 | T141: 289 | U141: -268 | V141: 289 | W141: -268 | X141: 42 | Y141: -536 | AC141: 3.5007 | AD141: 48.1763 | AE141: 0 | AF141: 0 | AG141: 0 | AH141: 0 | AI141: 0 | AJ141: 3.5007 | AK141: 0 | AL141: 3.5007 | AM141: 123.0244 | AN141: 128.7904 | AO141: 5.766 | AP141: 750.0210526 | AQ141: 480.8315789 | AR141: 696.5215947 | AS141: 482.5722591 | AT141: 53.5277682 | AU141: 599.5110038 | AV141: 72.76611462 | AW141: 814.9804838 | AX141: 1.359408716 | AY141: 232.8050058 | AZ141: 17.82422493 | BA141: 306 | BB141: 0.2883 | BC141: 16.86815231 | BD141: 306 | BE141: 0.2883 | BF141: 307 | BG141: 0.2883 | BH141: 301 | BI141: 0.2883 | BJ141: 1 | BK141: 0 | BL141: 0 | BM141: 0 | BO141: ErP | BP141: ErP | BQ141: 0 | BS141: ErP | BT141: 1 | BU141: 0 | BV141: 0 | BW141: 0 | BY141: ErP | BZ141: ErP | CA141: 0 | CC141: ErP | CD141: 0 | CF141: 0 | CG141: 0 | CH141: 0 | CJ141: 0 | CK141: 0 | CL141: 0 | CN141: 0 | CO141: 0 | CP141: 0 | CR141: 1 | CS141: ErP Expansion | CT141: 0 | CV141: ErP Expansion
A142: Cntrl ErP | B142: 11262018_sp39_ErP | C142: Sheet69 | D142: 8 | E142: 1 | F142: 0 | G142: 0 | H142: 0 | J142: ErP | K142: ErP | L142: 0 | O142: ErP | P142: 310 | Q142: 397 | R142: 88 | S142: 88 | T142: 377 | U142: -289 | V142: 377 | W142: -289 | X142: 176 | Y142: -578 | AC142: 14.6696 | AD142: 62.8459 | AE142: 0 | AF142: 0 | AG142: 0 | AH142: 0 | AI142: 0 | AJ142: 14.6696 | AK142: 0 | AL142: 14.6696 | AM142: 129.0787 | AN142: 155.9007 | AO142: 26.822 | AP142: 682.4150653 | AQ142: 475.6664105 | AR142: 779.1395349 | AS142: 395.7290192 | AT142: 125.4815107 | AU142: 1405.39292 | AV142: 633.3264613 | AW142: 7093.256367 | AX142: 5.047169561 | AY142: 483.534409 | AZ142: 43.41640435 | BA142: 329 | BB142: 0.2883 | BC142: 38.67747937 | BD142: 329 | BE142: 0.2883 | BF142: 331 | BG142: 0.2883 | BH142: 336 | BI142: 0.2883 | BJ142: 1 | BK142: 0 | BL142: 0 | BM142: 0 | BO142: ErP | BP142: ErP | BQ142: 0 | BS142: ErP | BT142: 1 | BU142: 0 | BV142: 0 | BW142: 0 | BY142: ErP | BZ142: ErP | CA142: 0 | CC142: ErP | CD142: 0 | CF142: 0 | CG142: 0 | CH142: 0 | CJ142: 0 | CK142: 0 | CL142: 0 | CN142: 0 | CO142: 0 | CP142: 0 | CR142: 1 | CS142: ErP Expansion | CT142: 0 | CV142: ErP Expansion
A143: Cntrl ErP | B143: 11262018_sp39_ErP | C143: Sheet70 | D143: 9 | E143: 1 | F143: 0 | G143: 0 | H143: 0 | J143: ErP | K143: ErP | L143: 0 | O143: ErP | P143: 398 | Q143: 479 | R143: 82 | S143: 82 | T143: 459 | U143: -377 | V143: 459 | W143: -377 | X143: 164 | Y143: -754 | AC143: 13.6694 | AD143: 76.5153 | AE143: 0 | AF143: 0 | AG143: 0 | AH143: 0 | AI143: 0 | AJ143: 13.6694 | AK143: 0 | AL143: 13.6694 | AM143: 156.2173 | AN143: 181.8619 | AO143: 25.6446 | AP143: 788.6447368 | AQ143: 376.1973684 | AR143: 764.2929293 | AS143: 342.4090909 | AT143: 41.64922842 | AU143: 466.4713583 | AV143: 400.2843979 | AW143: 4483.185256 | AX143: 9.610847861 | AY143: 327.9723511 | AZ143: 24.09372052 | BA143: 471 | BB143: 0.3166 | BC143: 23.13665843 | BD143: 471 | BE143: 0.3166 | BF143: 472 | BG143: 0.3166 | BH143: 460 | BI143: 0.3166 | BJ143: 0 | BK143: 0 | BL143: 0 | BM143: 0 | BO143: 0 | BQ143: 0 | BT143: 0 | BU143: 0 | BV143: 0 | BW143: 0 | BY143: 0 | CA143: 0 | CD143: 0 | CF143: 0 | CG143: 0 | CH143: 0 | CJ143: 0 | CK143: 0 | CL143: 0 | CN143: 0 | CO143: 0 | CP143: 0 | CR143: 0 | CT143: 0
A144: Cntrl ErP | B144: 11262018_sp39_ErP | C144: Sheet71 | D144: 9 | E144: 1 | F144: 0 | G144: 0 | H144: 0 | J144: ErP | K144: ErP | L144: 0 | O144: ErP | P144: 398 | Q144: 434 | R144: 37 | S144: 37 | T144: 414 | U144: -377 | V144: 414 | W144: -377 | X144: 74 | Y144: -754 | AC144: 6.1679 | AD144: 69.0138 | AE144: 0 | AF144: 0 | AG144: 0 | AH144: 0 | AI144: 0 | AJ144: 6.1679 | AK144: 0 | AL144: 6.1679 | AM144: 156.2173 | AN144: 167.6149 | AO144: 11.3976 | AP144: 782.2298851 | AQ144: 383.091954 | AR144: 796.8984064 | AS144: 398.9621514 | AT144: 21.6108464 | AU144: 242.0414797 | AV144: 253.4328494 | AW144: 2838.447913 | AX144: 11.72711354 | AY144: 460.1968114 | AZ144: 25.5513773 | BA144: 425 | BB144: 0.3166 | BC144: 22.56519449 | BD144: 425 | BE144: 0.3166 | BF144: 428 | BG144: 0.3166 | BH144: 407 | BI144: 0.3166 | BJ144: 1 | BK144: 0 | BL144: 0 | BM144: 0 | BO144: ErP | BP144: ErP | BQ144: 0 | BS144: ErP | BT144: 1 | BU144: 0 | BV144: 0 | BW144: 0 | BY144: ErP | BZ144: ErP | CA144: 0 | CC144: ErP | CD144: 0 | CF144: 0 | CG144: 0 | CH144: 0 | CJ144: 0 | CK144: 0 | CL144: 0 | CN144: 0 | CO144: 0 | CP144: 0 | CR144: 1 | CS144: ErP Expansion | CT144: 0 | CV144: ErP Expansion
A145: Cntrl ErP | B145: 11262018_sp39_ErP | C145: Sheet72 | D145: 10 | E145: 1 | F145: 0 | G145: 0 | H145: 0 | J145: ErP | K145: ErP | L145: 0 | O145: ErP | P145: 435 | Q145: 479 | R145: 45 | S145: 45 | T145: 459 | U145: -414 | V145: 459 | W145: -414 | X145: 90 | Y145: -828 | AC145: 7.5015 | AD145: 76.5153 | AE145: 0 | AF145: 0 | AG145: 0 | AH145: 0 | AI145: 0 | AJ145: 7.5015 | AK145: 0 | AL145: 7.5015 | AM145: 167.9315 | AN145: 181.8619 | AO145: 13.9304 | AP145: 797.1621129 | AQ145: 410.154827 | AR145: 754.1843137 | AS145: 403.572549 | AT145: 43.47893292 | AU145: 486.9640487 | AV145: 230.9432212 | AW145: 2586.564077 | AX145: 5.311611985 | AY145: 344.806249 | AZ145: 27.77991212 | BA145: 472 | BB145: 0.3166 | BC145: 23.29552915 | BD145: 472 | BE145: 0.3166 | BF145: 474 | BG145: 0.3166 | BH145: 439 | BI145: 0.3166 | BJ145: 0 | BK145: 0 | BL145: 0 | BM145: 0 | BO145: 0 | BQ145: 0 | BT145: 0 | BU145: 0 | BV145: 0 | BW145: 0 | BY145: 0 | CA145: 0 | CD145: 0 | CF145: 0 | CG145: 0 | CH145: 0 | CJ145: 0 | CK145: 0 | CL145: 0 | CN145: 0 | CO145: 0 | CP145: 0 | CR145: 0 | CT145: 0
A146: Cntrl ErP | B146: 11262018_sp39_ErP | C146: Sheet73 | D146: 10 | E146: 1 | F146: 0 | G146: 0 | H146: 0 | J146: ErP | K146: ErP | L146: 0 | O146: ErP | P146: 435 | Q146: 435 | R146: 1 | S146: 1 | T146: 415 | U146: -414 | V146: 415 | W146: -414 | X146: 2 | Y146: -828 | AC146: 0.1667 | AD146: 69.1805 | AE146: 0 | AF146: 0 | AG146: 0 | AH146: 0 | AI146: 0 | AJ146: 0.1667 | AK146: 0 | AL146: 0.1667 | AM146: 167.9315 | AN146: 167.9315 | AO146: 0 | AP146: 815.6586957 | AQ146: 412.4021739 | AR146: 815.6586957 | AS146: 412.4021739 | AT146: 0 | AU146: 0 | AV146: 0 | AW146: 0 | AY146: 0 | AZ146: 0 | BJ146: 0 | BK146: 0 | BL146: 0 | BM146: 0 | BO146: 0 | BQ146: 0 | BT146: 0 | BU146: 0 | BV146: 0 | BW146: 0 | BY146: 0 | CA146: 0 | CD146: 0 | CF146: 0 | CG146: 0 | CH146: 0 | CJ146: 0 | CK146: 0 | CL146: 0 | CN146: 0 | CO146: 0 | CP146: 0 | CR146: 0 | CT146: 0
A147: Cntrl ErP | B147: 11262018_sp39_ErP | C147: Sheet74 | D147: 8 | E147: 1 | F147: 0 | G147: 0 | H147: 0 | J147: ErP | K147: ErP | L147: 0 | O147: ErP | P147: 310 | Q147: 310 | R147: 1 | S147: 1 | T147: 290 | U147: -289 | V147: 290 | W147: -289 | X147: 2 | Y147: -578 | AC147: 0.1667 | AD147: 48.343 | AE147: 0 | AF147: 0 | AG147: 0 | AH147: 0 | AI147: 0 | AJ147: 0.1667 | AK147: 0 | AL147: 0.1667 | AM147: 129.0787 | AN147: 129.0787 | AO147: 0 | AP147: 713.2207084 | AQ147: 492.1117166 | AR147: 713.2207084 | AS147: 492.1117166 | AT147: 0 | AU147: 0 | AV147: 0 | AW147: 0 | AY147: 0 | AZ147: 0 | BJ147: 0 | BK147: 0 | BL147: 0 | BM147: 0 | BO147: 0 | BQ147: 0 | BT147: 0 | BU147: 0 | BV147: 0 | BW147: 0 | BY147: 0 | CA147: 0 | CD147: 0 | CF147: 0 | CG147: 0 | CH147: 0 | CJ147: 0 | CK147: 0 | CL147: 0 | CN147: 0 | CO147: 0 | CP147: 0 | CR147: 0 | CT147: 0
A148: Cntrl ErP | B148: 11262018_sp39_ErP | C148: Sheet75 | D148: 7 | E148: 1 | F148: 0 | G148: 0 | H148: 0 | J148: ErP | K148: ErP | L148: 0 | O148: ErP | P148: 289 | Q148: 289 | R148: 1 | S148: 1 | T148: 269 | U148: -268 | V148: 269 | W148: -268 | X148: 2 | Y148: -536 | AC148: 0.1667 | AD148: 44.8423 | AE148: 0 | AF148: 0 | AG148: 0 | AH148: 0 | AI148: 0 | AJ148: 0.1667 | AK148: 0 | AL148: 0.1667 | AM148: 123.0244 | AN148: 123.0244 | AO148: 0 | AP148: 738.9937107 | AQ148: 472.2830189 | AR148: 738.9937107 | AS148: 472.2830189 | AT148: 0 | AU148: 0 | AV148: 0 | AW148: 0 | AY148: 0 | AZ148: 0 | BJ148: 0 | BK148: 0 | BL148: 0 | BM148: 0 | BO148: 0 | BQ148: 0 | BT148: 0 | BU148: 0 | BV148: 0 | BW148: 0 | BY148: 0 | CA148: 0 | CD148: 0 | CF148: 0 | CG148: 0 | CH148: 0 | CJ148: 0 | CK148: 0 | CL148: 0 | CN148: 0 | CO148: 0 | CP148: 0 | CR148: 0 | CT148: 0
A149: Cntrl ErP | B149: 11262018_sp39_ErP | C149: Sheet76 | D149: 6 | E149: 1 | F149: 0 | G149: 0 | H149: 0 | J149: ErP | K149: ErP | L149: 0 | O149: ErP | P149: 228 | Q149: 436 | R149: 209 | S149: 209 | T149: 416 | U149: -207 | V149: 416 | W149: -207 | X149: 418 | Y149: -414 | AC149: 34.8403 | AD149: 69.3472 | AE149: 0 | AF149: 0 | AG149: 0 | AH149: 0 | AI149: 0 | AJ149: 34.8403 | AK149: 0 | AL149: 34.8403 | AM149: 105.4381 | AN149: 168.2481 | AO149: 62.81 | AP149: 711.1654412 | AQ149: 517.0845588 | AR149: 772.521978 | AS149: 410.4340659 | AT149: 123.0404496 | AU149: 1378.053036 | AV149: 857.0344693 | AW149: 9598.786056 | AX149: 6.965469256 | AY149: 275.5081344 | AZ149: 43.92406992 | BA149: 230 | BB149: 0.2883 | BC149: 37.17927526 | BD149: 230 | BE149: 0.2883 | BF149: 404 | BG149: 0.3166 | BH149: 406 | BI149: 0.3166 | BJ149: 0 | BK149: 0 | BL149: 0 | BM149: 0 | BO149: 0 | BQ149: 0 | BT149: 0 | BU149: 0 | BV149: 0 | BW149: 0 | BY149: 0 | CA149: 0 | CD149: 0 | CF149: 0 | CG149: 0 | CH149: 0 | CJ149: 0 | CK149: 0 | CL149: 0 | CN149: 0 | CO149: 0 | CP149: 0 | CR149: 0 | CT149: 0
A150: Cntrl ErP | B150: 11262018_sp39_ErP | C150: Sheet77 | D150: 5 | E150: 1 | F150: 0 | G150: 0 | H150: 0 | J150: ErP | K150: ErP | L150: 0 | O150: ErP | P150: 152 | Q150: 222 | R150: 71 | S150: 71 | T150: 202 | U150: -131 | V150: 202 | W150: -131 | X150: 142 | Y150: -262 | AC150: 11.8357 | AD150: 33.6734 | AE150: 0 | AF150: 0 | AG150: 0 | AH150: 0 | AI150: 0 | AJ150: 11.8357 | AK150: 0 | AL150: 11.8357 | AM150: 84.8377 | AN150: 103.7083 | AO150: 18.8706 | AP150: 680.9115385 | AQ150: 591.8192308 | AR150: 713.1371769 | AS150: 554.6819085 | AT150: 49.169833 | AU150: 550.7021296 | AV150: 140.7216678 | AW150: 1576.082679 | AX150: 2.861951306 | AY150: 133.1634529 | AZ150: 20.94660647 | BA150: 160 | BB150: 0.1667 | BC150: 18.26310132 | BD150: 160 | BE150: 0.1667 | BF150: 185 | BG150: 0.2883 | BH150: 177 | BI150: 0.2883 | BJ150: 1 | BK150: 0 | BL150: 0 | BM150: 0 | BO150: ErP | BP150: ErP | BQ150: 0 | BS150: ErP | BT150: 1 | BU150: 0 | BV150: 0 | BW150: 0 | BY150: ErP | BZ150: ErP | CA150: 0 | CC150: ErP | CD150: 0 | CF150: 0 | CG150: 0 | CH150: 0 | CJ150: 0 | CK150: 0 | CL150: 0 | CN150: 0 | CO150: 0 | CP150: 0 | CR150: 1 | CS150: ErP Expansion | CT150: 0 | CV150: ErP Expansion
A151: Cntrl ErP | B151: 11262018_sp39_ErP | C151: Sheet78 | D151: 6 | E151: 1 | F151: 0 | G151: 0 | H151: 0 | J151: ErP | K151: ErP | L151: 0 | O151: ErP | P151: 223 | Q151: 289 | R151: 67 | S151: 67 | T151: 269 | U151: -202 | V151: 269 | W151: -202 | X151: 134 | Y151: -404 | AC151: 11.1689 | AD151: 44.8423 | AE151: 0 | AF151: 0 | AG151: 0 | AH151: 0 | AI151: 0 | AJ151: 11.1689 | AK151: 0 | AL151: 11.1689 | AM151: 103.9966 | AN151: 123.0244 | AO151: 19.0278 | AP151: 718.0488889 | AQ151: 528.2 | AR151: 720.1694915 | AS151: 476.6661017 | AT151: 51.57751089 | AU151: 577.668122 | AV151: 131.6906265 | AW151: 1474.935017 | AX151: 2.553256724 | AY151: 132.0573214 | AZ151: 43.08603128 | BA151: 230 | BB151: 0.2883 | BC151: 29.14875529 | BD151: 230 | BE151: 0.2883 | BF151: 281 | BG151: 0.2883 | BH151: 232 | BI151: 0.2883 | BJ151: 1 | BK151: 0 | BL151: 0 | BM151: 0 | BO151: ErP | BP151: ErP | BQ151: 0 | BS151: ErP | BT151: 1 | BU151: 0 | BV151: 0 | BW151: 0 | BY151: ErP | BZ151: ErP | CA151: 0 | CC151: ErP | CD151: 0 | CF151: 0 | CG151: 0 | CH151: 0 | CJ151: 0 | CK151: 0 | CL151: 0 | CN151: 0 | CO151: 0 | CP151: 0 | CR151: 1 | CS151: ErP Expansion | CT151: 0 | CV151: ErP Expansion
A152: Cntrl ErP | B152: 11262018_sp39_ErP | C152: Sheet79 | D152: 7 | E152: 1 | F152: 0 | G152: 0 | H152: 0 | J152: ErP | K152: ErP | L152: 0 | O152: ErP | P152: 290 | Q152: 479 | R152: 190 | S152: 190 | T152: 459 | U152: -269 | V152: 459 | W152: -269 | X152: 380 | Y152: -538 | AC152: 31.673 | AD152: 76.5153 | AE152: 0 | AF152: 0 | AG152: 0 | AH152: 0 | AI152: 0 | AJ152: 31.673 | AK152: 0 | AL152: 31.673 | AM152: 123.3127 | AN152: 181.8619 | AO152: 58.5492 | AP152: 702.8806283 | AQ152: 478.3706806 | AR152: 694.7647059 | AS152: 497.3882353 | AT152: 20.67693357 | AU152: 231.5816559 | AV152: 822.8976878 | AW152: 9216.454103 | AX152: 39.79785906 | AY152: 290.9877215 | AZ152: 28.63578669 | BA152: 357 | BB152: 0.3166 | BC152: 27.00016897 | BD152: 357 | BE152: 0.3166 | BF152: 364 | BG152: 0.3166 | BH152: 439 | BI152: 0.3166 | BJ152: 0 | BK152: 0 | BL152: 0 | BM152: 0 | BO152: 0 | BQ152: 0 | BT152: 0 | BU152: 0 | BV152: 0 | BW152: 0 | BY152: 0 | CA152: 0 | CD152: 0 | CF152: 0 | CG152: 0 | CH152: 0 | CJ152: 0 | CK152: 0 | CL152: 0 | CN152: 0 | CO152: 0 | CP152: 0 | CR152: 0 | CT152: 0
A153: Cntrl ErP | B153: 11262018_sp39_ErP | C153: Sheet80 | D153: 7 | E153: 1 | F153: 0 | G153: 0 | H153: 0 | J153: ErP | K153: ErP | L153: 0 | O153: ErP | P153: 290 | Q153: 304 | R153: 15 | S153: 15 | T153: 284 | U153: -269 | V153: 284 | W153: -269 | X153: 30 | Y153: -538 | AC153: 2.5005 | AD153: 47.3428 | AE153: 0 | AF153: 0 | AG153: 0 | AH153: 0 | AI153: 0 | AJ153: 2.5005 | AK153: 0 | AL153: 2.5005 | AM153: 123.3127 | AN153: 127.3489 | AO153: 4.0362 | AP153: 726.0980392 | AQ153: 475.6498599 | AR153: 737.6 | AS153: 443.8566372 | AT153: 33.80982278 | AU153: 378.6700151 | AV153: 50.94492652 | AW153: 570.5831771 | AX153: 1.506808446 | AY153: 228.1876333 | AZ153: 22.10677435 | BA153: 294 | BB153: 0.2883 | BC153: 18.90761911 | BD153: 294 | BE153: 0.2883 | BF153: 300 | BG153: 0.2883 | BH153: 301 | BI153: 0.2883 | BJ153: 1 | BK153: 0 | BL153: 0 | BM153: 0 | BO153: ErP | BP153: ErP | BQ153: 0 | BS153: ErP | BT153: 1 | BU153: 0 | BV153: 0 | BW153: 0 | BY153: ErP | BZ153: ErP | CA153: 0 | CC153: ErP | CD153: 0 | CF153: 0 | CG153: 0 | CH153: 0 | CJ153: 0 | CK153: 0 | CL153: 0 | CN153: 0 | CO153: 0 | CP153: 0 | CR153: 1 | CS153: ErP Expansion | CT153: 0 | CV153: ErP Expansion
A154: Cntrl ErP | B154: 11262018_sp39_ErP | C154: Sheet81 | D154: 8 | E154: 1 | F154: 0 | G154: 0 | H154: 0 | J154: ErP | K154: ErP | L154: 0 | O154: ErP | P154: 305 | Q154: 349 | R154: 45 | S154: 45 | T154: 329 | U154: -284 | V154: 329 | W154: -284 | X154: 90 | Y154: -568 | AC154: 7.5015 | AD154: 54.8443 | AE154: 0 | AF154: 0 | AG154: 0 | AH154: 0 | AI154: 0 | AJ154: 7.5015 | AK154: 0 | AL154: 7.5015 | AM154: 127.6372 | AN154: 140.7039 | AO154: 13.0667 | AP154: 725.2327586 | AQ154: 448.1982759 | AR154: 719.3027523 | AS154: 421.8256881 | AT154: 27.0310629 | AU154: 302.7479045 | AV154: 241.0589594 | AW154: 2699.860345 | AX154: 8.917849817 | AY154: 359.9093974 | AZ154: 28.31951977 | BA154: 321 | BB154: 0.2883 | BC154: 25.95004659 | BD154: 321 | BE154: 0.2883 | BF154: 320 | BG154: 0.2883 | BH154: 344 | BI154: 0.3166 | BJ154: 1 | BK154: 0 | BL154: 0 | BM154: 0 | BO154: ErP | BP154: ErP | BQ154: 0 | BS154: ErP | BT154: 1 | BU154: 0 | BV154: 0 | BW154: 0 | BY154: ErP | BZ154: ErP | CA154: 0 | CC154: ErP | CD154: 0 | CF154: 0 | CG154: 0 | CH154: 0 | CJ154: 0 | CK154: 0 | CL154: 0 | CN154: 0 | CO154: 0 | CP154: 0 | CR154: 1 | CS154: ErP Expansion | CT154: 0 | CV154: ErP Expansion
A155: Cntrl ErP | B155: 11262018_sp39_ErP | C155: Sheet82 | D155: 9 | E155: 1 | F155: 0 | G155: 0 | H155: 0 | J155: ErP | K155: ErP | L155: 0 | O155: ErP | P155: 350 | Q155: 356 | R155: 7 | S155: 7 | T155: 336 | U155: -329 | V155: 336 | W155: -329 | X155: 14 | Y155: -658 | AC155: 1.1669 | AD155: 56.0112 | AE155: 0 | AF155: 0 | AG155: 0 | AH155: 0 | AI155: 0 | AJ155: 1.1669 | AK155: 0 | AL155: 1.1669 | AM155: 141.0205 | AN155: 142.9201 | AO155: 1.8996 | AP155: 725.4342508 | AQ155: 413.8318043 | AR155: 726.5067961 | AS155: 403.6815534 | AT155: 10.20675984 | AU155: 114.3157103 | AV155: 34.39990963 | AW155: 385.2789878 | AX155: 3.370306557 | AY155: 330.1730978 | AZ155: 20.02094251 | BA155: 352 | BB155: 0.3166 | BC155: 14.85292196 | BD155: 352 | BE155: 0.3166 | BF155: 356 | BG155: 0.3166 | BH155: 355 | BI155: 0.3166 | BJ155: 1 | BK155: 0 | BL155: 0 | BM155: 0 | BO155: ErP | BP155: ErP | BQ155: 0 | BS155: ErP | BT155: 1 | BU155: 0 | BV155: 0 | BW155: 0 | BY155: ErP | BZ155: ErP | CA155: 0 | CC155: ErP | CD155: 0 | CF155: 0 | CG155: 0 | CH155: 0 | CJ155: 0 | CK155: 0 | CL155: 0 | CN155: 0 | CO155: 0 | CP155: 0 | CR155: 1 | CS155: ErP Expansion | CT155: 0 | CV155: ErP Expansion
A156: Cntrl ErP | B156: 11262018_sp39_ErP | C156: Sheet83 | D156: 10 | E156: 1 | F156: 0 | G156: 0 | H156: 0 | J156: ErP | K156: ErP | L156: 0 | O156: ErP | P156: 357 | Q156: 383 | R156: 27 | S156: 27 | T156: 363 | U156: -336 | V156: 363 | W156: -336 | X156: 54 | Y156: -672 | AC156: 4.5009 | AD156: 60.5121 | AE156: 0 | AF156: 0 | AG156: 0 | AH156: 0 | AI156: 0 | AJ156: 4.5009 | AK156: 0 | AL156: 4.5009 | AM156: 143.2367 | AN156: 151.4683 | AO156: 8.2316 | AP156: 717.2560554 | AQ156: 406.1418685 | AR156: 699.8010471 | AS156: 410.2643979 | AT156: 17.9352324 | AU156: 200.8746029 | AV156: 200.4037586 | AW156: 2244.522097 | AX156: 11.17374752 | AY156: 498.6829516 | AZ156: 27.44981279 | BA156: 380 | BB156: 0.3166 | BC156: 23.47925058 | BD156: 380 | BE156: 0.3166 | BF156: 359 | BG156: 0.3166 | BH156: 358 | BI156: 0.3166 | BJ156: 1 | BK156: 0 | BL156: 0 | BM156: 0 | BO156: ErP | BP156: ErP | BQ156: 0 | BS156: ErP | BT156: 1 | BU156: 0 | BV156: 0 | BW156: 0 | BY156: ErP | BZ156: ErP | CA156: 0 | CC156: ErP | CD156: 0 | CF156: 0 | CG156: 0 | CH156: 0 | CJ156: 0 | CK156: 0 | CL156: 0 | CN156: 0 | CO156: 0 | CP156: 0 | CR156: 1 | CS156: ErP Expansion | CT156: 0 | CV156: ErP Expansion
A157: Cntrl ErP | B157: 11262018_sp39_ErP | C157: Sheet84 | D157: 11 | E157: 1 | F157: 0 | G157: 0 | H157: 0 | J157: ErP | K157: ErP | L157: 0 | O157: ErP | P157: 384 | Q157: 424 | R157: 41 | S157: 41 | T157: 404 | U157: -363 | V157: 404 | W157: -363 | X157: 82 | Y157: -726 | AC157: 6.8347 | AD157: 67.3468 | AE157: 0 | AF157: 0 | AG157: 0 | AH157: 0 | AI157: 0 | AJ157: 6.8347 | AK157: 0 | AL157: 6.8347 | AM157: 151.7849 | AN157: 164.4489 | AO157: 12.664 | AP157: 699.6475904 | AQ157: 394.2620482 | AR157: 746.6170635 | AS157: 385.7857143 | AT157: 47.72818499 | AU157: 534.5556719 | AV157: 111.2009118 | AW157: 1245.450213 | AX157: 2.329879334 | AY157: 182.2245618 | AZ157: 19.37331978 | BA157: 392 | BB157: 0.3166 | BC157: 18.93685614 | BD157: 392 | BE157: 0.3166 | BF157: 391 | BG157: 0.3166 | BH157: 389 | BI157: 0.3166 | BJ157: 1 | BK157: 0 | BL157: 0 | BM157: 0 | BO157: ErP | BP157: ErP | BQ157: 0 | BS157: ErP | BT157: 1 | BU157: 0 | BV157: 0 | BW157: 0 | BY157: ErP | BZ157: ErP | CA157: 0 | CC157: ErP | CD157: 0 | CF157: 0 | CG157: 0 | CH157: 0 | CJ157: 0 | CK157: 0 | CL157: 0 | CN157: 0 | CO157: 0 | CP157: 0 | CR157: 1 | CS157: ErP Expansion | CT157: 0 | CV157: ErP Expansion
A158: Cntrl ErP | B158: 11262018_sp39_ErP | C158: Sheet85 | D158: 12 | E158: 1 | F158: 0 | G158: 0 | H158: 0 | J158: ErP | K158: ErP | L158: 0 | O158: ErP | P158: 425 | Q158: 479 | R158: 55 | S158: 55 | T158: 459 | U158: -404 | V158: 459 | W158: -404 | X158: 110 | Y158: -808 | AC158: 9.1685 | AD158: 76.5153 | AE158: 0 | AF158: 0 | AG158: 0 | AH158: 0 | AI158: 0 | AJ158: 9.1685 | AK158: 0 | AL158: 9.1685 | AM158: 164.7655 | AN158: 181.8619 | AO158: 17.0964 | AP158: 730.6018925 | AQ158: 347.1966305 | AR158: 666.7919463 | AS158: 392.4228188 | AT158: 78.21200249 | AU158: 875.9744279 | AV158: 372.8686488 | AW158: 4176.128867 | AX158: 4.767409566 | AY158: 455.4865973 | AZ158: 35.12663198 | BA158: 426 | BB158: 0.3166 | BC158: 30.45814001 | BD158: 426 | BE158: 0.3166 | BF158: 439 | BG158: 0.3166 | BH158: 437 | BI158: 0.3166 | BJ158: 0 | BK158: 0 | BL158: 0 | BM158: 0 | BO158: 0 | BQ158: 0 | BT158: 0 | BU158: 0 | BV158: 0 | BW158: 0 | BY158: 0 | CA158: 0 | CD158: 0 | CF158: 0 | CG158: 0 | CH158: 0 | CJ158: 0 | CK158: 0 | CL158: 0 | CN158: 0 | CO158: 0 | CP158: 0 | CR158: 0 | CT158: 0
A159: Cntrl ErP | B159: 11262018_sp39_ErP | C159: Sheet86 | D159: 12 | E159: 1 | F159: 0 | G159: 0 | H159: 0 | J159: ErP | K159: ErP | L159: 0 | O159: ErP | P159: 425 | Q159: 428 | R159: 4 | S159: 4 | T159: 408 | U159: -404 | V159: 408 | W159: -404 | X159: 8 | Y159: -808 | AC159: 0.6668 | AD159: 68.0136 | AE159: 0 | AF159: 0 | AG159: 0 | AH159: 0 | AI159: 0 | AJ159: 0.6668 | AK159: 0 | AL159: 0.6668 | AM159: 164.7655 | AN159: 165.7153 | AO159: 0.9498 | AP159: 753.9261745 | AQ159: 390.3154362 | AR159: 751.3168605 | AS159: 389.0261628 | AT159: 2.91045456 | AU159: 32.59709107 | AV159: 3.647453565 | AW159: 40.85147993 | AX159: 1.253224708 | AY159: 61.2649669 | AZ159: 4.252942735 | BA159: 426 | BB159: 0.3166 | BC159: 1.884988923 | BD159: 426 | BE159: 0.3166 | BF159: 428 | BG159: 0.3166 | BH159: 427 | BI159: 0.3166 | BJ159: 1 | BK159: 0 | BL159: 0 | BM159: 0 | BO159: ErP | BP159: ErP | BQ159: 0 | BS159: ErP | BT159: 1 | BU159: 0 | BV159: 0 | BW159: 0 | BY159: ErP | BZ159: ErP | CA159: 0 | CC159: ErP | CD159: 0 | CF159: 0 | CG159: 0 | CH159: 0 | CJ159: 0 | CK159: 0 | CL159: 0 | CN159: 0 | CO159: 0 | CP159: 0 | CR159: 1 | CS159: ErP Expansion | CT159: 0 | CV159: ErP Expansion
A160: Cntrl ErP | B160: 11262018_sp39_ErP | C160: Sheet87 | D160: 13 | E160: 1 | F160: 0 | G160: 0 | H160: 0 | J160: ErP | K160: ErP | L160: 0 | O160: ErP | P160: 429 | Q160: 479 | R160: 51 | S160: 51 | T160: 459 | U160: -408 | V160: 459 | W160: -408 | X160: 102 | Y160: -816 | AC160: 8.5017 | AD160: 76.5153 | AE160: 0 | AF160: 0 | AG160: 0 | AH160: 0 | AI160: 0 | AJ160: 8.5017 | AK160: 0 | AL160: 8.5017 | AM160: 166.0319 | AN160: 181.8619 | AO160: 15.83 | AP160: 735.1540284 | AQ160: 404.9099526 | AR160: 618.5973154 | AS160: 403.0503356 | AT160: 116.5715468 | AU160: 1305.601324 | AV160: 392.5914687 | AW160: 4397.024449 | AX160: 3.367815556 | AY160: 517.1935553 | AZ160: 58.42039624 | BA160: 434 | BB160: 0.3166 | BC160: 57.06655733 | BD160: 434 | BE160: 0.3166 | BF160: 431 | BG160: 0.3166 | BH160: 432 | BI160: 0.3166 | BJ160: 0 | BK160: 0 | BL160: 0 | BM160: 0 | BO160: 0 | BQ160: 0 | BT160: 0 | BU160: 0 | BV160: 0 | BW160: 0 | BY160: 0 | CA160: 0 | CD160: 0 | CF160: 0 | CG160: 0 | CH160: 0 | CJ160: 0 | CK160: 0 | CL160: 0 | CN160: 0 | CO160: 0 | CP160: 0 | CR160: 0 | CT160: 0
A161: Cntrl ErP | B161: 11262018_sp39_ErP | C161: Sheet88 | D161: 13 | E161: 1 | F161: 0 | G161: 0 | H161: 0 | J161: ErP | K161: ErP | L161: 0 | O161: ErP | P161: 429 | Q161: 479 | R161: 51 | S161: 51 | T161: 459 | U161: -408 | V161: 459 | W161: -408 | X161: 102 | Y161: -816 | AC161: 8.5017 | AD161: 76.5153 | AE161: 0 | AF161: 0 | AG161: 0 | AH161: 0 | AI161: 0 | AJ161: 8.5017 | AK161: 0 | AL161: 8.5017 | AM161: 166.0319 | AN161: 181.8619 | AO161: 15.83 | AP161: 695.2090023 | AQ161: 346.8758601 | AR161: 814.5068966 | AS161: 371.6724138 | AT161: 121.8476781 | AU161: 1364.693994 | AV161: 297.3666467 | AW161: 3330.506443 | AX161: 2.440478566 | AY161: 391.7459382 | AZ161: 112.0659543 | BA161: 430 | BB161: 0.3166 | BC161: 83.3645223 | BD161: 430 | BE161: 0.3166 | BF161: 434 | BG161: 0.3166 | BH161: 438 | BI161: 0.3166 | BJ161: 0 | BK161: 0 | BL161: 0 | BM161: 0 | BO161: 0 | BQ161: 0 | BT161: 0 | BU161: 0 | BV161: 0 | BW161: 0 | BY161: 0 | CA161: 0 | CD161: 0 | CF161: 0 | CG161: 0 | CH161: 0 | CJ161: 0 | CK161: 0 | CL161: 0 | CN161: 0 | CO161: 0 | CP161: 0 | CR161: 0 | CT161: 0
A162: Cntrl ErP | B162: 11262018_sp39_ErP | C162: Sheet89 | D162: 11 | E162: 1 | F162: 0 | G162: 0 | H162: 0 | J162: ErP | K162: ErP | L162: 0 | O162: ErP | P162: 384 | Q162: 384 | R162: 1 | S162: 1 | T162: 364 | U162: -363 | V162: 364 | W162: -363 | X162: 2 | Y162: -726 | AC162: 0.1667 | AD162: 60.6788 | AE162: 0 | AF162: 0 | AG162: 0 | AH162: 0 | AI162: 0 | AJ162: 0.1667 | AK162: 0 | AL162: 0.1667 | AM162: 151.7849 | AN162: 151.7849 | AO162: 0 | AP162: 689.9521531 | AQ162: 442.8755981 | AR162: 689.9521531 | AS162: 442.8755981 | AT162: 0 | AU162: 0 | AV162: 0 | AW162: 0 | AY162: 0 | AZ162: 0 | BJ162: 0 | BK162: 0 | BL162: 0 | BM162: 0 | BO162: 0 | BQ162: 0 | BT162: 0 | BU162: 0 | BV162: 0 | BW162: 0 | BY162: 0 | CA162: 0 | CD162: 0 | CF162: 0 | CG162: 0 | CH162: 0 | CJ162: 0 | CK162: 0 | CL162: 0 | CN162: 0 | CO162: 0 | CP162: 0 | CR162: 0 | CT162: 0
A163: Cntrl ErP | B163: 11262018_sp39_ErP | C163: Sheet90 | D163: 10 | E163: 1 | F163: 0 | G163: 0 | H163: 0 | J163: ErP | K163: ErP | L163: 0 | O163: ErP | P163: 357 | Q163: 359 | R163: 3 | S163: 3 | T163: 339 | U163: -336 | V163: 339 | W163: -336 | X163: 6 | Y163: -672 | AC163: 0.5001 | AD163: 56.5113 | AE163: 0 | AF163: 0 | AG163: 0 | AH163: 0 | AI163: 0 | AJ163: 0.5001 | AK163: 0 | AL163: 0.5001 | AM163: 143.2367 | AN163: 143.8699 | AO163: 0.6332 | AP163: 690.669486 | AQ163: 411.2225114 | AR163: 694.5035006 | AS163: 463.2158693 | AT163: 52.13452729 | AU163: 583.9067057 | AV163: 40.16291391 | AW163: 449.8246358 | AX163: 0.7703707311 | AY163: 899.4693777 | AZ163: 54.19212505 | BA163: 358 | BB163: 0.3166 | BD163: 358 | BE163: 0.3166 | BF163: 359 | BG163: 0.3166 | BJ163: 0 | BK163: 0 | BL163: 0 | BM163: 0 | BO163: 0 | BQ163: 0 | BT163: 0 | BU163: 0 | BV163: 0 | BW163: 0 | BY163: 0 | CA163: 0 | CD163: 0 | CF163: 0 | CG163: 0 | CH163: 0 | CJ163: 0 | CK163: 0 | CL163: 0 | CN163: 0 | CO163: 0 | CP163: 0 | CR163: 0 | CT163: 0
A164: Cntrl ErP | B164: 11262018_sp39_ErP | C164: Sheet91 | D164: 9 | E164: 1 | F164: 0 | G164: 0 | H164: 0 | J164: ErP | K164: ErP | L164: 0 | O164: ErP | P164: 350 | Q164: 350 | R164: 1 | S164: 1 | T164: 330 | U164: -329 | V164: 330 | W164: -329 | X164: 2 | Y164: -658 | AC164: 0.1667 | AD164: 55.011 | AE164: 0 | AF164: 0 | AG164: 0 | AH164: 0 | AI164: 0 | AJ164: 0.1667 | AK164: 0 | AL164: 0.1667 | AM164: 141.0205 | AN164: 141.0205 | AO164: 0 | AP164: 762.6973948 | AQ164: 427.3967936 | AR164: 762.6973948 | AS164: 427.3967936 | AT164: 0 | AU164: 0 | AV164: 0 | AW164: 0 | AY164: 0 | AZ164: 0 | BJ164: 0 | BK164: 0 | BL164: 0 | BM164: 0 | BO164: 0 | BQ164: 0 | BT164: 0 | BU164: 0 | BV164: 0 | BW164: 0 | BY164: 0 | CA164: 0 | CD164: 0 | CF164: 0 | CG164: 0 | CH164: 0 | CJ164: 0 | CK164: 0 | CL164: 0 | CN164: 0 | CO164: 0 | CP164: 0 | CR164: 0 | CT164: 0
A165: Cntrl ErP | B165: 11262018_sp39_ErP | C165: Sheet92 | D165: 8 | E165: 1 | F165: 0 | G165: 0 | H165: 0 | J165: ErP | K165: ErP | L165: 0 | O165: ErP | P165: 305 | Q165: 305 | R165: 1 | S165: 1 | T165: 285 | U165: -284 | V165: 285 | W165: -284 | X165: 2 | Y165: -568 | AC165: 0.1667 | AD165: 47.5095 | AE165: 0 | AF165: 0 | AG165: 0 | AH165: 0 | AI165: 0 | AJ165: 0.1667 | AK165: 0 | AL165: 0.1667 | AM165: 127.6372 | AN165: 127.6372 | AO165: 0 | AP165: 732.3596491 | AQ165: 441.5614035 | AR165: 732.3596491 | AS165: 441.5614035 | AT165: 0 | AU165: 0 | AV165: 0 | AW165: 0 | AY165: 0 | AZ165: 0 | BJ165: 0 | BK165: 0 | BL165: 0 | BM165: 0 | BO165: 0 | BQ165: 0 | BT165: 0 | BU165: 0 | BV165: 0 | BW165: 0 | BY165: 0 | CA165: 0 | CD165: 0 | CF165: 0 | CG165: 0 | CH165: 0 | CJ165: 0 | CK165: 0 | CL165: 0 | CN165: 0 | CO165: 0 | CP165: 0 | CR165: 0 | CT165: 0
A166: Cntrl ErP | B166: 11262018_sp39_ErP | C166: Sheet93 | D166: 6 | E166: 1 | F166: 0 | G166: 0 | H166: 0 | J166: ErP | K166: ErP | L166: 0 | O166: ErP | P166: 223 | Q166: 280 | R166: 58 | S166: 58 | T166: 260 | U166: -202 | V166: 260 | W166: -202 | X166: 116 | Y166: -404 | AC166: 9.6686 | AD166: 43.342 | AE166: 0 | AF166: 0 | AG166: 0 | AH166: 0 | AI166: 0 | AJ166: 9.6686 | AK166: 0 | AL166: 9.6686 | AM166: 103.9966 | AN166: 120.4297 | AO166: 16.4331 | AP166: 705.1323077 | AQ166: 539.3169231 | AR166: 730.2768959 | AS166: 520.0758377 | AT166: 31.66180164 | AU166: 354.6121784 | AV166: 118.471709 | AW166: 1326.883141 | AX166: 3.741786723 | AY166: 137.2363259 | AZ166: 44.11865557 | BA166: 230 | BB166: 0.2883 | BC166: 28.27028177 | BD166: 230 | BE166: 0.2883 | BF166: 224 | BG166: 0.2883 | BH166: 232 | BI166: 0.2883 | BJ166: 1 | BK166: 0 | BL166: 0 | BM166: 0 | BO166: ErP | BP166: ErP | BQ166: 0 | BS166: ErP | BT166: 1 | BU166: 0 | BV166: 0 | BW166: 0 | BY166: ErP | BZ166: ErP | CA166: 0 | CC166: ErP | CD166: 0 | CF166: 0 | CG166: 0 | CH166: 0 | CJ166: 0 | CK166: 0 | CL166: 0 | CN166: 0 | CO166: 0 | CP166: 0 | CR166: 1 | CS166: ErP Expansion | CT166: 0 | CV166: ErP Expansion
A167: Cntrl ErP | B167: 11262018_sp39_ErP | C167: Sheet94 | D167: 7 | E167: 1 | F167: 0 | G167: 0 | H167: 0 | J167: ErP | K167: ErP | L167: 0 | O167: ErP | P167: 281 | Q167: 344 | R167: 64 | S167: 64 | T167: 324 | U167: -260 | V167: 324 | W167: -260 | X167: 128 | Y167: -520 | AC167: 10.6688 | AD167: 54.0108 | AE167: 0 | AF167: 0 | AG167: 0 | AH167: 0 | AI167: 0 | AJ167: 10.6688 | AK167: 0 | AL167: 10.6688 | AM167: 120.718 | AN167: 139.1209 | AO167: 18.4029 | AP167: 737.155642 | AQ167: 499.7645914 | AR167: 769.7939914 | AS167: 456.3004292 | AT167: 54.35434897 | AU167: 608.7687084 | AV167: 158.791272 | AW167: 1778.462246 | AX167: 2.921408774 | AY167: 166.6974961 | AZ167: 23.14359462 | BA167: 344 | BB167: 0.3166 | BC167: 22.75259427 | BD167: 344 | BE167: 0.3166 | BF167: 343 | BG167: 0.5 | BH167: 314 | BI167: 0.2883 | BJ167: 1 | BK167: 0 | BL167: 0 | BM167: 0 | BO167: ErP | BP167: ErP | BQ167: 0 | BS167: ErP | BT167: 1 | BU167: 0 | BV167: 0 | BW167: 0 | BY167: ErP | BZ167: ErP | CA167: 0 | CC167: ErP | CD167: 0 | CF167: 0 | CG167: 0 | CH167: 0 | CJ167: 0 | CK167: 0 | CL167: 0 | CN167: 0 | CO167: 0 | CP167: 0 | CR167: 1 | CS167: ErP Expansion | CT167: 0 | CV167: ErP Expansion
A168: Cntrl ErP | B168: 11262018_sp39_ErP | C168: Sheet95 | D168: 8 | E168: 1 | F168: 0 | G168: 0 | H168: 0 | J168: ErP | K168: ErP | L168: 0 | O168: ErP | P168: 345 | Q168: 479 | R168: 135 | S168: 135 | T168: 459 | U168: -324 | V168: 459 | W168: -324 | X168: 270 | Y168: -648 | AC168: 22.5045 | AD168: 76.5153 | AE168: 0 | AF168: 0 | AG168: 0 | AH168: 0 | AI168: 0 | AJ168: 22.5045 | AK168: 0 | AL168: 22.5045 | AM168: 139.4375 | AN168: 181.8619 | AO168: 42.4244 | AP168: 782.4770642 | AQ168: 466.587156 | AR168: 780.2649701 | AS168: 463.6062874 | AT168: 3.711999167 | AU168: 41.57439067 | AV168: 611.7678401 | AW168: 6851.799809 | AX168: 164.8081836 | AY168: 304.4635433 | AZ168: 25.52376416 | BA168: 399 | BB168: 0.3166 | BC168: 24.69116838 | BD168: 399 | BE168: 0.3166 | BF168: 433 | BG168: 0.3166 | BH168: 348 | BI168: 0.3166 | BJ168: 0 | BK168: 0 | BL168: 0 | BM168: 0 | BO168: 0 | BQ168: 0 | BT168: 0 | BU168: 0 | BV168: 0 | BW168: 0 | BY168: 0 | CA168: 0 | CD168: 0 | CF168: 0 | CG168: 0 | CH168: 0 | CJ168: 0 | CK168: 0 | CL168: 0 | CN168: 0 | CO168: 0 | CP168: 0 | CR168: 0 | CT168: 0
A169: Cntrl ErP | B169: 11262018_sp39_ErP | C169: Sheet96 | D169: 8 | E169: 1 | F169: 0 | G169: 0 | H169: 0 | J169: ErP | K169: ErP | L169: 0 | O169: ErP | P169: 345 | Q169: 345 | R169: 1 | S169: 1 | T169: 325 | U169: -324 | V169: 325 | W169: -324 | X169: 2 | Y169: -648 | AC169: 0.1667 | AD169: 54.1775 | AE169: 0 | AF169: 0 | AG169: 0 | AH169: 0 | AI169: 0 | AJ169: 0.1667 | AK169: 0 | AL169: 0.1667 | AM169: 139.4375 | AN169: 139.4375 | AO169: 0 | AP169: 783.3435115 | AQ169: 458.4045802 | AR169: 783.3435115 | AS169: 458.4045802 | AT169: 0 | AU169: 0 | AV169: 0 | AW169: 0 | AY169: 0 | AZ169: 0 | BJ169: 0 | BK169: 0 | BL169: 0 | BM169: 0 | BO169: 0 | BQ169: 0 | BT169: 0 | BU169: 0 | BV169: 0 | BW169: 0 | BY169: 0 | CA169: 0 | CD169: 0 | CF169: 0 | CG169: 0 | CH169: 0 | CJ169: 0 | CK169: 0 | CL169: 0 | CN169: 0 | CO169: 0 | CP169: 0 | CR169: 0 | CT169: 0
A170: Cntrl ErP | B170: 11262018_sp39_ErP | C170: Sheet97 | D170: 7 | E170: 1 | F170: 0 | G170: 0 | H170: 0 | J170: ErP | K170: ErP | L170: 0 | O170: ErP | P170: 281 | Q170: 344 | R170: 64 | S170: 64 | T170: 324 | U170: -260 | V170: 324 | W170: -260 | X170: 128 | Y170: -520 | AC170: 10.6688 | AD170: 54.0108 | AE170: 0 | AF170: 0 | AG170: 0 | AH170: 0 | AI170: 0 | AJ170: 10.6688 | AK170: 0 | AL170: 10.6688 | AM170: 120.718 | AN170: 139.1209 | AO170: 18.4029 | AP170: 730.9487952 | AQ170: 520.1686747 | AR170: 725.2027027 | AS170: 401.0472973 | AT170: 119.2598848 | AU170: 1335.71071 | AV170: 330.6506041 | AW170: 3703.286766 | AX170: 2.772521578 | AY170: 347.1137115 | AZ170: 36.31138974 | BA170: 323 | BB170: 0.2883 | BC170: 31.23187689 | BD170: 323 | BE170: 0.2883 | BF170: 337 | BG170: 0.2883 | BH170: 332 | BI170: 0.2883 | BJ170: 0 | BK170: 0 | BL170: 0 | BM170: 0 | BO170: 0 | BQ170: 0 | BT170: 0 | BU170: 0 | BV170: 0 | BW170: 0 | BY170: 0 | CA170: 0 | CD170: 0 | CF170: 0 | CG170: 0 | CH170: 0 | CJ170: 0 | CK170: 0 | CL170: 0 | CN170: 0 | CO170: 0 | CP170: 0 | CR170: 0 | CT170: 0
A171: Cntrl ErP | B171: 11262018_sp39_ErP | C171: Sheet98 | D171: 4 | E171: 1 | F171: 0 | G171: 0 | H171: 0 | J171: ErP | K171: ErP | L171: 0 | O171: ErP | P171: 78 | Q171: 146 | R171: 69 | S171: 69 | T171: 126 | U171: -57 | V171: 126 | W171: -57 | X171: 138 | Y171: -114 | AC171: 11.5023 | AD171: 21.0042 | AE171: 0 | AF171: 0 | AG171: 0 | AH171: 0 | AI171: 0 | AJ171: 11.5023 | AK171: 0 | AL171: 11.5023 | AM171: 72.5019 | AN171: 83.8375 | AO171: 11.3356 | AP171: 632.6666667 | AQ171: 523.6111111 | AR171: 659.2826552 | AS171: 577.9807281 | AT171: 60.53483373 | AU171: 677.9901377 | AV171: 101.464153 | AW171: 1136.398514 | AX171: 1.676128384 | AY171: 98.79750256 | AZ171: 25.94027329 | BA171: 139 | BB171: 0.1667 | BC171: 19.09363362 | BD171: 139 | BE171: 0.1667 | BF171: 133 | BG171: 0.1667 | BH171: 120 | BI171: 0.1667 | BJ171: 1 | BK171: 0 | BL171: 0 | BM171: 0 | BO171: ErP | BP171: ErP | BQ171: 0 | BS171: ErP | BT171: 1 | BU171: 0 | BV171: 0 | BW171: 0 | BY171: ErP | BZ171: ErP | CA171: 0 | CC171: ErP | CD171: 0 | CF171: 0 | CG171: 0 | CH171: 0 | CJ171: 0 | CK171: 0 | CL171: 0 | CN171: 0 | CO171: 0 | CP171: 0 | CR171: 1 | CS171: ErP Expansion | CT171: 0 | CV171: ErP Expansion
A172: Cntrl ErP | B172: 11262018_sp39_ErP | C172: Sheet99 | D172: 5 | E172: 1 | F172: 0 | G172: 0 | H172: 0 | J172: ErP | K172: ErP | L172: 0 | O172: ErP | P172: 147 | Q172: 232 | R172: 86 | S172: 86 | T172: 212 | U172: -126 | V172: 212 | W172: -126 | X172: 172 | Y172: -252 | AC172: 14.3362 | AD172: 35.3404 | AE172: 0 | AF172: 0 | AG172: 0 | AH172: 0 | AI172: 0 | AJ172: 14.3362 | AK172: 0 | AL172: 14.3362 | AM172: 84.0042 | AN172: 106.5913 | AO172: 22.5871 | AP172: 667.2146119 | AQ172: 568.4931507 | AR172: 723.6958855 | AS172: 466.7012522 | AT172: 116.4118759 | AU172: 1303.813011 | AV172: 237.8215929 | AW172: 2663.60184 | AX172: 2.042932398 | AY172: 185.7955274 | AZ172: 41.26305789 | BA172: 230 | BB172: 0.2883 | BC172: 28.85062473 | BD172: 230 | BE172: 0.2883 | BF172: 160 | BG172: 0.1667 | BH172: 185 | BI172: 0.2883 | BJ172: 1 | BK172: 0 | BL172: 0 | BM172: 0 | BO172: ErP | BP172: ErP | BQ172: 0 | BS172: ErP | BT172: 1 | BU172: 0 | BV172: 0 | BW172: 0 | BY172: ErP | BZ172: ErP | CA172: 0 | CC172: ErP | CD172: 0 | CF172: 0 | CG172: 0 | CH172: 0 | CJ172: 0 | CK172: 0 | CL172: 0 | CN172: 0 | CO172: 0 | CP172: 0 | CR172: 1 | CS172: ErP Expansion | CT172: 0 | CV172: ErP Expansion
A173: Cntrl ErP | B173: 11262018_sp39_ErP | C173: Sheet100 | D173: 6 | E173: 1 | F173: 0 | G173: 0 | H173: 0 | J173: ErP | K173: ErP | L173: 0 | O173: ErP | P173: 233 | Q173: 358 | R173: 126 | S173: 126 | T173: 338 | U173: -212 | V173: 338 | W173: -212 | X173: 252 | Y173: -424 | AC173: 21.0042 | AD173: 56.3446 | AE173: 0 | AF173: 0 | AG173: 0 | AH173: 0 | AI173: 0 | AJ173: 21.0042 | AK173: 0 | AL173: 21.0042 | AM173: 106.8796 | AN173: 143.5533 | AO173: 36.6737 | AP173: 715.6678571 | AQ173: 455.7142857 | AR173: 780.3024476 | AS173: 432.9318182 | AT173: 68.53226324 | AU173: 767.5613482 | AV173: 564.2049862 | AW173: 6319.095846 | AX173: 8.232691576 | AY173: 300.8491562 | AZ173: 36.18609132 | BA173: 258 | BB173: 0.2883 | BC173: 27.31271688 | BD173: 258 | BE173: 0.2883 | BF173: 252 | BG173: 0.2883 | BH173: 260 | BI173: 0.2883 | BJ173: 1 | BK173: 0 | BL173: 0 | BM173: 0 | BO173: ErP | BP173: ErP | BQ173: 0 | BS173: ErP | BT173: 1 | BU173: 0 | BV173: 0 | BW173: 0 | BY173: ErP | BZ173: ErP | CA173: 0 | CC173: ErP | CD173: 0 | CF173: 0 | CG173: 0 | CH173: 0 | CJ173: 0 | CK173: 0 | CL173: 0 | CN173: 0 | CO173: 0 | CP173: 0 | CR173: 1 | CS173: ErP Expansion | CT173: 0 | CV173: ErP Expansion
A174: Cntrl ErP | B174: 11262018_sp39_ErP | C174: Sheet101 | D174: 7 | E174: 1 | F174: 0 | G174: 0 | H174: 0 | J174: ErP | K174: ErP | L174: 0 | O174: ErP | P174: 359 | Q174: 404 | R174: 46 | S174: 46 | T174: 384 | U174: -338 | V174: 384 | W174: -338 | X174: 92 | Y174: -676 | AC174: 7.6682 | AD174: 64.0128 | AE174: 0 | AF174: 0 | AG174: 0 | AH174: 0 | AI174: 0 | AJ174: 7.6682 | AK174: 0 | AL174: 7.6682 | AM174: 143.8699 | AN174: 158.1169 | AO174: 14.247 | AP174: 784.1772152 | AQ174: 427.7848101 | AR174: 807.4677003 | AS174: 453.1937984 | AT174: 34.46829532 | AU174: 386.0449076 | AV174: 90.32667904 | AW174: 1011.658805 | AX174: 2.620572854 | AY174: 131.9291105 | AZ174: 22.39815622 | BA174: 362 | BB174: 0.3166 | BC174: 17.25445631 | BD174: 362 | BE174: 0.3166 | BF174: 395 | BG174: 0.3166 | BH174: 364 | BI174: 0.3166 | BJ174: 1 | BK174: 0 | BL174: 0 | BM174: 0 | BO174: ErP | BP174: ErP | BQ174: 0 | BS174: ErP | BT174: 1 | BU174: 0 | BV174: 0 | BW174: 0 | BY174: ErP | BZ174: ErP | CA174: 0 | CC174: ErP | CD174: 0 | CF174: 0 | CG174: 0 | CH174: 0 | CJ174: 0 | CK174: 0 | CL174: 0 | CN174: 0 | CO174: 0 | CP174: 0 | CR174: 1 | CS174: ErP Expansion | CT174: 0 | CV174: ErP Expansion
A175: Cntrl ErP | B175: 11262018_sp39_ErP | C175: Sheet102 | D175: 8 | E175: 1 | F175: 0 | G175: 0 | H175: 0 | J175: ErP | K175: ErP | L175: 0 | O175: ErP | P175: 405 | Q175: 479 | R175: 75 | S175: 75 | T175: 459 | U175: -384 | V175: 459 | W175: -384 | X175: 150 | Y175: -768 | AC175: 12.5025 | AD175: 76.5153 | AE175: 0 | AF175: 0 | AG175: 0 | AH175: 0 | AI175: 0 | AJ175: 12.5025 | AK175: 0 | AL175: 12.5025 | AM175: 158.4335 | AN175: 181.8619 | AO175: 23.4284 | AP175: 802.7207547 | AQ175: 443.6188679 | AR175: 822.0576923 | AS175: 432.2664835 | AT175: 22.42306373 | AU175: 251.1383138 | AV175: 342.4055713 | AW175: 3834.942399 | AX175: 15.2702403 | AY175: 306.7340451 | AZ175: 24.28555881 | BA175: 420 | BB175: 0.3166 | BC175: 22.62633104 | BD175: 420 | BE175: 0.3166 | BF175: 449 | BG175: 0.3166 | BH175: 445 | BI175: 0.3166 | BJ175: 0 | BK175: 0 | BL175: 0 | BM175: 0 | BO175: 0 | BQ175: 0 | BT175: 0 | BU175: 0 | BV175: 0 | BW175: 0 | BY175: 0 | CA175: 0 | CD175: 0 | CF175: 0 | CG175: 0 | CH175: 0 | CJ175: 0 | CK175: 0 | CL175: 0 | CN175: 0 | CO175: 0 | CP175: 0 | CR175: 0 | CT175: 0
A176: Cntrl ErP | B176: 11262018_sp39_ErP | C176: Sheet103 | D176: 8 | E176: 1 | F176: 0 | G176: 0 | H176: 0 | J176: ErP | K176: ErP | L176: 0 | O176: ErP | P176: 405 | Q176: 405 | R176: 1 | S176: 1 | T176: 385 | U176: -384 | V176: 385 | W176: -384 | X176: 2 | Y176: -768 | AC176: 0.1667 | AD176: 64.1795 | AE176: 0 | AF176: 0 | AG176: 0 | AH176: 0 | AI176: 0 | AJ176: 0.1667 | AK176: 0 | AL176: 0.1667 | AM176: 158.4335 | AN176: 158.4335 | AO176: 0 | AP176: 811.7534722 | AQ176: 456.7118056 | AR176: 811.7534722 | AS176: 456.7118056 | AT176: 0 | AU176: 0 | AV176: 0 | AW176: 0 | AY176: 0 | AZ176: 0 | BJ176: 0 | BK176: 0 | BL176: 0 | BM176: 0 | BO176: 0 | BQ176: 0 | BT176: 0 | BU176: 0 | BV176: 0 | BW176: 0 | BY176: 0 | CA176: 0 | CD176: 0 | CF176: 0 | CG176: 0 | CH176: 0 | CJ176: 0 | CK176: 0 | CL176: 0 | CN176: 0 | CO176: 0 | CP176: 0 | CR176: 0 | CT176: 0
A177: Cntrl ErP | B177: 11262018_sp39_ErP | C177: Sheet104 | D177: 7 | E177: 1 | F177: 0 | G177: 0 | H177: 0 | J177: ErP | K177: ErP | L177: 0 | O177: ErP | P177: 359 | Q177: 359 | R177: 1 | S177: 1 | T177: 339 | U177: -338 | V177: 339 | W177: -338 | X177: 2 | Y177: -676 | AC177: 0.1667 | AD177: 56.5113 | AE177: 0 | AF177: 0 | AG177: 0 | AH177: 0 | AI177: 0 | AJ177: 0.1667 | AK177: 0 | AL177: 0.1667 | AM177: 143.8699 | AN177: 143.8699 | AO177: 0 | AP177: 731.456946 | AQ177: 482.9322618 | AR177: 731.456946 | AS177: 482.9322618 | AT177: 0 | AU177: 0 | AV177: 0 | AW177: 0 | AY177: 0 | AZ177: 0 | BJ177: 0 | BK177: 0 | BL177: 0 | BM177: 0 | BO177: 0 | BQ177: 0 | BT177: 0 | BU177: 0 | BV177: 0 | BW177: 0 | BY177: 0 | CA177: 0 | CD177: 0 | CF177: 0 | CG177: 0 | CH177: 0 | CJ177: 0 | CK177: 0 | CL177: 0 | CN177: 0 | CO177: 0 | CP177: 0 | CR177: 0 | CT177: 0
A178: Cntrl ErP | B178: 11262018_sp39_ErP | C178: Sheet105 | D178: 6 | E178: 1 | F178: 0 | G178: 0 | H178: 0 | J178: ErP | K178: ErP | L178: 0 | O178: ErP | P178: 233 | Q178: 294 | R178: 62 | S178: 62 | T178: 274 | U178: -212 | V178: 274 | W178: -212 | X178: 124 | Y178: -424 | AC178: 10.3354 | AD178: 45.6758 | AE178: 0 | AF178: 0 | AG178: 0 | AH178: 0 | AI178: 0 | AJ178: 10.3354 | AK178: 0 | AL178: 10.3354 | AM178: 106.8796 | AN178: 124.4659 | AO178: 17.5863 | AP178: 707.6329114 | AQ178: 470.0316456 | AR178: 656.5343137 | AS178: 445.8382353 | AT178: 56.5366057 | AU178: 633.2099839 | AV178: 166.0417367 | AW178: 1859.667451 | AX178: 2.936889024 | AY178: 179.9318315 | AZ178: 35.54112699 | BA178: 250 | BB178: 0.2883 | BC178: 23.89499 | BD178: 250 | BE178: 0.2883 | BF178: 293 | BG178: 0.2883 | BH178: 249 | BI178: 0.2883 | BJ178: 1 | BK178: 0 | BL178: 0 | BM178: 0 | BO178: ErP | BP178: ErP | BQ178: 0 | BS178: ErP | BT178: 1 | BU178: 0 | BV178: 0 | BW178: 0 | BY178: ErP | BZ178: ErP | CA178: 0 | CC178: ErP | CD178: 0 | CF178: 0 | CG178: 0 | CH178: 0 | CJ178: 0 | CK178: 0 | CL178: 0 | CN178: 0 | CO178: 0 | CP178: 0 | CR178: 1 | CS178: ErP Expansion | CT178: 0 | CV178: ErP Expansion
A179: Cntrl ErP | B179: 11262018_sp39_ErP | C179: Sheet106 | D179: 7 | E179: 1 | F179: 0 | G179: 0 | H179: 0 | J179: ErP | K179: ErP | L179: 0 | O179: ErP | P179: 295 | Q179: 352 | R179: 58 | S179: 58 | T179: 332 | U179: -274 | V179: 332 | W179: -274 | X179: 116 | Y179: -548 | AC179: 9.6686 | AD179: 55.3444 | AE179: 0 | AF179: 0 | AG179: 0 | AH179: 0 | AI179: 0 | AJ179: 9.6686 | AK179: 0 | AL179: 9.6686 | AM179: 124.7542 | AN179: 141.6537 | AO179: 16.8995 | AP179: 658.2026144 | AQ179: 469.2897603 | AR179: 743.6825618 | AS179: 427.1082492 | AT179: 95.32104327 | AU179: 1067.595685 | AV179: 541.090899 | AW179: 6060.218068 | AX179: 5.676510458 | AY179: 626.7937518 | AZ179: 56.28183596 | BA179: 345 | BB179: 0.3166 | BC179: 49.15712811 | BD179: 345 | BE179: 0.3166 | BF179: 350 | BG179: 0.3166 | BH179: 312 | BI179: 0.2883 | BJ179: 1 | BK179: 0 | BL179: 0 | BM179: 0 | BO179: ErP | BP179: ErP | BQ179: 0 | BS179: ErP | BT179: 1 | BU179: 0 | BV179: 0 | BW179: 0 | BY179: ErP | BZ179: ErP | CA179: 0 | CC179: ErP | CD179: 0 | CF179: 0 | CG179: 0 | CH179: 0 | CJ179: 0 | CK179: 0 | CL179: 0 | CN179: 0 | CO179: 0 | CP179: 0 | CR179: 1 | CS179: ErP Expansion | CT179: 0 | CV179: ErP Expansion
A180: Cntrl ErP | B180: 11262018_sp39_ErP | C180: Sheet107 | D180: 8 | E180: 1 | F180: 0 | G180: 0 | H180: 0 | J180: ErP | K180: ErP | L180: 0 | O180: ErP | P180: 353 | Q180: 479 | R180: 127 | S180: 127 | T180: 459 | U180: -332 | V180: 459 | W180: -332 | X180: 254 | Y180: -664 | AC180: 21.1709 | AD180: 76.5153 | AE180: 0 | AF180: 0 | AG180: 0 | AH180: 0 | AI180: 0 | AJ180: 21.1709 | AK180: 0 | AL180: 21.1709 | AM180: 141.9703 | AN180: 181.8619 | AO180: 39.8916 | AP180: 746.8245556 | AQ180: 421.99605 | AR180: 689.0361446 | AS180: 503.7590361 | AT180: 100.1233557 | AU180: 1121.381583 | AV180: 758.2066769 | AW180: 8491.914781 | AX180: 7.572725383 | AY180: 401.1126018 | AZ180: 62.06918544 | BA180: 356 | BB180: 0.3166 | BC180: 38.34758552 | BD180: 356 | BE180: 0.3166 | BF180: 371 | BG180: 0.3166 | BH180: 358 | BI180: 0.3166 | BJ180: 0 | BK180: 0 | BL180: 0 | BM180: 0 | BO180: 0 | BQ180: 0 | BT180: 0 | BU180: 0 | BV180: 0 | BW180: 0 | BY180: 0 | CA180: 0 | CD180: 0 | CF180: 0 | CG180: 0 | CH180: 0 | CJ180: 0 | CK180: 0 | CL180: 0 | CN180: 0 | CO180: 0 | CP180: 0 | CR180: 0 | CT180: 0
A181: Cntrl ErP | B181: 11262018_sp39_ErP | C181: Sheet108 | D181: 8 | E181: 1 | F181: 0 | G181: 0 | H181: 0 | J181: ErP | K181: ErP | L181: 0 | O181: ErP | P181: 353 | Q181: 357 | R181: 5 | S181: 5 | T181: 337 | U181: -332 | V181: 337 | W181: -332 | X181: 10 | Y181: -664 | AC181: 0.8335 | AD181: 56.1779 | AE181: 0 | AF181: 0 | AG181: 0 | AH181: 0 | AI181: 0 | AJ181: 0.8335 | AK181: 0 | AL181: 0.8335 | AM181: 141.9703 | AN181: 143.2367 | AO181: 1.2664 | AP181: 732.9834664 | AQ181: 477.6972634 | AR181: 744.5535327 | AS181: 430.1586476 | AT181: 48.92633675 | AU181: 547.9749716 | AV181: 76.66495564 | AW181: 858.6475031 | AX181: 1.566946572 | AY181: 1030.17097 | AZ181: 70.64225424 | BA181: 356 | BB181: 0.3166 | BC181: 39.15632193 | BD181: 356 | BE181: 0.3166 | BF181: 354 | BG181: 0.3166 | BH181: 357 | BI181: 0.3166 | BJ181: 1 | BK181: 0 | BL181: 0 | BM181: 0 | BO181: ErP | BP181: ErP | BQ181: 0 | BS181: ErP | BT181: 1 | BU181: 0 | BV181: 0 | BW181: 0 | BY181: ErP | BZ181: ErP | CA181: 0 | CC181: ErP | CD181: 0 | CF181: 0 | CG181: 0 | CH181: 0 | CJ181: 0 | CK181: 0 | CL181: 0 | CN181: 0 | CO181: 0 | CP181: 0 | CR181: 1 | CS181: ErP Expansion | CT181: 0 | CV181: ErP Expansion
A182: Cntrl ErP | B182: 11262018_sp39_ErP | C182: Sheet109 | D182: 9 | E182: 1 | F182: 0 | G182: 0 | H182: 0 | J182: ErP | K182: ErP | L182: 0 | O182: ErP | P182: 358 | Q182: 412 | R182: 55 | S182: 55 | T182: 392 | U182: -337 | V182: 392 | W182: -337 | X182: 110 | Y182: -674 | AC182: 9.1685 | AD182: 65.3464 | AE182: 0 | AF182: 0 | AG182: 0 | AH182: 0 | AI182: 0 | AJ182: 9.1685 | AK182: 0 | AL182: 9.1685 | AM182: 143.5533 | AN182: 160.6497 | AO182: 17.0964 | AP182: 728.311936 | AQ182: 406.6759639 | AR182: 756.2330623 | AS182: 343.4146341 | AT182: 69.14900677 | AU182: 774.4688759 | AV182: 387.8297439 | AW182: 4343.693132 | AX182: 5.608609032 | AY182: 473.76268 | AZ182: 72.05797752 | BA182: 388 | BB182: 0.3166 | BC182: 56.62062515 | BD182: 388 | BE182: 0.3166 | BF182: 387 | BG182: 0.3166 | BH182: 363 | BI182: 0.3166 | BJ182: 1 | BK182: 0 | BL182: 0 | BM182: 0 | BO182: ErP | BP182: ErP | BQ182: 0 | BS182: ErP | BT182: 1 | BU182: 0 | BV182: 0 | BW182: 0 | BY182: ErP | BZ182: ErP | CA182: 0 | CC182: ErP | CD182: 0 | CF182: 0 | CG182: 0 | CH182: 0 | CJ182: 0 | CK182: 0 | CL182: 0 | CN182: 0 | CO182: 0 | CP182: 0 | CR182: 1 | CS182: ErP Expansion | CT182: 0 | CV182: ErP Expansion
A183: Cntrl ErP | B183: 11262018_sp39_ErP | C183: Sheet110 | D183: 10 | E183: 1 | F183: 0 | G183: 0 | H183: 0 | J183: ErP | K183: ErP | L183: 0 | O183: ErP | P183: 413 | Q183: 479 | R183: 67 | S183: 67 | T183: 459 | U183: -392 | V183: 459 | W183: -392 | X183: 134 | Y183: -784 | AC183: 11.1689 | AD183: 76.5153 | AE183: 0 | AF183: 0 | AG183: 0 | AH183: 0 | AI183: 0 | AJ183: 11.1689 | AK183: 0 | AL183: 11.1689 | AM183: 160.9663 | AN183: 181.8619 | AO183: 20.8956 | AP183: 734.4342568 | AQ183: 356.7581354 | AR183: 728.1536189 | AS183: 348.7311669 | AT183: 10.19208695 | AU183: 114.1513738 | AV183: 421.1133917 | AW183: 4716.469987 | AX183: 41.31768046 | AY183: 422.2859894 | AZ183: 99.54625397 | BA183: 414 | BB183: 0.3166 | BC183: 50.93601082 | BD183: 414 | BE183: 0.3166 | BF183: 428 | BG183: 0.3166 | BH183: 463 | BI183: 0.3166 | BJ183: 0 | BK183: 0 | BL183: 0 | BM183: 0 | BO183: 0 | BQ183: 0 | BT183: 0 | BU183: 0 | BV183: 0 | BW183: 0 | BY183: 0 | CA183: 0 | CD183: 0 | CF183: 0 | CG183: 0 | CH183: 0 | CJ183: 0 | CK183: 0 | CL183: 0 | CN183: 0 | CO183: 0 | CP183: 0 | CR183: 0 | CT183: 0
A184: Cntrl ErP | B184: 11262018_sp39_ErP | C184: Sheet111 | D184: 10 | E184: 1 | F184: 0 | G184: 0 | H184: 0 | J184: ErP | K184: ErP | L184: 0 | O184: ErP | P184: 413 | Q184: 433 | R184: 21 | S184: 21 | T184: 413 | U184: -392 | V184: 413 | W184: -392 | X184: 42 | Y184: -784 | AC184: 3.5007 | AD184: 68.8471 | AE184: 0 | AF184: 0 | AG184: 0 | AH184: 0 | AI184: 0 | AJ184: 3.5007 | AK184: 0 | AL184: 3.5007 | AM184: 160.9663 | AN184: 167.2983 | AO184: 6.332 | AP184: 742.2332731 | AQ184: 331.755877 | AR184: 656.8963772 | AS184: 369.4416622 | AT184: 93.28774947 | AU184: 1044.822794 | AV184: 190.4442066 | AW184: 2132.975114 | AX184: 2.041470693 | AY184: 609.2996011 | AZ184: 65.64398413 | BA184: 430 | BB184: 0.3166 | BC184: 40.96697541 | BD184: 430 | BE184: 0.3166 | BF184: 416 | BG184: 0.3166 | BH184: 433 | BI184: 0.3166 | BJ184: 0 | BK184: 0 | BL184: 0 | BM184: 0 | BO184: 0 | BQ184: 0 | BT184: 0 | BU184: 0 | BV184: 0 | BW184: 0 | BY184: 0 | CA184: 0 | CD184: 0 | CF184: 0 | CG184: 0 | CH184: 0 | CJ184: 0 | CK184: 0 | CL184: 0 | CN184: 0 | CO184: 0 | CP184: 0 | CR184: 0 | CT184: 0
A185: Cntrl ErP | B185: 11262018_sp39_ErP | C185: Sheet112 | D185: 9 | E185: 1 | F185: 0 | G185: 0 | H185: 0 | J185: ErP | K185: ErP | L185: 0 | O185: ErP | P185: 358 | Q185: 358 | R185: 1 | S185: 1 | T185: 338 | U185: -337 | V185: 338 | W185: -337 | X185: 2 | Y185: -674 | AC185: 0.1667 | AD185: 56.3446 | AE185: 0 | AF185: 0 | AG185: 0 | AH185: 0 | AI185: 0 | AJ185: 0.1667 | AK185: 0 | AL185: 0.1667 | AM185: 143.5533 | AN185: 143.5533 | AO185: 0 | AP185: 745.3198925 | AQ185: 493.844086 | AR185: 745.3198925 | AS185: 493.844086 | AT185: 0 | AU185: 0 | AV185: 0 | AW185: 0 | AY185: 0 | AZ185: 0 | BJ185: 0 | BK185: 0 | BL185: 0 | BM185: 0 | BO185: 0 | BQ185: 0 | BT185: 0 | BU185: 0 | BV185: 0 | BW185: 0 | BY185: 0 | CA185: 0 | CD185: 0 | CF185: 0 | CG185: 0 | CH185: 0 | CJ185: 0 | CK185: 0 | CL185: 0 | CN185: 0 | CO185: 0 | CP185: 0 | CR185: 0 | CT185: 0
A186: Cntrl ErP | B186: 11262018_sp39_ErP | C186: Sheet113 | D186: 7 | E186: 1 | F186: 0 | G186: 0 | H186: 0 | J186: ErP | K186: ErP | L186: 0 | O186: ErP | P186: 295 | Q186: 362 | R186: 68 | S186: 68 | T186: 342 | U186: -274 | V186: 342 | W186: -274 | X186: 136 | Y186: -548 | AC186: 11.3356 | AD186: 57.0114 | AE186: 0 | AF186: 0 | AG186: 0 | AH186: 0 | AI186: 0 | AJ186: 11.3356 | AK186: 0 | AL186: 11.3356 | AM186: 124.7542 | AN186: 144.8197 | AO186: 20.0655 | AP186: 658.582397 | AQ186: 447.9007491 | AR186: 682.2845528 | AS186: 425.699187 | AT186: 32.47616895 | AU186: 363.7330923 | AV186: 279.409483 | AW186: 3129.38621 | AX186: 8.603523506 | AY186: 276.0670992 | AZ186: 24.54413469 | BA186: 360 | BB186: 0.3166 | BC186: 24.38588775 | BD186: 360 | BE186: 0.3166 | BF186: 335 | BG186: 0.2883 | BH186: 336 | BI186: 0.2883 | BJ186: 0 | BK186: 0 | BL186: 0 | BM186: 0 | BO186: 0 | BQ186: 0 | BT186: 0 | BU186: 0 | BV186: 0 | BW186: 0 | BY186: 0 | CA186: 0 | CD186: 0 | CF186: 0 | CG186: 0 | CH186: 0 | CJ186: 0 | CK186: 0 | CL186: 0 | CN186: 0 | CO186: 0 | CP186: 0 | CR186: 0 | CT186: 0
A187: Cntrl ErP | B187: 11262018_sp39_ErP | C187: Sheet114 | D187: 5 | E187: 1 | F187: 0 | G187: 0 | H187: 0 | J187: ErP | K187: ErP | L187: 0 | O187: ErP | P187: 147 | Q187: 227 | R187: 81 | S187: 81 | T187: 207 | U187: -126 | V187: 207 | W187: -126 | X187: 162 | Y187: -252 | AC187: 13.5027 | AD187: 34.5069 | AE187: 0 | AF187: 0 | AG187: 0 | AH187: 0 | AI187: 0 | AJ187: 13.5027 | AK187: 0 | AL187: 13.5027 | AM187: 84.0042 | AN187: 105.1498 | AO187: 21.1456 | AP187: 659.2571429 | AQ187: 581.9238095 | AR187: 696.8292683 | AS187: 545.2654232 | AT187: 52.4928747 | AU187: 587.9201967 | AV187: 228.9976631 | AW187: 2564.773826 | AX187: 4.362452321 | AY187: 189.9452574 | AZ187: 29.68961943 | BA187: 160 | BB187: 0.1667 | BC187: 23.60541148 | BD187: 160 | BE187: 0.1667 | BF187: 185 | BG187: 0.2883 | BH187: 223 | BI187: 0.2883 | BJ187: 1 | BK187: 0 | BL187: 0 | BM187: 0 | BO187: ErP | BP187: ErP | BQ187: 0 | BS187: ErP | BT187: 1 | BU187: 0 | BV187: 0 | BW187: 0 | BY187: ErP | BZ187: ErP | CA187: 0 | CC187: ErP | CD187: 0 | CF187: 0 | CG187: 0 | CH187: 0 | CJ187: 0 | CK187: 0 | CL187: 0 | CN187: 0 | CO187: 0 | CP187: 0 | CR187: 1 | CS187: ErP Expansion | CT187: 0 | CV187: ErP Expansion
A188: Cntrl ErP | B188: 11262018_sp39_ErP | C188: Sheet115 | D188: 6 | E188: 1 | F188: 0 | G188: 0 | H188: 0 | J188: ErP | K188: ErP | L188: 0 | O188: ErP | P188: 228 | Q188: 372 | R188: 145 | S188: 145 | T188: 352 | U188: -207 | V188: 352 | W188: -207 | X188: 290 | Y188: -414 | AC188: 24.1715 | AD188: 58.6784 | AE188: 0 | AF188: 0 | AG188: 0 | AH188: 0 | AI188: 0 | AJ188: 24.1715 | AK188: 0 | AL188: 24.1715 | AM188: 105.4381 | AN188: 147.9857 | AO188: 42.5476 | AP188: 696.9231975 | AQ188: 546.2915361 | AR188: 800.242236 | AS188: 410.6149068 | AT188: 170.5373022 | AU188: 1910.017785 | AV188: 666.4368724 | AW188: 7464.092971 | AX188: 3.907865692 | AY188: 308.79726 | AZ188: 42.79566027 | BA188: 230 | BB188: 0.2883 | BC188: 33.31007782 | BD188: 230 | BE188: 0.2883 | BF188: 327 | BG188: 0.2883 | BH188: 271 | BI188: 0.2883 | BJ188: 0 | BK188: 0 | BL188: 0 | BM188: 0 | BO188: 0 | BQ188: 0 | BT188: 0 | BU188: 0 | BV188: 0 | BW188: 0 | BY188: 0 | CA188: 0 | CD188: 0 | CF188: 0 | CG188: 0 | CH188: 0 | CJ188: 0 | CK188: 0 | CL188: 0 | CN188: 0 | CO188: 0 | CP188: 0 | CR188: 0 | CT188: 0
A189: Cntrl ErP | B189: 11262018_sp39_ErP | C189: Sheet116 | D189: 6 | E189: 1 | F189: 0 | G189: 0 | H189: 0 | J189: ErP | K189: ErP | L189: 0 | O189: ErP | P189: 228 | Q189: 305 | R189: 78 | S189: 78 | T189: 285 | U189: -207 | V189: 285 | W189: -207 | X189: 156 | Y189: -414 | AC189: 13.0026 | AD189: 47.5095 | AE189: 0 | AF189: 0 | AG189: 0 | AH189: 0 | AI189: 0 | AJ189: 13.0026 | AK189: 0 | AL189: 13.0026 | AM189: 105.4381 | AN189: 127.6372 | AO189: 22.1991 | AP189: 700.1797753 | AQ189: 530.9494382 | AR189: 734.808 | AS189: 452.888 | AT189: 85.39731894 | AU189: 956.4499721 | AV189: 339.9774326 | AW189: 3807.747245 | AX189: 3.981125366 | AY189: 292.8450653 | AZ189: 42.22022135 | BA189: 230 | BB189: 0.2883 | BC189: 36.43040776 | BD189: 230 | BE189: 0.2883 | BF189: 290 | BG189: 0.2883 | BH189: 291 | BI189: 0.2883 | BJ189: 0 | BK189: 0 | BL189: 0 | BM189: 0 | BO189: 0 | BQ189: 0 | BT189: 0 | BU189: 0 | BV189: 0 | BW189: 0 | BY189: 0 | CA189: 0 | CD189: 0 | CF189: 0 | CG189: 0 | CH189: 0 | CJ189: 0 | CK189: 0 | CL189: 0 | CN189: 0 | CO189: 0 | CP189: 0 | CR189: 0 | CT189: 0
A190: Cntrl ErP | B190: 11262018_sp39_ErP | C190: Sheet117 | D190: 2 | E190: 1 | F190: 0 | G190: 0 | H190: 0 | J190: ErP | K190: ErP | L190: 0 | O190: ErP | P190: 9 | Q190: 17 | R190: 9 | S190: 9 | T190: -3 | U190: 12 | V190: -3 | W190: 12 | X190: 18 | Y190: 24 | AC190: 1.5003 | AD190: -0.5001 | AE190: 18 | AF190: 0 | AG190: 0 | AH190: 0 | AI190: 0 | AJ190: 0 | AK190: 0 | AL190: 18 | AM190: 40 | AN190: 56 | AO190: 16 | AP190: 633.7722772 | AQ190: 503.5511551 | AR190: 621.0220994 | AS190: 509.0331492 | AT190: 13.87873525 | AU190: 155.4418348 | AV190: 71.02889008 | AW190: 795.5235689 | AX190: 5.117821529 | AY190: 44.19575383 | AZ190: 41.42464388 | BA190: 17 | BB190: 2 | BC190: 27.91671367 | BD190: 17 | BE190: 2 | BF190: 16 | BG190: 2 | BH190: 12 | BI190: 2 | BJ190: 1 | BK190: 0 | BL190: 0 | BM190: 0 | BO190: ErP | BP190: ErP | BQ190: 0 | BS190: ErP | BT190: 1 | BU190: 0 | BV190: 0 | BW190: 0 | BY190: ErP | BZ190: ErP | CA190: 0 | CC190: ErP | CD190: 0 | CF190: 0 | CG190: 0 | CH190: 0 | CJ190: 0 | CK190: 0 | CL190: 0 | CN190: 0 | CO190: 0 | CP190: 0 | CR190: 1 | CS190: ErP Expansion | CT190: 0 | CV190: ErP Expansion
A191: Cntrl ErP | B191: 11262018_sp39_ErP | C191: Sheet118 | D191: 3 | E191: 1 | F191: 0 | G191: 0 | H191: 0 | J191: ErP | K191: ErP | L191: 0 | O191: ErP | P191: 18 | Q191: 80 | R191: 63 | S191: 63 | T191: 60 | U191: 3 | V191: 60 | W191: 3 | X191: 126 | Y191: 6 | AC191: 10.5021 | AD191: 10.002 | AE191: 0 | AF191: 6 | AG191: 0 | AH191: 0 | AI191: 0 | AJ191: 0 | AK191: 10.002 | AL191: 16.002 | AM191: 58 | AN191: 72.8353 | AO191: 14.8353 | AP191: 625.2843137 | AQ191: 515.1936275 | AR191: 660.208243 | AS191: 416.472885 | AT191: 104.7161201 | AU191: 1172.820546 | AV191: 336.8477409 | AW191: 3772.694698 | AX191: 3.216770641 | AY191: 235.7639482 | AZ191: 102.5325932 | BA191: 20 | BB191: 2 | BC191: 78.38058855 | BD191: 20 | BE191: 2 | BF191: 19 | BG191: 2 | BH191: 21 | BI191: 1 | BJ191: 1 | BK191: 0 | BL191: 0 | BM191: 0 | BO191: ErP | BP191: ErP | BQ191: 0 | BS191: ErP | BT191: 1 | BU191: 0 | BV191: 0 | BW191: 0 | BY191: ErP | BZ191: ErP | CA191: 0 | CC191: ErP | CD191: 0 | CF191: 0 | CG191: 0 | CH191: 0 | CJ191: 0 | CK191: 0 | CL191: 0 | CN191: 0 | CO191: 0 | CP191: 0 | CR191: 1 | CS191: ErP Expansion | CT191: 0 | CV191: ErP Expansion
A192: Cntrl ErP | B192: 11262018_sp39_ErP | C192: Sheet119 | D192: 4 | E192: 1 | F192: 0 | G192: 0 | H192: 0 | J192: ErP | K192: ErP | L192: 0 | O192: ErP | P192: 81 | Q192: 169 | R192: 89 | S192: 89 | T192: 149 | U192: -60 | V192: 149 | W192: -60 | X192: 178 | Y192: -120 | AC192: 14.8363 | AD192: 24.8383 | AE192: 0 | AF192: 0 | AG192: 0 | AH192: 0 | AI192: 0 | AJ192: 14.8363 | AK192: 0 | AL192: 14.8363 | AM192: 73.002 | AN192: 87.6716 | AO192: 14.6696 | AP192: 664.3766816 | AQ192: 416.7802691 | AR192: 567.347619 | AS192: 418.7365079 | AT192: 97.04878079 | AU192: 1086.946345 | AV192: 292.8796712 | AW192: 3280.252317 | AX192: 3.017860387 | AY192: 221.0963864 | AZ192: 27.15894226 | BA192: 98 | BB192: 0.1667 | BC192: 25.88648505 | BD192: 98 | BE192: 0.1667 | BF192: 139 | BG192: 0.1667 | BH192: 160 | BI192: 0.1667 | BJ192: 1 | BK192: 0 | BL192: 0 | BM192: 0 | BO192: ErP | BP192: ErP | BQ192: 0 | BS192: ErP | BT192: 1 | BU192: 0 | BV192: 0 | BW192: 0 | BY192: ErP | BZ192: ErP | CA192: 0 | CC192: ErP | CD192: 0 | CF192: 0 | CG192: 0 | CH192: 0 | CJ192: 0 | CK192: 0 | CL192: 0 | CN192: 0 | CO192: 0 | CP192: 0 | CR192: 1 | CS192: ErP Expansion | CT192: 0 | CV192: ErP Expansion
A193: Cntrl ErP | B193: 11262018_sp39_ErP | C193: Sheet120 | D193: 5 | E193: 1 | F193: 0 | G193: 0 | H193: 0 | J193: ErP | K193: ErP | L193: 0 | O193: ErP | P193: 170 | Q193: 250 | R193: 81 | S193: 81 | T193: 230 | U193: -149 | V193: 230 | W193: -149 | X193: 162 | Y193: -298 | AC193: 13.5027 | AD193: 38.341 | AE193: 0 | AF193: 0 | AG193: 0 | AH193: 0 | AI193: 0 | AJ193: 13.5027 | AK193: 0 | AL193: 13.5027 | AM193: 87.8383 | AN193: 111.7807 | AO193: 23.9424 | AP193: 570.5462185 | AQ193: 420.2689076 | AR193: 622.1494253 | AS193: 296.5057471 | AT193: 134.0903085 | AU193: 1501.811455 | AV193: 207.1294123 | AW193: 2319.849417 | AX193: 1.544700841 | AY193: 171.8063363 | AZ193: 43.00621264 | BA193: 230 | BB193: 0.2883 | BC193: 26.85042147 | BD193: 230 | BE193: 0.2883 | BF193: 223 | BG193: 0.2883 | BH193: 185 | BI193: 0.2883 | BJ193: 1 | BK193: 0 | BL193: 0 | BM193: 0 | BO193: ErP | BP193: ErP | BQ193: 0 | BS193: ErP | BT193: 1 | BU193: 0 | BV193: 0 | BW193: 0 | BY193: ErP | BZ193: ErP | CA193: 0 | CC193: ErP | CD193: 0 | CF193: 0 | CG193: 0 | CH193: 0 | CJ193: 0 | CK193: 0 | CL193: 0 | CN193: 0 | CO193: 0 | CP193: 0 | CR193: 1 | CS193: ErP Expansion | CT193: 0 | CV193: ErP Expansion
A194: Cntrl ErP | B194: 11262018_sp39_ErP | C194: Sheet121 | D194: 6 | E194: 1 | F194: 0 | G194: 0 | H194: 0 | J194: ErP | K194: ErP | L194: 0 | O194: ErP | P194: 251 | Q194: 479 | R194: 229 | S194: 229 | T194: 459 | U194: -230 | V194: 459 | W194: -230 | X194: 458 | Y194: -460 | AC194: 38.1743 | AD194: 76.5153 | AE194: 0 | AF194: 0 | AG194: 0 | AH194: 0 | AI194: 0 | AJ194: 38.1743 | AK194: 0 | AL194: 38.1743 | AM194: 112.069 | AN194: 181.8619 | AO194: 69.7929 | AP194: 628.2093023 | AQ194: 285.1162791 | AR194: 653.3450292 | AS194: 314.1578947 | AT194: 38.4085955 | AU194: 430.1762696 | AV194: 647.3152416 | AW194: 7249.930706 | AX194: 16.85339527 | AY194: 189.916533 | AZ194: 25.59487781 | BA194: 358 | BB194: 0.3166 | BC194: 24.85767223 | BD194: 358 | BE194: 0.3166 | BF194: 359 | BG194: 0.3166 | BH194: 443 | BI194: 0.3166 | BJ194: 0 | BK194: 0 | BL194: 0 | BM194: 0 | BO194: 0 | BQ194: 0 | BT194: 0 | BU194: 0 | BV194: 0 | BW194: 0 | BY194: 0 | CA194: 0 | CD194: 0 | CF194: 0 | CG194: 0 | CH194: 0 | CJ194: 0 | CK194: 0 | CL194: 0 | CN194: 0 | CO194: 0 | CP194: 0 | CR194: 0 | CT194: 0
A195: Cntrl ErP | B195: 11262018_sp39_ErP | C195: Sheet122 | D195: 6 | E195: 1 | F195: 0 | G195: 0 | H195: 0 | J195: ErP | K195: ErP | L195: 0 | O195: ErP | P195: 251 | Q195: 308 | R195: 58 | S195: 58 | T195: 288 | U195: -230 | V195: 288 | W195: -230 | X195: 116 | Y195: -460 | AC195: 9.6686 | AD195: 48.0096 | AE195: 0 | AF195: 0 | AG195: 0 | AH195: 0 | AI195: 0 | AJ195: 9.6686 | AK195: 0 | AL195: 9.6686 | AM195: 112.069 | AN195: 128.5021 | AO195: 16.4331 | AP195: 620.0524272 | AQ195: 298.9378641 | AR195: 609.8398487 | AS195: 294.296343 | AT195: 11.21786422 | AU195: 125.6400793 | AV195: 108.8427863 | AW195: 1219.039206 | AX195: 9.70263003 | AY195: 126.0822876 | AZ195: 29.07984794 | BA195: 298 | BB195: 0.2883 | BC195: 22.15108872 | BD195: 298 | BE195: 0.2883 | BF195: 299 | BG195: 0.2883 | BH195: 300 | BI195: 0.2883 | BJ195: 1 | BK195: 0 | BL195: 0 | BM195: 0 | BO195: ErP | BP195: ErP | BQ195: 0 | BS195: ErP | BT195: 1 | BU195: 0 | BV195: 0 | BW195: 0 | BY195: ErP | BZ195: ErP | CA195: 0 | CC195: ErP | CD195: 0 | CF195: 0 | CG195: 0 | CH195: 0 | CJ195: 0 | CK195: 0 | CL195: 0 | CN195: 0 | CO195: 0 | CP195: 0 | CR195: 1 | CS195: ErP Expansion | CT195: 0 | CV195: ErP Expansion
A196: Cntrl ErP | B196: 11262018_sp39_ErP | C196: Sheet123 | D196: 7 | E196: 1 | F196: 0 | G196: 0 | H196: 0 | J196: ErP | K196: ErP | L196: 0 | O196: ErP | P196: 309 | Q196: 479 | R196: 171 | S196: 171 | T196: 459 | U196: -288 | V196: 459 | W196: -288 | X196: 342 | Y196: -576 | AC196: 28.5057 | AD196: 76.5153 | AE196: 0 | AF196: 0 | AG196: 0 | AH196: 0 | AI196: 0 | AJ196: 28.5057 | AK196: 0 | AL196: 28.5057 | AM196: 128.7904 | AN196: 181.8619 | AO196: 53.0715 | AP196: 610.4305019 | AQ196: 289.511583 | AR196: 665.4331897 | AS196: 254.5689655 | AT196: 65.16350339 | AU196: 729.831238 | AV196: 629.1998166 | AW196: 7047.037946 | AX196: 9.655708854 | AY196: 247.2150463 | AZ196: 28.32856126 | BA196: 332 | BB196: 0.2883 | BC196: 27.4820151 | BD196: 332 | BE196: 0.2883 | BF196: 331 | BG196: 0.2883 | BH196: 447 | BI196: 0.3166 | BJ196: 0 | BK196: 0 | BL196: 0 | BM196: 0 | BO196: 0 | BQ196: 0 | BT196: 0 | BU196: 0 | BV196: 0 | BW196: 0 | BY196: 0 | CA196: 0 | CD196: 0 | CF196: 0 | CG196: 0 | CH196: 0 | CJ196: 0 | CK196: 0 | CL196: 0 | CN196: 0 | CO196: 0 | CP196: 0 | CR196: 0 | CT196: 0
A197: Cntrl ErP | B197: 11262018_sp39_ErP | C197: Sheet124 | D197: 7 | E197: 1 | F197: 0 | G197: 0 | H197: 0 | J197: ErP | K197: ErP | L197: 0 | O197: ErP | P197: 309 | Q197: 312 | R197: 4 | S197: 4 | T197: 292 | U197: -288 | V197: 292 | W197: -288 | X197: 8 | Y197: -576 | AC197: 0.6668 | AD197: 48.6764 | AE197: 0 | AF197: 0 | AG197: 0 | AH197: 0 | AI197: 0 | AJ197: 0.6668 | AK197: 0 | AL197: 0.6668 | AM197: 128.7904 | AN197: 129.6553 | AO197: 0.8649 | AP197: 596.5297806 | AQ197: 301.2978056 | AR197: 601.0542636 | AS197: 302.5658915 | AT197: 4.698828376 | AU197: 52.62687781 | AV197: 4.603938123 | AW197: 51.56410698 | AX197: 0.9798055505 | AY197: 77.33069434 | AZ197: 4.785217132 | BA197: 310 | BB197: 0.2883 | BC197: 2.379296188 | BD197: 310 | BE197: 0.2883 | BF197: 311 | BG197: 0.2883 | BH197: 312 | BI197: 0.2883 | BJ197: 1 | BK197: 0 | BL197: 0 | BM197: 0 | BO197: ErP | BP197: ErP | BQ197: 0 | BS197: ErP | BT197: 1 | BU197: 0 | BV197: 0 | BW197: 0 | BY197: ErP | BZ197: ErP | CA197: 0 | CC197: ErP | CD197: 0 | CF197: 0 | CG197: 0 | CH197: 0 | CJ197: 0 | CK197: 0 | CL197: 0 | CN197: 0 | CO197: 0 | CP197: 0 | CR197: 1 | CS197: ErP Expansion | CT197: 0 | CV197: ErP Expansion
A198: Cntrl ErP | B198: 11262018_sp39_ErP | C198: Sheet125 | D198: 8 | E198: 1 | F198: 0 | G198: 0 | H198: 0 | J198: ErP | K198: ErP | L198: 0 | O198: ErP | P198: 313 | Q198: 479 | R198: 167 | S198: 167 | T198: 459 | U198: -292 | V198: 459 | W198: -292 | X198: 334 | Y198: -584 | AC198: 27.8389 | AD198: 76.5153 | AE198: 0 | AF198: 0 | AG198: 0 | AH198: 0 | AI198: 0 | AJ198: 27.8389 | AK198: 0 | AL198: 27.8389 | AM198: 129.9436 | AN198: 181.8619 | AO198: 51.9183 | AP198: 620.7108844 | AQ198: 311.8673469 | AR198: 615.6075 | AS198: 311.955 | AT198: 5.10413704 | AU198: 57.16633485 | AV198: 849.7016233 | AW198: 9516.658181 | AX198: 166.4731211 | AY198: 341.8474933 | AZ198: 31.14316748 | BA198: 457 | BB198: 0.3166 | BC198: 28.59712644 | BD198: 457 | BE198: 0.3166 | BF198: 456 | BG198: 0.3166 | BH198: 395 | BI198: 0.3166 | BJ198: 0 | BK198: 0 | BL198: 0 | BM198: 0 | BO198: 0 | BQ198: 0 | BT198: 0 | BU198: 0 | BV198: 0 | BW198: 0 | BY198: 0 | CA198: 0 | CD198: 0 | CF198: 0 | CG198: 0 | CH198: 0 | CJ198: 0 | CK198: 0 | CL198: 0 | CN198: 0 | CO198: 0 | CP198: 0 | CR198: 0 | CT198: 0
A199: Cntrl ErP | B199: 11262018_sp39_ErP | C199: Sheet126 | D199: 8 | E199: 1 | F199: 0 | G199: 0 | H199: 0 | J199: ErP | K199: ErP | L199: 0 | O199: ErP | P199: 313 | Q199: 333 | R199: 21 | S199: 21 | T199: 313 | U199: -292 | V199: 313 | W199: -292 | X199: 42 | Y199: -584 | AC199: 3.5007 | AD199: 52.1771 | AE199: 0 | AF199: 0 | AG199: 0 | AH199: 0 | AI199: 0 | AJ199: 3.5007 | AK199: 0 | AL199: 3.5007 | AM199: 129.9436 | AN199: 135.7096 | AO199: 5.766 | AP199: 603.345283 | AQ199: 301.4169811 | AR199: 615.9484127 | AS199: 285.2063492 | AT199: 20.53347182 | AU199: 229.9748844 | AV199: 89.14728734 | AW199: 998.4496182 | AX199: 4.341559387 | AY199: 285.2142766 | AZ199: 21.63358972 | BA199: 314 | BB199: 0.2883 | BC199: 16.24040785 | BD199: 314 | BE199: 0.2883 | BF199: 327 | BG199: 0.2883 | BH199: 332 | BI199: 0.2883 | BJ199: 1 | BK199: 0 | BL199: 0 | BM199: 0 | BO199: ErP | BP199: ErP | BQ199: 0 | BS199: ErP | BT199: 1 | BU199: 0 | BV199: 0 | BW199: 0 | BY199: ErP | BZ199: ErP | CA199: 0 | CC199: ErP | CD199: 0 | CF199: 0 | CG199: 0 | CH199: 0 | CJ199: 0 | CK199: 0 | CL199: 0 | CN199: 0 | CO199: 0 | CP199: 0 | CR199: 1 | CS199: ErP Expansion | CT199: 0 | CV199: ErP Expansion
A200: Cntrl ErP | B200: 11262018_sp39_ErP | C200: Sheet127 | D200: 9 | E200: 1 | F200: 0 | G200: 0 | H200: 0 | J200: ErP | K200: ErP | L200: 0 | O200: ErP | P200: 334 | Q200: 479 | R200: 146 | S200: 146 | T200: 459 | U200: -313 | V200: 459 | W200: -313 | X200: 292 | Y200: -626 | AC200: 24.3382 | AD200: 76.5153 | AE200: 0 | AF200: 0 | AG200: 0 | AH200: 0 | AI200: 0 | AJ200: 24.3382 | AK200: 0 | AL200: 24.3382 | AM200: 135.9979 | AN200: 181.8619 | AO200: 45.864 | AP200: 619.4976636 | AQ200: 284.5 | AR200: 635.5108434 | AS200: 227.6554217 | AT200: 59.05698952 | AU200: 661.4382827 | AV200: 330.476123 | AW200: 3701.332577 | AX200: 5.59588502 | AY200: 152.0791422 | AZ200: 33.1603633 | BA200: 376 | BB200: 0.3166 | BC200: 27.59807749 | BD200: 376 | BE200: 0.3166 | BF200: 374 | BG200: 0.3166 | BH200: 352 | BI200: 0.3166 | BJ200: 0 | BK200: 0 | BL200: 0 | BM200: 0 | BO200: 0 | BQ200: 0 | BT200: 0 | BU200: 0 | BV200: 0 | BW200: 0 | BY200: 0 | CA200: 0 | CD200: 0 | CF200: 0 | CG200: 0 | CH200: 0 | CJ200: 0 | CK200: 0 | CL200: 0 | CN200: 0 | CO200: 0 | CP200: 0 | CR200: 0 | CT200: 0
... 362 more rows

Sheet Stats
A1: Cntrl MEP | B1: Outcome | C1: Total # of cells tracked | D1: Total # of Blue Cells | E1: Total # of Green Cells | F1: Total # of Red Cells | G1: Avg Gen # of Blue | H1: Avg # Gen Green | I1: Avg # Gen Red | K1: Gen 1 Blue | L1: Gen 1 Green | M1: Gen 1 Red | N1: Gen 2 Blue | O1: Gen 2 Green | P1: Gen 2 Red | Q1: Gen 3 Blue | R1: Gen 3 Green | S1: Gen 3 Red | T1: Gen 4 Blue | U1: Gen 4 Green | V1: Gen 4 Red | W1: Gen 5 Blue | X1: Gen 5 Green | Y1: Gen 5 Red | Z1: Gen 6 Blue | AA1: Gen 6 Green | AB1: Gen 6 Red | AC1: Gen 7 Blue | AD1: Gen 7 Green | AE1: Gen 7 Red | AF1: Gen 8 Blue | AG1: Gen 8 Green | AH1: Gen 8 Red | AI1: Gen 9 Blue | AJ1: Gen 9 Green | AK1: Gen 9 Red | AL1: Gen 10 Blue | AM1: Gen 10 Green | AN1: Gen 10 Red | AO1: Gen 11 Blue | AP1: Gen 11 Green | AQ1: Gen 11 Red | AR1: Gen 12 Blue | AS1: Gen 12 Green | AT1: Gen 12 Red | AU1: Gen 13 Blue | AV1: Gen 13 Green | AW1: Gen 13 Red | AX1: Gen 14 Blue | AY1: Gen 14 Green | AZ1: Gen 14 Red
A2: 02102020_sp3a | B2: Mix | C2: 1083 | D2: 43 | E2: 21 | F2: 1019 | G2: 9.763128492 | H2: 2.476190476 | I2: 5.382728165 | K2: 1 | L2: 7 | M2: 37 | N2: 2 | O2: 3 | P2: 66 | Q2: 3 | R2: 5 | S2: 96 | T2: 4 | U2: 6 | V2: 134 | W2: 5 | X2: 0 | Y2: 150 | Z2: 6 | AA2: 0 | AB2: 178 | AC2: 7 | AD2: 0 | AE2: 200 | AF2: 6 | AG2: 0 | AH2: 130 | AI2: 5 | AJ2: 0 | AK2: 26 | AL2: 3 | AM2: 0 | AN2: 0 | AO2: 1 | AP2: 0 | AQ2: 0 | AR2: 0 | AS2: 0 | AT2: 0
A3: 02102020_sp3b | B3: Mix | C3: 587 | D3: 59 | E3: 32 | F3: 496 | G3: 6.322033898 | H3: 2.0625 | I3: 3.911290323 | K3: 1 | L3: 12 | M3: 48 | N3: 2 | O3: 10 | P3: 68 | Q3: 4 | R3: 6 | S3: 90 | T3: 6 | U3: 4 | V3: 102 | W3: 8 | X3: 0 | Y3: 92 | Z3: 10 | AA3: 0 | AB3: 64 | AC3: 9 | AD3: 0 | AE3: 24 | AF3: 9 | AG3: 0 | AH3: 6 | AI3: 6 | AJ3: 0 | AK3: 2 | AL3: 2 | AM3: 0 | AN3: 0 | AO3: 1 | AP3: 0 | AQ3: 0 | AR3: 1 | AS3: 0 | AT3: 0 | AU3: 0 | AV3: 0 | AW3: 0
A4: 02102020_sp6a | B4: Mix | C4: 31 | D4: 6 | E4: 14 | F4: 11 | G4: 2.333333333 | H4: 1.857142857 | I4: 2.090909091 | K4: 1 | L4: 4 | M4: 3 | N4: 2 | O4: 8 | P4: 4 | Q4: 3 | R4: 2 | S4: 4 | T4: 0 | U4: 0 | V4: 0 | W4: 0 | X4: 0 | Y4: 0 | Z4: 0 | AA4: 0 | AB4: 0 | AC4: 0 | AD4: 0 | AE4: 0 | AF4: 0 | AG4: 0 | AH4: 0 | AI4: 0 | AJ4: 0 | AK4: 0 | AL4: 0 | AM4: 0 | AN4: 0
A5: 02102020_sp6b | B5: Mix | C5: 83 | D5: 13 | E5: 18 | F5: 52 | G5: 3.384615385 | H5: 2 | I5: 3.076923077 | K5: 1 | L5: 6 | M5: 8 | N5: 2 | O5: 6 | P5: 14 | Q5: 3 | R5: 6 | S5: 8 | T5: 5 | U5: 0 | V5: 12 | W5: 2 | X5: 0 | Y5: 8 | Z5: 0 | AA5: 0 | AB5: 2 | AC5: 0 | AD5: 0 | AE5: 0 | AF5: 0 | AG5: 0 | AH5: 0 | AI5: 0 | AJ5: 0 | AK5: 0 | AL5: 0 | AM5: 0 | AN5: 0
A6: 07022020_sp20 | B6: Mix | C6: 131 | D6: 28 | E6: 49 | F6: 54 | G6: 4.214285714 | H6: 1.979591837 | I6: 2.222222222 | K6: 1 | L6: 17 | M6: 12 | N6: 2 | O6: 20 | P6: 22 | Q6: 4 | R6: 8 | S6: 16 | T6: 8 | U6: 4 | V6: 4 | W6: 9 | X6: 0 | Y6: 0 | Z6: 4 | AA6: 0 | AB6: 0 | AC6: 0 | AD6: 0 | AE6: 0 | AF6: 0 | AG6: 0 | AH6: 0 | AI6: 0 | AJ6: 0 | AK6: 0 | AL6: 0 | AM6: 0 | AN6: 0
A7: 04192017_sp1 | B7: Mix | C7: 507 | D7: 73 | E7: 31 | F7: 403 | G7: 7.06779661 | H7: 2 | I7: 3.717121588 | K7: 1 | L7: 12 | M7: 58 | N7: 2 | O7: 12 | P7: 62 | Q7: 4 | R7: 4 | S7: 72 | T7: 7 | U7: 2 | V7: 78 | W7: 7 | X7: 0 | Y7: 58 | Z7: 7 | AA7: 1 | AB7: 43 | AC7: 9 | AD7: 0 | AE7: 18 | AF7: 8 | AG7: 0 | AH7: 12 | AI7: 8 | AJ7: 0 | AK7: 2 | AL7: 8 | AM7: 0 | AN7: 0 | AO7: 5 | AP7: 0 | AQ7: 0 | AR7: 4 | AS7: 0 | AT7: 0 | AU7: 3 | AV7: 0 | AW7: 0 | AX7: 0 | AY7: 0 | AZ7: 0
A8: movies w MEP>E | B8: E
A9: movies w MEP>Mk | B9: Mk
A10: Subtotal | C10: =SUM(C2:C7) -> 2422 | D10: =SUM(D2:D7) -> 222 | E10: =SUM(E2:E7) -> 165 | F10: =SUM(F2:F7) -> 2035 | G10: =AVERAGE(G2:G7) -> 5.514198905 | H10: =AVERAGE(H2:H7) -> 2.062570862 | I10: =AVERAGE(I2:I7) -> 3.400199078 | K10: =SUM(K2:K7) -> 6 | L10: =SUM(L2:L7) -> 58 | M10: 166 | N10: 12 | O10: 59 | P10: 236 | Q10: 21 | R10: 31 | S10: 286 | T10: 30 | U10: 16 | V10: 330 | W10: 31 | X10: 0 | Y10: 308 | Z10: 27 | AA10: 1 | AB10: 287 | AC10: 25 | AD10: 0 | AE10: 242 | AF10: 23 | AG10: 0 | AH10: 148 | AI10: 19 | AJ10: 0 | AK10: 30 | AL10: 13 | AM10: 0 | AN10: 0 | AO10: 7 | AP10: 0 | AQ10: 0 | AR10: 5 | AS10: 0 | AT10: 0 | AU10: 3 | AV10: 0 | AW10: 0 | AX10: 0 | AY10: 0 | AZ10: 0
A12: Cntrl MkP
A13: 11082018_sp6 | B13: Mk | C13: 11 | E13: 11 | H13: 3 | L13: 1 | O13: 2 | R13: 4 | U13: 4
A14: 11082018_sp7 | B14: Mk | C14: 7 | E14: 7 | H14: 2.428571429 | L14: 1 | O14: 2 | R14: 4
A15: 11082018_sp10 | B15: Mk | C15: 17 | E15: 17 | H15: 3.588235294 | L15: 1 | O15: 2 | R15: 4 | U15: 6 | X15: 4
A16: 11082018_sp11 | B16: Mk | C16: 5 | E16: 5 | H16: 2.2 | L16: 1 | O16: 2 | R16: 2
A17: 11082018_sp12 | B17: Mk | C17: 9 | E17: 9 | H17: 2.777777778 | L17: 1 | O17: 2 | R17: 4 | U17: 2
A18: 11082018_sp14 | B18: Mk | C18: 5 | E18: 5 | H18: 2.2 | L18: 1 | O18: 2 | R18: 2
A19: 11082018_sp17 | B19: Mk | C19: 11 | E19: 11 | H19: 3 | L19: 1 | O19: 2 | R19: 4 | U19: 4
A20: 11082018_sp21 | B20: Mk | C20: 7 | E20: 7 | H20: 2.428571429 | L20: 1 | O20: 2 | R20: 4
A21: Subtotal | C21: =SUM(C13:C20) -> 72 | D21: =SUM(D15:D20) -> 0 | E21: =SUM(E13:E20) -> 72 | F21: =SUM(F15:F20) -> 0 | H21: =AVERAGE(H13:H20) -> 2.702894491 | L21: =SUM(L13:L20) -> 8 | O21: =SUM(O13:O20) -> 16 | R21: =SUM(R13:R20) -> 28 | U21: =SUM(U13:U20) -> 16 | X21: =SUM(X13:X20) -> 4
A23: Cntrl ErP
A24: 11262018_sp39 | B24: E | C24: 252 | F24: 252 | I24: 7.773809524 | M24: 1 | P24: 2 | S24: 4 | V24: 8 | Y24: 16 | AB24: 32 | AE24: 48 | AH24: 62 | AK24: 26 | AN24: 25 | AQ24: 18 | AT24: 6 | AW24: 4
A25: 11262018_sp53 | B25: E | C25: 143 | F25: 143 | I25: 6.51048951 | M25: 1 | P25: 2 | S25: 4 | V25: 8 | Y25: 16 | AB25: 30 | AE25: 42 | AH25: 32 | AK25: 8 | AN25: 0
A26: 11262018_sp57 | B26: E | C26: 147 | F26: 147 | I26: 6.469387755 | M26: 1 | P26: 2 | S26: 4 | V26: 8 | Y26: 16 | AB26: 30 | AE26: 48 | AH26: 36 | AK26: 2 | AN26: 0
A27: 11262018_sp61 | B27: E | C27: 209 | F27: 209 | I27: 6.95215311 | M27: 1 | P27: 2 | S27: 4 | V27: 8 | Y27: 16 | AB27: 32 | AE27: 64 | AH27: 54 | AK27: 28 | AN27: 0
A28: 11262018_sp65 | B28: E | C28: 247 | F28: 247 | I28: 7.04048583 | M28: 1 | P28: 2 | S28: 4 | V28: 8 | Y28: 16 | AB28: 32 | AE28: 64 | AH28: 110 | AK28: 10 | AN28: 0
A29: 11262018_sp66 | B29: E | C29: 79 | F29: 79 | I29: 5.481012658 | M29: 1 | P29: 2 | S29: 4 | V29: 8 | Y29: 16 | AB29: 32 | AE29: 16 | AH29: 0
A30: Subtotal | C30: =SUM(C24:C29) -> 1077 | D30: =SUM(D24:D29) -> 0 | E30: =SUM(E24:E29) -> 0 | F30: =SUM(F24:F29) -> 1077 | I30: =AVERAGE(I24:I29) -> 6.704556398 | M30: =SUM(M22:M29) -> 6 | P30: =SUM(P22:P29) -> 12 | S30: =SUM(S22:S29) -> 24 | V30: =SUM(V22:V29) -> 48 | Y30: =SUM(Y22:Y29) -> 96 | AB30: =SUM(AB22:AB29) -> 188 | AE30: =SUM(AE22:AE29) -> 282 | AH30: =SUM(AH22:AH29) -> 294 | AK30: =SUM(AK22:AK29) -> 74 | AN30: =SUM(AN22:AN29) -> 25 | AQ30: =SUM(AQ22:AQ29) -> 18 | AT30: =SUM(AT22:AT29) -> 6 | AW30: =SUM(AW22:AW29) -> 4
A32: -TPO MEP
A33: 01062020_sp36 | B33: Mix | C33: 104 | D33: 20 | E33: 30 | F33: 54 | G33: 4.45 | H33: 2.133333333 | I33: 2.481481481 | K33: 1 | L33: 8 | M33: 14 | N33: 2 | O33: 12 | P33: 14 | Q33: 3 | R33: 8 | S33: 14 | T33: 4 | U33: 2 | V33: 10 | W33: 5 | X33: 0 | Y33: 2 | Z33: 2 | AA33: 0 | AB33: 0 | AC33: 2 | AD33: 0 | AE33: 0 | AF33: 1 | AG33: 0 | AH33: 0 | AI33: 0 | AJ33: 0 | AK33: 0 | AL33: 0 | AM33: 0 | AN33: 0
A34: 01062020_sp39 | B34: Mix | C34: 335 | D34: 8 | E34: 14 | F34: 313 | G34: 3.75 | H34: 3.428571429 | I34: 6.309904153 | K34: 1 | L34: 2 | M34: 7 | N34: 1 | O34: 2 | P34: 14 | Q34: 1 | R34: 2 | S34: 18 | T34: 2 | U34: 4 | V34: 20 | W34: 2 | X34: 4 | Y34: 28 | Z34: 1 | AA34: 0 | AB34: 50 | AC34: 0 | AD34: 0 | AE34: 74 | AF34: 0 | AG34: 0 | AH34: 70 | AI34: 0 | AJ34: 0 | AK34: 32 | AL34: 0 | AM34: 0 | AN34: 0
A35: 01062020_sp44 | B35: Mix | C35: 122 | D35: 7 | E35: 50 | F35: 65 | G35: 2.857142857 | H35: 3.8 | I35: 5.123076923 | K35: 1 | L35: 4 | M35: 3 | N35: 2 | O35: 8 | P35: 4 | Q35: 2 | R35: 10 | S35: 4 | T35: 1 | U35: 12 | V35: 8 | W35: 1 | X35: 6 | Y35: 12 | Z35: 0 | AA35: 8 | AB35: 20 | AC35: 0 | AD35: 2 | AE35: 14 | AF35: 0 | AG35: 0 | AH35: 0 | AI35: 0 | AJ35: 0 | AK35: 0 | AL35: 0 | AM35: 0 | AN35: 0
A36: 01062020_sp47 | B36: Mix | C36: 128 | D36: 20 | E36: 27 | F36: 81 | G36: 3.95 | H36: 2.185185185 | I36: 3.592592593 | K36: 1 | L36: 9 | M36: 11 | N36: 2 | O36: 8 | P36: 10 | Q36: 4 | R36: 6 | S36: 16 | T36: 6 | U36: 4 | V36: 20 | W36: 4 | X36: 0 | Y36: 14 | Z36: 3 | AA36: 0 | AB36: 8 | AC36: 0 | AD36: 0 | AE36: 2 | AF36: 0 | AG36: 0 | AH36: 0 | AI36: 0 | AJ36: 0 | AK36: 0 | AL36: 0 | AM36: 0 | AN36: 0
A37: Subtotal | C37: =SUM(C33:C36) -> 689 | D37: =SUM(D33:D36) -> 55 | E37: =SUM(E33:E36) -> 121 | F37: =SUM(F33:F36) -> 513 | K37: =SUM(K29:K36) -> 4 | L37: =SUM(L29:L36) -> 23 | M37: 42 | N37: 7 | O37: 30 | P37: 56 | Q37: 10 | R37: 26 | S37: 80 | T37: 13 | U37: 22 | V37: 114 | W37: 12 | X37: 10 | Y37: 168 | Z37: 6 | AA37: 8 | AB37: 298 | AC37: 2 | AD37: 2 | AE37: 388 | AF37: 1 | AG37: 0 | AH37: 364 | AI37: 0 | AJ37: 0 | AK37: 106 | AL37: 0 | AM37: 0 | AN37: 25
A39: -EPO MEP
A40: 02102020_sp60 | B40: Mix | C40: 401 | D40: 51 | E40: 47 | F40: 303 | G40: 5.392156863 | H40: 1.957446809 | I40: 3.455445545 | K40: 1 | L40: 21 | M40: 29 | N40: 2 | O40: 13 | P40: 53 | Q40: 4 | R40: 7 | S40: 68 | T40: 8 | U40: 6 | V40: 75 | W40: 11 | X40: 0 | Y40: 64 | Z40: 11 | AA40: 0 | AB40: 10 | AC40: 8 | AD40: 0 | AE40: 4 | AF40: 5 | AG40: 0 | AH40: 0 | AI40: 1 | AJ40: 0 | AK40: 0 | AL40: 0 | AM40: 0 | AN40: 0
A41: 07022020_sp65 | B41: Mix | C41: 87 | D41: 20 | E41: 26 | F41: 41 | G41: 4 | H41: 2.153846154 | I41: 2.024390244 | K41: 1 | L41: 8 | M41: 13 | N41: 2 | O41: 8 | P41: 16 | Q41: 4 | R41: 8 | S41: 10 | T41: 5 | U41: 2 | V41: 2 | W41: 5 | X41: 0 | Y41: 0 | Z41: 3 | AA41: 0 | AB41: 0 | AC41: 0 | AD41: 0 | AE41: 0 | AF41: 0 | AG41: 0 | AH41: 0 | AI41: 0 | AJ41: 0 | AK41: 0 | AL41: 0 | AM41: 0 | AN41: 0
A42: 02102020_sp67 | B42: Mix | C42: 277 | D42: 11 | E42: 3 | F42: 263 | G42: 3.727272727 | H42: 1 | I42: 4.771863118 | K42: 1 | L42: 3 | M42: 9 | N42: 2 | O42: 0 | P42: 19 | Q42: 2 | R42: 0 | S42: 36 | T42: 2 | U42: 0 | V42: 45 | W42: 2 | X42: 0 | Y42: 54 | Z42: 2 | AA42: 0 | AB42: 50 | AC42: 0 | AD42: 0 | AE42: 50 | AF42: 0 | AG42: 0 | AH42: 0 | AI42: 0 | AJ42: 0 | AK42: 0 | AL42: 0 | AM42: 0 | AN42: 0
A43: Subtotal | C43: =SUM(C40:C42) -> 765 | D43: =SUM(D40:D42) -> 82 | E43: =SUM(E40:E42) -> 76 | F43: =SUM(F40:F42) -> 607 | K43: =SUM(K35:K42) -> 9 | L43: =SUM(L35:L42) -> 68 | M43: 107 | N43: 17 | O43: 67 | P43: 158 | Q43: 26 | R43: 57 | S43: 214 | T43: 35 | U43: 46 | V43: 264 | W43: 35 | X43: 16 | Y43: 312 | Z43: 25 | AA43: 16 | AB43: 386 | AC43: 10 | AD43: 4 | AE43: 458 | AF43: 6 | AG43: 0 | AH43: 364 | AI43: 1 | AJ43: 0 | AK43: 106 | AL43: 0 | AM43: 0 | AN43: 25
A45: Total | C45: =SUM(C10,C21,C30,C37,C43) -> 5025 | D45: =SUM(D10,D21,D30,D37,D43) -> 359 | E45: =SUM(E10,E21,E30,E37,E43) -> 434 | F45: =SUM(F10,F21,F30,F37,F43) -> 4232

Sheet Suggestion2
A2: Cell ID | B2: Sheet1
A4: Row Labels | B4: Count of Generation | C4: Average of Total Time | D4: StdDev of Total Time | E4: Average of Diffusion Micron Distance | F4: StdDev of Diffusion Micron Distance | G4: Average of Total Micron Distance | H4: StdDev of Total Micron Distance | I4: Average of 1 Peak Velocity | J4: StdDev of 1 Peak Velocity | K4: Average of Directionality | L4: StdDev of Directionality | M4: Average of Last Time
A5: Cntrl ErP | B5: 6 | C5: 7.333333333 | D5: 6.022181222 | E5: 437.7458026 | F5: 650.8538849 | G5: 319.2160924 | H5: 176.4216042 | I5: 21.77811324 | J5: 12.4527955 | M5: 51.31165
A6: ErP | B6: 6 | C6: 7.333333333 | D6: 6.022181222 | E6: 437.7458026 | F6: 650.8538849 | G6: 319.2160924 | H6: 176.4216042 | I6: 21.77811324 | J6: 12.4527955 | M6: 51.31165
A7: 11262018_sp39_ErP | B7: 1 | C7: 14 | E7: 90.21018709 | G7: 220.170984 | I7: 10.05959148 | K7: 2.440644356 | M7: 38
A8: 11262018_sp53_ErP | B8: 1 | C8: 2 | E8: 90.78193428 | G8: 58.55434761 | I8: 8.105529846 | K8: 0.645 | M8: 26
A9: 11262018_sp57_ErP | B9: 1 | C9: 12 | E9: 407.4377742 | G9: 475.9651002 | I9: 32.7261669 | K9: 1.1681909 | M9: 36
A10: 11262018_sp61_ErP | B10: 1 | C10: 12 | E10: 1729.157623 | G10: 475.9651002 | I10: 14.16909313 | K10: 0.2752583651 | M10: 36
A11: 11262018_sp65_ErP | B11: 1 | C11: 0 | E11: 0 | G11: 459.9221741 | I11: 36.68958937 | M11: 143.8699
A12: 11262018_sp66_ErP | B12: 1 | C12: 4 | E12: 308.8872975 | G12: 224.7188481 | I12: 28.91870872 | K12: 0.7275108103 | M12: 28
A13: Cntrl MEP | B13: 5 | C13: 7.4 | D13: 8.111719916 | E13: 224.0637295 | F13: 221.9804151 | G13: 801.9254839 | H13: 762.7169384 | I13: 27.47046777 | J13: 22.16458056 | M13: 78.2
A14: MEP | B14: 5 | C14: 7.4 | D14: 8.111719916 | E14: 224.0637295 | F14: 221.9804151 | G14: 801.9254839 | H14: 762.7169384 | I14: 27.47046777 | J14: 22.16458056 | M14: 78.2
A15: 02102020_sp3a | B15: 1 | C15: 0 | E15: 0 | G15: 0 | I15: 0 | M15: 24
A16: 02102020_sp3b | B16: 1 | C16: 4 | E16: 547.136454 | G16: 456.0586165 | I16: 46.06775586 | K16: 0.8335372524 | M16: 28
A17: 02102020_sp6a | B17: 1 | C17: 14 | E17: 169.4088069 | G17: 706.6398417 | I17: 18.80697157 | K17: 4.17121078 | M17: 38
A18: 04192017_sp1 | B18: 1 | C18: 18 | E18: 340.7209039 | G18: 797.9489583 | I18: 18.40954415 | K18: 2.341943066 | M18: 42
A19: 07022020_sp20 | B19: 1 | C19: 1 | E19: 63.05248253 | G19: 2048.980003 | I19: 54.06806727 | K19: 32.49642078 | M19: 259
A20: Cntrl MkP | B20: 8 | C20: 18.75 | D20: 8.481071361 | E20: 890.0202355 | F20: 726.5574111 | G20: 1889.986581 | H20: 1851.163347 | I20: 81.35911187 | J20: 71.08067348 | K20: 2.180833259 | L20: 1.416352206 | M20: 42.75
A21: MkP | B21: 8 | C21: 18.75 | D21: 8.481071361 | E21: 890.0202355 | F21: 726.5574111 | G21: 1889.986581 | H21: 1851.163347 | I21: 81.35911187 | J21: 71.08067348 | K21: 2.180833259 | L21: 1.416352206 | M21: 42.75
A22: 11082018_sp10_MkP | B22: 1 | C22: 18 | E22: 866.5572129 | G22: 836.7712895 | I22: 53.56458157 | K22: 0.9656272859 | M22: 42
A23: 11082018_sp11_MkP | B23: 1 | C23: 32 | E23: 2449.038888 | G23: 4602.897403 | I23: 206.1458424 | K23: 1.879470933 | M23: 56
A24: 11082018_sp12_MkP | B24: 1 | C24: 14 | E24: 205.6452154 | G24: 897.1759242 | I24: 34.00049969 | K24: 4.362736679 | M24: 38
A25: 11082018_sp14_MkP | B25: 1 | C25: 30 | E25: 596.8642453 | G25: 1630.424476 | I25: 62.97762577 | K25: 2.731650436 | M25: 54 | N25: =AVERAGE(L25,L26,L27,L29,L30) ->  | O25: =SUM(B25,B26,B27,B29,B30) -> 7
A26: 11082018_sp17_MkP | B26: 1 | C26: 22 | E26: 1202.532011 | G26: 5004.936423 | I26: 178.4337657 | K26: 4.161998498 | M26: 46
A27: 11082018_sp21_MkP | B27: 1 | C27: 12 | E27: 551.0646834 | G27: 671.3987869 | I27: 31.12607329 | K27: 1.218366568 | M27: 36
A28: 11082018_sp6_MkP | B28: 1 | C28: 12 | E28: 1046.104709 | G28: 1296.756967 | I28: 69.20177615 | K28: 1.239605324 | M28: 36
A29: 11082018_sp7_MkP | B29: 1 | C29: 10 | E29: 202.3549186 | G29: 179.5313782 | I29: 15.42273042 | K29: 0.8872103503 | M29: 34
A30: EPO MEP | B30: 3 | C30: 20 | D30: 11.3137085 | E30: 2260.181969 | F30: 2873.255163 | G30: 2868.883912 | H30: 2552.801873 | I30: 56.222219 | J30: 55.725252 | K30: 3.182864618 | L30: 2.82995033 | M30: 31.33333333
A31: MEP | B31: 3 | C31: 20 | D31: 11.3137085 | E31: 2260.181969 | F31: 2873.255163 | G31: 2868.883912 | H31: 2552.801873 | I31: 56.222219 | J31: 55.725252 | K31: 3.182864618 | L31: 2.82995033 | M31: 31.33333333
A32: 02102020_sp60 | B32: 1 | C32: 12 | E32: 74.98579207 | G32: 478.5876069 | I32: 23.53156928 | K32: 6.382377163 | M32: 36 | N32: =AVERAGE(L32:L34) ->  | O32: =SUM(B32:B34) -> 3
A33: 02102020_sp67 | B33: 1 | C33: 28 | E33: 1190.770926 | G33: 2570.157879 | I33: 120.5654061 | K33: 2.158398247 | M33: 52
A34: 07022020_sp65 | B34: 1 | E34: 5514.789189 | G34: 5557.90625 | I34: 24.56968165 | K34: 1.007818442 | M34: 6
A35: TPO MEP | B35: 4 | C35: 12.5 | D35: 4.434711565 | E35: 533.7079989 | F35: 430.1871256 | G35: 735.656243 | H35: 509.9957486 | I35: 38.16383064 | J35: 23.42687163 | K35: 1.565319316 | L35: 0.9065085727 | M35: 36.5
A36: MEP | B36: 4 | C36: 12.5 | D36: 4.434711565 | E36: 533.7079989 | F36: 430.1871256 | G36: 735.656243 | H36: 509.9957486 | I36: 38.16383064 | J36: 23.42687163 | K36: 1.565319316 | L36: 0.9065085727 | M36: 36.5
A37: 01062020_sp36 | B37: 1 | C37: 16 | E37: 963.4274155 | G37: 897.9709972 | I37: 53.43702629 | K37: 0.9320587962 | M37: 40
A38: 01062020_sp39 | B38: 1 | C38: 14 | E38: 840.1395023 | G38: 1319.207075 | I38: 60.86826096 | K38: 1.570223839 | M38: 38
A39: 01062020_sp44 | B39: 1 | C39: 14 | E39: 218.8526352 | G39: 622.7730623 | I39: 28.57031553 | K39: 2.845627432 | M39: 38
A40: 01062020_sp47 | B40: 1 | C40: 6 | E40: 112.4124425 | G40: 102.6738376 | I40: 9.779719772 | K40: 0.9133671977 | M40: 30
A41: Grand Total | B41: 26 | C41: 12.84 | D41: 8.773444781 | E41: 760.8589711 | F41: 1135.387973 | G41: 1253.618974 | H41: 1532.096273 | I41: 47.70061126 | J41: 49.67401448 | M41: 49.26422692

Sheet Cntrl MEP Division Outcomes
B2: Counts of 3 Division Outcome
C3: Expansion (B+B) | I3: Maintenance (B+GorR) | O3: Exhaustion (G+R) | U3: Double Mk (G+G) | Z3: Double Er (R+R) | AJ3: Total Divisions
B4: 1 | C4: 1 | D4: 1 | E4: 1 | F4: 1 | G4: 1 | H4: 1 | I4: 0 | J4: 0 | K4: 0 | L4: 0 | M4: 0 | N4: 0 | U4: 1 | V4: 1 | W4: 1 | X4: 1 | Y4: 1 | Z4: 1 | AA4: 1 | AB4: 1 | AC4: 1 | AD4: 1 | AE4: 1 | AF4: 1 | AG4: 1 | AH4: 1 | AI4: 1 | AJ4: 1 | AK4: 1 | AL4: 1 | AM4: 1 | AN4: 1 | AO4: 1 | AP4: 1 | AQ4: 1 | AR4: 1 | AS4: 1 | AT4: 1 | AU4: 1 | AV4: 1 | AW4: 1 | AX4: 1 | AY4: 1 | AZ4: 1 | BA4: 1 | BB4: 1 | BC4: 1 | BD4: 1
B5: 2 | C5: 1 | D5: 2 | E5: 1 | F5: 1 | G5: 2 | H5: 2 | I5: 1 | J5: 0 | K5: 1 | L5: 1 | M5: 0 | N5: 0 | AJ5: 2 | AK5: 2 | AL5: 2 | AM5: 2 | AN5: 2 | AO5: 2
B6: 3 | C6: 1 | D6: 2 | E6: 0 | F6: 2 | G6: 3 | H6: 4 | I6: 2 | J6: 2 | K6: 0 | L6: 1 | M6: 1 | N6: 0 | O6: 0 | P6: 0 | Q6: 3 | R6: 0 | S6: 0 | T6: 0 | AJ6: 3 | AK6: 4 | AL6: 3 | AM6: 3 | AN6: 4 | AO6: 4
B7: 4 | C7: 1 | D7: 2 | E7: 0 | F7: 0 | G7: 2 | H7: 1 | I7: 3 | J7: 4 | K7: 0 | L7: 2 | M7: 5 | N7: 7 | O7: 0 | P7: 0 | Q7: 0 | R7: 3 | S7: 0 | T7: 0 | AJ7: 4 | AK7: 6 | AL7: 0 | AM7: 5 | AN7: 7 | AO7: 8
B8: 5 | C8: 1 | D8: 2 | E8: 0 | F8: 0 | G8: 1 | H8: 1 | I8: 4 | J8: 6 | K8: 0 | L8: 0 | M8: 5 | N8: 2 | O8: 0 | P8: 0 | Q8: 0 | R8: 2 | S8: 0 | T8: 6 | AJ8: 5 | AK8: 8 | AL8: 0 | AM8: 2 | AN8: 6 | AO8: 9
B9: 6 | C9: 1 | D9: 1 | E9: 0 | F9: 0 | G9: 2 | H9: 0 | I9: 5 | J9: 9 | K9: 0 | L9: 0 | M9: 5 | N9: 0 | O9: 0 | P9: 1 | Q9: 0 | R9: 0 | S9: 0 | T9: 4 | AJ9: 6 | AK9: 11 | AL9: 0 | AM9: 0 | AN9: 7 | AO9: 4
B10: 7 | C10: 0 | D10: 0 | E10: 0 | F10: 0 | G10: 0 | H10: 0 | I10: 6 | J10: 7 | K10: 0 | L10: 0 | M10: 8 | N10: 0 | O10: 1 | P10: 1 | Q10: 0 | R10: 0 | S10: 1 | T10: 0 | AJ10: 7 | AK10: 8 | AL10: 0 | AM10: 0 | AN10: 9 | AO10: 0
B11: 8 | C11: 0 | D11: 0 | E11: 0 | F11: 0 | G11: 1 | H11: 0 | I11: 5 | J11: 6 | K11: 0 | L11: 0 | M11: 6 | N11: 0 | O11: 1 | P11: 3 | Q11: 0 | R11: 0 | S11: 1 | T11: 0 | AJ11: 6 | AK11: 9 | AL11: 0 | AM11: 0 | AN11: 8 | AO11: 0
B12: 9 | C12: 0 | D12: 0 | E12: 0 | F12: 0 | G12: 0 | H12: 0 | I12: 3 | J12: 2 | K12: 0 | L12: 0 | M12: 7 | N12: 0 | O12: 2 | P12: 4 | Q12: 0 | R12: 0 | S12: 1 | T12: 0 | AJ12: 5 | AK12: 6 | AL12: 0 | AM12: 0 | AN12: 8 | AO12: 0
B13: 10 | C13: 0 | D13: 0 | E13: 0 | F13: 0 | G13: 1 | H13: 0 | I13: 1 | J13: 1 | K13: 0 | L13: 0 | M13: 3 | N13: 0 | O13: 2 | P13: 1 | Q13: 0 | R13: 0 | S13: 4 | T13: 0 | AJ13: 3 | AK13: 2 | AL13: 0 | AM13: 0 | AN13: 8 | AO13: 0
B14: 11 | I14: 0 | J14: 1 | K14: 0 | L14: 0 | M14: 4 | N14: 0 | O14: 1 | P14: 0 | Q14: 0 | R14: 0 | S14: 1 | T14: 0 | AJ14: 1 | AK14: 1 | AL14: 0 | AM14: 0 | AN14: 5 | AO14: 0
B15: 12 | I15: 0 | J15: 0 | K15: 0 | L15: 0 | M15: 3 | N15: 0 | O15: 1 | P15: 0 | Q15: 0 | R15: 0 | S15: 1 | T15: 0 | AJ15: 1 | AK15: 0 | AL15: 0 | AM15: 0 | AN15: 4 | AO15: 0
B16: 13 | O16: 0 | P16: 0 | Q16: 0 | R16: 0 | S16: 3 | T16: 0 | AJ16: 0 | AK16: 0 | AL16: 0 | AM16: 0 | AN16: 3 | AO16: 0
B18: Frequencies
C19: Expansion (B+B) | I19: Maintenance (B+GorR) | O19: Exhaustion (G+R) | AJ19: Sum
B20: 1 | C20: =(C4/AJ4)*100 -> 100 | D20: =(D4/AK4)*100 -> 100 | E20: =(E4/AL4)*100 -> 100 | F20: =(F4/AM4)*100 -> 100 | G20: =(G4/AN4)*100 -> 100 | H20: =(H4/AO4)*100 -> 100 | I20: =(I4/AJ4)*100 -> 0 | J20: =(J4/AK4)*100 -> 0 | K20: =(K4/AL4)*100 -> 0 | L20: =(L4/AM4)*100 -> 0 | M20: =(M4/AN4)*100 -> 0 | N20: =(N4/AO4)*100 -> 0 | O20: =(O4/AJ4)*100 -> 0 | P20: 0 | Q20: 0 | R20: 0 | S20: 0 | T20: 0 | U20: 100 | V20: =(V4/AQ4)*100 -> 100 | W20: 100 | X20: 100 | Y20: 100 | Z20: 100 | AA20: 100 | AB20: 100 | AC20: 100 | AD20: 100 | AE20: 100 | AF20: 100 | AG20: 100 | AH20: 100 | AI20: 100 | AJ20: =C20+I20+O20 -> 100 | AK20: 100 | AL20: 100 | AM20: 100 | AN20: 100 | AO20: 100 | AP20: 100 | AQ20: =J20+P20+V20 -> 100 | AR20: 100 | AS20: 100 | AT20: 100 | AU20: 100 | AV20: 200 | AW20: 200 | AX20: 200 | AY20: 200 | AZ20: 200 | BA20: 200 | BB20: 300 | BC20: 300 | BD20: 300
B21: 2 | C21: 50 | D21: 100 | E21: 50 | F21: 50 | G21: 100 | H21: 100 | I21: 50 | J21: 0 | K21: 50 | L21: 50 | M21: 0 | N21: 0 | O21: =(O5/AJ5)*100 -> 0 | P21: =(P5/AK5)*100 -> 0 | Q21: =(Q5/AL5)*100 -> 0 | R21: =(R5/AM5)*100 -> 0 | S21: =(S5/AN5)*100 -> 0 | T21: =(T5/AO5)*100 -> 0 | AJ21: =C21+I21+O21 -> 100 | AK21: =D21+J21+P21 -> 100 | AL21: =E21+K21+Q21 -> 100 | AM21: =F21+L21+R21 -> 100 | AN21: =G21+M21+S21 -> 100 | AO21: =H21+N21+T21 -> 100
B22: 3 | C22: 33.33333333 | D22: 50 | E22: 0 | F22: 66.66666667 | G22: 75 | H22: 100 | I22: 66.66666667 | J22: 50 | K22: 0 | L22: 33.33333333 | M22: 25 | N22: 0 | O22: 0 | P22: 0 | Q22: 100 | R22: 0 | S22: 0 | T22: 0 | AJ22: 100 | AK22: 100 | AL22: 100 | AM22: 100 | AN22: 100 | AO22: 100
B23: 4 | C23: 25 | D23: 33.33333333 | F23: 0 | G23: 28.57142857 | H23: 12.5 | I23: 75 | J23: 66.66666667 | L23: 40 | M23: 71.42857143 | N23: 87.5 | O23: 0 | P23: 0 | R23: 60 | S23: 0 | T23: 0 | AJ23: 100 | AK23: 100 | AM23: 100 | AN23: 100 | AO23: 100
B24: 5 | C24: 20 | D24: 25 | F24: 0 | G24: 16.66666667 | H24: 11.11111111 | I24: 80 | J24: 75 | L24: 0 | M24: 83.33333333 | N24: 22.22222222 | O24: 0 | P24: 0 | R24: 100 | S24: 0 | T24: 66.66666667 | AJ24: 100 | AK24: 100 | AM24: 100 | AN24: 100 | AO24: 100
B25: 6 | C25: 16.66666667 | D25: 9.090909091 | G25: 28.57142857 | H25: 0 | I25: 83.33333333 | J25: 81.81818182 | M25: 71.42857143 | N25: 0 | O25: 0 | P25: 9.090909091 | S25: 0 | T25: 100 | AJ25: 100 | AK25: 100 | AN25: 100 | AO25: 100
B26: 7 | C26: 0 | D26: 0 | G26: 0 | I26: 85.71428571 | J26: 87.5 | M26: 88.88888889 | O26: 14.28571429 | P26: 12.5 | S26: 11.11111111 | AJ26: 100 | AK26: 100 | AN26: 100
B27: 8 | C27: 0 | D27: 0 | G27: 12.5 | I27: 83.33333333 | J27: 66.66666667 | M27: 75 | O27: 16.66666667 | P27: 33.33333333 | S27: 12.5 | AJ27: 100 | AK27: 100 | AN27: 100
B28: 9 | C28: 0 | D28: 0 | G28: 0 | I28: 60 | J28: 33.33333333 | M28: 87.5 | O28: 40 | P28: 66.66666667 | S28: 12.5 | AJ28: 100 | AK28: 100 | AN28: 100
B29: 10 | C29: 0 | D29: 0 | G29: 12.5 | I29: 33.33333333 | J29: 50 | M29: 37.5 | O29: 66.66666667 | P29: 50 | S29: 50 | AJ29: 100 | AK29: 100 | AN29: 100
B30: 11 | C30: 0 | D30: 0 | G30: 0 | I30: 0 | J30: 100 | M30: 80 | O30: 100 | P30: 0 | S30: 20 | AJ30: 100 | AK30: 100 | AN30: 100
B31: 12 | C31: 0 | G31: 0 | I31: 0 | M31: 75 | O31: 100 | S31: 25 | AJ31: 100 | AN31: 100
B32: 13 | G32: 0 | M32: 0 | S32: 100 | AN32: 100
B35: Counts of 4 Division Outcome
C36: Expansion (B/B) | I36: Maintenance+Mk (B/G) | O36: Maintenance+E (B/R) | U36: Exhaustion (G/R) | AA36: Total
B37: 1 | C37: 1 | D37: 1 | E37: 1 | F37: 1 | G37: 1 | H37: 1 | I37: 0 | J37: 0 | K37: 0 | L37: 0 | M37: 0 | N37: 0 | O37: 0 | P37: 0 | Q37: 0 | R37: 0 | S37: 0 | T37: 0 | U37: 0 | V37: 0 | W37: 0 | X37: 0 | Y37: 0 | Z37: 0 | AA37: =SUM(C37+I37+O37+U37) -> 1 | AB37: =SUM(D37+J37+P37+V37) -> 1 | AC37: 1 | AD37: 1 | AI37: =SUM(G37+M37+S37+Y37) -> 1 | AJ37: =SUM(H37+N37+T37+Z37) -> 1
B38: 2 | C38: 1 | D38: 2 | E38: 1 | F38: 1 | G38: 2 | H38: 2 | I38: 0 | J38: 0 | K38: 1 | L38: 0 | M38: 0 | N38: 0 | O38: 1 | P38: 0 | Q38: 0 | R38: 1 | S38: 0 | T38: 0 | U38: 0 | V38: 0 | W38: 0 | X38: 0 | Y38: 0 | Z38: 0 | AA38: =SUM(C38+I38+O38+U38) -> 2 | AB38: =SUM(D38+J38+P38+V38) -> 2 | AC38: =SUM(E38+K38+Q38+W38) -> 2 | AD38: =SUM(F38+L38+R38+X38) -> 2 | AI38: 2 | AJ38: 2
B39: 3 | C39: 1 | D39: 2 | E39: 0 | F39: 2 | G39: 3 | H39: 4 | I39: 0 | J39: 0 | K39: 0 | L39: 0 | M39: 0 | N39: 0 | O39: 2 | P39: 2 | Q39: 0 | R39: 1 | S39: 1 | T39: 0 | U39: 0 | V39: 0 | W39: 3 | X39: 0 | Y39: 0 | Z39: 0 | AA39: 3 | AB39: 4 | AC39: 3 | AD39: 3 | AI39: 4 | AJ39: 4
B40: 4 | C40: 1 | D40: 2 | E40: 0 | F40: 0 | G40: 2 | H40: 1 | I40: 0 | J40: 0 | K40: 0 | L40: 1 | M40: 0 | N40: 6 | O40: 3 | P40: 4 | Q40: 0 | R40: 1 | S40: 5 | T40: 1 | U40: 0 | V40: 0 | W40: 0 | X40: 3 | Y40: 0 | Z40: 0 | AA40: 4 | AB40: 6 | AC40: 0 | AD40: 5 | AI40: 7 | AJ40: 8
B41: 5 | C41: 1 | D41: 2 | E41: 0 | F41: 0 | G41: 1 | H41: 1 | I41: 0 | J41: 0 | K41: 0 | L41: 0 | M41: 0 | N41: 1 | O41: 4 | P41: 6 | Q41: 0 | R41: 0 | S41: 5 | T41: 1 | U41: 0 | V41: 0 | W41: 0 | X41: 2 | Y41: 0 | Z41: 6 | AA41: 5 | AB41: 8 | AC41: 0 | AD41: 2 | AI41: 6 | AJ41: 9
B42: 6 | C42: 1 | D42: 1 | E42: 0 | F42: 0 | G42: 2 | H42: 0 | I42: 0 | J42: 1 | K42: 0 | L42: 0 | M42: 0 | N42: 0 | O42: 5 | P42: 8 | Q42: 0 | R42: 0 | S42: 5 | T42: 0 | U42: 0 | V42: 1 | W42: 0 | X42: 0 | Y42: 0 | Z42: 4 | AA42: 6 | AB42: 11 | AC42: 0 | AD42: 0 | AI42: 7 | AJ42: 4
B43: 7 | C43: 0 | D43: 0 | E43: 0 | F43: 0 | G43: 0 | H43: 0 | I43: 0 | J43: 0 | K43: 0 | L43: 0 | M43: 0 | N43: 0 | O43: 6 | P43: 7 | Q43: 0 | R43: 0 | S43: 8 | T43: 0 | U43: 1 | V43: 1 | W43: 0 | X43: 0 | Y43: 1 | Z43: 0 | AA43: 7 | AB43: 8 | AC43: 0 | AD43: 0 | AI43: 9 | AJ43: 0
B44: 8 | C44: 0 | D44: 0 | E44: 0 | F44: 0 | G44: 1 | H44: 0 | I44: 0 | J44: 0 | K44: 0 | L44: 0 | M44: 0 | N44: 0 | O44: 5 | P44: 6 | Q44: 0 | R44: 0 | S44: 6 | T44: 0 | U44: 1 | V44: 3 | W44: 0 | X44: 0 | Y44: 1 | Z44: 0 | AA44: 6 | AB44: 9 | AC44: 0 | AD44: 0 | AI44: 8 | AJ44: 0
B45: 9 | C45: 0 | D45: 0 | E45: 0 | F45: 0 | G45: 0 | H45: 0 | I45: 0 | J45: 0 | K45: 0 | L45: 0 | M45: 0 | N45: 0 | O45: 3 | P45: 2 | Q45: 0 | R45: 0 | S45: 7 | T45: 0 | U45: 2 | V45: 4 | W45: 0 | X45: 0 | Y45: 1 | Z45: 0 | AA45: 5 | AB45: 6 | AC45: 0 | AD45: 0 | AI45: 8 | AJ45: 0
B46: 10 | C46: 0 | D46: 0 | E46: 0 | F46: 0 | G46: 1 | H46: 0 | I46: 0 | J46: 0 | K46: 0 | L46: 0 | M46: 0 | N46: 0 | O46: 1 | P46: 1 | Q46: 0 | R46: 0 | S46: 3 | T46: 0 | U46: 2 | V46: 1 | W46: 0 | X46: 0 | Y46: 4 | Z46: 0 | AA46: 3 | AB46: 2 | AC46: 0 | AD46: 0 | AI46: 8 | AJ46: 0
B47: 11 | C47: 0 | D47: 0 | E47: 0 | F47: 0 | G47: 0 | H47: 0 | I47: 0 | J47: 0 | K47: 0 | L47: 0 | M47: 0 | N47: 0 | O47: 0 | P47: 1 | Q47: 0 | R47: 0 | S47: 4 | T47: 0 | U47: 1 | V47: 0 | W47: 0 | X47: 0 | Y47: 1 | Z47: 0 | AA47: 1 | AB47: 1 | AC47: 0 | AD47: 0 | AI47: 5 | AJ47: 0
B48: 12 | C48: 0 | D48: 0 | E48: 0 | F48: 0 | G48: 0 | H48: 0 | I48: 0 | J48: 0 | K48: 0 | L48: 0 | M48: 0 | N48: 0 | O48: 0 | P48: 0 | Q48: 0 | R48: 0 | S48: 3 | T48: 0 | U48: 1 | V48: 0 | W48: 0 | X48: 0 | Y48: 1 | Z48: 0 | AA48: 1 | AB48: 0 | AC48: 0 | AD48: 0 | AI48: 4 | AJ48: 0
B49: 13 | C49: 0 | D49: 0 | E49: 0 | F49: 0 | G49: 0 | H49: 0 | I49: 0 | J49: 0 | K49: 0 | L49: 0 | M49: 0 | N49: 0 | O49: 0 | P49: 0 | Q49: 0 | R49: 0 | S49: 0 | T49: 0 | U49: 0 | V49: 0 | W49: 0 | X49: 0 | Y49: 3 | Z49: 0 | AA49: 0 | AB49: 0 | AC49: 0 | AD49: 0 | AI49: 3 | AJ49: 0
B51: Frequencies
C52: Expansion (B/B) | I52: Maintenance+Mk (B/G) | O52: Maintenance+E (B/R) | U52: Exhaustion (G/R) | AA52: Sum
B53: 1 | C53: =(C37/AA37)*100 -> 100 | D53: =(D37/AB37)*100 -> 100 | E53: 100 | F53: 100 | G53: =(G37/AI37)*100 -> 100 | H53: =(H37/AJ37)*100 -> 100 | I53: =(I37/AA37)*100 -> 0 | J53: =(J37/AB37)*100 -> 0 | K53: 0 | L53: 0 | M53: =(M37/AI37)*100 -> 0 | N53: =(N37/AJ37)*100 -> 0 | O53: =(O37/AA37)*100 -> 0 | P53: =(P37/AB37)*100 -> 0 | Q53: 0 | R53: 0 | S53: =(S37/AI37)*100 -> 0 | T53: =(T37/AJ37)*100 -> 0 | U53: =(U37/AA37)*100 -> 0 | V53: =(V37/AB37)*100 -> 0 | W53: 0 | X53: 0 | Y53: =(Y37/AI37)*100 -> 0 | Z53: =(Z37/AJ37)*100 -> 0 | AA53: =C53+I53+O53+U53 -> 100 | AB53: =D53+J53+P53+V53 -> 100 | AC53: 100 | AD53: 100 | AI53: =G53+M53+S53+Y53 -> 100 | AJ53: =H53+N53+T53+Z53 -> 100
B54: 2 | C54: =(C38/AA38)*100 -> 50 | D54: =(D38/AB38)*100 -> 100 | E54: =(E38/AC38)*100 -> 50 | F54: =(F38/AD38)*100 -> 50 | G54: =(G38/AI38)*100 -> 100 | H54: =(H38/AJ38)*100 -> 100 | I54: =(I38/AA38)*100 -> 0 | J54: =(J38/AB38)*100 -> 0 | K54: =(K38/AC38)*100 -> 50 | L54: =(L38/AD38)*100 -> 0 | M54: =(M38/AI38)*100 -> 0 | N54: =(N38/AJ38)*100 -> 0 | O54: =(O38/AA38)*100 -> 50 | P54: =(P38/AB38)*100 -> 0 | Q54: =(Q38/AC38)*100 -> 0 | R54: =(R38/AD38)*100 -> 50 | S54: =(S38/AI38)*100 -> 0 | T54: =(T38/AJ38)*100 -> 0 | U54: =(U38/AA38)*100 -> 0 | V54: =(V38/AB38)*100 -> 0 | W54: =(W38/AC38)*100 -> 0 | X54: =(X38/AD38)*100 -> 0 | Y54: =(Y38/AI38)*100 -> 0 | Z54: =(Z38/AJ38)*100 -> 0 | AA54: =C54+I54+O54+U54 -> 100 | AB54: =D54+J54+P54+V54 -> 100 | AC54: =E54+K54+Q54+W54 -> 100 | AD54: =F54+L54+R54+X54 -> 100 | AI54: =G54+M54+S54+Y54 -> 100 | AJ54: =H54+N54+T54+Z54 -> 100
B55: 3 | C55: 33.33333333 | D55: 50 | E55: 0 | F55: 66.66666667 | G55: 75 | H55: 100 | I55: 0 | J55: 0 | K55: 0 | L55: 0 | M55: 0 | N55: 0 | O55: 66.66666667 | P55: 50 | Q55: 0 | R55: 33.33333333 | S55: 25 | T55: 0 | U55: 0 | V55: 0 | W55: 100 | X55: 0 | Y55: 0 | Z55: 0 | AA55: 100 | AB55: 100 | AC55: 100 | AD55: 100 | AI55: 100 | AJ55: 100
B56: 4 | C56: 25 | D56: 33.33333333 | F56: 0 | G56: 28.57142857 | H56: 12.5 | I56: 0 | J56: 0 | L56: 20 | M56: 0 | N56: 75 | O56: 75 | P56: 66.66666667 | R56: 20 | S56: 71.42857143 | T56: 12.5 | U56: 0 | V56: 0 | X56: 60 | Y56: 0 | Z56: 0 | AA56: 100 | AB56: 100 | AD56: 100 | AI56: 100 | AJ56: 100
B57: 5 | C57: 20 | D57: 25 | F57: 0 | G57: 16.66666667 | H57: 11.11111111 | I57: 0 | J57: 0 | L57: 0 | M57: 0 | N57: 11.11111111 | O57: 80 | P57: 75 | R57: 0 | S57: 83.33333333 | T57: 11.11111111 | U57: 0 | V57: 0 | X57: 100 | Y57: 0 | Z57: 66.66666667 | AA57: 100 | AB57: 100 | AD57: 100 | AI57: 100 | AJ57: 100
B58: 6 | C58: 16.66666667 | D58: 9.090909091 | G58: 28.57142857 | H58: 0 | I58: 0 | J58: 9.090909091 | M58: 0 | N58: 0 | O58: 83.33333333 | P58: 72.72727273 | S58: 71.42857143 | T58: 0 | U58: 0 | V58: 9.090909091 | Y58: 0 | Z58: 100 | AA58: 100 | AB58: 100 | AI58: 100 | AJ58: 100
B59: 7 | C59: 0 | D59: 0 | G59: 0 | I59: 0 | J59: 0 | M59: 0 | O59: 85.71428571 | P59: 87.5 | S59: 88.88888889 | U59: 14.28571429 | V59: 12.5 | Y59: 11.11111111 | AA59: 100 | AB59: 100 | AI59: 100
B60: 8 | C60: 0 | D60: 0 | G60: 12.5 | I60: 0 | J60: 0 | M60: 0 | O60: 83.33333333 | P60: 66.66666667 | S60: 75 | U60: 16.66666667 | V60: 33.33333333 | Y60: 12.5 | AA60: 100 | AB60: 100 | AI60: 100
B61: 9 | C61: 0 | D61: 0 | G61: 0 | I61: 0 | J61: 0 | M61: 0 | O61: 60 | P61: 33.33333333 | S61: 87.5 | U61: 40 | V61: 66.66666667 | Y61: 12.5 | AA61: 100 | AB61: 100 | AI61: 100
B62: 10 | C62: 0 | D62: 0 | G62: 12.5 | I62: 0 | J62: 0 | M62: 0 | O62: 33.33333333 | P62: 50 | S62: 37.5 | U62: 66.66666667 | V62: 50 | Y62: 50 | AA62: 100 | AB62: 100 | AI62: 100
B63: 11 | C63: 0 | D63: 0 | G63: 0 | I63: 0 | J63: 0 | M63: 0 | O63: 0 | P63: 100 | S63: 80 | U63: 100 | V63: 0 | Y63: 20 | AA63: 100 | AB63: 100 | AI63: 100
B64: 12 | C64: 0 | G64: 0 | I64: 0 | M64: 0 | O64: 0 | S64: 75 | U64: 100 | Y64: 25 | AA64: 100 | AI64: 100
B65: 13 | G65: 0 | M65: 0 | S65: 0 | Y65: 100 | AI65: 100
B68: Counts of 6 Division Outcomes
C69: Expansion (B+B) | I69: Maintenance (B+GorR) | O69: Exhaustion (G+R) | U69: Double Mk (G+G) | Z69: Double Er (R+R) | AJ69: Total Divisions
B70: 1 | C70: 1 | D70: 1 | E70: 1 | F70: 1 | G70: 1 | H70: 1 | I70: 0 | J70: 0 | K70: 0 | L70: 0 | M70: 0 | N70: 0 | U70: 1 | V70: 1 | W70: 1 | X70: 1 | Y70: 1 | Z70: 1 | AA70: 1 | AB70: 1 | AC70: 1 | AD70: 1 | AE70: 1 | AF70: 1 | AG70: 1 | AH70: 1 | AI70: 1 | AJ70: 1 | AK70: 1 | AL70: 1 | AM70: 1 | AN70: 1 | AO70: 1 | AP70: 1 | AQ70: 1 | AR70: 1 | AS70: 1 | AT70: 1 | AU70: 1 | AV70: 1 | AW70: 1 | AX70: 1 | AY70: 1 | AZ70: 1 | BA70: 1 | BB70: 1 | BC70: 1 | BD70: 1
B71: 2 | C71: 1 | D71: 2 | E71: 1 | F71: 1 | G71: 2 | H71: 2 | I71: 1 | J71: 0 | K71: 1 | L71: 1 | M71: 0 | N71: 0 | AJ71: 2 | AK71: 2 | AL71: 2 | AM71: 2 | AN71: 2 | AO71: 2
B72: 3 | C72: 1 | D72: 2 | E72: 0 | F72: 2 | G72: 3 | H72: 4 | I72: 2 | J72: 2 | K72: 0 | L72: 1 | M72: 1 | N72: 0 | O72: 0 | P72: 0 | Q72: 3 | R72: 0 | S72: 0 | T72: 0 | AJ72: 3 | AK72: 4 | AL72: 3 | AM72: 3 | AN72: 4 | AO72: 4
B73: 4 | C73: 1 | D73: 2 | E73: 0 | F73: 0 | G73: 2 | H73: 1 | I73: 3 | J73: 4 | K73: 0 | L73: 2 | M73: 5 | N73: 7 | O73: 0 | P73: 0 | Q73: 0 | R73: 3 | S73: 0 | T73: 0 | AJ73: 4 | AK73: 6 | AL73: 0 | AM73: 5 | AN73: 7 | AO73: 8
B74: 5 | C74: 1 | D74: 2 | E74: 0 | F74: 0 | G74: 1 | H74: 1 | I74: 4 | J74: 6 | K74: 0 | L74: 0 | M74: 5 | N74: 2 | O74: 0 | P74: 0 | Q74: 0 | R74: 2 | S74: 0 | T74: 6 | AJ74: 5 | AK74: 8 | AL74: 0 | AM74: 2 | AN74: 6 | AO74: 9
B75: 6 | C75: 1 | D75: 1 | E75: 0 | F75: 0 | G75: 2 | H75: 0 | I75: 5 | J75: 9 | K75: 0 | L75: 0 | M75: 5 | N75: 0 | O75: 0 | P75: 1 | Q75: 0 | R75: 0 | S75: 0 | T75: 4 | AJ75: 6 | AK75: 11 | AL75: 0 | AM75: 0 | AN75: 7 | AO75: 4
B76: 7 | C76: 0 | D76: 0 | E76: 0 | F76: 0 | G76: 0 | H76: 0 | I76: 6 | J76: 7 | K76: 0 | L76: 0 | M76: 8 | N76: 0 | O76: 1 | P76: 1 | Q76: 0 | R76: 0 | S76: 1 | T76: 0 | AJ76: 7 | AK76: 8 | AL76: 0 | AM76: 0 | AN76: 9 | AO76: 0
B77: 8 | C77: 0 | D77: 0 | E77: 0 | F77: 0 | G77: 1 | H77: 0 | I77: 5 | J77: 6 | K77: 0 | L77: 0 | M77: 6 | N77: 0 | O77: 1 | P77: 3 | Q77: 0 | R77: 0 | S77: 1 | T77: 0 | AJ77: 6 | AK77: 9 | AL77: 0 | AM77: 0 | AN77: 8 | AO77: 0
B78: 9 | C78: 0 | D78: 0 | E78: 0 | F78: 0 | G78: 0 | H78: 0 | I78: 3 | J78: 2 | K78: 0 | L78: 0 | M78: 7 | N78: 0 | O78: 2 | P78: 4 | Q78: 0 | R78: 0 | S78: 1 | T78: 0 | AJ78: 5 | AK78: 6 | AL78: 0 | AM78: 0 | AN78: 8 | AO78: 0
B79: 10 | C79: 0 | D79: 0 | E79: 0 | F79: 0 | G79: 1 | H79: 0 | I79: 1 | J79: 1 | K79: 0 | L79: 0 | M79: 3 | N79: 0 | O79: 2 | P79: 1 | Q79: 0 | R79: 0 | S79: 4 | T79: 0 | AJ79: 3 | AK79: 2 | AL79: 0 | AM79: 0 | AN79: 8 | AO79: 0
B80: 11 | I80: 0 | J80: 1 | K80: 0 | L80: 0 | M80: 4 | N80: 0 | O80: 1 | P80: 0 | Q80: 0 | R80: 0 | S80: 1 | T80: 0 | AJ80: 1 | AK80: 1 | AL80: 0 | AM80: 0 | AN80: 5 | AO80: 0
B81: 12 | I81: 0 | J81: 0 | K81: 0 | L81: 0 | M81: 3 | N81: 0 | O81: 1 | P81: 0 | Q81: 0 | R81: 0 | S81: 1 | T81: 0 | AJ81: 1 | AK81: 0 | AL81: 0 | AM81: 0 | AN81: 4 | AO81: 0
B82: 13 | O82: 0 | P82: 0 | Q82: 0 | R82: 0 | S82: 3 | T82: 0 | AJ82: 0 | AK82: 0 | AL82: 0 | AM82: 0 | AN82: 3 | AO82: 0
B84: Frequencies
C85: Expansion (B+B) | I85: Maintenance (B+GorR) | O85: Exhaustion (G+R) | AJ85: Sum
B86: 1 | C86: =(C70/AJ70)*100 -> 100 | D86: =(D70/AK70)*100 -> 100 | E86: =(E70/AL70)*100 -> 100 | F86: =(F70/AM70)*100 -> 100 | G86: =(G70/AN70)*100 -> 100 | H86: =(H70/AO70)*100 -> 100 | I86: =(I70/AJ70)*100 -> 0 | J86: =(J70/AK70)*100 -> 0 | K86: =(K70/AL70)*100 -> 0 | L86: =(L70/AM70)*100 -> 0 | M86: =(M70/AN70)*100 -> 0 | N86: =(N70/AO70)*100 -> 0 | O86: =(O70/AJ70)*100 -> 0 | P86: 0 | Q86: 0 | R86: 0 | S86: 0 | T86: 0 | U86: 100 | V86: =(V70/AQ70)*100 -> 100 | W86: =(W70/AR70)*100 -> 100 | X86: =(X70/AS70)*100 -> 100 | Y86: =(Y70/AT70)*100 -> 100 | Z86: =(Z70/AU70)*100 -> 100 | AA86: =(AA70/AV70)*100 -> 100 | AB86: =(AB70/AW70)*100 -> 100 | AC86: =(AC70/AX70)*100 -> 100 | AD86: =(AD70/AY70)*100 -> 100 | AE86: =(AE70/AZ70)*100 -> 100 | AF86: =(AF70/BA70)*100 -> 100 | AG86: =(AG70/BB70)*100 -> 100 | AH86: =(AH70/BC70)*100 -> 100 | AI86: =(AI70/BD70)*100 -> 100 | AJ86: =C86+I86+O86 -> 100 | AK86: 100 | AL86: 100 | AM86: 100 | AN86: 100 | AO86: 100 | AP86: 100 | AQ86: =J86+P86+V86 -> 100 | AR86: =K86+Q86+W86 -> 100 | AS86: =L86+R86+X86 -> 100 | AT86: =M86+S86+Y86 -> 100 | AU86: =N86+T86+Z86 -> 100 | AV86: =O86+U86+AA86 -> 200 | AW86: =P86+V86+AB86 -> 200 | AX86: =Q86+W86+AC86 -> 200 | AY86: =R86+X86+AD86 -> 200 | AZ86: =S86+Y86+AE86 -> 200 | BA86: =T86+Z86+AF86 -> 200 | BB86: =U86+AA86+AG86 -> 300 | BC86: =V86+AB86+AH86 -> 300 | BD86: =W86+AC86+AI86 -> 300
B87: 2 | C87: 50 | D87: 100 | E87: 50 | F87: 50 | G87: 100 | H87: 100 | I87: 50 | J87: 0 | K87: 50 | L87: 50 | M87: 0 | N87: 0 | O87: =(O71/AJ71)*100 -> 0 | P87: =(P71/AK71)*100 -> 0 | Q87: =(Q71/AL71)*100 -> 0 | R87: =(R71/AM71)*100 -> 0 | S87: =(S71/AN71)*100 -> 0 | T87: =(T71/AO71)*100 -> 0 | AJ87: =C87+I87+O87 -> 100 | AK87: =D87+J87+P87 -> 100 | AL87: =E87+K87+Q87 -> 100 | AM87: =F87+L87+R87 -> 100 | AN87: =G87+M87+S87 -> 100 | AO87: =H87+N87+T87 -> 100
B88: 3 | C88: 33.33333333 | D88: 50 | E88: 0 | F88: 66.66666667 | G88: 75 | H88: 100 | I88: 66.66666667 | J88: 50 | K88: 0 | L88: 33.33333333 | M88: 25 | N88: 0 | O88: 0 | P88: 0 | Q88: 100 | R88: 0 | S88: 0 | T88: 0 | AJ88: 100 | AK88: 100 | AL88: 100 | AM88: 100 | AN88: 100 | AO88: 100
B89: 4 | C89: 25 | D89: 33.33333333 | F89: 0 | G89: 28.57142857 | H89: 12.5 | I89: 75 | J89: 66.66666667 | L89: 40 | M89: 71.42857143 | N89: 87.5 | O89: 0 | P89: 0 | R89: 60 | S89: 0 | T89: 0 | AJ89: 100 | AK89: 100 | AM89: 100 | AN89: 100 | AO89: 100
B90: 5 | C90: 20 | D90: 25 | F90: 0 | G90: 16.66666667 | H90: 11.11111111 | I90: 80 | J90: 75 | L90: 0 | M90: 83.33333333 | N90: 22.22222222 | O90: 0 | P90: 0 | R90: 100 | S90: 0 | T90: 66.66666667 | AJ90: 100 | AK90: 100 | AM90: 100 | AN90: 100 | AO90: 100
B91: 6 | C91: 16.66666667 | D91: 9.090909091 | G91: 28.57142857 | H91: 0 | I91: 83.33333333 | J91: 81.81818182 | M91: 71.42857143 | N91: 0 | O91: 0 | P91: 9.090909091 | S91: 0 | T91: 100 | AJ91: 100 | AK91: 100 | AN91: 100 | AO91: 100
B92: 7 | C92: 0 | D92: 0 | G92: 0 | I92: 85.71428571 | J92: 87.5 | M92: 88.88888889 | O92: 14.28571429 | P92: 12.5 | S92: 11.11111111 | AJ92: 100 | AK92: 100 | AN92: 100
B93: 8 | C93: 0 | D93: 0 | G93: 12.5 | I93: 83.33333333 | J93: 66.66666667 | M93: 75 | O93: 16.66666667 | P93: 33.33333333 | S93: 12.5 | AJ93: 100 | AK93: 100 | AN93: 100
B94: 9 | C94: 0 | D94: 0 | G94: 0 | I94: 60 | J94: 33.33333333 | M94: 87.5 | O94: 40 | P94: 66.66666667 | S94: 12.5 | AJ94: 100 | AK94: 100 | AN94: 100
B95: 10 | C95: 0 | D95: 0 | G95: 12.5 | I95: 33.33333333 | J95: 50 | M95: 37.5 | O95: 66.66666667 | P95: 50 | S95: 50 | AJ95: 100 | AK95: 100 | AN95: 100
B96: 11 | C96: 0 | D96: 0 | G96: 0 | I96: 0 | J96: 100 | M96: 80 | O96: 100 | P96: 0 | S96: 20 | AJ96: 100 | AK96: 100 | AN96: 100
B97: 12 | C97: 0 | G97: 0 | I97: 0 | M97: 75 | O97: 100 | S97: 25 | AJ97: 100 | AN97: 100
B98: 13 | G98: 0 | M98: 0 | S98: 100 | AN98: 100
